Workbook

Sheet Service Listing
C1: Pharmacy Services - Community Pharmacy Primary Care Clinic
A2: Hours of Appointments Per Day Scheduled | F2: 7.5 | G2: Hours
A3: Default Appointment Time (e.g. UTI, Renewal 3 or less, CDM Follow-Up) | F3: 15 | G3: Minutes
A5: Funding Status | B5: Category | C5: Service | D5: Suggested Public Facing Name | E5: Eligibility | F5: Available for Walk-In | G5: PIN | H5: Time Code (mult by Default) | I5: Time (min) | J5: Fee | K5: Comment
A6: Funded | B6: Drug Administration | C6: Covid-19 Vaccine Administration Fee | E6: All Patients | F6: CanImmunize | G6: To be confirmed | H6: 0.5 | I6: =+$F$3*ServListing[[#This Row],[Time Code (mult by Default)]] -> 7.5 | J6: 18 | K6: Paid via CanImmunize. $0 Online
A7: Funded | B7: Drug Administration | C7: Influenza Vaccine Admin Fee | E7: All Patients | F7: CanImmunize | G7: To be confirmed | H7: 0.5 | I7: =+$F$3*ServListing[[#This Row],[Time Code (mult by Default)]] -> 7.5 | J7: 12.8 | K7: Paid via CanImmunize. $0 Online
A8: Funded | B8: Health Management | C8: Prescribing Contraception Initial Assessment that results in a prescription | E8: All NS Residents | F8: Recommended | G8: 92099763 | H8: 2 | I8: =+$F$3*ServListing[[#This Row],[Time Code (mult by Default)]] -> 30 | J8: 20
A9: Funded | B9: Health Management | C9: Prescribing Contraception Initial Assessment that does not result in a prescription | E9: All NS Residents | F9: Recommended | G9: 92099702 | H9: 2 | I9: =+$F$3*ServListing[[#This Row],[Time Code (mult by Default)]] -> 30 | J9: 20
A10: Funded | B10: Health Management | C10: Prescribing Contraception subsequent assessment that results in a change | E10: All NS Residents | F10: Recommended | G10: 92099762 | H10: 1 | I10: =+$F$3*ServListing[[#This Row],[Time Code (mult by Default)]] -> 15 | J10: 20
A11: Funded | B11: Health Management | C11: Prescribing Contraception Subsequent assessment that does not result in a change | E11: All NS Residents | F11: Recommended | G11: 92099761 | H11: 1 | I11: =+$F$3*ServListing[[#This Row],[Time Code (mult by Default)]] -> 15 | J11: 12
A12: Funded | B12: Health Management | C12: Deprescribing -PPI Project Participants Initial Assessment | E12: Patients enrolled in Optimize My Medications | F12: No | G12: 92099760 | H12: 2 | I12: =+$F$3*ServListing[[#This Row],[Time Code (mult by Default)]] -> 30 | J12: 52.5
A13: Funded | B13: Health Management | C13: Deprescribing PPI Follow-ups- Early (limit of 2) Project participants | E13: Patients enrolled in Optimize My Medications | F13: No | G13: 92099759 | H13: 1 | I13: =+$F$3*ServListing[[#This Row],[Time Code (mult by Default)]] -> 15 | J13: 20
A14: Funded | B14: Health Management | C14: Deprescribing BZRA Participants Initial Assessment | E14: Patients enrolled in Optimize My Medications | F14: No | G14: 92099758 | H14: 4 | I14: =+$F$3*ServListing[[#This Row],[Time Code (mult by Default)]] -> 60 | J14: 150
A15: Funded | B15: Health Management | C15: Deprescribing BZRA Follow-ups- Early (limit of 2) Project participants | E15: Patients enrolled in Optimize My Medications | F15: No | G15: 92099757 | H15: 1 | I15: =+$F$3*ServListing[[#This Row],[Time Code (mult by Default)]] -> 15 | J15: 20
A16: Funded | B16: Health Management | C16: Deprescribing BZRA Follow-ups Later (limit of 5 for BZRA only)Project Participants | E16: Patients enrolled in Optimize My Medications | F16: No | G16: 92099756 | H16: 1 | I16: =+$F$3*ServListing[[#This Row],[Time Code (mult by Default)]] -> 15 | J16: 12
A17: Funded | B17: Health Management | C17: Community Pharmacy Led Anticoagulation Management Service (monthly service fee) | E17: All NS Residents | F17: Recommended | G17: 92099751 | H17: 1 | I17: =+$F$3*ServListing[[#This Row],[Time Code (mult by Default)]] -> 15 | J17: 50
A18: Funded | B18: Health Management | C18: Hypertension Project Initial Assessment | E18: Patients Enrolled in the HTN Project only | F18: Optional | G18: 92099750 | H18: 4 | I18: =+$F$3*ServListing[[#This Row],[Time Code (mult by Default)]] -> 60 | J18: 125
A19: Funded | B19: Health Management | C19: Hypertension Project Follow-ups | E19: Patients Enrolled in the HTN Project only | F19: Optional | G19: 92099749 | H19: 1 | I19: =+$F$3*ServListing[[#This Row],[Time Code (mult by Default)]] -> 15 | J19: 20
A20: Funded | B20: Health Management | C20: Bloom Monthly fee (first 6 months) | E20: All NS Residents | F20: Recommended | G20: To be confirmed | H20: 1 | I20: =+$F$3*ServListing[[#This Row],[Time Code (mult by Default)]] -> 15 | J20: 75
A21: Funded | B21: Health Management | C21: Bloom Monthly fee (7+ months) | E21: All NS Residents | F21: Recommended | G21: To be confirmed | H21: 1 | I21: =+$F$3*ServListing[[#This Row],[Time Code (mult by Default)]] -> 15 | J21: 30
A22: Funded | B22: Medication Review | C22: Basic Medication Review | E22: All Pharmacare Patients | F22: No | G22: 92099755 | H22: 2 | I22: =+$F$3*ServListing[[#This Row],[Time Code (mult by Default)]] -> 30 | J22: 52.5
A23: Funded | B23: Medication Review | C23: Basic Medication Review Follow-ups | E23: All Pharmacare Patients | F23: No | G23: 92099754 | H23: 1 | I23: =+$F$3*ServListing[[#This Row],[Time Code (mult by Default)]] -> 15 | J23: 20
A24: Funded | B24: Medication Review | C24: Advanced Medication Review | E24: All Seniors Pharmacare Patients | F24: No | G24: 92099753 | H24: 6 | I24: =+$F$3*ServListing[[#This Row],[Time Code (mult by Default)]] -> 90 | J24: 150
A25: Funded | B25: Medication Review | C25: Advanced Medication Review Follow-ups | E25: All Seniors Pharmacare Patients | F25: No | G25: 92099752 | H25: 1 | I25: =+$F$3*ServListing[[#This Row],[Time Code (mult by Default)]] -> 15 | J25: 20
A26: Funded | B26: Other | C26: Take Home Naloxone Kit Training | E26: All NS Residents | F26: Recommended | G26: 92099748 | H26: 1 | I26: =+$F$3*ServListing[[#This Row],[Time Code (mult by Default)]] -> 15 | J26: 25
A27: Funded | B27: Prescribing | C27: PPCC Prescription Renewal (1-3 meds) | E27: All NS Residents | F27: Recommended | G27: 92099772 | H27: 1 | I27: =+$F$3*ServListing[[#This Row],[Time Code (mult by Default)]] -> 15 | J27: 12
A28: Funded | B28: Prescribing | C28: Prescription Renewal (4+ meds) | E28: All NS Residents | F28: Recommended | G28: 92099771 | H28: 2 | I28: =+$F$3*ServListing[[#This Row],[Time Code (mult by Default)]] -> 30 | J28: 20
A29: Funded | B29: Prescribing | C29: Prescription Adaptation Refusal to Fill | E29: All Pharmacare Patients | F29: Optional | G29: 92099770 | H29: 1 | I29: =+$F$3*ServListing[[#This Row],[Time Code (mult by Default)]] -> 15 | J29: 14
A30: Funded | B30: Prescribing | C30: Prescription Adaptation -Other | E30: All Pharmacare Patients | F30: Optional | G30: 92099769 | H30: 1 | I30: =+$F$3*ServListing[[#This Row],[Time Code (mult by Default)]] -> 15 | J30: 14
A31: Funded | B31: Prescribing | C31: Therapeutic Substitution – PPI | E31: All Pharmacare Patients | F31: Optional | G31: 92099768 | H31: 1 | I31: =+$F$3*ServListing[[#This Row],[Time Code (mult by Default)]] -> 15 | J31: 26.5
A32: Funded | B32: Prescribing | C32: Therapeutic Sub- Other Circumstances | E32: All Pharmacare Patients if applicable | F32: Optional | G32: 92099767 | H32: 1 | I32: =+$F$3*ServListing[[#This Row],[Time Code (mult by Default)]] -> 15 | J32: 26.5
A33: Funded | B33: Prescribing | C33: Assessment – Uncomplicated UTI that results in a prescription | E33: All NS Residents | F33: Recommended | G33: 92099766 | H33: 1 | I33: =+$F$3*ServListing[[#This Row],[Time Code (mult by Default)]] -> 15 | J33: 20
A34: Funded | B34: Prescribing | C34: Assessment Uncomplicated UTI that does not result in a prescription | E34: All NS Residents | F34: Recommended | G34: 92099701 | H34: 1 | I34: =+$F$3*ServListing[[#This Row],[Time Code (mult by Default)]] -> 15 | J34: 20
A35: Funded | B35: Prescribing | C35: Prescribing- Lyme Chemoprophylaxis | E35: All NS Residents | F35: Recommended | G35: 92099765 | H35: 1 | I35: =+$F$3*ServListing[[#This Row],[Time Code (mult by Default)]] -> 15 | J35: 20
A36: Funded | B36: Prescribing | C36: Assessment Lyme Chemoprophylaxis that does not result in a prescription | E36: All NS Residents | F36: Recommended | G36: 92099700 | H36: 1 | I36: =+$F$3*ServListing[[#This Row],[Time Code (mult by Default)]] -> 15 | J36: 20
A37: Funded | B37: Prescribing | C37: Prescribing Herpes Zoster Tx | E37: All NS Residents | F37: Recommended | G37: 92099764 | H37: 1 | I37: =+$F$3*ServListing[[#This Row],[Time Code (mult by Default)]] -> 15 | J37: 20
A38: Funded | B38: Prescribing | C38: Assessment Herpes Zoster Tx that does not result in a prescription | E38: All NS Residents | F38: Recommended | G38: 92099699 | H38: 1 | I38: =+$F$3*ServListing[[#This Row],[Time Code (mult by Default)]] -> 15 | J38: 20
A39: Funded | B39: Prescribing | C39: Prescribing Budesonide for Covid-19 | E39: All NS Residents | F39: Recommended | G39: 92099745 | H39: 1 | I39: =+$F$3*ServListing[[#This Row],[Time Code (mult by Default)]] -> 15 | J39: 20
A40: Not Funded Eligible | B40: Drug Administration | C40: Administration of publicly funded vaccine other than covid-19 or flu | E40: All patients | F40: Recommended | G40: Added to CANImmunize | H40: 1 | I40: =+$F$3*ServListing[[#This Row],[Time Code (mult by Default)]] -> 15 | J40: 18
A41: Not Funded Eligible | B41: Drug Administration | C41: Assessment and Administration of IM or SC injectable medication | E41: All NS Residents | F41: Recommended | G41: 92099718 | H41: 1 | I41: =+$F$3*ServListing[[#This Row],[Time Code (mult by Default)]] -> 15 | J41: 20
A42: Not Funded Eligible | B42: Drug Administration | C42: Assessment and Administration of Anti-psychotic medications | E42: All NS Residents | F42: No | G42: 92099717 | H42: 1 | I42: =+$F$3*ServListing[[#This Row],[Time Code (mult by Default)]] -> 15 | J42: 40
A43: Not Funded Eligible | B43: Drug Administration | C43: Assessment and Administration of Sublocade | E43: All NS Residents | F43: No | G43: 92099716 | H43: 1 | I43: =+$F$3*ServListing[[#This Row],[Time Code (mult by Default)]] -> 15 | J43: 40
A44: Not Funded Eligible | B44: Health Management | C44: Deprescribing -PPI Non Project Participants Initial Assessment | E44: All residents not enrolled in Optimize My Medications | F44: No | G44: 92099738 | H44: 2 | I44: =+$F$3*ServListing[[#This Row],[Time Code (mult by Default)]] -> 30 | J44: 52.5
A45: Not Funded Eligible | B45: Health Management | C45: Deprescribing PPI Follow-ups- Early (limit of 2) Non Project participants | E45: All residents not enrolled in Optimize My Medications | F45: No | G45: 92099737 | H45: 1 | I45: =+$F$3*ServListing[[#This Row],[Time Code (mult by Default)]] -> 15 | J45: 20
A46: Not Funded Eligible | B46: Health Management | C46: Deprescribing BZRA Non Project Participants Initial Assessment | E46: All residents not enrolled in Optimize My Medications | F46: No | G46: 92099736 | H46: 4 | I46: =+$F$3*ServListing[[#This Row],[Time Code (mult by Default)]] -> 60 | J46: 150
A47: Not Funded Eligible | B47: Health Management | C47: Deprescribing BZRA Follow-ups- Early (limit of 2) Non Project participants | E47: All residents not enrolled in Optimize My Medications | F47: No | G47: 92099735 | H47: 1 | I47: =+$F$3*ServListing[[#This Row],[Time Code (mult by Default)]] -> 15 | J47: 20
A48: Not Funded Eligible | B48: Health Management | C48: Deprescribing BZRA Follow-ups Later (limit of 5 for BZRA only) Non-Project Participants | E48: All residents not enrolled in Optimize My Medications | F48: No | G48: 92099734 | H48: 1 | I48: =+$F$3*ServListing[[#This Row],[Time Code (mult by Default)]] -> 15 | J48: 12
A49: Not Funded Eligible | B49: Health Management | C49: Complex Medication Therapy Assessment | E49: All NS Residents | F49: Optional | G49: 92099715 | H49: 1 | I49: =+$F$3*ServListing[[#This Row],[Time Code (mult by Default)]] -> 15 | J49: 37.5 | K49: For services not meeting other criteria. Fee per 15 minute service. Maximum quantity of 6.
A50: Not Funded Eligible | B50: Health Management | C50: Hypertension Project Initial Assessment | E50: Patients NOT Enrolled in the HTN Project only | F50: No | G50: 92099729 | H50: 3 | I50: =+$F$3*ServListing[[#This Row],[Time Code (mult by Default)]] -> 45 | J50: 125
A51: Not Funded Eligible | B51: Health Management | C51: Hypertension Project Follow-ups | E51: Patients NOT Enrolled in the HTN Project only | F51: Optional | G51: 92099728 | H51: 1 | I51: =+$F$3*ServListing[[#This Row],[Time Code (mult by Default)]] -> 15 | J51: 20
A52: Not Funded Eligible | B52: Health Management | C52: Prescribing with a diagnosis as per NSCP standard in collaboration with another provider | E52: All NS Residents | F52: Optional | G52: 92099726 | H52: 1 | I52: =+$F$3*ServListing[[#This Row],[Time Code (mult by Default)]] -> 15 | J52: 25
A53: Not Funded Eligible | B53: Health Management | C53: Chronic Disease Management – Diabetes – Initial/Annual assessment | E53: All residents of NS with Diabetes | F53: No | G53: 92099721 | H53: 4 | I53: =+$F$3*ServListing[[#This Row],[Time Code (mult by Default)]] -> 60 | J53: 125
A54: Not Funded Eligible | B54: Health Management | C54: Chronic Disease Diabetes Management - Follow-up (up to 5 per year) | E54: All residents of NS with Diabetes | F54: Optional | G54: 92099720 | H54: 1 | I54: =+$F$3*ServListing[[#This Row],[Time Code (mult by Default)]] -> 15 | J54: 20
A55: Not Funded Eligible | B55: Health Management | C55: Chronic Disease Management – Lung Disease Asthma/COPD) Initial/Annual Assessment | E55: All residents of NS with Lung Disease | F55: No | G55: 92099706 | H55: 4 | I55: =+$F$3*ServListing[[#This Row],[Time Code (mult by Default)]] -> 60 | J55: 125
A56: Not Funded Eligible | B56: Health Management | C56: Chronic Disease Management – Lung Disease Follow-up (up to 5 per year | E56: All residents of NS with Lung Disease | F56: Optional | G56: 92099705 | H56: 1 | I56: =+$F$3*ServListing[[#This Row],[Time Code (mult by Default)]] -> 15 | J56: 20
A57: Not Funded Eligible | B57: Health Management | C57: Chronic Disease Management -Cardiovascular Disease Initial/Annual Assessment | E57: All residents of NS with CVD | F57: No | G57: 92099704 | H57: 4 | I57: =+$F$3*ServListing[[#This Row],[Time Code (mult by Default)]] -> 60 | J57: 125
A58: Not Funded Eligible | B58: Health Management | C58: Chronic Disease Management Cardiovascular Disease Follow-up (up to 5 per year) | E58: All residents of NS with CVD | F58: Optional | G58: 92099703 | H58: 1 | I58: =+$F$3*ServListing[[#This Row],[Time Code (mult by Default)]] -> 15 | J58: 20
A59: Not Funded Eligible | B59: Health Management | C59: Tobacco Use Reduction Program – Initial Assessment and Discussion | E59: All NS Residents | F59: Recommended | G59: 92099714 | H59: 4 | I59: =+$F$3*ServListing[[#This Row],[Time Code (mult by Default)]] -> 60 | J59: 40
A60: Not Funded Eligible | B60: Health Management | C60: Tobacco Use Reduction Program – Follow-up 1-3 | E60: All NS Residents | F60: Recommended | G60: 92099713 | H60: 1 | I60: =+$F$3*ServListing[[#This Row],[Time Code (mult by Default)]] -> 15 | J60: 15 | K60: Maximum 3 per year
A61: Not Funded Eligible | B61: Health Management | C61: Tobacco Use Reduction Program –Follow-up 4-7 | E61: All NS Residents | F61: Recommended | G61: 92099712 | H61: 1 | I61: =+$F$3*ServListing[[#This Row],[Time Code (mult by Default)]] -> 15 | J61: 10 | K61: Maximum 4 per year
A62: Not Funded Eligible | B62: Prescribing | C62: Renewal Assessment that does not result in a prescription | E62: All NS Residents | F62: Recommended | G62: 92099698 | H62: 1 | I62: =+$F$3*ServListing[[#This Row],[Time Code (mult by Default)]] -> 15 | J62: 12
A63: Not Funded Eligible | B63: Prescribing | C63: Prescription Adaptation Refusal to Fill | E63: All Non-Pharmacare Patients | F63: Optional | G63: 92099742 | H63: 1 | I63: =+$F$3*ServListing[[#This Row],[Time Code (mult by Default)]] -> 15 | J63: 14
A64: Not Funded Eligible | B64: Prescribing | C64: Prescription Adaptation -Other | E64: All non-Pharmacare Patients | F64: Optional | G64: 92099741 | H64: 1 | I64: =+$F$3*ServListing[[#This Row],[Time Code (mult by Default)]] -> 15 | J64: 14
A65: Not Funded Eligible | B65: Prescribing | C65: Therapeutic Substitution – PPI | E65: All non-Pharmacare Patients | F65: Optional | G65: 92099740 | H65: 1 | I65: =+$F$3*ServListing[[#This Row],[Time Code (mult by Default)]] -> 15 | J65: 26.5
A66: Not Funded Eligible | B66: Prescribing | C66: Therapeutic Sub- Other Circumstances | E66: All NS Residents that require TS other than PPI | F66: Optional | G66: 92099739 | H66: 1 | I66: =+$F$3*ServListing[[#This Row],[Time Code (mult by Default)]] -> 15 | J66: 26.5
A67: Not Funded Eligible | B67: Prescribing | C67: Prescribing in an Emergency | E67: All NS Residents | F67: Recommended | G67: 92099727 | H67: 1 | I67: =+$F$3*ServListing[[#This Row],[Time Code (mult by Default)]] -> 15 | J67: 28
A68: Not Funded Eligible | B68: Prescribing | C68: Pharmacist independent prescribing with diagnosis confirmed by pharmacist (Diabetes, Lung, CVD only). NSCP Study | E68: All NS Residents | F68: Optional | G68: 92099697 | H68: 1 | I68: =+$F$3*ServListing[[#This Row],[Time Code (mult by Default)]] -> 15 | J68: 25
A69: Not Funded Eligible | B69: Prescribing | C69: Prescribing for a Minor Ailment (as per Appendix 6) | E69: All NS Residents | F69: Recommended | G69: 92099725 | H69: 1 | I69: =+$F$3*ServListing[[#This Row],[Time Code (mult by Default)]] -> 15 | J69: 25
A70: Not Funded Eligible | B70: Prescribing | C70: Assessment, Point of Care Testing For Group A Strep that results in a prescription | E70: All NS Residents | F70: Recommended | G70: 92099722 | H70: 1 | I70: =+$F$3*ServListing[[#This Row],[Time Code (mult by Default)]] -> 15 | J70: 35 | K70: Includes time for physical assessment, conduct test, document, prescribe and communicate results, does not include cost of test cartridges and supplies.
A71: Not Funded Eligible | B71: Prescribing | C71: Assessment Group A Strep that does not result in an RX | E71: All NS Residents | F71: Recommended | G71: 92099696 | H71: 1 | I71: =+$F$3*ServListing[[#This Row],[Time Code (mult by Default)]] -> 15 | J71: 20 | K71: Includes time for physical assessment, conduct test, document, prescribe and communicate results, does not include cost of test cartridges and supplies.
A72: Not Funded Eligible | B72: Testing | C72: Point of Care Test A1C | E72: All residents as part of CDM plan (not walk-in test requests) | F72: No | G72: 92099724 | H72: 1 | I72: =+$F$3*ServListing[[#This Row],[Time Code (mult by Default)]] -> 15 | J72: 25 | K72: Includes time to test, document and communicate results, does not include cost of test cartridges and supplies.
A73: Not Funded Eligible | B73: Testing | C73: Point of Care Test Cholesterol | E73: All residents as part of CDM plan (not walk-in test requests) | F73: No | G73: 92099723 | H73: 1 | I73: =+$F$3*ServListing[[#This Row],[Time Code (mult by Default)]] -> 15 | J73: 25 | K73: Includes time to test, document and communicate results, does not include cost of test cartridges and supplies.
A74: Not Funded Not Eligible | B74: Drug Administration | C74: Administration of non-publicly funded vaccines | E74: All patients | F74: Recommended | G74: 92099709 | H74: 0.5 | I74: =+$F$3*ServListing[[#This Row],[Time Code (mult by Default)]] -> 7.5 | J74: 20
A75: Not Funded Not Eligible | B75: Other | C75: Comprehensive Travel Health Consultation | E75: All patients | F75: No | G75: 92099711 | H75: 2 | I75: =+$F$3*ServListing[[#This Row],[Time Code (mult by Default)]] -> 30 | J75: Fee Set by Site
A76: Not Funded Not Eligible | B76: Other | C76: Pharmacogenomic Consultation Service | E76: All patients | F76: No | G76: 92099710 | H76: 2 | I76: =+$F$3*ServListing[[#This Row],[Time Code (mult by Default)]] -> 30 | J76: Fee Set by Site
A77: Not Funded Not Eligible | B77: Other | C77: Malaria Chemoprophylaxis Assessment and Prescribing | E77: All patients | F77: No | G77: 92099708 | H77: 2 | I77: =+$F$3*ServListing[[#This Row],[Time Code (mult by Default)]] -> 30 | J77: Fee Set by Site
A78: Not Funded Not Eligible | B78: Other | C78: Any Service for a Patient without an NS Health card that is not covered for out of province patients | E78: All Patients | F78: Optional | G78: 92099707 | H78: 1 | I78: =+$F$3*ServListing[[#This Row],[Time Code (mult by Default)]] -> 15 | J78: Fee Set by Site | K78: Varies by service. Not less than the fee billed to the project or government.
A79: Not Funded Not Eligible | B79: Other | C79: Rapid Antigen Testing Travel Test | E79: All Patients | F79: Optional | G79: TBD | H79: 1 | I79: =+$F$3*ServListing[[#This Row],[Time Code (mult by Default)]] -> 15 | J79: 40 | K79: Varies by service. Not less than the fee billed to the project or government.
A80: Not Funded Not Eligible | B80: Other | C80: Other: | E80: All Patients | F80: Optional | G80: TBD | H80: 1 | I80: =+$F$3*ServListing[[#This Row],[Time Code (mult by Default)]] -> 15 | J80: Fee Set by Site | K80: Varies by service. Not less than the fee billed to the project or government.
A81: Not Funded Not Eligible | B81: Other | C81: Other: | E81: All Patients | F81: Optional | G81: TBD | H81: 1 | I81: =+$F$3*ServListing[[#This Row],[Time Code (mult by Default)]] -> 15 | J81: Fee Set by Site | K81: Varies by service. Not less than the fee billed to the project or government.

Sheet Assumptions
A1: Assumptions in Budget Creation (This will automatically fill in values in the Clinic Budget tab)
A3: COVID | K3: Per Month | L3: Per Quarter
A4: COVID-19 Vaccines will be completed occassionally as the CPPCC was not designed to be a COVID clinic. COVID-19 Vaccines will be completed evenly throughout the year with the following done per month. | K4: 0 | L4: =+K4*3 -> 0
A7: FLU | K7: Est Flu Oct (2 wk) | L7: Est Flu Nov | M7: Est Flu Dec
A8: No flu shots in Q1 or Q2 (Feb -Jul). Flu shots will be offered in last two weeks of October (Q3) and Nov/Dec (Q3/Q4) as patients are making regular appointments. None in Jan. There are roughly 650 appointment blocks per month. | K8: 0 | L8: 0 | M8: 0
A11: CPAMS | K11: Combined Pt BILLED/ MONTH (Disp/CPPCC) | L11: New Patients Q1 (100% CPPCC) | M11: Q1-Q4 % of Monthly Maintenance in CPPCC | N11: Q1-Q4 Monthly # in Clinic
A12: Existing CPAMS had average billing of X per month. Consider potential future enrollment of new patients in the first quarter. Existing CPAMS patients could be A) handled entirely by the dispensary ($0 in clinic) B) Maintenance handled in the dispensary and new starts handled in the clinic (Only 1 billing per new patient per year, put in Q1). Part of CPAMS workload split between clinic and dispensary. Q1 will be New plus Maintenance. | K12: 0 | L12: 0 | M12: 1 | N12: =+K12*M12 -> 0
A15: ADVANCED MEDICATION REVIEWS | K15: Q1 Goal | L15: Q2 Goal (estimate 5 per month or 15) | M15: Q3 Goal (estimate 5 per month or 15) | N15: Q4 Goal (could do 20/month or 60)
A16: Most will occur once the patient meets their deductible. Q1 could weighted higher to screen for patients that would benefit from Chronic Disease Management (Feb and March will be higher than April - September as the patient will likely have a copay). Assume on averager 1 AMR Follow-Up per AMR evenly distributed throughout the year. | K16: 0 | L16: 0 | M16: 0 | N16: 0
A19: BASIC MEDICATION REVIEWS | K19: Total Per Year | L19: Q1 and Q4 (1/3 each) | M19: Q2 and Q3 (1/6 each)
A20: Assume any Med Reviews that are completed are 1/3 done in Q1, 1/3 done in Q2/Q3 combined and 1/3 in Q4. Assume 0.20 follow-ups per Basic Med Review evenly distributed throughout the year. | K20: 0 | L20: 0 | M20: =+K20/6 -> 0
A23: BLOOM | K23: Q1 (Average patient/month) | L23: Q2 (Average patient/month) | M23: Q3 (Average patient/month) | N23: Q4 (Average patient/month)
A24: Assume Q2 start for new Bloom Sites (average 2 starts per week until 40 patient roster). In Q4 25% of patients will be 7+ months ($30 fee) | K24: 0 | L24: 0 | M24: 0 | N24: 0
A27: HTN | K27: X (Patients Enrolled per month Q1 and Q2) | L27: Y (Patients Enrolled per month Q3 and Q4) | M27: Z (Average follow-up per patient)
A28: Enroll X patients per month for 2 quarters (largely unattached). Then decrease to Y patients per month for Q3 and Q4. Over the course of the year assume every patient gets Z follow-ups spread out equally over the year. | K28: 0 | L28: 0 | M28: 0
A31: DIABETES | K31: X (patients per month Q1 and Q2) | L31: Y (patients per month Q3 and Q4) | M31: Z (Average follow-up per patient)
A32: Enroll X patients per month for 2 quarters (largely unattached). Then decrease to Y patients per month for Q3 and Q4. Over the course of the year assume every patient gets Z follow-ups spread out equally over the year. | K32: 0 | L32: 0 | M32: 0
A35: CVD (DYSLIPIDEMIA) | K35: X (patients per month Q1 and Q2) | L35: Y (patients per month Q3 and Q4) | M35: Z (Average follow-up per patient)
A36: Enroll X patients per month for 2 quarters (largely unattached). Then decrease to Y patients per month for Q3 and Q4. Over the course of the year assume every patient gets Z follow-ups spread out equally over the year. | K36: 0 | L36: 0 | M36: 0
A39: ASTHMA/COPD | K39: X (patients per month Q1 and Q2) | L39: Y (patients per month Q3 and Q4) | M39: Z (Average follow-up per patient)
A40: Enroll X patients per month for 2 quarters (largely unattached). Then decrease to Y patients per month for Q3 and Q4. Over the course of the year assume every patient gets Z follow-ups spread out equally over the year. | K40: 0 | L40: 0 | M40: 0
A43: A1C TESTING | K43: X A1C TESTS PER CDM-DIABETES | L43: Y% of Renewals Require A1C | M43: Z% of Advanced Med Reviews Require A1C
A44: On average X tests per CDM-Diabetes patients (note patients enroll every month including Q4). Also Y% of renewals require A1C. Z% of Advanced Medication Reviews Require A1C. Note: Other services may warrant A1C but that is overly complicated. If you want to adjust for this increase Y%. | K44: 3 | L44: 0.03 | M44: 0.03
A47: LIPID TESTING | K47: X LIPID TESTS PER HTN/DIABETES/CVD | L47: Y% of Renewals Require Lipids | M47: Z% of Advanced Med Reviews Require Lipids
A48: On average X tests per Diabetes/HTN/CVD. Also Y% of renewals require Lipids. Z% of Advanced Medication Reviews Require Lipids. Note: Other services may warrant Lipids but that is overly complicated. If you want to adjust for this increase Y%. | K48: 1.5 | L48: 0.03 | M48: 0.03
A51: ESTIMATES OF SERVICES EQUALLY DISTRIBUTED Q1-Q4 | E51: Actual/ Month | F51: Project/ Month
A52: Herpes Zoster | E52: =+'Historical Data'!H39+'Historical Data'!H40 -> 0 | F52: 0
A53: Lyme Disease (Q2/Q3 Only) | E53: =+'Historical Data'!H37+'Historical Data'!H38 -> 0 | F53: 0
A54: Minor Ailments | E54: =+'Historical Data'!H71 -> 0 | F54: 0 | K54: =10*6/4*2*25 -> 750
A55: UTI | E55: 0 | F55: 0
A56: Renewals (14:1 3orless:4+). Could be less if done in dispensary. Could be more. | E56: =+'Historical Data'!H29+'Historical Data'!H30 -> 0 | F56: 0
A57: Q1 and Q4 Strep Tests (50% w/ testing /50% w/o testing) (Q2/Q3 25% of Est) | E57: 0 | F57: 0
A58: Budesonide for COVID (equal every month) | E58: =+'Historical Data'!H41 -> 0 | F58: 0
A59: Contraception Initial Assessment with 1 Follow-Up | E59: 0 | F59: 0
A60: Take Home Naloxone | E60: =+'Historical Data'!H28 -> 0 | F60: 0
A61: Publicly funded vaccines (Pneumococcal, Tetanus) starting Q2 | E61: 0 | F61: 0
A62: Antipsychotics | E62: =+'Historical Data'!H44 -> 0 | F62: 0
A63: Sublocade | E63: =+'Historical Data'!H45 -> 0 | F63: 0
A64: Other non-vaccine injections (e.g. Depo-Provera, B12) | E64: =+'Historical Data'!H43 -> 0 | F64: 0
A65: Rapid Antigen Test | E65: =+'Historical Data'!H81 -> 0 | F65: 0
A66: Complex Medication Therapy Assessment | E66: 0 | F66: 0
A67: Therapeutic Sub (50:50) Funded and Not Funded but Eligible | E67: =+'Historical Data'!H33+'Historical Data'!H34+'Historical Data'!H67+'Historical Data'!H68 -> 0 | F67: 0
A68: Adaptation (50:50) Funded and Not Funded but Eligible | E68: =+'Historical Data'!H31+'Historical Data'!H32+'Historical Data'!H66+'Historical Data'!H65 -> 0 | F68: 0
A69: PPI Deprescribing with 2 Follow-Ups | E69: 0 | F69: 0
A70: BZDP Deprescribing with 2 Early Follow-Up and 2 Late Follow-Up | E70: 0 | F70: 0
A71: Administration of Non-Publicly Funded Vaccines | E71: =+'Historical Data'!H76 -> 0 | F71: 0

Sheet Historical Data
C1: Historical Service Provision
A3: Instructions: | B3: Start by entering historical service data over a 1 year period into the table below. Obtain the data from your pharmacy software system for the past year. Click on "Freeze Panes and Enter Data". In Columns U OR V enter the totals from last year for each service. You only have to enter the number of services (and the table will calculate a dollar value from the service fee) or the total dollar value for the year. If you enter a number and the dollar value does not match (e.g. you did not charge full fee on all services) do not worry about the discrepancy. This is an estimate as a starting point to build a budget. The data entered into the final columns will automatically populate each quarter with 1/4 the total annual value. We recommend budgeting by quarter as it simpler than trying to build projections 12 to 13 times per year. You may want to leave off COVID shots and flu shots as it will skew your data. Once you've entered historical data you can see your total and quarter results at the bottom. THEN MOVE TO THE ASSUMPTIONS PAGE AND ENTER ASSUMPTIONS. THIS WILL AUTOMATICALLY FILL OUT MOST FIELDS IN THE CLINIC BUDGET TAB.
E6: Annual Totals | G6: Monthly Averages | I6: Q1 | L6: Q2 | O6: Q3 | R6: Q4 | U6: Enter the values for ONE of the two columns below
A7: Funding | B7: Category | C7: Service | D7: Fee/Service | E7: Annual Revenue | F7: # Services/ Year | G7: Average $/Month | H7: Average #/Month | I7: Revenue | J7: Rev/ Month | K7: #/ Month | L7: Revenue | M7: Rev/ Month | N7: #/ Month | O7: Revenue | P7: Rev/ Month | Q7: #/ Month | R7: Revenue | S7: Rev/ Month | T7: #/ Month | U7: Actual Revenue | V7: Actual # of Services
A8: Funded | B8: Drug Administration | C8: Covid-19 Vaccine Administration Fee | D8: =+'Service Listing'!J6 -> 18 | E8: =+I8+L8+O8+R8 -> 0 | F8: =IFERROR(+E8/D8,0) -> 0 | G8: =+E8/12 -> 0 | H8: =+F8/12 -> 0 | I8: =+U8/4 -> 0 | J8: =+I8/3 -> 0 | K8: =IFERROR(J8/D8,0) -> 0 | L8: =+U8/4 -> 0 | M8: =+L8/3 -> 0 | N8: =IFERROR(M8/D8,0) -> 0 | O8: =+U8/4 -> 0 | P8: =+O8/3 -> 0 | Q8: =IFERROR(P8/D8,0) -> 0 | R8: =+U8/4 -> 0 | S8: =+R8/3 -> 0 | T8: =IFERROR(S8/D8,0) -> 0 | U8: =IFERROR(V8*D8,0) -> 0
A9: Funded | B9: Drug Administration | C9: Influenza Vaccine Admin Fee* | D9: =+'Service Listing'!J7 -> 12.8 | E9: =+I9+L9+O9+R9 -> 0 | F9: =IFERROR(+E9/D9,0) -> 0 | G9: =+E9/12 -> 0 | H9: =+F9/12 -> 0 | I9: 0 | J9: 0 | K9: 0 | L9: 0 | M9: 0 | N9: 0 | O9: 0 | P9: 0 | Q9: 0 | R9: 0 | S9: 0 | T9: 0 | U9: =IFERROR(V9*D9,0) -> 0
A10: Funded | B10: Health Management | C10: Prescribing Contraception Initial Assessment that results in a prescription | D10: =+'Service Listing'!J8 -> 20 | E10: 0 | F10: 0 | G10: 0 | H10: 0 | I10: 0 | J10: 0 | K10: 0 | L10: 0 | M10: 0 | N10: 0 | O10: 0 | P10: 0 | Q10: 0 | R10: 0 | S10: 0 | T10: 0 | U10: 0
A11: Funded | B11: Health Management | C11: Prescribing Contraception Initial Assessment that does not result in a prescription | D11: =+'Service Listing'!J9 -> 20 | E11: 0 | F11: 0 | G11: 0 | H11: 0 | I11: 0 | J11: 0 | K11: 0 | L11: 0 | M11: 0 | N11: 0 | O11: 0 | P11: 0 | Q11: 0 | R11: 0 | S11: 0 | T11: 0 | U11: 0
A12: Funded | B12: Health Management | C12: Prescribing Contraception subsequent assessment that results in a change | D12: =+'Service Listing'!J10 -> 20 | E12: 0 | F12: 0 | G12: 0 | H12: 0 | I12: 0 | J12: 0 | K12: 0 | L12: 0 | M12: 0 | N12: 0 | O12: 0 | P12: 0 | Q12: 0 | R12: 0 | S12: 0 | T12: 0 | U12: 0
A13: Funded | B13: Health Management | C13: Prescribing Contraception Subsequent assessment that does not result in a change | D13: =+'Service Listing'!J11 -> 12 | E13: 0 | F13: 0 | G13: 0 | H13: 0 | I13: 0 | J13: 0 | K13: 0 | L13: 0 | M13: 0 | N13: 0 | O13: 0 | P13: 0 | Q13: 0 | R13: 0 | S13: 0 | T13: 0 | U13: 0
A14: Funded | B14: Health Management | C14: Deprescribing -PPI Project Participants Initial Assessment | D14: =+'Service Listing'!J12 -> 52.5 | E14: 0 | F14: 0 | G14: 0 | H14: 0 | I14: 0 | J14: 0 | K14: 0 | L14: 0 | M14: 0 | N14: 0 | O14: 0 | P14: 0 | Q14: 0 | R14: 0 | S14: 0 | T14: 0 | U14: 0
A15: Funded | B15: Health Management | C15: Deprescribing PPI Follow-ups- Early (limit of 2) Project participants | D15: =+'Service Listing'!J13 -> 20 | E15: 0 | F15: 0 | G15: 0 | H15: 0 | I15: 0 | J15: 0 | K15: 0 | L15: 0 | M15: 0 | N15: 0 | O15: 0 | P15: 0 | Q15: 0 | R15: 0 | S15: 0 | T15: 0 | U15: 0
A16: Funded | B16: Health Management | C16: Deprescribing BZRA Participants Initial Assessment | D16: =+'Service Listing'!J14 -> 150 | E16: 0 | F16: 0 | G16: 0 | H16: 0 | I16: 0 | J16: 0 | K16: 0 | L16: 0 | M16: 0 | N16: 0 | O16: 0 | P16: 0 | Q16: 0 | R16: 0 | S16: 0 | T16: 0 | U16: 0
A17: Funded | B17: Health Management | C17: Deprescribing BZRA Follow-ups- Early (limit of 2) Project participants | D17: =+'Service Listing'!J15 -> 20 | E17: 0 | F17: 0 | G17: 0 | H17: 0 | I17: 0 | J17: 0 | K17: 0 | L17: 0 | M17: 0 | N17: 0 | O17: 0 | P17: 0 | Q17: 0 | R17: 0 | S17: 0 | T17: 0 | U17: 0
A18: Funded | B18: Health Management | C18: Deprescribing BZRA Follow-ups Later (limit of 5 for BZRA only)Project Participants | D18: =+'Service Listing'!J16 -> 12 | E18: 0 | F18: 0 | G18: 0 | H18: 0 | I18: 0 | J18: 0 | K18: 0 | L18: 0 | M18: 0 | N18: 0 | O18: 0 | P18: 0 | Q18: 0 | R18: 0 | S18: 0 | T18: 0 | U18: 0
A19: Funded | B19: Health Management | C19: Community Pharmacy Led Anticoagulation Management Service (monthly service fee) | D19: =+'Service Listing'!J17 -> 50 | E19: 0 | F19: 0 | G19: 0 | H19: 0 | I19: 0 | J19: 0 | K19: 0 | L19: 0 | M19: 0 | N19: 0 | O19: 0 | P19: 0 | Q19: 0 | R19: 0 | S19: 0 | T19: 0 | U19: 0
A20: Funded | B20: Health Management | C20: Hypertension Project Initial Assessment | D20: =+'Service Listing'!J18 -> 125 | E20: 0 | F20: 0 | G20: 0 | H20: 0 | I20: 0 | J20: 0 | K20: 0 | L20: 0 | M20: 0 | N20: 0 | O20: 0 | P20: 0 | Q20: 0 | R20: 0 | S20: 0 | T20: 0 | U20: 0
A21: Funded | B21: Health Management | C21: Hypertension Project Follow-ups | D21: =+'Service Listing'!J19 -> 20 | E21: 0 | F21: 0 | G21: 0 | H21: 0 | I21: 0 | J21: 0 | K21: 0 | L21: 0 | M21: 0 | N21: 0 | O21: 0 | P21: 0 | Q21: 0 | R21: 0 | S21: 0 | T21: 0 | U21: 0
A22: Funded | B22: Health Management | C22: Bloom Monthly fee (first 6 months) | D22: =+'Service Listing'!J20 -> 75 | E22: 0 | F22: 0 | G22: 0 | H22: 0 | I22: 0 | J22: 0 | K22: 0 | L22: 0 | M22: 0 | N22: 0 | O22: 0 | P22: 0 | Q22: 0 | R22: 0 | S22: 0 | T22: 0 | U22: 0
A23: Funded | B23: Health Management | C23: Bloom Monthly fee (7+ months) | D23: =+'Service Listing'!J21 -> 30 | E23: 0 | F23: 0 | G23: 0 | H23: 0 | I23: 0 | J23: 0 | K23: 0 | L23: 0 | M23: 0 | N23: 0 | O23: 0 | P23: 0 | Q23: 0 | R23: 0 | S23: 0 | T23: 0 | U23: 0
A24: Funded | B24: Medication Review | C24: Basic Medication Review | D24: =+'Service Listing'!J22 -> 52.5 | E24: 0 | F24: 0 | G24: 0 | H24: 0 | I24: 0 | J24: 0 | K24: 0 | L24: 0 | M24: 0 | N24: 0 | O24: 0 | P24: 0 | Q24: 0 | R24: 0 | S24: 0 | T24: 0 | U24: 0
A25: Funded | B25: Medication Review | C25: Basic Medication Review Follow-ups | D25: =+'Service Listing'!J23 -> 20 | E25: 0 | F25: 0 | G25: 0 | H25: 0 | I25: 0 | J25: 0 | K25: 0 | L25: 0 | M25: 0 | N25: 0 | O25: 0 | P25: 0 | Q25: 0 | R25: 0 | S25: 0 | T25: 0 | U25: 0
A26: Funded | B26: Medication Review | C26: Advanced Medication Review | D26: =+'Service Listing'!J24 -> 150 | E26: 0 | F26: 0 | G26: 0 | H26: 0 | I26: 0 | J26: 0 | K26: 0 | L26: 0 | M26: 0 | N26: 0 | O26: 0 | P26: 0 | Q26: 0 | R26: 0 | S26: 0 | T26: 0 | U26: 0
A27: Funded | B27: Medication Review | C27: Advanced Medication Review Follow-ups | D27: =+'Service Listing'!J25 -> 20 | E27: 0 | F27: 0 | G27: 0 | H27: 0 | I27: 0 | J27: 0 | K27: 0 | L27: 0 | M27: 0 | N27: 0 | O27: 0 | P27: 0 | Q27: 0 | R27: 0 | S27: 0 | T27: 0 | U27: 0
A28: Funded | B28: Other | C28: Take Home Naloxone Kit Training | D28: =+'Service Listing'!J26 -> 25 | E28: 0 | F28: 0 | G28: 0 | H28: 0 | I28: 0 | J28: 0 | K28: 0 | L28: 0 | M28: 0 | N28: 0 | O28: 0 | P28: 0 | Q28: 0 | R28: 0 | S28: 0 | T28: 0 | U28: 0
A29: Funded | B29: Prescribing | C29: PPCC Prescription Renewal (1-3 meds) | D29: =+'Service Listing'!J27 -> 12 | E29: 0 | F29: 0 | G29: 0 | H29: 0 | I29: 0 | J29: 0 | K29: 0 | L29: 0 | M29: 0 | N29: 0 | O29: 0 | P29: 0 | Q29: 0 | R29: 0 | S29: 0 | T29: 0 | U29: 0
A30: Funded | B30: Prescribing | C30: Prescription Renewal (4+ meds) | D30: =+'Service Listing'!J28 -> 20 | E30: 0 | F30: 0 | G30: 0 | H30: 0 | I30: 0 | J30: 0 | K30: 0 | L30: 0 | M30: 0 | N30: 0 | O30: 0 | P30: 0 | Q30: 0 | R30: 0 | S30: 0 | T30: 0 | U30: 0
A31: Funded | B31: Prescribing | C31: Prescription Adaptation Refusal to Fill | D31: =+'Service Listing'!J29 -> 14 | E31: 0 | F31: 0 | G31: 0 | H31: 0 | I31: 0 | J31: 0 | K31: 0 | L31: 0 | M31: 0 | N31: 0 | O31: 0 | P31: 0 | Q31: 0 | R31: 0 | S31: 0 | T31: 0 | U31: 0
A32: Funded | B32: Prescribing | C32: Prescription Adaptation -Other | D32: =+'Service Listing'!J30 -> 14 | E32: 0 | F32: 0 | G32: 0 | H32: 0 | I32: 0 | J32: 0 | K32: 0 | L32: 0 | M32: 0 | N32: 0 | O32: 0 | P32: 0 | Q32: 0 | R32: 0 | S32: 0 | T32: 0 | U32: 0
A33: Funded | B33: Prescribing | C33: Therapeutic Substitution – PPI | D33: =+'Service Listing'!J31 -> 26.5 | E33: 0 | F33: 0 | G33: 0 | H33: 0 | I33: 0 | J33: 0 | K33: 0 | L33: 0 | M33: 0 | N33: 0 | O33: 0 | P33: 0 | Q33: 0 | R33: 0 | S33: 0 | T33: 0 | U33: 0
A34: Funded | B34: Prescribing | C34: Therapeutic Sub- Other Circumstances | D34: =+'Service Listing'!J32 -> 26.5 | E34: 0 | F34: 0 | G34: 0 | H34: 0 | I34: 0 | J34: 0 | K34: 0 | L34: 0 | M34: 0 | N34: 0 | O34: 0 | P34: 0 | Q34: 0 | R34: 0 | S34: 0 | T34: 0 | U34: 0
A35: Funded | B35: Prescribing | C35: Assessment – Uncomplicated UTI that results in a prescription | D35: =+'Service Listing'!J33 -> 20 | E35: 0 | F35: 0 | G35: 0 | H35: 0 | I35: 0 | J35: 0 | K35: 0 | L35: 0 | M35: 0 | N35: 0 | O35: 0 | P35: 0 | Q35: 0 | R35: 0 | S35: 0 | T35: 0 | U35: 0
A36: Funded | B36: Prescribing | C36: Assessment Uncomplicated UTI that does not result in a prescription | D36: =+'Service Listing'!J34 -> 20 | E36: 0 | F36: 0 | G36: 0 | H36: 0 | I36: 0 | J36: 0 | K36: 0 | L36: 0 | M36: 0 | N36: 0 | O36: 0 | P36: 0 | Q36: 0 | R36: 0 | S36: 0 | T36: 0 | U36: 0
A37: Funded | B37: Prescribing | C37: Prescribing- Lyme Chemoprophylaxis | D37: =+'Service Listing'!J35 -> 20 | E37: 0 | F37: 0 | G37: 0 | H37: 0 | I37: 0 | J37: 0 | K37: 0 | L37: 0 | M37: 0 | N37: 0 | O37: 0 | P37: 0 | Q37: 0 | R37: 0 | S37: 0 | T37: 0 | U37: 0
A38: Funded | B38: Prescribing | C38: Assessment Lyme Chemoprophylaxis that does not result in a prescription | D38: =+'Service Listing'!J36 -> 20 | E38: 0 | F38: 0 | G38: 0 | H38: 0 | I38: 0 | J38: 0 | K38: 0 | L38: 0 | M38: 0 | N38: 0 | O38: 0 | P38: 0 | Q38: 0 | R38: 0 | S38: 0 | T38: 0 | U38: 0
A39: Funded | B39: Prescribing | C39: Prescribing Herpes Zoster Tx | D39: =+'Service Listing'!J37 -> 20 | E39: 0 | F39: 0 | G39: 0 | H39: 0 | I39: 0 | J39: 0 | K39: 0 | L39: 0 | M39: 0 | N39: 0 | O39: 0 | P39: 0 | Q39: 0 | R39: 0 | S39: 0 | T39: 0 | U39: 0
A40: Funded | B40: Prescribing | C40: Assessment Herpes Zoster Tx that does not result in a prescription | D40: =+'Service Listing'!J38 -> 20 | E40: 0 | F40: 0 | G40: 0 | H40: 0 | I40: 0 | J40: 0 | K40: 0 | L40: 0 | M40: 0 | N40: 0 | O40: 0 | P40: 0 | Q40: 0 | R40: 0 | S40: 0 | T40: 0 | U40: 0
A41: Funded | B41: Prescribing | C41: Prescribing Budesonide for Covid-19 | D41: =+'Service Listing'!J39 -> 20 | E41: 0 | F41: 0 | G41: 0 | H41: 0 | I41: 0 | J41: 0 | K41: 0 | L41: 0 | M41: 0 | N41: 0 | O41: 0 | P41: 0 | Q41: 0 | R41: 0 | S41: 0 | T41: 0 | U41: 0
A42: Not Funded Eligible | B42: Drug Administration | C42: Administration of publicly funded vaccine other than covid-19 or flu | D42: =+'Service Listing'!J40 -> 18 | E42: 0 | F42: 0 | G42: 0 | H42: 0 | I42: 0 | J42: 0 | K42: 0 | L42: 0 | M42: 0 | N42: 0 | O42: 0 | P42: 0 | Q42: 0 | R42: 0 | S42: 0 | T42: 0 | U42: 0
A43: Not Funded Eligible | B43: Drug Administration | C43: Assessment and Administration of IM or SC injectable medication | D43: =+'Service Listing'!J41 -> 20 | E43: 0 | F43: 0 | G43: 0 | H43: 0 | I43: 0 | J43: 0 | K43: 0 | L43: 0 | M43: 0 | N43: 0 | O43: 0 | P43: 0 | Q43: 0 | R43: 0 | S43: 0 | T43: 0 | U43: 0
A44: Not Funded Eligible | B44: Drug Administration | C44: Assessment and Administration of Anti-psychotic medications | D44: =+'Service Listing'!J42 -> 40 | E44: 0 | F44: 0 | G44: 0 | H44: 0 | I44: 0 | J44: 0 | K44: 0 | L44: 0 | M44: 0 | N44: 0 | O44: 0 | P44: 0 | Q44: 0 | R44: 0 | S44: 0 | T44: 0 | U44: 0
A45: Not Funded Eligible | B45: Drug Administration | C45: Assessment and Administration of Sublocade | D45: =+'Service Listing'!J43 -> 40 | E45: 0 | F45: 0 | G45: 0 | H45: 0 | I45: 0 | J45: 0 | K45: 0 | L45: 0 | M45: 0 | N45: 0 | O45: 0 | P45: 0 | Q45: 0 | R45: 0 | S45: 0 | T45: 0 | U45: 0
A46: Not Funded Eligible | B46: Health Management | C46: Deprescribing -PPI Non Project Participants Initial Assessment | D46: =+'Service Listing'!J44 -> 52.5 | E46: 0 | F46: 0 | G46: 0 | H46: 0 | I46: 0 | J46: 0 | K46: 0 | L46: 0 | M46: 0 | N46: 0 | O46: 0 | P46: 0 | Q46: 0 | R46: 0 | S46: 0 | T46: 0 | U46: 0
A47: Not Funded Eligible | B47: Health Management | C47: Deprescribing PPI Follow-ups- Early (limit of 2) Non Project participants | D47: =+'Service Listing'!J45 -> 20 | E47: 0 | F47: 0 | G47: 0 | H47: 0 | I47: 0 | J47: 0 | K47: 0 | L47: 0 | M47: 0 | N47: 0 | O47: 0 | P47: 0 | Q47: 0 | R47: 0 | S47: 0 | T47: 0 | U47: 0
A48: Not Funded Eligible | B48: Health Management | C48: Deprescribing BZRA Non Project Participants Initial Assessment | D48: =+'Service Listing'!J46 -> 150 | E48: 0 | F48: 0 | G48: 0 | H48: 0 | I48: 0 | J48: 0 | K48: 0 | L48: 0 | M48: 0 | N48: 0 | O48: 0 | P48: 0 | Q48: 0 | R48: 0 | S48: 0 | T48: 0 | U48: 0
A49: Not Funded Eligible | B49: Health Management | C49: Deprescribing BZRA Follow-ups- Early (limit of 2) Non Project participants | D49: =+'Service Listing'!J47 -> 20 | E49: 0 | F49: 0 | G49: 0 | H49: 0 | I49: 0 | J49: 0 | K49: 0 | L49: 0 | M49: 0 | N49: 0 | O49: 0 | P49: 0 | Q49: 0 | R49: 0 | S49: 0 | T49: 0 | U49: 0
A50: Not Funded Eligible | B50: Health Management | C50: Deprescribing BZRA Follow-ups Later (limit of 5 for BZRA only) Non-Project Participants | D50: =+'Service Listing'!J48 -> 12 | E50: 0 | F50: 0 | G50: 0 | H50: 0 | I50: 0 | J50: 0 | K50: 0 | L50: 0 | M50: 0 | N50: 0 | O50: 0 | P50: 0 | Q50: 0 | R50: 0 | S50: 0 | T50: 0 | U50: 0
A51: Not Funded Eligible | B51: Health Management | C51: Complex Medication Therapy Assessment | D51: =+'Service Listing'!J49 -> 37.5 | E51: 0 | F51: 0 | G51: 0 | H51: 0 | I51: 0 | J51: 0 | K51: 0 | L51: 0 | M51: 0 | N51: 0 | O51: 0 | P51: 0 | Q51: 0 | R51: 0 | S51: 0 | T51: 0 | U51: 0
A52: Not Funded Eligible | B52: Health Management | C52: Hypertension Project Initial Assessment | D52: =+'Service Listing'!J50 -> 125 | E52: 0 | F52: 0 | G52: 0 | H52: 0 | I52: 0 | J52: 0 | K52: 0 | L52: 0 | M52: 0 | N52: 0 | O52: 0 | P52: 0 | Q52: 0 | R52: 0 | S52: 0 | T52: 0 | U52: 0
A53: Not Funded Eligible | B53: Health Management | C53: Hypertension Project Follow-ups | D53: =+'Service Listing'!J51 -> 20 | E53: 0 | F53: 0 | G53: 0 | H53: 0 | I53: 0 | J53: 0 | K53: 0 | L53: 0 | M53: 0 | N53: 0 | O53: 0 | P53: 0 | Q53: 0 | R53: 0 | S53: 0 | T53: 0 | U53: 0
A54: Not Funded Eligible | B54: Health Management | C54: Prescribing with a diagnosis as per NSCP standard in collaboration with another provider | D54: =+'Service Listing'!J52 -> 25 | E54: 0 | F54: 0 | G54: 0 | H54: 0 | I54: 0 | J54: 0 | K54: 0 | L54: 0 | M54: 0 | N54: 0 | O54: 0 | P54: 0 | Q54: 0 | R54: 0 | S54: 0 | T54: 0 | U54: 0
A55: Not Funded Eligible | B55: Health Management | C55: Chronic Disease Management – Diabetes – Initial/Annual assessment | D55: =+'Service Listing'!J53 -> 125 | E55: 0 | F55: 0 | G55: 0 | H55: 0 | I55: 0 | J55: 0 | K55: 0 | L55: 0 | M55: 0 | N55: 0 | O55: 0 | P55: 0 | Q55: 0 | R55: 0 | S55: 0 | T55: 0 | U55: 0
A56: Not Funded Eligible | B56: Health Management | C56: Chronic Disease Diabetes Management - Follow-up (up to 5 per year) | D56: =+'Service Listing'!J54 -> 20 | E56: 0 | F56: 0 | G56: 0 | H56: 0 | I56: 0 | J56: 0 | K56: 0 | L56: 0 | M56: 0 | N56: 0 | O56: 0 | P56: 0 | Q56: 0 | R56: 0 | S56: 0 | T56: 0 | U56: 0
A57: Not Funded Eligible | B57: Health Management | C57: Chronic Disease Management – Lung Disease Asthma/COPD) Initial/Annual Assessment | D57: =+'Service Listing'!J55 -> 125 | E57: 0 | F57: 0 | G57: 0 | H57: 0 | I57: 0 | J57: 0 | K57: 0 | L57: 0 | M57: 0 | N57: 0 | O57: 0 | P57: 0 | Q57: 0 | R57: 0 | S57: 0 | T57: 0 | U57: 0
A58: Not Funded Eligible | B58: Health Management | C58: Chronic Disease Management – Lung Disease Follow-up (up to 5 per year | D58: =+'Service Listing'!J56 -> 20 | E58: 0 | F58: 0 | G58: 0 | H58: 0 | I58: 0 | J58: 0 | K58: 0 | L58: 0 | M58: 0 | N58: 0 | O58: 0 | P58: 0 | Q58: 0 | R58: 0 | S58: 0 | T58: 0 | U58: 0
A59: Not Funded Eligible | B59: Health Management | C59: Chronic Disease Management -Cardiovascular Disease Initial/Annual Assessment | D59: =+'Service Listing'!J57 -> 125 | E59: 0 | F59: 0 | G59: 0 | H59: 0 | I59: 0 | J59: 0 | K59: 0 | L59: 0 | M59: 0 | N59: 0 | O59: 0 | P59: 0 | Q59: 0 | R59: 0 | S59: 0 | T59: 0 | U59: 0
A60: Not Funded Eligible | B60: Health Management | C60: Chronic Disease Management Cardiovascular Disease Follow-up (up to 5 per year) | D60: =+'Service Listing'!J58 -> 20 | E60: 0 | F60: 0 | G60: 0 | H60: 0 | I60: 0 | J60: 0 | K60: 0 | L60: 0 | M60: 0 | N60: 0 | O60: 0 | P60: 0 | Q60: 0 | R60: 0 | S60: 0 | T60: 0 | U60: 0
A61: Not Funded Eligible | B61: Health Management | C61: Tobacco Use Reduction Program – Initial Assessment and Discussion | D61: =+'Service Listing'!J59 -> 40 | E61: 0 | F61: 0 | G61: 0 | H61: 0 | I61: 0 | J61: 0 | K61: 0 | L61: 0 | M61: 0 | N61: 0 | O61: 0 | P61: 0 | Q61: 0 | R61: 0 | S61: 0 | T61: 0 | U61: 0
A62: Not Funded Eligible | B62: Health Management | C62: Tobacco Use Reduction Program – Follow-up 1-3 | D62: =+'Service Listing'!J60 -> 15 | E62: 0 | F62: 0 | G62: 0 | H62: 0 | I62: 0 | J62: 0 | K62: 0 | L62: 0 | M62: 0 | N62: 0 | O62: 0 | P62: 0 | Q62: 0 | R62: 0 | S62: 0 | T62: 0 | U62: 0
A63: Not Funded Eligible | B63: Health Management | C63: Tobacco Use Reduction Program –Follow-up 4-7 | D63: =+'Service Listing'!J61 -> 10 | E63: 0 | F63: 0 | G63: 0 | H63: 0 | I63: 0 | J63: 0 | K63: 0 | L63: 0 | M63: 0 | N63: 0 | O63: 0 | P63: 0 | Q63: 0 | R63: 0 | S63: 0 | T63: 0 | U63: 0
A64: Not Funded Eligible | B64: Prescribing | C64: Renewal Assessment that does not result in a prescription | D64: =+'Service Listing'!J62 -> 12 | E64: 0 | F64: 0 | G64: 0 | H64: 0 | I64: 0 | J64: 0 | K64: 0 | L64: 0 | M64: 0 | N64: 0 | O64: 0 | P64: 0 | Q64: 0 | R64: 0 | S64: 0 | T64: 0 | U64: 0
A65: Not Funded Eligible | B65: Prescribing | C65: Prescription Adaptation Refusal to Fill | D65: =+'Service Listing'!J63 -> 14 | E65: 0 | F65: 0 | G65: 0 | H65: 0 | I65: 0 | J65: 0 | K65: 0 | L65: 0 | M65: 0 | N65: 0 | O65: 0 | P65: 0 | Q65: 0 | R65: 0 | S65: 0 | T65: 0 | U65: 0
A66: Not Funded Eligible | B66: Prescribing | C66: Prescription Adaptation -Other | D66: =+'Service Listing'!J64 -> 14 | E66: 0 | F66: 0 | G66: 0 | H66: 0 | I66: 0 | J66: 0 | K66: 0 | L66: 0 | M66: 0 | N66: 0 | O66: 0 | P66: 0 | Q66: 0 | R66: 0 | S66: 0 | T66: 0 | U66: 0
A67: Not Funded Eligible | B67: Prescribing | C67: Therapeutic Substitution – PPI | D67: =+'Service Listing'!J65 -> 26.5 | E67: 0 | F67: 0 | G67: 0 | H67: 0 | I67: 0 | J67: 0 | K67: 0 | L67: 0 | M67: 0 | N67: 0 | O67: 0 | P67: 0 | Q67: 0 | R67: 0 | S67: 0 | T67: 0 | U67: 0
A68: Not Funded Eligible | B68: Prescribing | C68: Therapeutic Sub- Other Circumstances | D68: =+'Service Listing'!J66 -> 26.5 | E68: 0 | F68: 0 | G68: 0 | H68: 0 | I68: 0 | J68: 0 | K68: 0 | L68: 0 | M68: 0 | N68: 0 | O68: 0 | P68: 0 | Q68: 0 | R68: 0 | S68: 0 | T68: 0 | U68: 0
A69: Not Funded Eligible | B69: Prescribing | C69: Prescribing in an Emergency | D69: =+'Service Listing'!J67 -> 28 | E69: 0 | F69: 0 | G69: 0 | H69: 0 | I69: 0 | J69: 0 | K69: 0 | L69: 0 | M69: 0 | N69: 0 | O69: 0 | P69: 0 | Q69: 0 | R69: 0 | S69: 0 | T69: 0 | U69: 0
A70: Not Funded Eligible | B70: Prescribing | C70: Pharmacist independent prescribing with diagnosis confirmed by pharmacist (Diabetes, Lung, CVD only). NSCP Study | D70: =+'Service Listing'!J68 -> 25 | E70: 0 | F70: 0 | G70: 0 | H70: 0 | I70: 0 | J70: 0 | K70: 0 | L70: 0 | M70: 0 | N70: 0 | O70: 0 | P70: 0 | Q70: 0 | R70: 0 | S70: 0 | T70: 0 | U70: 0
A71: Not Funded Eligible | B71: Prescribing | C71: Prescribing for a Minor Ailment (as per Appendix 6) | D71: =+'Service Listing'!J69 -> 25 | E71: 0 | F71: 0 | G71: 0 | H71: 0 | I71: 0 | J71: 0 | K71: 0 | L71: 0 | M71: 0 | N71: 0 | O71: 0 | P71: 0 | Q71: 0 | R71: 0 | S71: 0 | T71: 0 | U71: 0
A72: Not Funded Eligible | B72: Prescribing | C72: Assessment, Point of Care Testing For Group A Strep that results in a prescription | D72: =+'Service Listing'!J70 -> 35 | E72: 0 | F72: 0 | G72: 0 | H72: 0 | I72: =+U72/4 -> 0 | J72: =+I72/3 -> 0 | K72: =IFERROR(J72/D72,0) -> 0 | L72: =+U72/4 -> 0 | M72: =+L72/3 -> 0 | N72: =IFERROR(M72/D72,0) -> 0 | O72: =+U72/4 -> 0 | P72: =+O72/3 -> 0 | Q72: =IFERROR(P72/D72,0) -> 0 | R72: =+U72/4 -> 0 | S72: =+R72/3 -> 0 | T72: =IFERROR(S72/D72,0) -> 0 | U72: 0
A73: Not Funded Eligible | B73: Prescribing | C73: Assessment Group A Strep that does not result in an RX | D73: =+'Service Listing'!J71 -> 20 | E73: =+I73+L73+O73+R73 -> 0 | F73: =IFERROR(+E73/D73,0) -> 0 | G73: =+E73/12 -> 0 | H73: =+F73/12 -> 0 | I73: 0 | J73: 0 | K73: 0 | L73: 0 | M73: 0 | N73: 0 | O73: 0 | P73: 0 | Q73: 0 | R73: 0 | S73: 0 | T73: 0 | U73: =IFERROR(V73*D73,0) -> 0
A74: Not Funded Eligible | B74: Testing | C74: Point of Care Test A1C | D74: =+'Service Listing'!J72 -> 25 | E74: 0 | F74: 0 | G74: 0 | H74: 0 | I74: 0 | J74: 0 | K74: 0 | L74: 0 | M74: 0 | N74: 0 | O74: 0 | P74: 0 | Q74: 0 | R74: 0 | S74: 0 | T74: 0 | U74: 0
A75: Not Funded Eligible | B75: Testing | C75: Point of Care Test Cholesterol | D75: =+'Service Listing'!J73 -> 25 | E75: 0 | F75: 0 | G75: 0 | H75: 0 | I75: 0 | J75: 0 | K75: 0 | L75: 0 | M75: 0 | N75: 0 | O75: 0 | P75: 0 | Q75: 0 | R75: 0 | S75: 0 | T75: 0 | U75: 0
A76: Not Funded Not Eligible | B76: Drug Administration | C76: Administration of non-publicly funded vaccines | D76: =+'Service Listing'!J74 -> 20 | E76: 0 | F76: 0 | G76: 0 | H76: 0 | I76: 0 | J76: 0 | K76: 0 | L76: 0 | M76: 0 | N76: 0 | O76: 0 | P76: 0 | Q76: 0 | R76: 0 | S76: 0 | T76: 0 | U76: 0
A77: Not Funded Not Eligible | B77: Other | C77: Comprehensive Travel Health Consultation | D77: =+'Service Listing'!J75 -> Fee Set by Site | E77: 0 | F77: 0 | G77: 0 | H77: 0 | I77: 0 | J77: 0 | K77: 0 | L77: 0 | M77: 0 | N77: 0 | O77: 0 | P77: 0 | Q77: 0 | R77: 0 | S77: 0 | T77: 0 | U77: 0
A78: Not Funded Not Eligible | B78: Other | C78: Pharmacogenomic Consultation Service | D78: =+'Service Listing'!J76 -> Fee Set by Site | E78: 0 | F78: 0 | G78: 0 | H78: 0 | I78: 0 | J78: 0 | K78: 0 | L78: 0 | M78: 0 | N78: 0 | O78: 0 | P78: 0 | Q78: 0 | R78: 0 | S78: 0 | T78: 0 | U78: 0
A79: Not Funded Not Eligible | B79: Other | C79: Malaria Chemoprophylaxis Assessment and Prescribing | D79: =+'Service Listing'!J77 -> Fee Set by Site | E79: 0 | F79: 0 | G79: 0 | H79: 0 | I79: 0 | J79: 0 | K79: 0 | L79: 0 | M79: 0 | N79: 0 | O79: 0 | P79: 0 | Q79: 0 | R79: 0 | S79: 0 | T79: 0 | U79: 0
A80: Not Funded Not Eligible | B80: Other | C80: Any Service for a Patient without an NS Health card that is not covered for out of province patients | D80: =+'Service Listing'!J78 -> Fee Set by Site | E80: 0 | F80: 0 | G80: 0 | H80: 0 | I80: 0 | J80: 0 | K80: 0 | L80: 0 | M80: 0 | N80: 0 | O80: 0 | P80: 0 | Q80: 0 | R80: 0 | S80: 0 | T80: 0 | U80: 0
A81: Not Funded Not Eligible | B81: Other | C81: =+'Service Listing'!C79 -> Rapid Antigen Testing Travel Test | D81: =+'Service Listing'!J79 -> 40 | E81: 0 | F81: 0 | G81: 0 | H81: 0 | I81: 0 | J81: 0 | K81: 0 | L81: 0 | M81: 0 | N81: 0 | O81: 0 | P81: 0 | Q81: 0 | R81: 0 | S81: 0 | T81: 0 | U81: 0
A82: Not Funded Not Eligible | B82: Other | C82: =+'Service Listing'!C80 -> Other: | D82: =+'Service Listing'!J80 -> Fee Set by Site | E82: 0 | F82: 0 | G82: 0 | H82: 0 | I82: 0 | J82: 0 | K82: 0 | L82: 0 | M82: 0 | N82: 0 | O82: 0 | P82: 0 | Q82: 0 | R82: 0 | S82: 0 | T82: 0 | U82: 0
A83: Not Funded Not Eligible | B83: Other | C83: =+'Service Listing'!C81 -> Other: | D83: =+'Service Listing'!J81 -> Fee Set by Site | E83: 0 | F83: 0 | G83: 0 | H83: 0 | I83: 0 | J83: 0 | K83: 0 | L83: 0 | M83: 0 | N83: 0 | O83: 0 | P83: 0 | Q83: 0 | R83: 0 | S83: 0 | T83: 0 | U83: 0
A84: Totals | E84: =SUM(E8:E83) -> 0 | F84: =SUM(F8:F83) -> 0 | G84: =SUM(G8:G83) -> 0 | H84: =SUM(H8:H83) -> 0 | I84: =SUM(I8:I83) -> 0 | J84: 0 | K84: 0 | L84: 0 | M84: 0 | N84: 0 | O84: 0 | P84: 0 | Q84: 0 | R84: 0 | S84: 0 | T84: 0 | U84: 0 | V84: 0
I100: =+U100/4 -> 0 | J100: =+I100/3 -> 0 | K100: =IFERROR(J100/D100,0) -> 0 | L100: =+U100/4 -> 0 | M100: =+L100/3 -> 0 | N100: =IFERROR(M100/D100,0) -> 0 | O100: =+U100/4 -> 0 | P100: =+O100/3 -> 0 | Q100: =IFERROR(P100/D100,0) -> 0 | R100: =+U100/4 -> 0 | S100: =+R100/3 -> 0 | T100: =IFERROR(S100/D100,0) -> 0

Sheet Clinic Budget
C1: Budget - Community Pharmacy Primary Care Clinic
B3: Funded Goal Per Month: | D3: 7000
B4: Non-Funded But Eligible Goal Per Month: | D4: 7000
B5: Non-Funded Non-Eligible Goal Per Month: | D5: 0
B7: Revenue On Paper | D7: Q1 | E7: Q2 | F7: Q3 | G7: Q4 | H7: Annual | J7: Revenue Actual | M7: Q1 | N7: Q2 | O7: Q3 | P7: Q4 | Q7: Annual
B8: Funded Goal | D8: =+D3*3 -> 21000 | E8: =+D3*3 -> 21000 | F8: =+D3*3 -> 21000 | G8: =+D3*3 -> 21000 | H8: =SUM(D8:G8) -> 84000 | J8: Funded Revenue | M8: =(+GETPIVOTDATA("Monthly Revenue per Service",Q1PVTTable!$A$3,"Funding Category","Funded"))*3 -> 26916.75 | N8: =(+GETPIVOTDATA("Monthly Revenue per Service",Q2PVTTable!$A$3,"Funding Category","Funded"))*3 -> 20216.75 | O8: =+GETPIVOTDATA("Monthly Revenue per Service",Q3PVTTable!$A$3,"Funding Category","Funded")*3 -> 21981.75 | P8: =+GETPIVOTDATA("Monthly Revenue per Service",Q4PVTTable!$A$3,"Funding Category","Funded")*3 -> 31281.75 | Q8: =SUM(M8:P8) -> 100397
B9: Budget Funded | D9: =SUM(I25:I58) -> 0 | E9: =SUM(L25:L58) -> 0 | F9: =SUM(O25:O58) -> 0 | G9: =SUM(R25:R58) -> 0 | H9: 0 | J9: Actual Not Funded Eligible | M9: =+GETPIVOTDATA("Monthly Revenue per Service",Q1PVTTable!$A$3,"Funding Category","Not Funded Eligible")*3 -> 26617.185 | N9: =+GETPIVOTDATA("Monthly Revenue per Service",Q2PVTTable!$A$3,"Funding Category","Not Funded Eligible")*3 -> 25154.685 | O9: =+GETPIVOTDATA("Monthly Revenue per Service",Q3PVTTable!$A$3,"Funding Category","Not Funded Eligible")*3 -> 22154.685 | P9: =+GETPIVOTDATA("Monthly Revenue per Service",Q4PVTTable!$A$3,"Funding Category","Not Funded Eligible")*3 -> 23617.185 | Q9: =SUM(M9:P9) -> 97543.74
B10: Variance Funded | D10: =+D9-D8 -> -21000 | E10: =+E9-E8 -> -21000 | F10: =+F9-F8 -> -21000 | G10: =+G9-G8 -> -21000 | H10: -84000 | J10: Not Funded Eligible Payment | M10: 21000 | N10: 21000 | O10: 21000 | P10: 21000 | Q10: 84000
B11: Non-Funded But Eligible Goal (Guaranteed) | D11: =+$D$4*3 -> 21000 | E11: =+$D$4*3 -> 21000 | F11: =+$D$4*3 -> 21000 | G11: =+$D$4*3 -> 21000 | H11: 84000 | J11: Not Funded Not Eligible | M11: =+GETPIVOTDATA("Monthly Revenue per Service",Q1PVTTable!$A$3,"Funding Category","Not Funded Not Eligible")*3 -> 900 | N11: =+GETPIVOTDATA("Monthly Revenue per Service",Q2PVTTable!$A$3,"Funding Category","Not Funded Not Eligible")*3 -> 900 | O11: =+GETPIVOTDATA("Monthly Revenue per Service",Q3PVTTable!$A$3,"Funding Category","Not Funded Not Eligible")*3 -> 900 | P11: =+GETPIVOTDATA("Monthly Revenue per Service",Q4PVTTable!$A$3,"Funding Category","Not Funded Not Eligible")*3 -> 900 | Q11: 3600
B12: Budget Non-Funded But Eligible | D12: =SUM(I59:I92) -> 0 | E12: =SUM(L59:L92) -> 0 | F12: =SUM(O59:O92) -> 0 | G12: =SUM(R59:R92) -> 0 | H12: 0 | J12: Total Actual Revenue | M12: =+M11+M10+M8 -> 48816.75 | N12: =+N11+N10+N8 -> 42116.75 | O12: =+O11+O10+O8 -> 43881.75 | P12: =+P11+P10+P8 -> 53181.75 | Q12: 187997
B13: Variance Non-Funded But Eligible | D13: =+D12-D11 -> -21000 | E13: =+E12-E11 -> -21000 | F13: =+F12-F11 -> -21000 | G13: =+G12-G11 -> -21000 | H13: -84000 | J13: Projected Revenue | M13: 42000 | N13: 42000 | O13: 42000 | P13: 42000 | Q13: 168000
B14: Non-Funded Non-Eligible Goal | D14: =+$D$5*3 -> 0 | E14: =+$D$5*3 -> 0 | F14: =+$D$5*3 -> 0 | G14: =+$D$5*3 -> 0 | H14: 0 | J14: Variance | M14: =+M12-M13 -> 6816.75 | N14: =+N12-N13 -> 116.75 | O14: 1881.75 | P14: 11181.75 | Q14: 19997
B15: Budget Non-Funded Non-Eligible | D15: =SUM(I93:I100) -> 0 | E15: =SUM(L93:L100) -> 0 | F15: =SUM(O93:O100) -> 0 | G15: =SUM(R93:R100) -> 0 | H15: 0
B16: Variance Non-Funded Non-Eligible | D16: =+D15-D14 -> 0 | E16: =+E15-E14 -> 0 | F16: =+F15-F14 -> 0 | G16: =+G15-G14 -> 0 | H16: 0
B17: Total Goal | D17: =+D8+D11+D14 -> 42000 | E17: 42000 | F17: 42000 | G17: 42000 | H17: 168000
B18: Total Budget | D18: 0 | E18: 0 | F18: 0 | G18: 0 | H18: 0
B19: Total Variance | D19: -42000 | E19: -42000 | F19: -42000 | G19: -42000 | H19: -168000
E23: Annual Totals | G23: Monthly Averages | I23: Q1 | L23: Q2 | O23: Q3 | R23: Q4
A24: Funding | B24: Category | C24: Service | D24: Fee/Service | E24: Annual Revenue | F24: # Services/ Year | G24: Average $/Month | H24: Average #/Month | I24: Budget | J24: Rev/ Month | K24: #/ Month | L24: Budget | M24: Rev/ Month | N24: #/ Month | O24: Budget | P24: Rev/ Month | Q24: #/ Month | R24: Budget | S24: Rev/ Month | T24: #/ Month
A25: Funded | B25: Drug Administration | C25: Covid-19 Vaccine Administration Fee | D25: 18 | E25: =+I25+L25+O25+R25 -> 0 | F25: =IFERROR(+E25/D25,0) -> 0 | G25: =+E25/12 -> 0 | H25: 0 | I25: =+Assumptions!$L$4*$D$25 -> 0 | J25: =+I25/3 -> 0 | K25: =IFERROR(J25/D25,0) -> 0 | L25: =+Assumptions!$L$4*$D$25 -> 0 | M25: =+L25/3 -> 0 | N25: =IFERROR(M25/D25,0) -> 0 | O25: =+Assumptions!$L$4*$D$25 -> 0 | P25: =+O25/3 -> 0 | Q25: =IFERROR(P25/D25,0) -> 0 | R25: =+Assumptions!$L$4*$D$25 -> 0 | S25: =+R25/3 -> 0 | T25: =IFERROR(S25/D25,0) -> 0
A26: Funded | B26: Drug Administration | C26: Influenza Vaccine Admin Fee* | D26: 12.85 | E26: 0 | F26: =IFERROR(+E26/D26,0) -> 0 | G26: 0 | H26: 0 | I26: 0 | J26: =+I26/3 -> 0 | K26: =IFERROR(J26/D26,0) -> 0 | L26: 0 | M26: =+L26/3 -> 0 | N26: =IFERROR(M26/D26,0) -> 0 | O26: =+Assumptions!K8*'Clinic Budget'!D26 -> 0 | P26: =+O26/3 -> 0 | Q26: =IFERROR(P26/D26,0) -> 0 | R26: =+(Assumptions!L8+Assumptions!M8)*'Clinic Budget'!D26 -> 0 | S26: =+R26/3 -> 0 | T26: =IFERROR(S26/D26,0) -> 0
A27: Funded | B27: Health Management | C27: Prescribing Contraception Initial Assessment that results in a prescription | D27: 20 | E27: 0 | F27: 0 | G27: 0 | H27: 0 | I27: =+Assumptions!$F$59*3*'Clinic Budget'!$D$27 -> 0 | J27: 0 | K27: 0 | L27: =+Assumptions!$F$59*3*'Clinic Budget'!$D$27 -> 0 | M27: 0 | N27: 0 | O27: =+Assumptions!$F$59*3*'Clinic Budget'!$D$27 -> 0 | P27: 0 | Q27: 0 | R27: =+Assumptions!$F$59*3*'Clinic Budget'!$D$27 -> 0 | S27: 0 | T27: 0
A28: Funded | B28: Health Management | C28: Prescribing Contraception Initial Assessment that does not result in a prescription | D28: 20 | E28: 0 | F28: 0 | G28: 0 | H28: 0 | I28: 0 | J28: 0 | K28: 0 | L28: 0 | M28: 0 | N28: 0 | O28: 0 | P28: 0 | Q28: 0 | R28: 0 | S28: 0 | T28: 0
A29: Funded | B29: Health Management | C29: Prescribing Contraception subsequent assessment that results in a change | D29: 20 | E29: 0 | F29: 0 | G29: 0 | H29: 0 | I29: 0 | J29: 0 | K29: 0 | L29: 0 | M29: 0 | N29: 0 | O29: 0 | P29: 0 | Q29: 0 | R29: 0 | S29: 0 | T29: 0
A30: Funded | B30: Health Management | C30: Prescribing Contraception Subsequent assessment that does not result in a change | D30: 12 | E30: 0 | F30: 0 | G30: 0 | H30: 0 | I30: =+Assumptions!$F$59*3*'Clinic Budget'!$D$30 -> 0 | J30: 0 | K30: 0 | L30: =+Assumptions!$F$59*3*'Clinic Budget'!$D$30 -> 0 | M30: 0 | N30: 0 | O30: =+Assumptions!$F$59*3*'Clinic Budget'!$D$30 -> 0 | P30: 0 | Q30: 0 | R30: =+Assumptions!$F$59*3*'Clinic Budget'!$D$30 -> 0 | S30: 0 | T30: 0
A31: Funded | B31: Health Management | C31: Deprescribing -PPI Project Participants Initial Assessment | D31: 52.5 | E31: 0 | F31: 0 | G31: 0 | H31: 0 | I31: 0 | J31: 0 | K31: 0 | L31: 0 | M31: 0 | N31: 0 | O31: 0 | P31: 0 | Q31: 0 | R31: 0 | S31: 0 | T31: 0
A32: Funded | B32: Health Management | C32: Deprescribing PPI Follow-ups- Early (limit of 2) Project participants | D32: 20 | E32: 0 | F32: 0 | G32: 0 | H32: 0 | I32: 0 | J32: 0 | K32: 0 | L32: 0 | M32: 0 | N32: 0 | O32: 0 | P32: 0 | Q32: 0 | R32: 0 | S32: 0 | T32: 0
A33: Funded | B33: Health Management | C33: Deprescribing BZRA Participants Initial Assessment | D33: 150 | E33: 0 | F33: 0 | G33: 0 | H33: 0 | I33: 0 | J33: 0 | K33: 0 | L33: 0 | M33: 0 | N33: 0 | O33: 0 | P33: 0 | Q33: 0 | R33: 0 | S33: 0 | T33: 0
A34: Funded | B34: Health Management | C34: Deprescribing BZRA Follow-ups- Early (limit of 2) Project participants | D34: 20 | E34: 0 | F34: 0 | G34: 0 | H34: 0 | I34: 0 | J34: 0 | K34: 0 | L34: 0 | M34: 0 | N34: 0 | O34: 0 | P34: 0 | Q34: 0 | R34: 0 | S34: 0 | T34: 0
A35: Funded | B35: Health Management | C35: Deprescribing BZRA Follow-ups Later (limit of 5 for BZRA only)Project Participants | D35: 12 | E35: 0 | F35: 0 | G35: 0 | H35: 0 | I35: 0 | J35: 0 | K35: 0 | L35: 0 | M35: 0 | N35: 0 | O35: 0 | P35: 0 | Q35: 0 | R35: 0 | S35: 0 | T35: 0
A36: Funded | B36: Health Management | C36: Community Pharmacy Led Anticoagulation Management Service (monthly service fee) | D36: 50 | E36: 0 | F36: 0 | G36: 0 | H36: 0 | I36: =+$D$36*(Assumptions!L12+(Assumptions!N12*3)) -> 0 | J36: 0 | K36: 0 | L36: =+$D$36*Assumptions!$N$12*3 -> 0 | M36: 0 | N36: 0 | O36: =+$D$36*Assumptions!$N$12*3 -> 0 | P36: 0 | Q36: 0 | R36: =+$D$36*Assumptions!$N$12*3 -> 0 | S36: 0 | T36: 0
A37: Funded | B37: Health Management | C37: Hypertension Project Initial Assessment | D37: 125 | E37: 0 | F37: 0 | G37: 0 | H37: 0 | I37: 0 | J37: 0 | K37: 0 | L37: 0 | M37: 0 | N37: 0 | O37: 0 | P37: 0 | Q37: 0 | R37: 0 | S37: 0 | T37: 0
A38: Funded | B38: Health Management | C38: Hypertension Project Follow-ups | D38: 20 | E38: 0 | F38: 0 | G38: 0 | H38: 0 | I38: 0 | J38: 0 | K38: 0 | L38: 0 | M38: 0 | N38: 0 | O38: 0 | P38: 0 | Q38: 0 | R38: 0 | S38: 0 | T38: 0
A39: Funded | B39: Health Management | C39: Bloom Monthly fee (first 6 months) | D39: 75 | E39: 0 | F39: 0 | G39: 0 | H39: 0 | I39: =+Assumptions!$K$24*3*'Clinic Budget'!$D$39 -> 0 | J39: 0 | K39: 0 | L39: =+Assumptions!$L$24*3*'Clinic Budget'!$D$39 -> 0 | M39: 0 | N39: 0 | O39: =+Assumptions!$M$24*3*'Clinic Budget'!$D$39 -> 0 | P39: 0 | Q39: 0 | R39: =+Assumptions!$N$24*3*'Clinic Budget'!$D$39*0.75 -> 0 | S39: 0 | T39: 0
A40: Funded | B40: Health Management | C40: Bloom Monthly fee (7+ months) | D40: 30 | E40: 0 | F40: 0 | G40: 0 | H40: 0 | I40: 0 | J40: 0 | K40: 0 | L40: 0 | M40: 0 | N40: 0 | O40: 0 | P40: 0 | Q40: 0 | R40: =+Assumptions!$N$24*3*'Clinic Budget'!$D$40*0.25 -> 0 | S40: 0 | T40: 0
A41: Funded | B41: Medication Review | C41: Basic Medication Review | D41: 52.5 | E41: 0 | F41: 0 | G41: =+E41/12 -> 0 | H41: 0 | I41: =+$D$41*Assumptions!$L$20 -> 0 | J41: 0 | K41: 0 | L41: =+$D$41*Assumptions!$M$20 -> 0 | M41: 0 | N41: 0 | O41: =+$D$41*Assumptions!$M$20 -> 0 | P41: 0 | Q41: 0 | R41: =+$D$41*Assumptions!$L$20 -> 0 | S41: 0 | T41: 0
A42: Funded | B42: Medication Review | C42: Basic Medication Review Follow-ups | D42: 20 | E42: 0 | F42: 0 | G42: 0 | H42: 0 | I42: =+Assumptions!$K$20*0.2/4*$D$42 -> 0 | J42: 0 | K42: 0 | L42: =+Assumptions!$K$20*0.2/4*$D$42 -> 0 | M42: 0 | N42: 0 | O42: =+Assumptions!$K$20*0.2/4*$D$42 -> 0 | P42: 0 | Q42: 0 | R42: =+Assumptions!$K$20*0.2/4*$D$42 -> 0 | S42: 0 | T42: 0
A43: Funded | B43: Medication Review | C43: Advanced Medication Review | D43: 150 | E43: 0 | F43: 0 | G43: 0 | H43: 0 | I43: =+Assumptions!K16*$D$43 -> 0 | J43: 0 | K43: 0 | L43: =+Assumptions!L16*150 -> 0 | M43: 0 | N43: 0 | O43: =+Assumptions!M16*150 -> 0 | P43: 0 | Q43: 0 | R43: =+Assumptions!N16*150 -> 0 | S43: 0 | T43: 0
A44: Funded | B44: Medication Review | C44: Advanced Medication Review Follow-ups | D44: 20 | E44: 0 | F44: 0 | G44: 0 | H44: 0 | I44: =+(Assumptions!$K$16+Assumptions!$L$16+Assumptions!$M$16+Assumptions!$N$16)/4*$D$44 -> 0 | J44: 0 | K44: 0 | L44: =+(Assumptions!$K$16+Assumptions!$L$16+Assumptions!$M$16+Assumptions!$N$16)/4*$D$44 -> 0 | M44: 0 | N44: 0 | O44: =+(Assumptions!$K$16+Assumptions!$L$16+Assumptions!$M$16+Assumptions!$N$16)/4*$D$44 -> 0 | P44: 0 | Q44: 0 | R44: =+(Assumptions!$K$16+Assumptions!$L$16+Assumptions!$M$16+Assumptions!$N$16)/4*$D$44 -> 0 | S44: 0 | T44: 0
A45: Funded | B45: Other | C45: Take Home Naloxone Kit Training | D45: 25 | E45: 0 | F45: 0 | G45: 0 | H45: 0 | I45: =+Assumptions!$F$60*3*'Clinic Budget'!$D$45 -> 0 | J45: 0 | K45: 0 | L45: =+Assumptions!$F$60*3*'Clinic Budget'!$D$45 -> 0 | M45: 0 | N45: 0 | O45: =+Assumptions!$F$60*3*'Clinic Budget'!$D$45 -> 0 | P45: 0 | Q45: 0 | R45: =+Assumptions!$F$60*3*'Clinic Budget'!$D$45 -> 0 | S45: 0 | T45: 0
A46: Funded | B46: Prescribing | C46: PPCC Prescription Renewal (1-3 meds) | D46: 12 | E46: 0 | F46: 0 | G46: 0 | H46: 0 | I46: =+Assumptions!$F$56*3*'Clinic Budget'!$D$46*14/15 -> 0 | J46: 0 | K46: 0 | L46: =+Assumptions!$F$56*3*'Clinic Budget'!$D$46*14/15 -> 0 | M46: 0 | N46: 0 | O46: =+Assumptions!$F$56*3*'Clinic Budget'!$D$46*14/15 -> 0 | P46: 0 | Q46: 0 | R46: =+Assumptions!$F$56*3*'Clinic Budget'!$D$46*14/15 -> 0 | S46: 0 | T46: 0
A47: Funded | B47: Prescribing | C47: Prescription Renewal (4+ meds) | D47: 20 | E47: 0 | F47: 0 | G47: 0 | H47: 0 | I47: =+Assumptions!$F$56*3*'Clinic Budget'!$D$47*1/15 -> 0 | J47: 0 | K47: 0 | L47: =+Assumptions!$F$56*3*'Clinic Budget'!$D$47*1/15 -> 0 | M47: 0 | N47: 0 | O47: =+Assumptions!$F$56*3*'Clinic Budget'!$D$47*1/15 -> 0 | P47: 0 | Q47: 0 | R47: =+Assumptions!$F$56*3*'Clinic Budget'!$D$47*1/15 -> 0 | S47: 0 | T47: 0
A48: Funded | B48: Prescribing | C48: Prescription Adaptation Refusal to Fill | D48: 14 | E48: 0 | F48: 0 | G48: 0 | H48: 0 | I48: 0 | J48: 0 | K48: 0 | L48: 0 | M48: 0 | N48: 0 | O48: 0 | P48: 0 | Q48: 0 | R48: 0 | S48: 0 | T48: 0
A49: Funded | B49: Prescribing | C49: Prescription Adaptation -Other | D49: 14 | E49: 0 | F49: 0 | G49: 0 | H49: 0 | I49: =+Assumptions!$F$68*3*'Clinic Budget'!$D$49/2 -> 0 | J49: 0 | K49: 0 | L49: =+Assumptions!$F$68*3*'Clinic Budget'!$D$49/2 -> 0 | M49: 0 | N49: 0 | O49: =+Assumptions!$F$68*3*'Clinic Budget'!$D$49/2 -> 0 | P49: 0 | Q49: 0 | R49: =+Assumptions!$F$68*3*'Clinic Budget'!$D$49/2 -> 0 | S49: 0 | T49: 0
A50: Funded | B50: Prescribing | C50: Therapeutic Substitution – PPI | D50: 26.5 | E50: 0 | F50: 0 | G50: 0 | H50: 0 | I50: =+Assumptions!$F$67*3*'Clinic Budget'!$D$50/2 -> 0 | J50: 0 | K50: 0 | L50: =+Assumptions!$F$67*3*'Clinic Budget'!$D$50/2 -> 0 | M50: 0 | N50: 0 | O50: =+Assumptions!$F$67*3*'Clinic Budget'!$D$50/2 -> 0 | P50: 0 | Q50: 0 | R50: =+Assumptions!$F$67*3*'Clinic Budget'!$D$50/2 -> 0 | S50: 0 | T50: 0
A51: Funded | B51: Prescribing | C51: Therapeutic Sub- Other Circumstances | D51: 26.5 | E51: 0 | F51: 0 | G51: 0 | H51: 0 | I51: 0 | J51: 0 | K51: 0 | L51: 0 | M51: 0 | N51: 0 | O51: 0 | P51: 0 | Q51: 0 | R51: 0 | S51: 0 | T51: 0
A52: Funded | B52: Prescribing | C52: Assessment – Uncomplicated UTI that results in a prescription | D52: 20 | E52: 0 | F52: 0 | G52: 0 | H52: 0 | I52: =+Assumptions!$F$55*3*'Clinic Budget'!$D$52 -> 0 | J52: 0 | K52: 0 | L52: =+Assumptions!$F$55*3*'Clinic Budget'!$D$52 -> 0 | M52: 0 | N52: 0 | O52: =+Assumptions!$F$55*3*'Clinic Budget'!$D$52 -> 0 | P52: 0 | Q52: 0 | R52: =+Assumptions!$F$55*3*'Clinic Budget'!$D$52 -> 0 | S52: 0 | T52: 0
A53: Funded | B53: Prescribing | C53: Assessment Uncomplicated UTI that does not result in a prescription | D53: 20 | E53: 0 | F53: 0 | G53: 0 | H53: 0 | I53: 0 | J53: 0 | K53: 0 | L53: 0 | M53: 0 | N53: 0 | O53: 0 | P53: 0 | Q53: 0 | R53: 0 | S53: 0 | T53: 0
A54: Funded | B54: Prescribing | C54: Prescribing- Lyme Chemoprophylaxis | D54: 20 | E54: 0 | F54: 0 | G54: 0 | H54: 0 | I54: 0 | J54: 0 | K54: 0 | L54: =+Assumptions!$F$53*3*'Clinic Budget'!$D$54 -> 0 | M54: 0 | N54: 0 | O54: =+Assumptions!$F$53*3*'Clinic Budget'!$D$54 -> 0 | P54: 0 | Q54: 0 | R54: 0 | S54: 0 | T54: 0
A55: Funded | B55: Prescribing | C55: Assessment Lyme Chemoprophylaxis that does not result in a prescription | D55: 20 | E55: 0 | F55: 0 | G55: 0 | H55: 0 | I55: 0 | J55: 0 | K55: 0 | L55: 0 | M55: 0 | N55: 0 | O55: 0 | P55: 0 | Q55: 0 | R55: 0 | S55: 0 | T55: 0
A56: Funded | B56: Prescribing | C56: Prescribing Herpes Zoster Tx | D56: 20 | E56: 0 | F56: 0 | G56: 0 | H56: 0 | I56: =+Assumptions!$F$52*3*'Clinic Budget'!$D$56 -> 0 | J56: 0 | K56: 0 | L56: =+Assumptions!$F$52*3*'Clinic Budget'!$D$56 -> 0 | M56: 0 | N56: 0 | O56: =+Assumptions!$F$52*3*'Clinic Budget'!$D$56 -> 0 | P56: 0 | Q56: 0 | R56: =+Assumptions!$F$52*3*'Clinic Budget'!$D$56 -> 0 | S56: 0 | T56: 0
A57: Funded | B57: Prescribing | C57: Assessment Herpes Zoster Tx that does not result in a prescription | D57: 20 | E57: 0 | F57: 0 | G57: 0 | H57: 0 | I57: 0 | J57: 0 | K57: 0 | L57: 0 | M57: 0 | N57: 0 | O57: 0 | P57: 0 | Q57: 0 | R57: 0 | S57: 0 | T57: 0
A58: Funded | B58: Prescribing | C58: Prescribing Budesonide for Covid-19 | D58: 20 | E58: 0 | F58: 0 | G58: 0 | H58: 0 | I58: =+Assumptions!$F$58*3*'Clinic Budget'!$D$58 -> 0 | J58: 0 | K58: 0 | L58: =+Assumptions!$F$58*3*'Clinic Budget'!$D$58 -> 0 | M58: 0 | N58: 0 | O58: =+Assumptions!$F$58*3*'Clinic Budget'!$D$58 -> 0 | P58: 0 | Q58: 0 | R58: =+Assumptions!$F$58*3*'Clinic Budget'!$D$58 -> 0 | S58: 0 | T58: 0
A59: Not Funded Eligible | B59: Drug Administration | C59: Administration of publicly funded vaccine other than covid-19 or flu | D59: 18 | E59: 0 | F59: 0 | G59: 0 | H59: 0 | I59: =+Assumptions!$F$61*3*'Clinic Budget'!$D$59 -> 0 | J59: 0 | K59: 0 | L59: =+Assumptions!$F$61*3*'Clinic Budget'!$D$59 -> 0 | M59: 0 | N59: 0 | O59: =+Assumptions!$F$61*3*'Clinic Budget'!$D$59 -> 0 | P59: 0 | Q59: 0 | R59: =+Assumptions!$F$61*3*'Clinic Budget'!$D$59 -> 0 | S59: 0 | T59: 0
A60: Not Funded Eligible | B60: Drug Administration | C60: Assessment and Administration of IM or SC injectable medication | D60: 20 | E60: 0 | F60: 0 | G60: 0 | H60: 0 | I60: =+Assumptions!$F$64*3*'Clinic Budget'!$D$60 -> 0 | J60: 0 | K60: 0 | L60: =+Assumptions!$F$64*3*'Clinic Budget'!$D$60 -> 0 | M60: 0 | N60: 0 | O60: =+Assumptions!$F$64*3*'Clinic Budget'!$D$60 -> 0 | P60: 0 | Q60: 0 | R60: =+Assumptions!$F$64*3*'Clinic Budget'!$D$60 -> 0 | S60: 0 | T60: 0
A61: Not Funded Eligible | B61: Drug Administration | C61: Assessment and Administration of Anti-psychotic medications | D61: 40 | E61: 0 | F61: 0 | G61: 0 | H61: 0 | I61: =+Assumptions!$F$62*3*'Clinic Budget'!$D$61 -> 0 | J61: 0 | K61: 0 | L61: =+Assumptions!$F$62*3*'Clinic Budget'!$D$61 -> 0 | M61: 0 | N61: 0 | O61: =+Assumptions!$F$62*3*'Clinic Budget'!$D$61 -> 0 | P61: 0 | Q61: 0 | R61: =+Assumptions!$F$62*3*'Clinic Budget'!$D$61 -> 0 | S61: 0 | T61: 0
A62: Not Funded Eligible | B62: Drug Administration | C62: Assessment and Administration of Sublocade | D62: 40 | E62: 0 | F62: 0 | G62: 0 | H62: 0 | I62: =+Assumptions!$F$63*3*'Clinic Budget'!$D$62 -> 0 | J62: 0 | K62: 0 | L62: =+Assumptions!$F$63*3*'Clinic Budget'!$D$62 -> 0 | M62: 0 | N62: 0 | O62: =+Assumptions!$F$63*3*'Clinic Budget'!$D$62 -> 0 | P62: 0 | Q62: 0 | R62: =+Assumptions!$F$63*3*'Clinic Budget'!$D$62 -> 0 | S62: 0 | T62: 0
A63: Not Funded Eligible | B63: Health Management | C63: Deprescribing -PPI Non Project Participants Initial Assessment | D63: 52.5 | E63: 0 | F63: 0 | G63: 0 | H63: 0 | I63: =+Assumptions!$F$69*3*'Clinic Budget'!$D$63 -> 0 | J63: 0 | K63: 0 | L63: =+Assumptions!$F$69*3*'Clinic Budget'!$D$63 -> 0 | M63: 0 | N63: 0 | O63: =+Assumptions!$F$69*3*'Clinic Budget'!$D$63 -> 0 | P63: 0 | Q63: 0 | R63: =+Assumptions!$F$69*3*'Clinic Budget'!$D$63 -> 0 | S63: 0 | T63: 0
A64: Not Funded Eligible | B64: Health Management | C64: Deprescribing PPI Follow-ups- Early (limit of 2) Non Project participants | D64: 20 | E64: 0 | F64: 0 | G64: 0 | H64: 0 | I64: =+Assumptions!$F$69*3*'Clinic Budget'!$D$64*2 -> 0 | J64: 0 | K64: 0 | L64: =+Assumptions!$F$69*3*'Clinic Budget'!$D$64*2 -> 0 | M64: 0 | N64: 0 | O64: =+Assumptions!$F$69*3*'Clinic Budget'!$D$64*2 -> 0 | P64: 0 | Q64: 0 | R64: =+Assumptions!$F$69*3*'Clinic Budget'!$D$64*2 -> 0 | S64: 0 | T64: 0
A65: Not Funded Eligible | B65: Health Management | C65: Deprescribing BZRA Non Project Participants Initial Assessment | D65: 150 | E65: 0 | F65: 0 | G65: 0 | H65: 0 | I65: =+Assumptions!$F$70*3*'Clinic Budget'!$D$65 -> 0 | J65: 0 | K65: 0 | L65: =+Assumptions!$F$70*3*'Clinic Budget'!$D$65 -> 0 | M65: 0 | N65: 0 | O65: =+Assumptions!$F$70*3*'Clinic Budget'!$D$65 -> 0 | P65: 0 | Q65: 0 | R65: =+Assumptions!$F$70*3*'Clinic Budget'!$D$65 -> 0 | S65: 0 | T65: 0
A66: Not Funded Eligible | B66: Health Management | C66: Deprescribing BZRA Follow-ups- Early (limit of 2) Non Project participants | D66: 20 | E66: 0 | F66: 0 | G66: 0 | H66: 0 | I66: =+Assumptions!$F$70*3*'Clinic Budget'!$D$66*2 -> 0 | J66: 0 | K66: 0 | L66: =+Assumptions!$F$70*3*'Clinic Budget'!$D$66*2 -> 0 | M66: 0 | N66: 0 | O66: =+Assumptions!$F$70*3*'Clinic Budget'!$D$66*2 -> 0 | P66: 0 | Q66: 0 | R66: =+Assumptions!$F$70*3*'Clinic Budget'!$D$66*2 -> 0 | S66: 0 | T66: 0
A67: Not Funded Eligible | B67: Health Management | C67: Deprescribing BZRA Follow-ups Later (limit of 5 for BZRA only) Non-Project Participants | D67: 12 | E67: 0 | F67: 0 | G67: 0 | H67: 0 | I67: =+Assumptions!$F$70*3*'Clinic Budget'!$D$67*2 -> 0 | J67: 0 | K67: 0 | L67: =+Assumptions!$F$70*3*'Clinic Budget'!$D$67*2 -> 0 | M67: 0 | N67: 0 | O67: =+Assumptions!$F$70*3*'Clinic Budget'!$D$67*2 -> 0 | P67: 0 | Q67: 0 | R67: =+Assumptions!$F$70*3*'Clinic Budget'!$D$67*2 -> 0 | S67: 0 | T67: 0
A68: Not Funded Eligible | B68: Health Management | C68: Complex Medication Therapy Assessment | D68: 37.5 | E68: 0 | F68: 0 | G68: 0 | H68: 0 | I68: =+Assumptions!$F$66*3*'Clinic Budget'!$D$68 -> 0 | J68: 0 | K68: 0 | L68: =+Assumptions!$F$66*3*'Clinic Budget'!$D$68 -> 0 | M68: 0 | N68: 0 | O68: =+Assumptions!$F$66*3*'Clinic Budget'!$D$68 -> 0 | P68: 0 | Q68: 0 | R68: =+Assumptions!$F$66*3*'Clinic Budget'!$D$68 -> 0 | S68: 0 | T68: 0
A69: Not Funded Eligible | B69: Health Management | C69: Hypertension Project Initial Assessment | D69: 125 | E69: 0 | F69: 0 | G69: 0 | H69: 0 | I69: =+Assumptions!$K$28*3*$D$69 -> 0 | J69: 0 | K69: 0 | L69: =+Assumptions!$K$28*3*$D$69 -> 0 | M69: 0 | N69: 0 | O69: =+Assumptions!$L$28*3*'Clinic Budget'!$D$69 -> 0 | P69: 0 | Q69: 0 | R69: =+Assumptions!$L$28*3*'Clinic Budget'!$D$69 -> 0 | S69: 0 | T69: 0
A70: Not Funded Eligible | B70: Health Management | C70: Hypertension Project Follow-ups | D70: 20 | E70: 0 | F70: 0 | G70: 0 | H70: 0 | I70: =+((Assumptions!$K$28*6)+(Assumptions!$L$28*6))*Assumptions!$M$28/4*$D$70 -> 0 | J70: 0 | K70: 0 | L70: =+((Assumptions!$K$28*6)+(Assumptions!$L$28*6))*Assumptions!$M$28/4*$D$70 -> 0 | M70: 0 | N70: 0 | O70: =+((Assumptions!$K$28*6)+(Assumptions!$L$28*6))*Assumptions!$M$28/4*$D$70 -> 0 | P70: 0 | Q70: 0 | R70: =+((Assumptions!$K$28*6)+(Assumptions!$L$28*6))*Assumptions!$M$28/4*$D$70 -> 0 | S70: 0 | T70: 0
A71: Not Funded Eligible | B71: Health Management | C71: Prescribing with a diagnosis as per NSCP standard in collaboration with another provider | D71: 25 | E71: 0 | F71: 0 | G71: 0 | H71: 0 | I71: 0 | J71: 0 | K71: 0 | L71: 0 | M71: 0 | N71: 0 | O71: 0 | P71: 0 | Q71: 0 | R71: 0 | S71: 0 | T71: 0
A72: Not Funded Eligible | B72: Health Management | C72: Chronic Disease Management – Diabetes – Initial/Annual assessment | D72: 125 | E72: 0 | F72: 0 | G72: 0 | H72: 0 | I72: =+Assumptions!$K$32*3*$D$72 -> 0 | J72: 0 | K72: 0 | L72: =+Assumptions!$K$32*3*$D$72 -> 0 | M72: 0 | N72: 0 | O72: =+Assumptions!$L$32*3*$D$72 -> 0 | P72: 0 | Q72: 0 | R72: =+Assumptions!$L$32*3*$D$72 -> 0 | S72: 0 | T72: 0
A73: Not Funded Eligible | B73: Health Management | C73: Chronic Disease Diabetes Management - Follow-up (up to 5 per year) | D73: 20 | E73: 0 | F73: 0 | G73: 0 | H73: 0 | I73: =+((Assumptions!$K$32*6)+(Assumptions!$L$32*6))*Assumptions!$M$32/4*$D$73 -> 0 | J73: 0 | K73: 0 | L73: =+((Assumptions!$K$32*6)+(Assumptions!$L$32*6))*Assumptions!$M$32/4*$D$73 -> 0 | M73: 0 | N73: 0 | O73: =+((Assumptions!$K$32*6)+(Assumptions!$L$32*6))*Assumptions!$M$32/4*$D$73 -> 0 | P73: 0 | Q73: 0 | R73: =+((Assumptions!$K$32*6)+(Assumptions!$L$32*6))*Assumptions!$M$32/4*$D$73 -> 0 | S73: 0 | T73: 0
A74: Not Funded Eligible | B74: Health Management | C74: Chronic Disease Management – Lung Disease Asthma/COPD) Initial/Annual Assessment | D74: 125 | E74: 0 | F74: 0 | G74: 0 | H74: 0 | I74: =+Assumptions!$K$40*3*$D$74 -> 0 | J74: =+I74/3 -> 0 | K74: =IFERROR(J74/D74,0) -> 0 | L74: =+Assumptions!$K$40*3*$D$74 -> 0 | M74: =+L74/3 -> 0 | N74: =IFERROR(M74/D74,0) -> 0 | O74: =+Assumptions!$L$40*3*$D$74 -> 0 | P74: =+O74/3 -> 0 | Q74: =IFERROR(P74/D74,0) -> 0 | R74: =+Assumptions!$L$40*3*$D$74 -> 0 | S74: 0 | T74: 0
A75: Not Funded Eligible | B75: Health Management | C75: Chronic Disease Management – Lung Disease Follow-up (up to 5 per year | D75: 20 | E75: 0 | F75: 0 | G75: 0 | H75: 0 | I75: =+((Assumptions!$K$40*6)+(Assumptions!$L$40*6))*Assumptions!$M$40/4*$D$75 -> 0 | J75: 0 | K75: 0 | L75: =+((Assumptions!$K$40*6)+(Assumptions!$L$40*6))*Assumptions!$M$40/4*$D$75 -> 0 | M75: 0 | N75: 0 | O75: =+((Assumptions!$K$40*6)+(Assumptions!$L$40*6))*Assumptions!$M$40/4*$D$75 -> 0 | P75: 0 | Q75: 0 | R75: =+((Assumptions!$K$40*6)+(Assumptions!$L$40*6))*Assumptions!$M$40/4*$D$75 -> 0 | S75: 0 | T75: 0
A76: Not Funded Eligible | B76: Health Management | C76: Chronic Disease Management -Cardiovascular Disease Initial/Annual Assessment | D76: 125 | E76: 0 | F76: 0 | G76: 0 | H76: 0 | I76: =+Assumptions!$K$36*3*$D$76 -> 0 | J76: 0 | K76: 0 | L76: =+Assumptions!$K$36*3*$D$76 -> 0 | M76: 0 | N76: 0 | O76: =+Assumptions!$L$36*3*$D$76 -> 0 | P76: 0 | Q76: 0 | R76: =+Assumptions!$L$36*3*$D$76 -> 0 | S76: 0 | T76: 0
A77: Not Funded Eligible | B77: Health Management | C77: Chronic Disease Management Cardiovascular Disease Follow-up (up to 5 per year) | D77: 20 | E77: 0 | F77: 0 | G77: 0 | H77: 0 | I77: =+((Assumptions!$K$36*6)+(Assumptions!$L$36*6))*Assumptions!$M$36/4*$D$77 -> 0 | J77: 0 | K77: 0 | L77: =+((Assumptions!$K$36*6)+(Assumptions!$L$36*6))*Assumptions!$M$36/4*$D$77 -> 0 | M77: 0 | N77: 0 | O77: =+((Assumptions!$K$36*6)+(Assumptions!$L$36*6))*Assumptions!$M$36/4*$D$77 -> 0 | P77: 0 | Q77: 0 | R77: =+((Assumptions!$K$36*6)+(Assumptions!$L$36*6))*Assumptions!$M$36/4*$D$77 -> 0 | S77: 0 | T77: 0
A78: Not Funded Eligible | B78: Health Management | C78: Tobacco Use Reduction Program – Initial Assessment and Discussion | D78: 40 | E78: 0 | F78: 0 | G78: 0 | H78: 0 | I78: 0 | J78: 0 | K78: 0 | L78: 0 | M78: 0 | N78: 0 | O78: 0 | P78: 0 | Q78: 0 | R78: 0 | S78: 0 | T78: 0
A79: Not Funded Eligible | B79: Health Management | C79: Tobacco Use Reduction Program – Follow-up 1-3 | D79: 15 | E79: 0 | F79: 0 | G79: 0 | H79: 0 | I79: 0 | J79: 0 | K79: 0 | L79: 0 | M79: 0 | N79: 0 | O79: 0 | P79: 0 | Q79: 0 | R79: 0 | S79: 0 | T79: 0
A80: Not Funded Eligible | B80: Health Management | C80: Tobacco Use Reduction Program –Follow-up 4-7 | D80: 10 | E80: 0 | F80: 0 | G80: 0 | H80: 0 | I80: 0 | J80: 0 | K80: 0 | L80: 0 | M80: 0 | N80: 0 | O80: 0 | P80: 0 | Q80: 0 | R80: 0 | S80: 0 | T80: 0
A81: Not Funded Eligible | B81: Prescribing | C81: Renewal Assessment that does not result in a prescription | D81: 12 | E81: 0 | F81: 0 | G81: 0 | H81: 0 | I81: 0 | J81: 0 | K81: 0 | L81: 0 | M81: 0 | N81: 0 | O81: 0 | P81: 0 | Q81: 0 | R81: 0 | S81: 0 | T81: 0
A82: Not Funded Eligible | B82: Prescribing | C82: Prescription Adaptation Refusal to Fill | D82: 14 | E82: 0 | F82: 0 | G82: 0 | H82: 0 | I82: 0 | J82: 0 | K82: 0 | L82: 0 | M82: 0 | N82: 0 | O82: 0 | P82: 0 | Q82: 0 | R82: 0 | S82: 0 | T82: 0
A83: Not Funded Eligible | B83: Prescribing | C83: Prescription Adaptation -Other | D83: 14 | E83: 0 | F83: 0 | G83: 0 | H83: 0 | I83: =+Assumptions!$F$68*3*'Clinic Budget'!$D$83/2 -> 0 | J83: 0 | K83: 0 | L83: =+Assumptions!$F$68*3*'Clinic Budget'!$D$83/2 -> 0 | M83: 0 | N83: 0 | O83: =+Assumptions!$F$68*3*'Clinic Budget'!$D$83/2 -> 0 | P83: 0 | Q83: 0 | R83: =+Assumptions!$F$68*3*'Clinic Budget'!$D$83/2 -> 0 | S83: 0 | T83: 0
A84: Not Funded Eligible | B84: Prescribing | C84: Therapeutic Substitution – PPI | D84: 26.5 | E84: 0 | F84: 0 | G84: 0 | H84: 0 | I84: =+Assumptions!$F$67*3*'Clinic Budget'!$D$84/2 -> 0 | J84: 0 | K84: 0 | L84: =+Assumptions!$F$67*3*'Clinic Budget'!$D$84/2 -> 0 | M84: 0 | N84: 0 | O84: =+Assumptions!$F$67*3*'Clinic Budget'!$D$84/2 -> 0 | P84: 0 | Q84: 0 | R84: =+Assumptions!$F$67*3*'Clinic Budget'!$D$84/2 -> 0 | S84: 0 | T84: 0
A85: Not Funded Eligible | B85: Prescribing | C85: Therapeutic Sub- Other Circumstances | D85: 26.5 | E85: 0 | F85: 0 | G85: 0 | H85: 0 | I85: 0 | J85: 0 | K85: 0 | L85: 0 | M85: 0 | N85: 0 | O85: 0 | P85: 0 | Q85: 0 | R85: 0 | S85: 0 | T85: 0
A86: Not Funded Eligible | B86: Prescribing | C86: Prescribing in an Emergency | D86: 28 | E86: 0 | F86: 0 | G86: 0 | H86: 0 | I86: 0 | J86: 0 | K86: 0 | L86: 0 | M86: 0 | N86: 0 | O86: 0 | P86: 0 | Q86: 0 | R86: 0 | S86: 0 | T86: 0
A87: Not Funded Eligible | B87: Prescribing | C87: Pharmacist independent prescribing with diagnosis confirmed by pharmacist (Diabetes, Lung, CVD only). NSCP Study | D87: 25 | E87: 0 | F87: 0 | G87: 0 | H87: 0 | I87: 0 | J87: 0 | K87: 0 | L87: 0 | M87: 0 | N87: 0 | O87: 0 | P87: 0 | Q87: 0 | R87: 0 | S87: 0 | T87: 0
A88: Not Funded Eligible | B88: Prescribing | C88: Prescribing for a Minor Ailment (as per Appendix 6) | D88: 25 | E88: 0 | F88: 0 | G88: 0 | H88: 0 | I88: =+Assumptions!$F$54*3*'Clinic Budget'!$D$88 -> 0 | J88: 0 | K88: 0 | L88: =+Assumptions!$F$54*3*'Clinic Budget'!$D$88 -> 0 | M88: 0 | N88: 0 | O88: =+Assumptions!$F$54*3*'Clinic Budget'!$D$88 -> 0 | P88: 0 | Q88: 0 | R88: =+Assumptions!$F$54*3*'Clinic Budget'!$D$88 -> 0 | S88: 0 | T88: 0
A89: Not Funded Eligible | B89: Prescribing | C89: Assessment, Point of Care Testing For Group A Strep that results in a prescription | D89: 35 | E89: =+I89+L89+O89+R89 -> 0 | F89: 0 | G89: 0 | H89: 0 | I89: =+Assumptions!$F$57*0.5*'Clinic Budget'!$D$89*3 -> 0 | J89: 0 | K89: 0 | L89: =+Assumptions!$F$57*0.5*'Clinic Budget'!$D$89*3*0.25 -> 0 | M89: 0 | N89: 0 | O89: =+Assumptions!$F$57*0.5*'Clinic Budget'!$D$89*3*0.25 -> 0 | P89: 0 | Q89: 0 | R89: =+Assumptions!$F$57*0.5*'Clinic Budget'!$D$89*3 -> 0 | S89: 0 | T89: 0
A90: Not Funded Eligible | B90: Prescribing | C90: Assessment Group A Strep that does not result in an RX | D90: 20 | E90: 0 | F90: =IFERROR(+E90/D90,0) -> 0 | G90: 0 | H90: 0 | I90: =+Assumptions!$F$57*0.5*'Clinic Budget'!$D$90*3 -> 0 | J90: =+I90/3 -> 0 | K90: =IFERROR(J90/D90,0) -> 0 | L90: =+Assumptions!$F$57*0.5*'Clinic Budget'!$D$90*3*0.25 -> 0 | M90: =+L90/3 -> 0 | N90: =IFERROR(M90/D90,0) -> 0 | O90: =+Assumptions!$F$57*0.5*'Clinic Budget'!$D$90*3*0.25 -> 0 | P90: =+O90/3 -> 0 | Q90: =IFERROR(P90/D90,0) -> 0 | R90: =+Assumptions!$F$57*0.5*'Clinic Budget'!$D$90*3 -> 0 | S90: =+R90/3 -> 0 | T90: =IFERROR(S90/D90,0) -> 0
A91: Not Funded Eligible | B91: Testing | C91: Point of Care Test A1C | D91: 25 | E91: 0 | F91: 0 | G91: 0 | H91: 0 | I91: =+((Assumptions!$F$56*3*Assumptions!$L$44*'Clinic Budget'!$D$91))+((Assumptions!$K$32+Assumptions!$L$32)*6*Assumptions!$K$44/4*$D$91)+(Assumptions!$K$16*Assumptions!$M$44*'Clinic Budget'!$D$91) -> 0 | J91: 0 | K91: 0 | L91: =+((Assumptions!$F$56*3*Assumptions!$L$44*'Clinic Budget'!$D$91))+((Assumptions!$K$32+Assumptions!$L$32)*6*Assumptions!$K$44/4*$D$91)+(Assumptions!$L$16*Assumptions!$M$44*'Clinic Budget'!$D$91) -> 0 | M91: 0 | N91: 0 | O91: =+((Assumptions!$F$56*3*Assumptions!$L$44*'Clinic Budget'!$D$91))+((Assumptions!$K$32+Assumptions!$L$32)*6*Assumptions!$K$44/4*$D$91)+(Assumptions!$M$16*Assumptions!$M$44*'Clinic Budget'!$D$91) -> 0 | P91: 0 | Q91: 0 | R91: =+((Assumptions!$F$56*3*Assumptions!$L$44*'Clinic Budget'!$D$91))+((Assumptions!$K$32+Assumptions!$L$32)*6*Assumptions!$K$44/4*$D$91)+(Assumptions!$N$16*Assumptions!$M$44*'Clinic Budget'!$D$91) -> 0 | S91: 0 | T91: 0
A92: Not Funded Eligible | B92: Testing | C92: Point of Care Test Cholesterol | D92: 25 | E92: 0 | F92: 0 | G92: 0 | H92: 0 | I92: =+((Assumptions!$F$56*3*Assumptions!$L$48*'Clinic Budget'!$D$92))+((Assumptions!$K$32+Assumptions!$L$32+Assumptions!$K$28+Assumptions!$L$28+Assumptions!$K$36+Assumptions!$L$36)*6*Assumptions!$K$48/4*$D$92)+(Assumptions!$K$16*Assumptions!$M$48*'Clinic Budget'!$D$92) -> 0 | J92: 0 | K92: 0 | L92: =+((Assumptions!$F$56*3*Assumptions!$L$48*'Clinic Budget'!$D$92))+((Assumptions!$K$32+Assumptions!$L$32+Assumptions!$K$28+Assumptions!$L$28+Assumptions!$K$36+Assumptions!$L$36)*6*Assumptions!$K$48/4*$D$92)+(Assumptions!$L$16*Assumptions!$M$48*'Clinic Budget'!$D$92) -> 0 | M92: 0 | N92: 0 | O92: =+((Assumptions!$F$56*3*Assumptions!$L$48*'Clinic Budget'!$D$92))+((Assumptions!$K$32+Assumptions!$L$32+Assumptions!$K$28+Assumptions!$L$28+Assumptions!$K$36+Assumptions!$L$36)*6*Assumptions!$K$48/4*$D$92)+(Assumptions!$M$16*Assumptions!$M$48*'Clinic Budget'!$D$92) -> 0 | P92: 0 | Q92: 0 | R92: =+((Assumptions!$F$56*3*Assumptions!$L$48*'Clinic Budget'!$D$92))+((Assumptions!$K$32+Assumptions!$L$32+Assumptions!$K$28+Assumptions!$L$28+Assumptions!$K$36+Assumptions!$L$36)*6*Assumptions!$K$48/4*$D$92)+(Assumptions!$N$16*Assumptions!$M$48*'Clinic Budget'!$D$92) -> 0 | S92: 0 | T92: 0
A93: Not Funded Not Eligible | B93: Drug Administration | C93: Administration of non-publicly funded vaccines | D93: =+'Service Listing'!J74 -> 20 | E93: 0 | F93: 0 | G93: 0 | H93: 0 | I93: =+Assumptions!$F$71*3*'Clinic Budget'!$D$93 -> 0 | J93: 0 | K93: 0 | L93: =+Assumptions!$F$71*3*'Clinic Budget'!$D$93 -> 0 | M93: 0 | N93: 0 | O93: =+Assumptions!$F$71*3*'Clinic Budget'!$D$93 -> 0 | P93: 0 | Q93: 0 | R93: =+Assumptions!$F$71*3*'Clinic Budget'!$D$93 -> 0 | S93: 0 | T93: 0
A94: Not Funded Not Eligible | B94: Other | C94: Comprehensive Travel Health Consultation | D94: =+'Service Listing'!J75 -> Fee Set by Site | E94: 0 | F94: 0 | G94: 0 | H94: 0 | I94: 0 | J94: 0 | K94: 0 | L94: 0 | M94: 0 | N94: 0 | O94: 0 | P94: 0 | Q94: 0 | R94: 0 | S94: 0 | T94: 0
A95: Not Funded Not Eligible | B95: Other | C95: Pharmacogenomic Consultation Service | D95: =+'Service Listing'!J76 -> Fee Set by Site | E95: 0 | F95: 0 | G95: 0 | H95: 0 | I95: 0 | J95: 0 | K95: 0 | L95: 0 | M95: 0 | N95: 0 | O95: 0 | P95: 0 | Q95: 0 | R95: 0 | S95: 0 | T95: 0
A96: Not Funded Not Eligible | B96: Other | C96: Malaria Chemoprophylaxis Assessment and Prescribing | D96: =+'Service Listing'!J77 -> Fee Set by Site | E96: 0 | F96: 0 | G96: 0 | H96: 0 | I96: 0 | J96: 0 | K96: 0 | L96: 0 | M96: 0 | N96: 0 | O96: 0 | P96: 0 | Q96: 0 | R96: 0 | S96: 0 | T96: 0
A97: Not Funded Not Eligible | B97: Other | C97: Any Service for a Patient without an NS Health card that is not covered for out of province patients | D97: =+'Service Listing'!J78 -> Fee Set by Site | E97: 0 | F97: 0 | G97: 0 | H97: 0 | I97: 0 | J97: 0 | K97: 0 | L97: 0 | M97: 0 | N97: 0 | O97: 0 | P97: 0 | Q97: 0 | R97: 0 | S97: 0 | T97: 0
A98: Not Funded Not Eligible | B98: Other | C98: =+'Service Listing'!$C$79 -> Rapid Antigen Testing Travel Test | D98: =+'Service Listing'!J79 -> 40 | E98: 0 | F98: 0 | G98: 0 | H98: 0 | I98: =+Assumptions!$F$65*3*'Clinic Budget'!$D$98 -> 0 | J98: 0 | K98: 0 | L98: =+Assumptions!$F$65*3*'Clinic Budget'!$D$98 -> 0 | M98: 0 | N98: 0 | O98: =+Assumptions!$F$65*3*'Clinic Budget'!$D$98 -> 0 | P98: 0 | Q98: 0 | R98: =+Assumptions!$F$65*3*'Clinic Budget'!$D$98 -> 0 | S98: 0 | T98: 0
A99: Not Funded Not Eligible | B99: Other | C99: =+'Service Listing'!$C$80 -> Other: | D99: =+'Service Listing'!J80 -> Fee Set by Site | E99: 0 | F99: 0 | G99: 0 | H99: 0 | I99: 0 | J99: 0 | K99: 0 | L99: 0 | M99: 0 | N99: 0 | O99: 0 | P99: 0 | Q99: 0 | R99: 0 | S99: 0 | T99: 0
A100: Not Funded Not Eligible | B100: Other | C100: =+'Service Listing'!$C$81 -> Other: | D100: =+'Service Listing'!J81 -> Fee Set by Site | E100: 0 | F100: 0 | G100: 0 | H100: 0 | I100: 0 | J100: 0 | K100: 0 | L100: 0 | M100: 0 | N100: 0 | O100: 0 | P100: 0 | Q100: 0 | R100: 0 | S100: 0 | T100: 0
A101: Totals | E101: =SUM(E25:E100) -> 0 | F101: =SUM(F25:F100) -> 0 | G101: =SUM(G25:G100) -> 0 | H101: =SUM(H25:H100) -> 0 | I101: =SUM(I25:I100) -> 0 | J101: 0 | K101: 0 | L101: 0 | M101: 0 | N101: 0 | O101: 0 | P101: 0 | Q101: 0 | R101: 0 | S101: 0 | T101: 0

Sheet Q1 Monthly Analysis
A1: Community Pharmacy Primary Care Clinic - Q1 Average Monthly Service
A3: Clinic Revenue PER MONTH ON PAPER | C3: =+Q1Analysis[[#Totals],[Monthly Revenue per Service]] -> 0 | E3: Funded Revenue | H3: =+GETPIVOTDATA("Monthly Revenue per Service",Q1PVTTable!$A$3,"Funding Category","Funded") -> 8972.25
A4: Minutes Available Per Week (7.5 hours/day) | C4: =60*'Service Listing'!$F$2*5 -> 2250 | E4: Actual Not Funded Eligible | H4: =+GETPIVOTDATA("Monthly Revenue per Service",Q1PVTTable!$A$3,"Funding Category","Not Funded Eligible") -> 8872.395
A5: Time/Week Needed for Services*** | C5: =+Q1Analysis[[#Totals],[Weekly Time Needed (min)]] -> 0 | E5: Not Funded Eligible Payment | H5: 7000
A6: Time Gap | C6: =+C4-C5 -> 2250 | E6: Not Funded Not Eligible | H6: =+GETPIVOTDATA("Monthly Revenue per Service",Q1PVTTable!$A$3,"Funding Category","Not Funded Not Eligible") -> 300
A7: *** Review bottom rows of table to add non-funded appointments | E7: Total Actual Revenue | H7: =+H6+H5+H3 -> 16272.25
A9: Service | B9: Revenue/Service | C9: #/month | D9: Service Time (Min) | E9: #/week | F9: Monthly Revenue per Service | G9: Weekly Time Needed (min) | H9: Funding Category
A10: =+'Clinic Budget'!C25 -> Covid-19 Vaccine Administration Fee | B10: =+'Service Listing'!J6 -> 18 | C10: =+'Clinic Budget'!K25 -> 0 | D10: =IFERROR(INDEX(ServListing[Time (min)],MATCH(A10,ServListing[Service],0),0),0) -> 7.5 | E10: =+Q1Analysis[[#This Row],['#/month]]*0.230769230769231 -> 0 | F10: =IFERROR(Q1Analysis[[#This Row],['#/month]]*Q1Analysis[[#This Row],[Revenue/Service]],0) -> 0 | G10: =IFERROR(+Q1Analysis[[#This Row],['#/week]]*Q1Analysis[[#This Row],[Service Time (Min)]],0) -> 0 | H10: =+'Clinic Budget'!A25 -> Funded
A11: =+'Clinic Budget'!C26 -> Influenza Vaccine Admin Fee* | B11: =+'Service Listing'!J7 -> 12.8 | C11: =+'Clinic Budget'!K26 -> 0 | D11: =IFERROR(INDEX(ServListing[Time (min)],MATCH(A11,ServListing[Service],0),0),0) -> 7.5 | E11: =+Q1Analysis[[#This Row],['#/month]]*0.230769230769231 -> 0 | F11: =IFERROR(Q1Analysis[[#This Row],['#/month]]*Q1Analysis[[#This Row],[Revenue/Service]],0) -> 0 | G11: =IFERROR(+Q1Analysis[[#This Row],['#/week]]*Q1Analysis[[#This Row],[Service Time (Min)]],0) -> 0 | H11: =+'Clinic Budget'!A26 -> Funded
A12: =+'Clinic Budget'!C27 -> Prescribing Contraception Initial Assessment that results in a prescription | B12: =+'Service Listing'!J8 -> 20 | C12: =+'Clinic Budget'!K27 -> 0 | D12: =IFERROR(INDEX(ServListing[Time (min)],MATCH(A12,ServListing[Service],0),0),0) -> 30 | E12: =+Q1Analysis[[#This Row],['#/month]]*0.230769230769231 -> 0 | F12: =IFERROR(Q1Analysis[[#This Row],['#/month]]*Q1Analysis[[#This Row],[Revenue/Service]],0) -> 0 | G12: =IFERROR(+Q1Analysis[[#This Row],['#/week]]*Q1Analysis[[#This Row],[Service Time (Min)]],0) -> 0 | H12: =+'Clinic Budget'!A27 -> Funded
A13: =+'Clinic Budget'!C28 -> Prescribing Contraception Initial Assessment that does not result in a prescription | B13: =+'Service Listing'!J9 -> 20 | C13: =+'Clinic Budget'!K28 -> 0 | D13: =IFERROR(INDEX(ServListing[Time (min)],MATCH(A13,ServListing[Service],0),0),0) -> 30 | E13: =+Q1Analysis[[#This Row],['#/month]]*0.230769230769231 -> 0 | F13: =IFERROR(Q1Analysis[[#This Row],['#/month]]*Q1Analysis[[#This Row],[Revenue/Service]],0) -> 0 | G13: =IFERROR(+Q1Analysis[[#This Row],['#/week]]*Q1Analysis[[#This Row],[Service Time (Min)]],0) -> 0 | H13: =+'Clinic Budget'!A28 -> Funded
A14: =+'Clinic Budget'!C29 -> Prescribing Contraception subsequent assessment that results in a change | B14: =+'Service Listing'!J10 -> 20 | C14: =+'Clinic Budget'!K29 -> 0 | D14: =IFERROR(INDEX(ServListing[Time (min)],MATCH(A14,ServListing[Service],0),0),0) -> 15 | E14: =+Q1Analysis[[#This Row],['#/month]]*0.230769230769231 -> 0 | F14: =IFERROR(Q1Analysis[[#This Row],['#/month]]*Q1Analysis[[#This Row],[Revenue/Service]],0) -> 0 | G14: =IFERROR(+Q1Analysis[[#This Row],['#/week]]*Q1Analysis[[#This Row],[Service Time (Min)]],0) -> 0 | H14: =+'Clinic Budget'!A29 -> Funded
A15: =+'Clinic Budget'!C30 -> Prescribing Contraception Subsequent assessment that does not result in a change | B15: =+'Service Listing'!J11 -> 12 | C15: =+'Clinic Budget'!K30 -> 0 | D15: =IFERROR(INDEX(ServListing[Time (min)],MATCH(A15,ServListing[Service],0),0),0) -> 15 | E15: =+Q1Analysis[[#This Row],['#/month]]*0.230769230769231 -> 0 | F15: =IFERROR(Q1Analysis[[#This Row],['#/month]]*Q1Analysis[[#This Row],[Revenue/Service]],0) -> 0 | G15: =IFERROR(+Q1Analysis[[#This Row],['#/week]]*Q1Analysis[[#This Row],[Service Time (Min)]],0) -> 0 | H15: =+'Clinic Budget'!A30 -> Funded
A16: =+'Clinic Budget'!C31 -> Deprescribing -PPI Project Participants Initial Assessment | B16: =+'Service Listing'!J12 -> 52.5 | C16: =+'Clinic Budget'!K31 -> 0 | D16: =IFERROR(INDEX(ServListing[Time (min)],MATCH(A16,ServListing[Service],0),0),0) -> 30 | E16: =+Q1Analysis[[#This Row],['#/month]]*0.230769230769231 -> 0 | F16: =IFERROR(Q1Analysis[[#This Row],['#/month]]*Q1Analysis[[#This Row],[Revenue/Service]],0) -> 0 | G16: =IFERROR(+Q1Analysis[[#This Row],['#/week]]*Q1Analysis[[#This Row],[Service Time (Min)]],0) -> 0 | H16: =+'Clinic Budget'!A31 -> Funded
A17: =+'Clinic Budget'!C32 -> Deprescribing PPI Follow-ups- Early (limit of 2) Project participants | B17: =+'Service Listing'!J13 -> 20 | C17: =+'Clinic Budget'!K32 -> 0 | D17: =IFERROR(INDEX(ServListing[Time (min)],MATCH(A17,ServListing[Service],0),0),0) -> 15 | E17: =+Q1Analysis[[#This Row],['#/month]]*0.230769230769231 -> 0 | F17: =IFERROR(Q1Analysis[[#This Row],['#/month]]*Q1Analysis[[#This Row],[Revenue/Service]],0) -> 0 | G17: =IFERROR(+Q1Analysis[[#This Row],['#/week]]*Q1Analysis[[#This Row],[Service Time (Min)]],0) -> 0 | H17: =+'Clinic Budget'!A32 -> Funded
A18: =+'Clinic Budget'!C33 -> Deprescribing BZRA Participants Initial Assessment | B18: =+'Service Listing'!J14 -> 150 | C18: =+'Clinic Budget'!K33 -> 0 | D18: =IFERROR(INDEX(ServListing[Time (min)],MATCH(A18,ServListing[Service],0),0),0) -> 60 | E18: =+Q1Analysis[[#This Row],['#/month]]*0.230769230769231 -> 0 | F18: =IFERROR(Q1Analysis[[#This Row],['#/month]]*Q1Analysis[[#This Row],[Revenue/Service]],0) -> 0 | G18: =IFERROR(+Q1Analysis[[#This Row],['#/week]]*Q1Analysis[[#This Row],[Service Time (Min)]],0) -> 0 | H18: =+'Clinic Budget'!A33 -> Funded
A19: =+'Clinic Budget'!C34 -> Deprescribing BZRA Follow-ups- Early (limit of 2) Project participants | B19: =+'Service Listing'!J15 -> 20 | C19: =+'Clinic Budget'!K34 -> 0 | D19: =IFERROR(INDEX(ServListing[Time (min)],MATCH(A19,ServListing[Service],0),0),0) -> 15 | E19: =+Q1Analysis[[#This Row],['#/month]]*0.230769230769231 -> 0 | F19: =IFERROR(Q1Analysis[[#This Row],['#/month]]*Q1Analysis[[#This Row],[Revenue/Service]],0) -> 0 | G19: =IFERROR(+Q1Analysis[[#This Row],['#/week]]*Q1Analysis[[#This Row],[Service Time (Min)]],0) -> 0 | H19: =+'Clinic Budget'!A34 -> Funded
A20: =+'Clinic Budget'!C35 -> Deprescribing BZRA Follow-ups Later (limit of 5 for BZRA only)Project Participants | B20: =+'Service Listing'!J16 -> 12 | C20: =+'Clinic Budget'!K35 -> 0 | D20: =IFERROR(INDEX(ServListing[Time (min)],MATCH(A20,ServListing[Service],0),0),0) -> 15 | E20: =+Q1Analysis[[#This Row],['#/month]]*0.230769230769231 -> 0 | F20: =IFERROR(Q1Analysis[[#This Row],['#/month]]*Q1Analysis[[#This Row],[Revenue/Service]],0) -> 0 | G20: =IFERROR(+Q1Analysis[[#This Row],['#/week]]*Q1Analysis[[#This Row],[Service Time (Min)]],0) -> 0 | H20: =+'Clinic Budget'!A35 -> Funded
A21: =+'Clinic Budget'!C36 -> Community Pharmacy Led Anticoagulation Management Service (monthly service fee) | B21: =+'Service Listing'!J17 -> 50 | C21: =+'Clinic Budget'!K36 -> 0 | D21: =IFERROR(INDEX(ServListing[Time (min)],MATCH(A21,ServListing[Service],0),0),0) -> 15 | E21: =+Q1Analysis[[#This Row],['#/month]]*0.230769230769231 -> 0 | F21: =IFERROR(Q1Analysis[[#This Row],['#/month]]*Q1Analysis[[#This Row],[Revenue/Service]],0) -> 0 | G21: =IFERROR(+Q1Analysis[[#This Row],['#/week]]*Q1Analysis[[#This Row],[Service Time (Min)]],0) -> 0 | H21: =+'Clinic Budget'!A36 -> Funded
A22: =+'Clinic Budget'!C37 -> Hypertension Project Initial Assessment | B22: =+'Service Listing'!J18 -> 125 | C22: =+'Clinic Budget'!K37 -> 0 | D22: =IFERROR(INDEX(ServListing[Time (min)],MATCH(A22,ServListing[Service],0),0),0) -> 60 | E22: =+Q1Analysis[[#This Row],['#/month]]*0.230769230769231 -> 0 | F22: =IFERROR(Q1Analysis[[#This Row],['#/month]]*Q1Analysis[[#This Row],[Revenue/Service]],0) -> 0 | G22: =IFERROR(+Q1Analysis[[#This Row],['#/week]]*Q1Analysis[[#This Row],[Service Time (Min)]],0) -> 0 | H22: =+'Clinic Budget'!A37 -> Funded
A23: =+'Clinic Budget'!C38 -> Hypertension Project Follow-ups | B23: =+'Service Listing'!J19 -> 20 | C23: =+'Clinic Budget'!K38 -> 0 | D23: =IFERROR(INDEX(ServListing[Time (min)],MATCH(A23,ServListing[Service],0),0),0) -> 15 | E23: =+Q1Analysis[[#This Row],['#/month]]*0.230769230769231 -> 0 | F23: =IFERROR(Q1Analysis[[#This Row],['#/month]]*Q1Analysis[[#This Row],[Revenue/Service]],0) -> 0 | G23: =IFERROR(+Q1Analysis[[#This Row],['#/week]]*Q1Analysis[[#This Row],[Service Time (Min)]],0) -> 0 | H23: =+'Clinic Budget'!A38 -> Funded
A24: =+'Clinic Budget'!C39 -> Bloom Monthly fee (first 6 months) | B24: =+'Service Listing'!J20 -> 75 | C24: =+'Clinic Budget'!K39 -> 0 | D24: =IFERROR(INDEX(ServListing[Time (min)],MATCH(A24,ServListing[Service],0),0),0) -> 15 | E24: =+Q1Analysis[[#This Row],['#/month]]*0.230769230769231 -> 0 | F24: =IFERROR(Q1Analysis[[#This Row],['#/month]]*Q1Analysis[[#This Row],[Revenue/Service]],0) -> 0 | G24: =IFERROR(+Q1Analysis[[#This Row],['#/week]]*Q1Analysis[[#This Row],[Service Time (Min)]],0) -> 0 | H24: =+'Clinic Budget'!A39 -> Funded
A25: =+'Clinic Budget'!C40 -> Bloom Monthly fee (7+ months) | B25: =+'Service Listing'!J21 -> 30 | C25: =+'Clinic Budget'!K40 -> 0 | D25: =IFERROR(INDEX(ServListing[Time (min)],MATCH(A25,ServListing[Service],0),0),0) -> 15 | E25: =+Q1Analysis[[#This Row],['#/month]]*0.230769230769231 -> 0 | F25: =IFERROR(Q1Analysis[[#This Row],['#/month]]*Q1Analysis[[#This Row],[Revenue/Service]],0) -> 0 | G25: =IFERROR(+Q1Analysis[[#This Row],['#/week]]*Q1Analysis[[#This Row],[Service Time (Min)]],0) -> 0 | H25: =+'Clinic Budget'!A40 -> Funded
A26: =+'Clinic Budget'!C41 -> Basic Medication Review | B26: =+'Service Listing'!J22 -> 52.5 | C26: =+'Clinic Budget'!K41 -> 0 | D26: =IFERROR(INDEX(ServListing[Time (min)],MATCH(A26,ServListing[Service],0),0),0) -> 30 | E26: =+Q1Analysis[[#This Row],['#/month]]*0.230769230769231 -> 0 | F26: =IFERROR(Q1Analysis[[#This Row],['#/month]]*Q1Analysis[[#This Row],[Revenue/Service]],0) -> 0 | G26: =IFERROR(+Q1Analysis[[#This Row],['#/week]]*Q1Analysis[[#This Row],[Service Time (Min)]],0) -> 0 | H26: =+'Clinic Budget'!A41 -> Funded
A27: =+'Clinic Budget'!C42 -> Basic Medication Review Follow-ups | B27: =+'Service Listing'!J23 -> 20 | C27: =+'Clinic Budget'!K42 -> 0 | D27: =IFERROR(INDEX(ServListing[Time (min)],MATCH(A27,ServListing[Service],0),0),0) -> 15 | E27: =+Q1Analysis[[#This Row],['#/month]]*0.230769230769231 -> 0 | F27: =IFERROR(Q1Analysis[[#This Row],['#/month]]*Q1Analysis[[#This Row],[Revenue/Service]],0) -> 0 | G27: =IFERROR(+Q1Analysis[[#This Row],['#/week]]*Q1Analysis[[#This Row],[Service Time (Min)]],0) -> 0 | H27: =+'Clinic Budget'!A42 -> Funded
A28: =+'Clinic Budget'!C43 -> Advanced Medication Review | B28: =+'Service Listing'!J24 -> 150 | C28: =+'Clinic Budget'!K43 -> 0 | D28: =IFERROR(INDEX(ServListing[Time (min)],MATCH(A28,ServListing[Service],0),0),0) -> 90 | E28: =+Q1Analysis[[#This Row],['#/month]]*0.230769230769231 -> 0 | F28: =IFERROR(Q1Analysis[[#This Row],['#/month]]*Q1Analysis[[#This Row],[Revenue/Service]],0) -> 0 | G28: =IFERROR(+Q1Analysis[[#This Row],['#/week]]*Q1Analysis[[#This Row],[Service Time (Min)]],0) -> 0 | H28: =+'Clinic Budget'!A43 -> Funded
A29: =+'Clinic Budget'!C44 -> Advanced Medication Review Follow-ups | B29: =+'Service Listing'!J25 -> 20 | C29: =+'Clinic Budget'!K44 -> 0 | D29: =IFERROR(INDEX(ServListing[Time (min)],MATCH(A29,ServListing[Service],0),0),0) -> 15 | E29: =+Q1Analysis[[#This Row],['#/month]]*0.230769230769231 -> 0 | F29: =IFERROR(Q1Analysis[[#This Row],['#/month]]*Q1Analysis[[#This Row],[Revenue/Service]],0) -> 0 | G29: =IFERROR(+Q1Analysis[[#This Row],['#/week]]*Q1Analysis[[#This Row],[Service Time (Min)]],0) -> 0 | H29: =+'Clinic Budget'!A44 -> Funded
A30: =+'Clinic Budget'!C45 -> Take Home Naloxone Kit Training | B30: =+'Service Listing'!J26 -> 25 | C30: =+'Clinic Budget'!K45 -> 0 | D30: =IFERROR(INDEX(ServListing[Time (min)],MATCH(A30,ServListing[Service],0),0),0) -> 15 | E30: =+Q1Analysis[[#This Row],['#/month]]*0.230769230769231 -> 0 | F30: =IFERROR(Q1Analysis[[#This Row],['#/month]]*Q1Analysis[[#This Row],[Revenue/Service]],0) -> 0 | G30: =IFERROR(+Q1Analysis[[#This Row],['#/week]]*Q1Analysis[[#This Row],[Service Time (Min)]],0) -> 0 | H30: =+'Clinic Budget'!A45 -> Funded
A31: =+'Clinic Budget'!C46 -> PPCC Prescription Renewal (1-3 meds) | B31: =+'Service Listing'!J27 -> 12 | C31: =+'Clinic Budget'!K46 -> 0 | D31: =IFERROR(INDEX(ServListing[Time (min)],MATCH(A31,ServListing[Service],0),0),0) -> 15 | E31: =+Q1Analysis[[#This Row],['#/month]]*0.230769230769231 -> 0 | F31: =IFERROR(Q1Analysis[[#This Row],['#/month]]*Q1Analysis[[#This Row],[Revenue/Service]],0) -> 0 | G31: =IFERROR(+Q1Analysis[[#This Row],['#/week]]*Q1Analysis[[#This Row],[Service Time (Min)]],0) -> 0 | H31: =+'Clinic Budget'!A46 -> Funded
A32: =+'Clinic Budget'!C47 -> Prescription Renewal (4+ meds) | B32: =+'Service Listing'!J28 -> 20 | C32: =+'Clinic Budget'!K47 -> 0 | D32: =IFERROR(INDEX(ServListing[Time (min)],MATCH(A32,ServListing[Service],0),0),0) -> 30 | E32: =+Q1Analysis[[#This Row],['#/month]]*0.230769230769231 -> 0 | F32: =IFERROR(Q1Analysis[[#This Row],['#/month]]*Q1Analysis[[#This Row],[Revenue/Service]],0) -> 0 | G32: =IFERROR(+Q1Analysis[[#This Row],['#/week]]*Q1Analysis[[#This Row],[Service Time (Min)]],0) -> 0 | H32: =+'Clinic Budget'!A47 -> Funded
A33: =+'Clinic Budget'!C48 -> Prescription Adaptation Refusal to Fill | B33: =+'Service Listing'!J29 -> 14 | C33: =+'Clinic Budget'!K48 -> 0 | D33: =IFERROR(INDEX(ServListing[Time (min)],MATCH(A33,ServListing[Service],0),0),0) -> 15 | E33: =+Q1Analysis[[#This Row],['#/month]]*0.230769230769231 -> 0 | F33: =IFERROR(Q1Analysis[[#This Row],['#/month]]*Q1Analysis[[#This Row],[Revenue/Service]],0) -> 0 | G33: =IFERROR(+Q1Analysis[[#This Row],['#/week]]*Q1Analysis[[#This Row],[Service Time (Min)]],0) -> 0 | H33: =+'Clinic Budget'!A48 -> Funded
A34: =+'Clinic Budget'!C49 -> Prescription Adaptation -Other | B34: =+'Service Listing'!J30 -> 14 | C34: =+'Clinic Budget'!K49 -> 0 | D34: =IFERROR(INDEX(ServListing[Time (min)],MATCH(A34,ServListing[Service],0),0),0) -> 15 | E34: =+Q1Analysis[[#This Row],['#/month]]*0.230769230769231 -> 0 | F34: =IFERROR(Q1Analysis[[#This Row],['#/month]]*Q1Analysis[[#This Row],[Revenue/Service]],0) -> 0 | G34: =IFERROR(+Q1Analysis[[#This Row],['#/week]]*Q1Analysis[[#This Row],[Service Time (Min)]],0) -> 0 | H34: =+'Clinic Budget'!A49 -> Funded
A35: =+'Clinic Budget'!C50 -> Therapeutic Substitution – PPI | B35: =+'Service Listing'!J31 -> 26.5 | C35: =+'Clinic Budget'!K50 -> 0 | D35: =IFERROR(INDEX(ServListing[Time (min)],MATCH(A35,ServListing[Service],0),0),0) -> 15 | E35: =+Q1Analysis[[#This Row],['#/month]]*0.230769230769231 -> 0 | F35: =IFERROR(Q1Analysis[[#This Row],['#/month]]*Q1Analysis[[#This Row],[Revenue/Service]],0) -> 0 | G35: =IFERROR(+Q1Analysis[[#This Row],['#/week]]*Q1Analysis[[#This Row],[Service Time (Min)]],0) -> 0 | H35: =+'Clinic Budget'!A50 -> Funded
A36: =+'Clinic Budget'!C51 -> Therapeutic Sub- Other Circumstances | B36: =+'Service Listing'!J32 -> 26.5 | C36: =+'Clinic Budget'!K51 -> 0 | D36: =IFERROR(INDEX(ServListing[Time (min)],MATCH(A36,ServListing[Service],0),0),0) -> 15 | E36: =+Q1Analysis[[#This Row],['#/month]]*0.230769230769231 -> 0 | F36: =IFERROR(Q1Analysis[[#This Row],['#/month]]*Q1Analysis[[#This Row],[Revenue/Service]],0) -> 0 | G36: =IFERROR(+Q1Analysis[[#This Row],['#/week]]*Q1Analysis[[#This Row],[Service Time (Min)]],0) -> 0 | H36: =+'Clinic Budget'!A51 -> Funded
A37: =+'Clinic Budget'!C52 -> Assessment – Uncomplicated UTI that results in a prescription | B37: =+'Service Listing'!J33 -> 20 | C37: =+'Clinic Budget'!K52 -> 0 | D37: =IFERROR(INDEX(ServListing[Time (min)],MATCH(A37,ServListing[Service],0),0),0) -> 15 | E37: =+Q1Analysis[[#This Row],['#/month]]*0.230769230769231 -> 0 | F37: =IFERROR(Q1Analysis[[#This Row],['#/month]]*Q1Analysis[[#This Row],[Revenue/Service]],0) -> 0 | G37: =IFERROR(+Q1Analysis[[#This Row],['#/week]]*Q1Analysis[[#This Row],[Service Time (Min)]],0) -> 0 | H37: =+'Clinic Budget'!A52 -> Funded
A38: =+'Clinic Budget'!C53 -> Assessment Uncomplicated UTI that does not result in a prescription | B38: =+'Service Listing'!J34 -> 20 | C38: =+'Clinic Budget'!K53 -> 0 | D38: =IFERROR(INDEX(ServListing[Time (min)],MATCH(A38,ServListing[Service],0),0),0) -> 15 | E38: =+Q1Analysis[[#This Row],['#/month]]*0.230769230769231 -> 0 | F38: =IFERROR(Q1Analysis[[#This Row],['#/month]]*Q1Analysis[[#This Row],[Revenue/Service]],0) -> 0 | G38: =IFERROR(+Q1Analysis[[#This Row],['#/week]]*Q1Analysis[[#This Row],[Service Time (Min)]],0) -> 0 | H38: =+'Clinic Budget'!A53 -> Funded
A39: =+'Clinic Budget'!C54 -> Prescribing- Lyme Chemoprophylaxis | B39: =+'Service Listing'!J35 -> 20 | C39: =+'Clinic Budget'!K54 -> 0 | D39: =IFERROR(INDEX(ServListing[Time (min)],MATCH(A39,ServListing[Service],0),0),0) -> 15 | E39: =+Q1Analysis[[#This Row],['#/month]]*0.230769230769231 -> 0 | F39: =IFERROR(Q1Analysis[[#This Row],['#/month]]*Q1Analysis[[#This Row],[Revenue/Service]],0) -> 0 | G39: =IFERROR(+Q1Analysis[[#This Row],['#/week]]*Q1Analysis[[#This Row],[Service Time (Min)]],0) -> 0 | H39: =+'Clinic Budget'!A54 -> Funded
A40: =+'Clinic Budget'!C55 -> Assessment Lyme Chemoprophylaxis that does not result in a prescription | B40: =+'Service Listing'!J36 -> 20 | C40: =+'Clinic Budget'!K55 -> 0 | D40: =IFERROR(INDEX(ServListing[Time (min)],MATCH(A40,ServListing[Service],0),0),0) -> 15 | E40: =+Q1Analysis[[#This Row],['#/month]]*0.230769230769231 -> 0 | F40: =IFERROR(Q1Analysis[[#This Row],['#/month]]*Q1Analysis[[#This Row],[Revenue/Service]],0) -> 0 | G40: =IFERROR(+Q1Analysis[[#This Row],['#/week]]*Q1Analysis[[#This Row],[Service Time (Min)]],0) -> 0 | H40: =+'Clinic Budget'!A55 -> Funded
A41: =+'Clinic Budget'!C56 -> Prescribing Herpes Zoster Tx | B41: =+'Service Listing'!J37 -> 20 | C41: =+'Clinic Budget'!K56 -> 0 | D41: =IFERROR(INDEX(ServListing[Time (min)],MATCH(A41,ServListing[Service],0),0),0) -> 15 | E41: =+Q1Analysis[[#This Row],['#/month]]*0.230769230769231 -> 0 | F41: =IFERROR(Q1Analysis[[#This Row],['#/month]]*Q1Analysis[[#This Row],[Revenue/Service]],0) -> 0 | G41: =IFERROR(+Q1Analysis[[#This Row],['#/week]]*Q1Analysis[[#This Row],[Service Time (Min)]],0) -> 0 | H41: =+'Clinic Budget'!A56 -> Funded
A42: =+'Clinic Budget'!C57 -> Assessment Herpes Zoster Tx that does not result in a prescription | B42: =+'Service Listing'!J38 -> 20 | C42: =+'Clinic Budget'!K57 -> 0 | D42: =IFERROR(INDEX(ServListing[Time (min)],MATCH(A42,ServListing[Service],0),0),0) -> 15 | E42: =+Q1Analysis[[#This Row],['#/month]]*0.230769230769231 -> 0 | F42: =IFERROR(Q1Analysis[[#This Row],['#/month]]*Q1Analysis[[#This Row],[Revenue/Service]],0) -> 0 | G42: =IFERROR(+Q1Analysis[[#This Row],['#/week]]*Q1Analysis[[#This Row],[Service Time (Min)]],0) -> 0 | H42: =+'Clinic Budget'!A57 -> Funded
A43: =+'Clinic Budget'!C58 -> Prescribing Budesonide for Covid-19 | B43: =+'Service Listing'!J39 -> 20 | C43: =+'Clinic Budget'!K58 -> 0 | D43: =IFERROR(INDEX(ServListing[Time (min)],MATCH(A43,ServListing[Service],0),0),0) -> 15 | E43: =+Q1Analysis[[#This Row],['#/month]]*0.230769230769231 -> 0 | F43: =IFERROR(Q1Analysis[[#This Row],['#/month]]*Q1Analysis[[#This Row],[Revenue/Service]],0) -> 0 | G43: =IFERROR(+Q1Analysis[[#This Row],['#/week]]*Q1Analysis[[#This Row],[Service Time (Min)]],0) -> 0 | H43: =+'Clinic Budget'!A58 -> Funded
A44: =+'Clinic Budget'!C59 -> Administration of publicly funded vaccine other than covid-19 or flu | B44: =+'Service Listing'!J40 -> 18 | C44: =+'Clinic Budget'!K59 -> 0 | D44: =IFERROR(INDEX(ServListing[Time (min)],MATCH(A44,ServListing[Service],0),0),0) -> 15 | E44: =+Q1Analysis[[#This Row],['#/month]]*0.230769230769231 -> 0 | F44: =IFERROR(Q1Analysis[[#This Row],['#/month]]*Q1Analysis[[#This Row],[Revenue/Service]],0) -> 0 | G44: =IFERROR(+Q1Analysis[[#This Row],['#/week]]*Q1Analysis[[#This Row],[Service Time (Min)]],0) -> 0 | H44: =+'Clinic Budget'!A59 -> Not Funded Eligible
A45: =+'Clinic Budget'!C60 -> Assessment and Administration of IM or SC injectable medication | B45: =+'Service Listing'!J41 -> 20 | C45: =+'Clinic Budget'!K60 -> 0 | D45: =IFERROR(INDEX(ServListing[Time (min)],MATCH(A45,ServListing[Service],0),0),0) -> 15 | E45: =+Q1Analysis[[#This Row],['#/month]]*0.230769230769231 -> 0 | F45: =IFERROR(Q1Analysis[[#This Row],['#/month]]*Q1Analysis[[#This Row],[Revenue/Service]],0) -> 0 | G45: =IFERROR(+Q1Analysis[[#This Row],['#/week]]*Q1Analysis[[#This Row],[Service Time (Min)]],0) -> 0 | H45: =+'Clinic Budget'!A60 -> Not Funded Eligible
A46: =+'Clinic Budget'!C61 -> Assessment and Administration of Anti-psychotic medications | B46: =+'Service Listing'!J42 -> 40 | C46: =+'Clinic Budget'!K61 -> 0 | D46: =IFERROR(INDEX(ServListing[Time (min)],MATCH(A46,ServListing[Service],0),0),0) -> 15 | E46: =+Q1Analysis[[#This Row],['#/month]]*0.230769230769231 -> 0 | F46: =IFERROR(Q1Analysis[[#This Row],['#/month]]*Q1Analysis[[#This Row],[Revenue/Service]],0) -> 0 | G46: =IFERROR(+Q1Analysis[[#This Row],['#/week]]*Q1Analysis[[#This Row],[Service Time (Min)]],0) -> 0 | H46: =+'Clinic Budget'!A61 -> Not Funded Eligible
A47: =+'Clinic Budget'!C62 -> Assessment and Administration of Sublocade | B47: =+'Service Listing'!J43 -> 40 | C47: =+'Clinic Budget'!K62 -> 0 | D47: =IFERROR(INDEX(ServListing[Time (min)],MATCH(A47,ServListing[Service],0),0),0) -> 15 | E47: =+Q1Analysis[[#This Row],['#/month]]*0.230769230769231 -> 0 | F47: =IFERROR(Q1Analysis[[#This Row],['#/month]]*Q1Analysis[[#This Row],[Revenue/Service]],0) -> 0 | G47: =IFERROR(+Q1Analysis[[#This Row],['#/week]]*Q1Analysis[[#This Row],[Service Time (Min)]],0) -> 0 | H47: =+'Clinic Budget'!A62 -> Not Funded Eligible
A48: =+'Clinic Budget'!C63 -> Deprescribing -PPI Non Project Participants Initial Assessment | B48: =+'Service Listing'!J44 -> 52.5 | C48: =+'Clinic Budget'!K63 -> 0 | D48: =IFERROR(INDEX(ServListing[Time (min)],MATCH(A48,ServListing[Service],0),0),0) -> 30 | E48: =+Q1Analysis[[#This Row],['#/month]]*0.230769230769231 -> 0 | F48: =IFERROR(Q1Analysis[[#This Row],['#/month]]*Q1Analysis[[#This Row],[Revenue/Service]],0) -> 0 | G48: =IFERROR(+Q1Analysis[[#This Row],['#/week]]*Q1Analysis[[#This Row],[Service Time (Min)]],0) -> 0 | H48: =+'Clinic Budget'!A63 -> Not Funded Eligible
A49: =+'Clinic Budget'!C64 -> Deprescribing PPI Follow-ups- Early (limit of 2) Non Project participants | B49: =+'Service Listing'!J45 -> 20 | C49: =+'Clinic Budget'!K64 -> 0 | D49: =IFERROR(INDEX(ServListing[Time (min)],MATCH(A49,ServListing[Service],0),0),0) -> 15 | E49: =+Q1Analysis[[#This Row],['#/month]]*0.230769230769231 -> 0 | F49: =IFERROR(Q1Analysis[[#This Row],['#/month]]*Q1Analysis[[#This Row],[Revenue/Service]],0) -> 0 | G49: =IFERROR(+Q1Analysis[[#This Row],['#/week]]*Q1Analysis[[#This Row],[Service Time (Min)]],0) -> 0 | H49: =+'Clinic Budget'!A64 -> Not Funded Eligible
A50: =+'Clinic Budget'!C65 -> Deprescribing BZRA Non Project Participants Initial Assessment | B50: =+'Service Listing'!J46 -> 150 | C50: =+'Clinic Budget'!K65 -> 0 | D50: =IFERROR(INDEX(ServListing[Time (min)],MATCH(A50,ServListing[Service],0),0),0) -> 60 | E50: =+Q1Analysis[[#This Row],['#/month]]*0.230769230769231 -> 0 | F50: =IFERROR(Q1Analysis[[#This Row],['#/month]]*Q1Analysis[[#This Row],[Revenue/Service]],0) -> 0 | G50: =IFERROR(+Q1Analysis[[#This Row],['#/week]]*Q1Analysis[[#This Row],[Service Time (Min)]],0) -> 0 | H50: =+'Clinic Budget'!A65 -> Not Funded Eligible
A51: =+'Clinic Budget'!C66 -> Deprescribing BZRA Follow-ups- Early (limit of 2) Non Project participants | B51: =+'Service Listing'!J47 -> 20 | C51: =+'Clinic Budget'!K66 -> 0 | D51: =IFERROR(INDEX(ServListing[Time (min)],MATCH(A51,ServListing[Service],0),0),0) -> 15 | E51: =+Q1Analysis[[#This Row],['#/month]]*0.230769230769231 -> 0 | F51: =IFERROR(Q1Analysis[[#This Row],['#/month]]*Q1Analysis[[#This Row],[Revenue/Service]],0) -> 0 | G51: =IFERROR(+Q1Analysis[[#This Row],['#/week]]*Q1Analysis[[#This Row],[Service Time (Min)]],0) -> 0 | H51: =+'Clinic Budget'!A66 -> Not Funded Eligible
A52: =+'Clinic Budget'!C67 -> Deprescribing BZRA Follow-ups Later (limit of 5 for BZRA only) Non-Project Participants | B52: =+'Service Listing'!J48 -> 12 | C52: =+'Clinic Budget'!K67 -> 0 | D52: =IFERROR(INDEX(ServListing[Time (min)],MATCH(A52,ServListing[Service],0),0),0) -> 15 | E52: =+Q1Analysis[[#This Row],['#/month]]*0.230769230769231 -> 0 | F52: =IFERROR(Q1Analysis[[#This Row],['#/month]]*Q1Analysis[[#This Row],[Revenue/Service]],0) -> 0 | G52: =IFERROR(+Q1Analysis[[#This Row],['#/week]]*Q1Analysis[[#This Row],[Service Time (Min)]],0) -> 0 | H52: =+'Clinic Budget'!A67 -> Not Funded Eligible
A53: =+'Clinic Budget'!C68 -> Complex Medication Therapy Assessment | B53: =+'Service Listing'!J49 -> 37.5 | C53: =+'Clinic Budget'!K68 -> 0 | D53: =IFERROR(INDEX(ServListing[Time (min)],MATCH(A53,ServListing[Service],0),0),0) -> 15 | E53: =+Q1Analysis[[#This Row],['#/month]]*0.230769230769231 -> 0 | F53: =IFERROR(Q1Analysis[[#This Row],['#/month]]*Q1Analysis[[#This Row],[Revenue/Service]],0) -> 0 | G53: =IFERROR(+Q1Analysis[[#This Row],['#/week]]*Q1Analysis[[#This Row],[Service Time (Min)]],0) -> 0 | H53: =+'Clinic Budget'!A68 -> Not Funded Eligible
A54: =+'Clinic Budget'!C69 -> Hypertension Project Initial Assessment | B54: =+'Service Listing'!J50 -> 125 | C54: =+'Clinic Budget'!K69 -> 0 | D54: =IFERROR(INDEX(ServListing[Time (min)],MATCH(A54,ServListing[Service],0),0),0) -> 60 | E54: =+Q1Analysis[[#This Row],['#/month]]*0.230769230769231 -> 0 | F54: =IFERROR(Q1Analysis[[#This Row],['#/month]]*Q1Analysis[[#This Row],[Revenue/Service]],0) -> 0 | G54: =IFERROR(+Q1Analysis[[#This Row],['#/week]]*Q1Analysis[[#This Row],[Service Time (Min)]],0) -> 0 | H54: =+'Clinic Budget'!A69 -> Not Funded Eligible
A55: =+'Clinic Budget'!C70 -> Hypertension Project Follow-ups | B55: =+'Service Listing'!J51 -> 20 | C55: =+'Clinic Budget'!K70 -> 0 | D55: =IFERROR(INDEX(ServListing[Time (min)],MATCH(A55,ServListing[Service],0),0),0) -> 15 | E55: =+Q1Analysis[[#This Row],['#/month]]*0.230769230769231 -> 0 | F55: =IFERROR(Q1Analysis[[#This Row],['#/month]]*Q1Analysis[[#This Row],[Revenue/Service]],0) -> 0 | G55: =IFERROR(+Q1Analysis[[#This Row],['#/week]]*Q1Analysis[[#This Row],[Service Time (Min)]],0) -> 0 | H55: =+'Clinic Budget'!A70 -> Not Funded Eligible
A56: =+'Clinic Budget'!C71 -> Prescribing with a diagnosis as per NSCP standard in collaboration with another provider | B56: =+'Service Listing'!J52 -> 25 | C56: =+'Clinic Budget'!K71 -> 0 | D56: =IFERROR(INDEX(ServListing[Time (min)],MATCH(A56,ServListing[Service],0),0),0) -> 15 | E56: =+Q1Analysis[[#This Row],['#/month]]*0.230769230769231 -> 0 | F56: =IFERROR(Q1Analysis[[#This Row],['#/month]]*Q1Analysis[[#This Row],[Revenue/Service]],0) -> 0 | G56: =IFERROR(+Q1Analysis[[#This Row],['#/week]]*Q1Analysis[[#This Row],[Service Time (Min)]],0) -> 0 | H56: =+'Clinic Budget'!A71 -> Not Funded Eligible
A57: =+'Clinic Budget'!C72 -> Chronic Disease Management – Diabetes – Initial/Annual assessment | B57: =+'Service Listing'!J53 -> 125 | C57: =+'Clinic Budget'!K72 -> 0 | D57: =IFERROR(INDEX(ServListing[Time (min)],MATCH(A57,ServListing[Service],0),0),0) -> 60 | E57: =+Q1Analysis[[#This Row],['#/month]]*0.230769230769231 -> 0 | F57: =IFERROR(Q1Analysis[[#This Row],['#/month]]*Q1Analysis[[#This Row],[Revenue/Service]],0) -> 0 | G57: =IFERROR(+Q1Analysis[[#This Row],['#/week]]*Q1Analysis[[#This Row],[Service Time (Min)]],0) -> 0 | H57: =+'Clinic Budget'!A72 -> Not Funded Eligible
A58: =+'Clinic Budget'!C73 -> Chronic Disease Diabetes Management - Follow-up (up to 5 per year) | B58: =+'Service Listing'!J54 -> 20 | C58: =+'Clinic Budget'!K73 -> 0 | D58: =IFERROR(INDEX(ServListing[Time (min)],MATCH(A58,ServListing[Service],0),0),0) -> 15 | E58: =+Q1Analysis[[#This Row],['#/month]]*0.230769230769231 -> 0 | F58: =IFERROR(Q1Analysis[[#This Row],['#/month]]*Q1Analysis[[#This Row],[Revenue/Service]],0) -> 0 | G58: =IFERROR(+Q1Analysis[[#This Row],['#/week]]*Q1Analysis[[#This Row],[Service Time (Min)]],0) -> 0 | H58: =+'Clinic Budget'!A73 -> Not Funded Eligible
A59: =+'Clinic Budget'!C74 -> Chronic Disease Management – Lung Disease Asthma/COPD) Initial/Annual Assessment | B59: =+'Service Listing'!J55 -> 125 | C59: =+'Clinic Budget'!K74 -> 0 | D59: =IFERROR(INDEX(ServListing[Time (min)],MATCH(A59,ServListing[Service],0),0),0) -> 60 | E59: =+Q1Analysis[[#This Row],['#/month]]*0.230769230769231 -> 0 | F59: =IFERROR(Q1Analysis[[#This Row],['#/month]]*Q1Analysis[[#This Row],[Revenue/Service]],0) -> 0 | G59: =IFERROR(+Q1Analysis[[#This Row],['#/week]]*Q1Analysis[[#This Row],[Service Time (Min)]],0) -> 0 | H59: =+'Clinic Budget'!A74 -> Not Funded Eligible
A60: =+'Clinic Budget'!C75 -> Chronic Disease Management – Lung Disease Follow-up (up to 5 per year | B60: =+'Service Listing'!J56 -> 20 | C60: =+'Clinic Budget'!K75 -> 0 | D60: =IFERROR(INDEX(ServListing[Time (min)],MATCH(A60,ServListing[Service],0),0),0) -> 15 | E60: =+Q1Analysis[[#This Row],['#/month]]*0.230769230769231 -> 0 | F60: =IFERROR(Q1Analysis[[#This Row],['#/month]]*Q1Analysis[[#This Row],[Revenue/Service]],0) -> 0 | G60: =IFERROR(+Q1Analysis[[#This Row],['#/week]]*Q1Analysis[[#This Row],[Service Time (Min)]],0) -> 0 | H60: =+'Clinic Budget'!A75 -> Not Funded Eligible
A61: =+'Clinic Budget'!C76 -> Chronic Disease Management -Cardiovascular Disease Initial/Annual Assessment | B61: =+'Service Listing'!J57 -> 125 | C61: =+'Clinic Budget'!K76 -> 0 | D61: =IFERROR(INDEX(ServListing[Time (min)],MATCH(A61,ServListing[Service],0),0),0) -> 60 | E61: =+Q1Analysis[[#This Row],['#/month]]*0.230769230769231 -> 0 | F61: =IFERROR(Q1Analysis[[#This Row],['#/month]]*Q1Analysis[[#This Row],[Revenue/Service]],0) -> 0 | G61: =IFERROR(+Q1Analysis[[#This Row],['#/week]]*Q1Analysis[[#This Row],[Service Time (Min)]],0) -> 0 | H61: =+'Clinic Budget'!A76 -> Not Funded Eligible
A62: =+'Clinic Budget'!C77 -> Chronic Disease Management Cardiovascular Disease Follow-up (up to 5 per year) | B62: =+'Service Listing'!J58 -> 20 | C62: =+'Clinic Budget'!K77 -> 0 | D62: =IFERROR(INDEX(ServListing[Time (min)],MATCH(A62,ServListing[Service],0),0),0) -> 15 | E62: =+Q1Analysis[[#This Row],['#/month]]*0.230769230769231 -> 0 | F62: =IFERROR(Q1Analysis[[#This Row],['#/month]]*Q1Analysis[[#This Row],[Revenue/Service]],0) -> 0 | G62: =IFERROR(+Q1Analysis[[#This Row],['#/week]]*Q1Analysis[[#This Row],[Service Time (Min)]],0) -> 0 | H62: =+'Clinic Budget'!A77 -> Not Funded Eligible
A63: =+'Clinic Budget'!C78 -> Tobacco Use Reduction Program – Initial Assessment and Discussion | B63: =+'Service Listing'!J59 -> 40 | C63: =+'Clinic Budget'!K78 -> 0 | D63: =IFERROR(INDEX(ServListing[Time (min)],MATCH(A63,ServListing[Service],0),0),0) -> 60 | E63: =+Q1Analysis[[#This Row],['#/month]]*0.230769230769231 -> 0 | F63: =IFERROR(Q1Analysis[[#This Row],['#/month]]*Q1Analysis[[#This Row],[Revenue/Service]],0) -> 0 | G63: =IFERROR(+Q1Analysis[[#This Row],['#/week]]*Q1Analysis[[#This Row],[Service Time (Min)]],0) -> 0 | H63: =+'Clinic Budget'!A78 -> Not Funded Eligible
A64: =+'Clinic Budget'!C79 -> Tobacco Use Reduction Program – Follow-up 1-3 | B64: =+'Service Listing'!J60 -> 15 | C64: =+'Clinic Budget'!K79 -> 0 | D64: =IFERROR(INDEX(ServListing[Time (min)],MATCH(A64,ServListing[Service],0),0),0) -> 15 | E64: =+Q1Analysis[[#This Row],['#/month]]*0.230769230769231 -> 0 | F64: =IFERROR(Q1Analysis[[#This Row],['#/month]]*Q1Analysis[[#This Row],[Revenue/Service]],0) -> 0 | G64: =IFERROR(+Q1Analysis[[#This Row],['#/week]]*Q1Analysis[[#This Row],[Service Time (Min)]],0) -> 0 | H64: =+'Clinic Budget'!A79 -> Not Funded Eligible
A65: =+'Clinic Budget'!C80 -> Tobacco Use Reduction Program –Follow-up 4-7 | B65: =+'Service Listing'!J61 -> 10 | C65: =+'Clinic Budget'!K80 -> 0 | D65: =IFERROR(INDEX(ServListing[Time (min)],MATCH(A65,ServListing[Service],0),0),0) -> 15 | E65: =+Q1Analysis[[#This Row],['#/month]]*0.230769230769231 -> 0 | F65: =IFERROR(Q1Analysis[[#This Row],['#/month]]*Q1Analysis[[#This Row],[Revenue/Service]],0) -> 0 | G65: =IFERROR(+Q1Analysis[[#This Row],['#/week]]*Q1Analysis[[#This Row],[Service Time (Min)]],0) -> 0 | H65: =+'Clinic Budget'!A80 -> Not Funded Eligible
A66: =+'Clinic Budget'!C81 -> Renewal Assessment that does not result in a prescription | B66: =+'Service Listing'!J62 -> 12 | C66: =+'Clinic Budget'!K81 -> 0 | D66: =IFERROR(INDEX(ServListing[Time (min)],MATCH(A66,ServListing[Service],0),0),0) -> 15 | E66: =+Q1Analysis[[#This Row],['#/month]]*0.230769230769231 -> 0 | F66: =IFERROR(Q1Analysis[[#This Row],['#/month]]*Q1Analysis[[#This Row],[Revenue/Service]],0) -> 0 | G66: =IFERROR(+Q1Analysis[[#This Row],['#/week]]*Q1Analysis[[#This Row],[Service Time (Min)]],0) -> 0 | H66: =+'Clinic Budget'!A81 -> Not Funded Eligible
A67: =+'Clinic Budget'!C82 -> Prescription Adaptation Refusal to Fill | B67: =+'Service Listing'!J63 -> 14 | C67: =+'Clinic Budget'!K82 -> 0 | D67: =IFERROR(INDEX(ServListing[Time (min)],MATCH(A67,ServListing[Service],0),0),0) -> 15 | E67: =+Q1Analysis[[#This Row],['#/month]]*0.230769230769231 -> 0 | F67: =IFERROR(Q1Analysis[[#This Row],['#/month]]*Q1Analysis[[#This Row],[Revenue/Service]],0) -> 0 | G67: =IFERROR(+Q1Analysis[[#This Row],['#/week]]*Q1Analysis[[#This Row],[Service Time (Min)]],0) -> 0 | H67: =+'Clinic Budget'!A82 -> Not Funded Eligible
A68: =+'Clinic Budget'!C83 -> Prescription Adaptation -Other | B68: =+'Service Listing'!J64 -> 14 | C68: =+'Clinic Budget'!K83 -> 0 | D68: =IFERROR(INDEX(ServListing[Time (min)],MATCH(A68,ServListing[Service],0),0),0) -> 15 | E68: =+Q1Analysis[[#This Row],['#/month]]*0.230769230769231 -> 0 | F68: =IFERROR(Q1Analysis[[#This Row],['#/month]]*Q1Analysis[[#This Row],[Revenue/Service]],0) -> 0 | G68: =IFERROR(+Q1Analysis[[#This Row],['#/week]]*Q1Analysis[[#This Row],[Service Time (Min)]],0) -> 0 | H68: =+'Clinic Budget'!A83 -> Not Funded Eligible
A69: =+'Clinic Budget'!C84 -> Therapeutic Substitution – PPI | B69: =+'Service Listing'!J65 -> 26.5 | C69: =+'Clinic Budget'!K84 -> 0 | D69: =IFERROR(INDEX(ServListing[Time (min)],MATCH(A69,ServListing[Service],0),0),0) -> 15 | E69: =+Q1Analysis[[#This Row],['#/month]]*0.230769230769231 -> 0 | F69: =IFERROR(Q1Analysis[[#This Row],['#/month]]*Q1Analysis[[#This Row],[Revenue/Service]],0) -> 0 | G69: =IFERROR(+Q1Analysis[[#This Row],['#/week]]*Q1Analysis[[#This Row],[Service Time (Min)]],0) -> 0 | H69: =+'Clinic Budget'!A84 -> Not Funded Eligible
A70: =+'Clinic Budget'!C85 -> Therapeutic Sub- Other Circumstances | B70: =+'Service Listing'!J66 -> 26.5 | C70: =+'Clinic Budget'!K85 -> 0 | D70: =IFERROR(INDEX(ServListing[Time (min)],MATCH(A70,ServListing[Service],0),0),0) -> 15 | E70: =+Q1Analysis[[#This Row],['#/month]]*0.230769230769231 -> 0 | F70: =IFERROR(Q1Analysis[[#This Row],['#/month]]*Q1Analysis[[#This Row],[Revenue/Service]],0) -> 0 | G70: =IFERROR(+Q1Analysis[[#This Row],['#/week]]*Q1Analysis[[#This Row],[Service Time (Min)]],0) -> 0 | H70: =+'Clinic Budget'!A85 -> Not Funded Eligible
A71: =+'Clinic Budget'!C86 -> Prescribing in an Emergency | B71: =+'Service Listing'!J67 -> 28 | C71: =+'Clinic Budget'!K86 -> 0 | D71: =IFERROR(INDEX(ServListing[Time (min)],MATCH(A71,ServListing[Service],0),0),0) -> 15 | E71: =+Q1Analysis[[#This Row],['#/month]]*0.230769230769231 -> 0 | F71: =IFERROR(Q1Analysis[[#This Row],['#/month]]*Q1Analysis[[#This Row],[Revenue/Service]],0) -> 0 | G71: =IFERROR(+Q1Analysis[[#This Row],['#/week]]*Q1Analysis[[#This Row],[Service Time (Min)]],0) -> 0 | H71: =+'Clinic Budget'!A86 -> Not Funded Eligible
A72: =+'Clinic Budget'!C87 -> Pharmacist independent prescribing with diagnosis confirmed by pharmacist (Diabetes, Lung, CVD only). NSCP Study | B72: =+'Service Listing'!J68 -> 25 | C72: =+'Clinic Budget'!K87 -> 0 | D72: =IFERROR(INDEX(ServListing[Time (min)],MATCH(A72,ServListing[Service],0),0),0) -> 15 | E72: =+Q1Analysis[[#This Row],['#/month]]*0.230769230769231 -> 0 | F72: =IFERROR(Q1Analysis[[#This Row],['#/month]]*Q1Analysis[[#This Row],[Revenue/Service]],0) -> 0 | G72: =IFERROR(+Q1Analysis[[#This Row],['#/week]]*Q1Analysis[[#This Row],[Service Time (Min)]],0) -> 0 | H72: =+'Clinic Budget'!A87 -> Not Funded Eligible
A73: =+'Clinic Budget'!C88 -> Prescribing for a Minor Ailment (as per Appendix 6) | B73: =+'Service Listing'!J69 -> 25 | C73: =+'Clinic Budget'!K88 -> 0 | D73: =IFERROR(INDEX(ServListing[Time (min)],MATCH(A73,ServListing[Service],0),0),0) -> 15 | E73: =+Q1Analysis[[#This Row],['#/month]]*0.230769230769231 -> 0 | F73: =IFERROR(Q1Analysis[[#This Row],['#/month]]*Q1Analysis[[#This Row],[Revenue/Service]],0) -> 0 | G73: =IFERROR(+Q1Analysis[[#This Row],['#/week]]*Q1Analysis[[#This Row],[Service Time (Min)]],0) -> 0 | H73: =+'Clinic Budget'!A88 -> Not Funded Eligible
A74: =+'Clinic Budget'!C89 -> Assessment, Point of Care Testing For Group A Strep that results in a prescription | B74: =+'Service Listing'!J70 -> 35 | C74: =+'Clinic Budget'!K89 -> 0 | D74: =IFERROR(INDEX(ServListing[Time (min)],MATCH(A74,ServListing[Service],0),0),0) -> 15 | E74: =+Q1Analysis[[#This Row],['#/month]]*0.230769230769231 -> 0 | F74: =IFERROR(Q1Analysis[[#This Row],['#/month]]*Q1Analysis[[#This Row],[Revenue/Service]],0) -> 0 | G74: =IFERROR(+Q1Analysis[[#This Row],['#/week]]*Q1Analysis[[#This Row],[Service Time (Min)]],0) -> 0 | H74: =+'Clinic Budget'!A89 -> Not Funded Eligible
A75: =+'Clinic Budget'!C90 -> Assessment Group A Strep that does not result in an RX | B75: =+'Service Listing'!J71 -> 20 | C75: =+'Clinic Budget'!K90 -> 0 | D75: =IFERROR(INDEX(ServListing[Time (min)],MATCH(A75,ServListing[Service],0),0),0) -> 15 | E75: =+Q1Analysis[[#This Row],['#/month]]*0.230769230769231 -> 0 | F75: =IFERROR(Q1Analysis[[#This Row],['#/month]]*Q1Analysis[[#This Row],[Revenue/Service]],0) -> 0 | G75: =IFERROR(+Q1Analysis[[#This Row],['#/week]]*Q1Analysis[[#This Row],[Service Time (Min)]],0) -> 0 | H75: =+'Clinic Budget'!A90 -> Not Funded Eligible
A76: =+'Clinic Budget'!C91 -> Point of Care Test A1C | B76: =+'Service Listing'!J72 -> 25 | C76: =+'Clinic Budget'!K91 -> 0 | D76: =IFERROR(INDEX(ServListing[Time (min)],MATCH(A76,ServListing[Service],0),0),0) -> 15 | E76: =+Q1Analysis[[#This Row],['#/month]]*0.230769230769231 -> 0 | F76: =IFERROR(Q1Analysis[[#This Row],['#/month]]*Q1Analysis[[#This Row],[Revenue/Service]],0) -> 0 | G76: =IFERROR(+Q1Analysis[[#This Row],['#/week]]*Q1Analysis[[#This Row],[Service Time (Min)]],0) -> 0 | H76: =+'Clinic Budget'!A91 -> Not Funded Eligible
A77: =+'Clinic Budget'!C92 -> Point of Care Test Cholesterol | B77: =+'Service Listing'!J73 -> 25 | C77: =+'Clinic Budget'!K92 -> 0 | D77: =IFERROR(INDEX(ServListing[Time (min)],MATCH(A77,ServListing[Service],0),0),0) -> 15 | E77: =+Q1Analysis[[#This Row],['#/month]]*0.230769230769231 -> 0 | F77: =IFERROR(Q1Analysis[[#This Row],['#/month]]*Q1Analysis[[#This Row],[Revenue/Service]],0) -> 0 | G77: =IFERROR(+Q1Analysis[[#This Row],['#/week]]*Q1Analysis[[#This Row],[Service Time (Min)]],0) -> 0 | H77: =+'Clinic Budget'!A92 -> Not Funded Eligible
A78: =+'Clinic Budget'!C93 -> Administration of non-publicly funded vaccines | B78: =+'Service Listing'!J74 -> 20 | C78: =+'Clinic Budget'!K93 -> 0 | D78: =IFERROR(INDEX(ServListing[Time (min)],MATCH(A78,ServListing[Service],0),0),0) -> 7.5 | E78: =+Q1Analysis[[#This Row],['#/month]]*0.230769230769231 -> 0 | F78: =IFERROR(Q1Analysis[[#This Row],['#/month]]*Q1Analysis[[#This Row],[Revenue/Service]],0) -> 0 | G78: =IFERROR(+Q1Analysis[[#This Row],['#/week]]*Q1Analysis[[#This Row],[Service Time (Min)]],0) -> 0 | H78: =+'Clinic Budget'!A93 -> Not Funded Not Eligible
A79: =+'Clinic Budget'!C94 -> Comprehensive Travel Health Consultation | B79: =+'Service Listing'!J75 -> Fee Set by Site | C79: =+'Clinic Budget'!K94 -> 0 | D79: =IFERROR(INDEX(ServListing[Time (min)],MATCH(A79,ServListing[Service],0),0),0) -> 30 | E79: =+Q1Analysis[[#This Row],['#/month]]*0.230769230769231 -> 0 | F79: =IFERROR(Q1Analysis[[#This Row],['#/month]]*Q1Analysis[[#This Row],[Revenue/Service]],0) -> 0 | G79: =IFERROR(+Q1Analysis[[#This Row],['#/week]]*Q1Analysis[[#This Row],[Service Time (Min)]],0) -> 0 | H79: =+'Clinic Budget'!A94 -> Not Funded Not Eligible
A80: =+'Clinic Budget'!C95 -> Pharmacogenomic Consultation Service | B80: =+'Service Listing'!J76 -> Fee Set by Site | C80: =+'Clinic Budget'!K95 -> 0 | D80: =IFERROR(INDEX(ServListing[Time (min)],MATCH(A80,ServListing[Service],0),0),0) -> 30 | E80: =+Q1Analysis[[#This Row],['#/month]]*0.230769230769231 -> 0 | F80: =IFERROR(Q1Analysis[[#This Row],['#/month]]*Q1Analysis[[#This Row],[Revenue/Service]],0) -> 0 | G80: =IFERROR(+Q1Analysis[[#This Row],['#/week]]*Q1Analysis[[#This Row],[Service Time (Min)]],0) -> 0 | H80: =+'Clinic Budget'!A95 -> Not Funded Not Eligible
A81: =+'Clinic Budget'!C96 -> Malaria Chemoprophylaxis Assessment and Prescribing | B81: =+'Service Listing'!J77 -> Fee Set by Site | C81: =+'Clinic Budget'!K96 -> 0 | D81: =IFERROR(INDEX(ServListing[Time (min)],MATCH(A81,ServListing[Service],0),0),0) -> 30 | E81: =+Q1Analysis[[#This Row],['#/month]]*0.230769230769231 -> 0 | F81: =IFERROR(Q1Analysis[[#This Row],['#/month]]*Q1Analysis[[#This Row],[Revenue/Service]],0) -> 0 | G81: =IFERROR(+Q1Analysis[[#This Row],['#/week]]*Q1Analysis[[#This Row],[Service Time (Min)]],0) -> 0 | H81: =+'Clinic Budget'!A96 -> Not Funded Not Eligible
A82: =+'Clinic Budget'!C97 -> Any Service for a Patient without an NS Health card that is not covered for out of province patients | B82: =+'Service Listing'!J78 -> Fee Set by Site | C82: =+'Clinic Budget'!K97 -> 0 | D82: =IFERROR(INDEX(ServListing[Time (min)],MATCH(A82,ServListing[Service],0),0),0) -> 15 | E82: =+Q1Analysis[[#This Row],['#/month]]*0.230769230769231 -> 0 | F82: =IFERROR(Q1Analysis[[#This Row],['#/month]]*Q1Analysis[[#This Row],[Revenue/Service]],0) -> 0 | G82: =IFERROR(+Q1Analysis[[#This Row],['#/week]]*Q1Analysis[[#This Row],[Service Time (Min)]],0) -> 0 | H82: =+'Clinic Budget'!A97 -> Not Funded Not Eligible
A83: =+'Service Listing'!$C$79 -> Rapid Antigen Testing Travel Test | B83: =+'Service Listing'!J79 -> 40 | C83: =+'Clinic Budget'!K98 -> 0 | D83: =IFERROR(INDEX(ServListing[Time (min)],MATCH(A83,ServListing[Service],0),0),0) -> 15 | E83: =+Q1Analysis[[#This Row],['#/month]]*0.230769230769231 -> 0 | F83: =IFERROR(Q1Analysis[[#This Row],['#/month]]*Q1Analysis[[#This Row],[Revenue/Service]],0) -> 0 | G83: =IFERROR(+Q1Analysis[[#This Row],['#/week]]*Q1Analysis[[#This Row],[Service Time (Min)]],0) -> 0 | H83: =+'Clinic Budget'!A98 -> Not Funded Not Eligible
A84: =+'Service Listing'!$C$80 -> Other: | B84: =+'Service Listing'!J80 -> Fee Set by Site | C84: =+'Clinic Budget'!K99 -> 0 | D84: =IFERROR(INDEX(ServListing[Time (min)],MATCH(A84,ServListing[Service],0),0),0) -> 15 | E84: =+Q1Analysis[[#This Row],['#/month]]*0.230769230769231 -> 0 | F84: =IFERROR(Q1Analysis[[#This Row],['#/month]]*Q1Analysis[[#This Row],[Revenue/Service]],0) -> 0 | G84: =IFERROR(+Q1Analysis[[#This Row],['#/week]]*Q1Analysis[[#This Row],[Service Time (Min)]],0) -> 0 | H84: =+'Clinic Budget'!A99 -> Not Funded Not Eligible
A85: =+'Service Listing'!$C$81 -> Other: | B85: =+'Service Listing'!J81 -> Fee Set by Site | C85: =+'Clinic Budget'!K100 -> 0 | D85: =IFERROR(INDEX(ServListing[Time (min)],MATCH(A85,ServListing[Service],0),0),0) -> 15 | E85: =+Q1Analysis[[#This Row],['#/month]]*0.230769230769231 -> 0 | F85: =IFERROR(Q1Analysis[[#This Row],['#/month]]*Q1Analysis[[#This Row],[Revenue/Service]],0) -> 0 | G85: =IFERROR(+Q1Analysis[[#This Row],['#/week]]*Q1Analysis[[#This Row],[Service Time (Min)]],0) -> 0 | H85: =+'Clinic Budget'!A100 -> Not Funded Not Eligible
A86: *CPAMS Initial Appointments | B86: N/A | C86: =+Assumptions!L12/3 -> 0 | D86: =+D87*2 -> 30 | E86: =+Q1Analysis[[#This Row],['#/month]]*0.230769230769231 -> 0 | F86: =IFERROR(Q1Analysis[[#This Row],['#/month]]*Q1Analysis[[#This Row],[Revenue/Service]],0) -> 0 | G86: =IFERROR(+Q1Analysis[[#This Row],['#/week]]*Q1Analysis[[#This Row],[Service Time (Min)]],0) -> 0 | H86: N/A
A87: *CPAMS Surplus Appointments | B87: N/A | C87: 0 | D87: =+'Service Listing'!$F$3 -> 15 | E87: =+Q1Analysis[[#This Row],['#/month]]*0.230769230769231 -> 0 | F87: =IFERROR(Q1Analysis[[#This Row],['#/month]]*Q1Analysis[[#This Row],[Revenue/Service]],0) -> 0 | G87: =IFERROR(+Q1Analysis[[#This Row],['#/week]]*Q1Analysis[[#This Row],[Service Time (Min)]],0) -> 0 | H87: N/A
A88: *Bloom Initial Assessments Appoint | B88: N/A | C88: 0 | D88: =+D89*4 -> 60 | E88: =+Q1Analysis[[#This Row],['#/month]]*0.230769230769231 -> 0 | F88: =IFERROR(Q1Analysis[[#This Row],['#/month]]*Q1Analysis[[#This Row],[Revenue/Service]],0) -> 0 | G88: =IFERROR(+Q1Analysis[[#This Row],['#/week]]*Q1Analysis[[#This Row],[Service Time (Min)]],0) -> 0 | H88: N/A
A89: *Bloom Surplus Appointments | B89: N/A | C89: 0 | D89: =+'Service Listing'!$F$3 -> 15 | E89: =+Q1Analysis[[#This Row],['#/month]]*0.230769230769231 -> 0 | F89: =IFERROR(Q1Analysis[[#This Row],['#/month]]*Q1Analysis[[#This Row],[Revenue/Service]],0) -> 0 | G89: =IFERROR(+Q1Analysis[[#This Row],['#/week]]*Q1Analysis[[#This Row],[Service Time (Min)]],0) -> 0 | H89: N/A
A90: Total | F90: =SUBTOTAL(109,Q1Analysis[Monthly Revenue per Service]) -> 0 | G90: =SUBTOTAL(109,Q1Analysis[Weekly Time Needed (min)]) -> 0

Sheet Q2 Monthly Analysis
A1: Community Pharmacy Primary Care Clinic - Q2 Average Monthly Service
A3: Clinic Revenue PER MONTH ON PAPER | C3: =+Q2Analysis[[#Totals],[Monthly Revenue per Service]] -> 0 | E3: Funded Revenue | H3: =+GETPIVOTDATA("Monthly Revenue per Service",Q2PVTTable!$A$3,"Funding Category","Funded") -> 6738.916667
A4: Minutes Available Per Week (7.5 hours/day) | C4: =60*'Service Listing'!$F$2*5 -> 2250 | E4: Actual Not Funded Eligible | H4: =+GETPIVOTDATA("Monthly Revenue per Service",Q2PVTTable!$A$3,"Funding Category","Not Funded Eligible") -> 8384.895
A5: Time/Week Needed for Services*** | C5: =+Q2Analysis[[#Totals],[Weekly Time Needed (min)]] -> 0 | E5: Not Funded Eligible Payment | H5: 7000
A6: Time Gap | C6: =+C4-C5 -> 2250 | E6: Not Funded Not Eligible | H6: =+GETPIVOTDATA("Monthly Revenue per Service",Q2PVTTable!$A$3,"Funding Category","Not Funded Not Eligible") -> 300
A7: *** Review bottom rows of table to add non-funded appointments | E7: Total Actual Revenue | H7: =+H6+H5+H3 -> 14038.91667
A9: Service | B9: Revenue/Service | C9: #/month | D9: Service Time (Min) | E9: #/week | F9: Monthly Revenue per Service | G9: Weekly Time Needed (min) | H9: Funding Category
A10: =+'Clinic Budget'!C25 -> Covid-19 Vaccine Administration Fee | B10: =+'Service Listing'!J6 -> 18 | C10: =+'Clinic Budget'!N25 -> 0 | D10: =IFERROR(INDEX(ServListing[Time (min)],MATCH(A10,ServListing[Service],0),0),0) -> 7.5 | E10: =+Q2Analysis[[#This Row],['#/month]]*0.230769230769231 -> 0 | F10: =IFERROR(Q2Analysis[[#This Row],['#/month]]*Q2Analysis[[#This Row],[Revenue/Service]],0) -> 0 | G10: =+Q2Analysis[[#This Row],['#/week]]*Q2Analysis[[#This Row],[Service Time (Min)]] -> 0 | H10: =+'Clinic Budget'!A25 -> Funded
A11: =+'Clinic Budget'!C26 -> Influenza Vaccine Admin Fee* | B11: =+'Service Listing'!J7 -> 12.8 | C11: =+'Clinic Budget'!N26 -> 0 | D11: =IFERROR(INDEX(ServListing[Time (min)],MATCH(A11,ServListing[Service],0),0),0) -> 7.5 | E11: =+Q2Analysis[[#This Row],['#/month]]*0.230769230769231 -> 0 | F11: =IFERROR(Q2Analysis[[#This Row],['#/month]]*Q2Analysis[[#This Row],[Revenue/Service]],0) -> 0 | G11: =+Q2Analysis[[#This Row],['#/week]]*Q2Analysis[[#This Row],[Service Time (Min)]] -> 0 | H11: =+'Clinic Budget'!A26 -> Funded
A12: =+'Clinic Budget'!C27 -> Prescribing Contraception Initial Assessment that results in a prescription | B12: =+'Service Listing'!J8 -> 20 | C12: =+'Clinic Budget'!N27 -> 0 | D12: =IFERROR(INDEX(ServListing[Time (min)],MATCH(A12,ServListing[Service],0),0),0) -> 30 | E12: =+Q2Analysis[[#This Row],['#/month]]*0.230769230769231 -> 0 | F12: =IFERROR(Q2Analysis[[#This Row],['#/month]]*Q2Analysis[[#This Row],[Revenue/Service]],0) -> 0 | G12: =+Q2Analysis[[#This Row],['#/week]]*Q2Analysis[[#This Row],[Service Time (Min)]] -> 0 | H12: =+'Clinic Budget'!A27 -> Funded
A13: =+'Clinic Budget'!C28 -> Prescribing Contraception Initial Assessment that does not result in a prescription | B13: =+'Service Listing'!J9 -> 20 | C13: =+'Clinic Budget'!N28 -> 0 | D13: =IFERROR(INDEX(ServListing[Time (min)],MATCH(A13,ServListing[Service],0),0),0) -> 30 | E13: =+Q2Analysis[[#This Row],['#/month]]*0.230769230769231 -> 0 | F13: =IFERROR(Q2Analysis[[#This Row],['#/month]]*Q2Analysis[[#This Row],[Revenue/Service]],0) -> 0 | G13: =+Q2Analysis[[#This Row],['#/week]]*Q2Analysis[[#This Row],[Service Time (Min)]] -> 0 | H13: =+'Clinic Budget'!A28 -> Funded
A14: =+'Clinic Budget'!C29 -> Prescribing Contraception subsequent assessment that results in a change | B14: =+'Service Listing'!J10 -> 20 | C14: =+'Clinic Budget'!N29 -> 0 | D14: =IFERROR(INDEX(ServListing[Time (min)],MATCH(A14,ServListing[Service],0),0),0) -> 15 | E14: =+Q2Analysis[[#This Row],['#/month]]*0.230769230769231 -> 0 | F14: =IFERROR(Q2Analysis[[#This Row],['#/month]]*Q2Analysis[[#This Row],[Revenue/Service]],0) -> 0 | G14: =+Q2Analysis[[#This Row],['#/week]]*Q2Analysis[[#This Row],[Service Time (Min)]] -> 0 | H14: =+'Clinic Budget'!A29 -> Funded
A15: =+'Clinic Budget'!C30 -> Prescribing Contraception Subsequent assessment that does not result in a change | B15: =+'Service Listing'!J11 -> 12 | C15: =+'Clinic Budget'!N30 -> 0 | D15: =IFERROR(INDEX(ServListing[Time (min)],MATCH(A15,ServListing[Service],0),0),0) -> 15 | E15: =+Q2Analysis[[#This Row],['#/month]]*0.230769230769231 -> 0 | F15: =IFERROR(Q2Analysis[[#This Row],['#/month]]*Q2Analysis[[#This Row],[Revenue/Service]],0) -> 0 | G15: =+Q2Analysis[[#This Row],['#/week]]*Q2Analysis[[#This Row],[Service Time (Min)]] -> 0 | H15: =+'Clinic Budget'!A30 -> Funded
A16: =+'Clinic Budget'!C31 -> Deprescribing -PPI Project Participants Initial Assessment | B16: =+'Service Listing'!J12 -> 52.5 | C16: =+'Clinic Budget'!N31 -> 0 | D16: =IFERROR(INDEX(ServListing[Time (min)],MATCH(A16,ServListing[Service],0),0),0) -> 30 | E16: =+Q2Analysis[[#This Row],['#/month]]*0.230769230769231 -> 0 | F16: =IFERROR(Q2Analysis[[#This Row],['#/month]]*Q2Analysis[[#This Row],[Revenue/Service]],0) -> 0 | G16: =+Q2Analysis[[#This Row],['#/week]]*Q2Analysis[[#This Row],[Service Time (Min)]] -> 0 | H16: =+'Clinic Budget'!A31 -> Funded
A17: =+'Clinic Budget'!C32 -> Deprescribing PPI Follow-ups- Early (limit of 2) Project participants | B17: =+'Service Listing'!J13 -> 20 | C17: =+'Clinic Budget'!N32 -> 0 | D17: =IFERROR(INDEX(ServListing[Time (min)],MATCH(A17,ServListing[Service],0),0),0) -> 15 | E17: =+Q2Analysis[[#This Row],['#/month]]*0.230769230769231 -> 0 | F17: =IFERROR(Q2Analysis[[#This Row],['#/month]]*Q2Analysis[[#This Row],[Revenue/Service]],0) -> 0 | G17: =+Q2Analysis[[#This Row],['#/week]]*Q2Analysis[[#This Row],[Service Time (Min)]] -> 0 | H17: =+'Clinic Budget'!A32 -> Funded
A18: =+'Clinic Budget'!C33 -> Deprescribing BZRA Participants Initial Assessment | B18: =+'Service Listing'!J14 -> 150 | C18: =+'Clinic Budget'!N33 -> 0 | D18: =IFERROR(INDEX(ServListing[Time (min)],MATCH(A18,ServListing[Service],0),0),0) -> 60 | E18: =+Q2Analysis[[#This Row],['#/month]]*0.230769230769231 -> 0 | F18: =IFERROR(Q2Analysis[[#This Row],['#/month]]*Q2Analysis[[#This Row],[Revenue/Service]],0) -> 0 | G18: =+Q2Analysis[[#This Row],['#/week]]*Q2Analysis[[#This Row],[Service Time (Min)]] -> 0 | H18: =+'Clinic Budget'!A33 -> Funded
A19: =+'Clinic Budget'!C34 -> Deprescribing BZRA Follow-ups- Early (limit of 2) Project participants | B19: =+'Service Listing'!J15 -> 20 | C19: =+'Clinic Budget'!N34 -> 0 | D19: =IFERROR(INDEX(ServListing[Time (min)],MATCH(A19,ServListing[Service],0),0),0) -> 15 | E19: =+Q2Analysis[[#This Row],['#/month]]*0.230769230769231 -> 0 | F19: =IFERROR(Q2Analysis[[#This Row],['#/month]]*Q2Analysis[[#This Row],[Revenue/Service]],0) -> 0 | G19: =+Q2Analysis[[#This Row],['#/week]]*Q2Analysis[[#This Row],[Service Time (Min)]] -> 0 | H19: =+'Clinic Budget'!A34 -> Funded
A20: =+'Clinic Budget'!C35 -> Deprescribing BZRA Follow-ups Later (limit of 5 for BZRA only)Project Participants | B20: =+'Service Listing'!J16 -> 12 | C20: =+'Clinic Budget'!N35 -> 0 | D20: =IFERROR(INDEX(ServListing[Time (min)],MATCH(A20,ServListing[Service],0),0),0) -> 15 | E20: =+Q2Analysis[[#This Row],['#/month]]*0.230769230769231 -> 0 | F20: =IFERROR(Q2Analysis[[#This Row],['#/month]]*Q2Analysis[[#This Row],[Revenue/Service]],0) -> 0 | G20: =+Q2Analysis[[#This Row],['#/week]]*Q2Analysis[[#This Row],[Service Time (Min)]] -> 0 | H20: =+'Clinic Budget'!A35 -> Funded
A21: =+'Clinic Budget'!C36 -> Community Pharmacy Led Anticoagulation Management Service (monthly service fee) | B21: =+'Service Listing'!J17 -> 50 | C21: =+'Clinic Budget'!N36 -> 0 | D21: =IFERROR(INDEX(ServListing[Time (min)],MATCH(A21,ServListing[Service],0),0),0) -> 15 | E21: =+Q2Analysis[[#This Row],['#/month]]*0.230769230769231 -> 0 | F21: =IFERROR(Q2Analysis[[#This Row],['#/month]]*Q2Analysis[[#This Row],[Revenue/Service]],0) -> 0 | G21: =+Q2Analysis[[#This Row],['#/week]]*Q2Analysis[[#This Row],[Service Time (Min)]] -> 0 | H21: =+'Clinic Budget'!A36 -> Funded
A22: =+'Clinic Budget'!C37 -> Hypertension Project Initial Assessment | B22: =+'Service Listing'!J18 -> 125 | C22: =+'Clinic Budget'!N37 -> 0 | D22: =IFERROR(INDEX(ServListing[Time (min)],MATCH(A22,ServListing[Service],0),0),0) -> 60 | E22: =+Q2Analysis[[#This Row],['#/month]]*0.230769230769231 -> 0 | F22: =IFERROR(Q2Analysis[[#This Row],['#/month]]*Q2Analysis[[#This Row],[Revenue/Service]],0) -> 0 | G22: =+Q2Analysis[[#This Row],['#/week]]*Q2Analysis[[#This Row],[Service Time (Min)]] -> 0 | H22: =+'Clinic Budget'!A37 -> Funded
A23: =+'Clinic Budget'!C38 -> Hypertension Project Follow-ups | B23: =+'Service Listing'!J19 -> 20 | C23: =+'Clinic Budget'!N38 -> 0 | D23: =IFERROR(INDEX(ServListing[Time (min)],MATCH(A23,ServListing[Service],0),0),0) -> 15 | E23: =+Q2Analysis[[#This Row],['#/month]]*0.230769230769231 -> 0 | F23: =IFERROR(Q2Analysis[[#This Row],['#/month]]*Q2Analysis[[#This Row],[Revenue/Service]],0) -> 0 | G23: =+Q2Analysis[[#This Row],['#/week]]*Q2Analysis[[#This Row],[Service Time (Min)]] -> 0 | H23: =+'Clinic Budget'!A38 -> Funded
A24: =+'Clinic Budget'!C39 -> Bloom Monthly fee (first 6 months) | B24: =+'Service Listing'!J20 -> 75 | C24: =+'Clinic Budget'!N39 -> 0 | D24: =IFERROR(INDEX(ServListing[Time (min)],MATCH(A24,ServListing[Service],0),0),0) -> 15 | E24: =+Q2Analysis[[#This Row],['#/month]]*0.230769230769231 -> 0 | F24: =IFERROR(Q2Analysis[[#This Row],['#/month]]*Q2Analysis[[#This Row],[Revenue/Service]],0) -> 0 | G24: =+Q2Analysis[[#This Row],['#/week]]*Q2Analysis[[#This Row],[Service Time (Min)]] -> 0 | H24: =+'Clinic Budget'!A39 -> Funded
A25: =+'Clinic Budget'!C40 -> Bloom Monthly fee (7+ months) | B25: =+'Service Listing'!J21 -> 30 | C25: =+'Clinic Budget'!N40 -> 0 | D25: =IFERROR(INDEX(ServListing[Time (min)],MATCH(A25,ServListing[Service],0),0),0) -> 15 | E25: =+Q2Analysis[[#This Row],['#/month]]*0.230769230769231 -> 0 | F25: =IFERROR(Q2Analysis[[#This Row],['#/month]]*Q2Analysis[[#This Row],[Revenue/Service]],0) -> 0 | G25: =+Q2Analysis[[#This Row],['#/week]]*Q2Analysis[[#This Row],[Service Time (Min)]] -> 0 | H25: =+'Clinic Budget'!A40 -> Funded
A26: =+'Clinic Budget'!C41 -> Basic Medication Review | B26: =+'Service Listing'!J22 -> 52.5 | C26: =+'Clinic Budget'!N41 -> 0 | D26: =IFERROR(INDEX(ServListing[Time (min)],MATCH(A26,ServListing[Service],0),0),0) -> 30 | E26: =+Q2Analysis[[#This Row],['#/month]]*0.230769230769231 -> 0 | F26: =IFERROR(Q2Analysis[[#This Row],['#/month]]*Q2Analysis[[#This Row],[Revenue/Service]],0) -> 0 | G26: =+Q2Analysis[[#This Row],['#/week]]*Q2Analysis[[#This Row],[Service Time (Min)]] -> 0 | H26: =+'Clinic Budget'!A41 -> Funded
A27: =+'Clinic Budget'!C42 -> Basic Medication Review Follow-ups | B27: =+'Service Listing'!J23 -> 20 | C27: =+'Clinic Budget'!N42 -> 0 | D27: =IFERROR(INDEX(ServListing[Time (min)],MATCH(A27,ServListing[Service],0),0),0) -> 15 | E27: =+Q2Analysis[[#This Row],['#/month]]*0.230769230769231 -> 0 | F27: =IFERROR(Q2Analysis[[#This Row],['#/month]]*Q2Analysis[[#This Row],[Revenue/Service]],0) -> 0 | G27: =+Q2Analysis[[#This Row],['#/week]]*Q2Analysis[[#This Row],[Service Time (Min)]] -> 0 | H27: =+'Clinic Budget'!A42 -> Funded
A28: =+'Clinic Budget'!C43 -> Advanced Medication Review | B28: =+'Service Listing'!J24 -> 150 | C28: =+'Clinic Budget'!N43 -> 0 | D28: =IFERROR(INDEX(ServListing[Time (min)],MATCH(A28,ServListing[Service],0),0),0) -> 90 | E28: =+Q2Analysis[[#This Row],['#/month]]*0.230769230769231 -> 0 | F28: =IFERROR(Q2Analysis[[#This Row],['#/month]]*Q2Analysis[[#This Row],[Revenue/Service]],0) -> 0 | G28: =+Q2Analysis[[#This Row],['#/week]]*Q2Analysis[[#This Row],[Service Time (Min)]] -> 0 | H28: =+'Clinic Budget'!A43 -> Funded
A29: =+'Clinic Budget'!C44 -> Advanced Medication Review Follow-ups | B29: =+'Service Listing'!J25 -> 20 | C29: =+'Clinic Budget'!N44 -> 0 | D29: =IFERROR(INDEX(ServListing[Time (min)],MATCH(A29,ServListing[Service],0),0),0) -> 15 | E29: =+Q2Analysis[[#This Row],['#/month]]*0.230769230769231 -> 0 | F29: =IFERROR(Q2Analysis[[#This Row],['#/month]]*Q2Analysis[[#This Row],[Revenue/Service]],0) -> 0 | G29: =+Q2Analysis[[#This Row],['#/week]]*Q2Analysis[[#This Row],[Service Time (Min)]] -> 0 | H29: =+'Clinic Budget'!A44 -> Funded
A30: =+'Clinic Budget'!C45 -> Take Home Naloxone Kit Training | B30: =+'Service Listing'!J26 -> 25 | C30: =+'Clinic Budget'!N45 -> 0 | D30: =IFERROR(INDEX(ServListing[Time (min)],MATCH(A30,ServListing[Service],0),0),0) -> 15 | E30: =+Q2Analysis[[#This Row],['#/month]]*0.230769230769231 -> 0 | F30: =IFERROR(Q2Analysis[[#This Row],['#/month]]*Q2Analysis[[#This Row],[Revenue/Service]],0) -> 0 | G30: =+Q2Analysis[[#This Row],['#/week]]*Q2Analysis[[#This Row],[Service Time (Min)]] -> 0 | H30: =+'Clinic Budget'!A45 -> Funded
A31: =+'Clinic Budget'!C46 -> PPCC Prescription Renewal (1-3 meds) | B31: =+'Service Listing'!J27 -> 12 | C31: =+'Clinic Budget'!N46 -> 0 | D31: =IFERROR(INDEX(ServListing[Time (min)],MATCH(A31,ServListing[Service],0),0),0) -> 15 | E31: =+Q2Analysis[[#This Row],['#/month]]*0.230769230769231 -> 0 | F31: =IFERROR(Q2Analysis[[#This Row],['#/month]]*Q2Analysis[[#This Row],[Revenue/Service]],0) -> 0 | G31: =+Q2Analysis[[#This Row],['#/week]]*Q2Analysis[[#This Row],[Service Time (Min)]] -> 0 | H31: =+'Clinic Budget'!A46 -> Funded
A32: =+'Clinic Budget'!C47 -> Prescription Renewal (4+ meds) | B32: =+'Service Listing'!J28 -> 20 | C32: =+'Clinic Budget'!N47 -> 0 | D32: =IFERROR(INDEX(ServListing[Time (min)],MATCH(A32,ServListing[Service],0),0),0) -> 30 | E32: =+Q2Analysis[[#This Row],['#/month]]*0.230769230769231 -> 0 | F32: =IFERROR(Q2Analysis[[#This Row],['#/month]]*Q2Analysis[[#This Row],[Revenue/Service]],0) -> 0 | G32: =+Q2Analysis[[#This Row],['#/week]]*Q2Analysis[[#This Row],[Service Time (Min)]] -> 0 | H32: =+'Clinic Budget'!A47 -> Funded
A33: =+'Clinic Budget'!C48 -> Prescription Adaptation Refusal to Fill | B33: =+'Service Listing'!J29 -> 14 | C33: =+'Clinic Budget'!N48 -> 0 | D33: =IFERROR(INDEX(ServListing[Time (min)],MATCH(A33,ServListing[Service],0),0),0) -> 15 | E33: =+Q2Analysis[[#This Row],['#/month]]*0.230769230769231 -> 0 | F33: =IFERROR(Q2Analysis[[#This Row],['#/month]]*Q2Analysis[[#This Row],[Revenue/Service]],0) -> 0 | G33: =+Q2Analysis[[#This Row],['#/week]]*Q2Analysis[[#This Row],[Service Time (Min)]] -> 0 | H33: =+'Clinic Budget'!A48 -> Funded
A34: =+'Clinic Budget'!C49 -> Prescription Adaptation -Other | B34: =+'Service Listing'!J30 -> 14 | C34: =+'Clinic Budget'!N49 -> 0 | D34: =IFERROR(INDEX(ServListing[Time (min)],MATCH(A34,ServListing[Service],0),0),0) -> 15 | E34: =+Q2Analysis[[#This Row],['#/month]]*0.230769230769231 -> 0 | F34: =IFERROR(Q2Analysis[[#This Row],['#/month]]*Q2Analysis[[#This Row],[Revenue/Service]],0) -> 0 | G34: =+Q2Analysis[[#This Row],['#/week]]*Q2Analysis[[#This Row],[Service Time (Min)]] -> 0 | H34: =+'Clinic Budget'!A49 -> Funded
A35: =+'Clinic Budget'!C50 -> Therapeutic Substitution – PPI | B35: =+'Service Listing'!J31 -> 26.5 | C35: =+'Clinic Budget'!N50 -> 0 | D35: =IFERROR(INDEX(ServListing[Time (min)],MATCH(A35,ServListing[Service],0),0),0) -> 15 | E35: =+Q2Analysis[[#This Row],['#/month]]*0.230769230769231 -> 0 | F35: =IFERROR(Q2Analysis[[#This Row],['#/month]]*Q2Analysis[[#This Row],[Revenue/Service]],0) -> 0 | G35: =+Q2Analysis[[#This Row],['#/week]]*Q2Analysis[[#This Row],[Service Time (Min)]] -> 0 | H35: =+'Clinic Budget'!A50 -> Funded
A36: =+'Clinic Budget'!C51 -> Therapeutic Sub- Other Circumstances | B36: =+'Service Listing'!J32 -> 26.5 | C36: =+'Clinic Budget'!N51 -> 0 | D36: =IFERROR(INDEX(ServListing[Time (min)],MATCH(A36,ServListing[Service],0),0),0) -> 15 | E36: =+Q2Analysis[[#This Row],['#/month]]*0.230769230769231 -> 0 | F36: =IFERROR(Q2Analysis[[#This Row],['#/month]]*Q2Analysis[[#This Row],[Revenue/Service]],0) -> 0 | G36: =+Q2Analysis[[#This Row],['#/week]]*Q2Analysis[[#This Row],[Service Time (Min)]] -> 0 | H36: =+'Clinic Budget'!A51 -> Funded
A37: =+'Clinic Budget'!C52 -> Assessment – Uncomplicated UTI that results in a prescription | B37: =+'Service Listing'!J33 -> 20 | C37: =+'Clinic Budget'!N52 -> 0 | D37: =IFERROR(INDEX(ServListing[Time (min)],MATCH(A37,ServListing[Service],0),0),0) -> 15 | E37: =+Q2Analysis[[#This Row],['#/month]]*0.230769230769231 -> 0 | F37: =IFERROR(Q2Analysis[[#This Row],['#/month]]*Q2Analysis[[#This Row],[Revenue/Service]],0) -> 0 | G37: =+Q2Analysis[[#This Row],['#/week]]*Q2Analysis[[#This Row],[Service Time (Min)]] -> 0 | H37: =+'Clinic Budget'!A52 -> Funded
A38: =+'Clinic Budget'!C53 -> Assessment Uncomplicated UTI that does not result in a prescription | B38: =+'Service Listing'!J34 -> 20 | C38: =+'Clinic Budget'!N53 -> 0 | D38: =IFERROR(INDEX(ServListing[Time (min)],MATCH(A38,ServListing[Service],0),0),0) -> 15 | E38: =+Q2Analysis[[#This Row],['#/month]]*0.230769230769231 -> 0 | F38: =IFERROR(Q2Analysis[[#This Row],['#/month]]*Q2Analysis[[#This Row],[Revenue/Service]],0) -> 0 | G38: =+Q2Analysis[[#This Row],['#/week]]*Q2Analysis[[#This Row],[Service Time (Min)]] -> 0 | H38: =+'Clinic Budget'!A53 -> Funded
A39: =+'Clinic Budget'!C54 -> Prescribing- Lyme Chemoprophylaxis | B39: =+'Service Listing'!J35 -> 20 | C39: =+'Clinic Budget'!N54 -> 0 | D39: =IFERROR(INDEX(ServListing[Time (min)],MATCH(A39,ServListing[Service],0),0),0) -> 15 | E39: =+Q2Analysis[[#This Row],['#/month]]*0.230769230769231 -> 0 | F39: =IFERROR(Q2Analysis[[#This Row],['#/month]]*Q2Analysis[[#This Row],[Revenue/Service]],0) -> 0 | G39: =+Q2Analysis[[#This Row],['#/week]]*Q2Analysis[[#This Row],[Service Time (Min)]] -> 0 | H39: =+'Clinic Budget'!A54 -> Funded
A40: =+'Clinic Budget'!C55 -> Assessment Lyme Chemoprophylaxis that does not result in a prescription | B40: =+'Service Listing'!J36 -> 20 | C40: =+'Clinic Budget'!N55 -> 0 | D40: =IFERROR(INDEX(ServListing[Time (min)],MATCH(A40,ServListing[Service],0),0),0) -> 15 | E40: =+Q2Analysis[[#This Row],['#/month]]*0.230769230769231 -> 0 | F40: =IFERROR(Q2Analysis[[#This Row],['#/month]]*Q2Analysis[[#This Row],[Revenue/Service]],0) -> 0 | G40: =+Q2Analysis[[#This Row],['#/week]]*Q2Analysis[[#This Row],[Service Time (Min)]] -> 0 | H40: =+'Clinic Budget'!A55 -> Funded
A41: =+'Clinic Budget'!C56 -> Prescribing Herpes Zoster Tx | B41: =+'Service Listing'!J37 -> 20 | C41: =+'Clinic Budget'!N56 -> 0 | D41: =IFERROR(INDEX(ServListing[Time (min)],MATCH(A41,ServListing[Service],0),0),0) -> 15 | E41: =+Q2Analysis[[#This Row],['#/month]]*0.230769230769231 -> 0 | F41: =IFERROR(Q2Analysis[[#This Row],['#/month]]*Q2Analysis[[#This Row],[Revenue/Service]],0) -> 0 | G41: =+Q2Analysis[[#This Row],['#/week]]*Q2Analysis[[#This Row],[Service Time (Min)]] -> 0 | H41: =+'Clinic Budget'!A56 -> Funded
A42: =+'Clinic Budget'!C57 -> Assessment Herpes Zoster Tx that does not result in a prescription | B42: =+'Service Listing'!J38 -> 20 | C42: =+'Clinic Budget'!N57 -> 0 | D42: =IFERROR(INDEX(ServListing[Time (min)],MATCH(A42,ServListing[Service],0),0),0) -> 15 | E42: =+Q2Analysis[[#This Row],['#/month]]*0.230769230769231 -> 0 | F42: =IFERROR(Q2Analysis[[#This Row],['#/month]]*Q2Analysis[[#This Row],[Revenue/Service]],0) -> 0 | G42: =+Q2Analysis[[#This Row],['#/week]]*Q2Analysis[[#This Row],[Service Time (Min)]] -> 0 | H42: =+'Clinic Budget'!A57 -> Funded
A43: =+'Clinic Budget'!C58 -> Prescribing Budesonide for Covid-19 | B43: =+'Service Listing'!J39 -> 20 | C43: =+'Clinic Budget'!N58 -> 0 | D43: =IFERROR(INDEX(ServListing[Time (min)],MATCH(A43,ServListing[Service],0),0),0) -> 15 | E43: =+Q2Analysis[[#This Row],['#/month]]*0.230769230769231 -> 0 | F43: =IFERROR(Q2Analysis[[#This Row],['#/month]]*Q2Analysis[[#This Row],[Revenue/Service]],0) -> 0 | G43: =+Q2Analysis[[#This Row],['#/week]]*Q2Analysis[[#This Row],[Service Time (Min)]] -> 0 | H43: =+'Clinic Budget'!A58 -> Funded
A44: =+'Clinic Budget'!C59 -> Administration of publicly funded vaccine other than covid-19 or flu | B44: =+'Service Listing'!J40 -> 18 | C44: =+'Clinic Budget'!N59 -> 0 | D44: =IFERROR(INDEX(ServListing[Time (min)],MATCH(A44,ServListing[Service],0),0),0) -> 15 | E44: =+Q2Analysis[[#This Row],['#/month]]*0.230769230769231 -> 0 | F44: =IFERROR(Q2Analysis[[#This Row],['#/month]]*Q2Analysis[[#This Row],[Revenue/Service]],0) -> 0 | G44: =+Q2Analysis[[#This Row],['#/week]]*Q2Analysis[[#This Row],[Service Time (Min)]] -> 0 | H44: =+'Clinic Budget'!A59 -> Not Funded Eligible
A45: =+'Clinic Budget'!C60 -> Assessment and Administration of IM or SC injectable medication | B45: =+'Service Listing'!J41 -> 20 | C45: =+'Clinic Budget'!N60 -> 0 | D45: =IFERROR(INDEX(ServListing[Time (min)],MATCH(A45,ServListing[Service],0),0),0) -> 15 | E45: =+Q2Analysis[[#This Row],['#/month]]*0.230769230769231 -> 0 | F45: =IFERROR(Q2Analysis[[#This Row],['#/month]]*Q2Analysis[[#This Row],[Revenue/Service]],0) -> 0 | G45: =+Q2Analysis[[#This Row],['#/week]]*Q2Analysis[[#This Row],[Service Time (Min)]] -> 0 | H45: =+'Clinic Budget'!A60 -> Not Funded Eligible
A46: =+'Clinic Budget'!C61 -> Assessment and Administration of Anti-psychotic medications | B46: =+'Service Listing'!J42 -> 40 | C46: =+'Clinic Budget'!N61 -> 0 | D46: =IFERROR(INDEX(ServListing[Time (min)],MATCH(A46,ServListing[Service],0),0),0) -> 15 | E46: =+Q2Analysis[[#This Row],['#/month]]*0.230769230769231 -> 0 | F46: =IFERROR(Q2Analysis[[#This Row],['#/month]]*Q2Analysis[[#This Row],[Revenue/Service]],0) -> 0 | G46: =+Q2Analysis[[#This Row],['#/week]]*Q2Analysis[[#This Row],[Service Time (Min)]] -> 0 | H46: =+'Clinic Budget'!A61 -> Not Funded Eligible
A47: =+'Clinic Budget'!C62 -> Assessment and Administration of Sublocade | B47: =+'Service Listing'!J43 -> 40 | C47: =+'Clinic Budget'!N62 -> 0 | D47: =IFERROR(INDEX(ServListing[Time (min)],MATCH(A47,ServListing[Service],0),0),0) -> 15 | E47: =+Q2Analysis[[#This Row],['#/month]]*0.230769230769231 -> 0 | F47: =IFERROR(Q2Analysis[[#This Row],['#/month]]*Q2Analysis[[#This Row],[Revenue/Service]],0) -> 0 | G47: =+Q2Analysis[[#This Row],['#/week]]*Q2Analysis[[#This Row],[Service Time (Min)]] -> 0 | H47: =+'Clinic Budget'!A62 -> Not Funded Eligible
A48: =+'Clinic Budget'!C63 -> Deprescribing -PPI Non Project Participants Initial Assessment | B48: =+'Service Listing'!J44 -> 52.5 | C48: =+'Clinic Budget'!N63 -> 0 | D48: =IFERROR(INDEX(ServListing[Time (min)],MATCH(A48,ServListing[Service],0),0),0) -> 30 | E48: =+Q2Analysis[[#This Row],['#/month]]*0.230769230769231 -> 0 | F48: =IFERROR(Q2Analysis[[#This Row],['#/month]]*Q2Analysis[[#This Row],[Revenue/Service]],0) -> 0 | G48: =+Q2Analysis[[#This Row],['#/week]]*Q2Analysis[[#This Row],[Service Time (Min)]] -> 0 | H48: =+'Clinic Budget'!A63 -> Not Funded Eligible
A49: =+'Clinic Budget'!C64 -> Deprescribing PPI Follow-ups- Early (limit of 2) Non Project participants | B49: =+'Service Listing'!J45 -> 20 | C49: =+'Clinic Budget'!N64 -> 0 | D49: =IFERROR(INDEX(ServListing[Time (min)],MATCH(A49,ServListing[Service],0),0),0) -> 15 | E49: =+Q2Analysis[[#This Row],['#/month]]*0.230769230769231 -> 0 | F49: =IFERROR(Q2Analysis[[#This Row],['#/month]]*Q2Analysis[[#This Row],[Revenue/Service]],0) -> 0 | G49: =+Q2Analysis[[#This Row],['#/week]]*Q2Analysis[[#This Row],[Service Time (Min)]] -> 0 | H49: =+'Clinic Budget'!A64 -> Not Funded Eligible
A50: =+'Clinic Budget'!C65 -> Deprescribing BZRA Non Project Participants Initial Assessment | B50: =+'Service Listing'!J46 -> 150 | C50: =+'Clinic Budget'!N65 -> 0 | D50: =IFERROR(INDEX(ServListing[Time (min)],MATCH(A50,ServListing[Service],0),0),0) -> 60 | E50: =+Q2Analysis[[#This Row],['#/month]]*0.230769230769231 -> 0 | F50: =IFERROR(Q2Analysis[[#This Row],['#/month]]*Q2Analysis[[#This Row],[Revenue/Service]],0) -> 0 | G50: =+Q2Analysis[[#This Row],['#/week]]*Q2Analysis[[#This Row],[Service Time (Min)]] -> 0 | H50: =+'Clinic Budget'!A65 -> Not Funded Eligible
A51: =+'Clinic Budget'!C66 -> Deprescribing BZRA Follow-ups- Early (limit of 2) Non Project participants | B51: =+'Service Listing'!J47 -> 20 | C51: =+'Clinic Budget'!N66 -> 0 | D51: =IFERROR(INDEX(ServListing[Time (min)],MATCH(A51,ServListing[Service],0),0),0) -> 15 | E51: =+Q2Analysis[[#This Row],['#/month]]*0.230769230769231 -> 0 | F51: =IFERROR(Q2Analysis[[#This Row],['#/month]]*Q2Analysis[[#This Row],[Revenue/Service]],0) -> 0 | G51: =+Q2Analysis[[#This Row],['#/week]]*Q2Analysis[[#This Row],[Service Time (Min)]] -> 0 | H51: =+'Clinic Budget'!A66 -> Not Funded Eligible
A52: =+'Clinic Budget'!C67 -> Deprescribing BZRA Follow-ups Later (limit of 5 for BZRA only) Non-Project Participants | B52: =+'Service Listing'!J48 -> 12 | C52: =+'Clinic Budget'!N67 -> 0 | D52: =IFERROR(INDEX(ServListing[Time (min)],MATCH(A52,ServListing[Service],0),0),0) -> 15 | E52: =+Q2Analysis[[#This Row],['#/month]]*0.230769230769231 -> 0 | F52: =IFERROR(Q2Analysis[[#This Row],['#/month]]*Q2Analysis[[#This Row],[Revenue/Service]],0) -> 0 | G52: =+Q2Analysis[[#This Row],['#/week]]*Q2Analysis[[#This Row],[Service Time (Min)]] -> 0 | H52: =+'Clinic Budget'!A67 -> Not Funded Eligible
A53: =+'Clinic Budget'!C68 -> Complex Medication Therapy Assessment | B53: =+'Service Listing'!J49 -> 37.5 | C53: =+'Clinic Budget'!N68 -> 0 | D53: =IFERROR(INDEX(ServListing[Time (min)],MATCH(A53,ServListing[Service],0),0),0) -> 15 | E53: =+Q2Analysis[[#This Row],['#/month]]*0.230769230769231 -> 0 | F53: =IFERROR(Q2Analysis[[#This Row],['#/month]]*Q2Analysis[[#This Row],[Revenue/Service]],0) -> 0 | G53: =+Q2Analysis[[#This Row],['#/week]]*Q2Analysis[[#This Row],[Service Time (Min)]] -> 0 | H53: =+'Clinic Budget'!A68 -> Not Funded Eligible
A54: =+'Clinic Budget'!C69 -> Hypertension Project Initial Assessment | B54: =+'Service Listing'!J50 -> 125 | C54: =+'Clinic Budget'!N69 -> 0 | D54: =IFERROR(INDEX(ServListing[Time (min)],MATCH(A54,ServListing[Service],0),0),0) -> 60 | E54: =+Q2Analysis[[#This Row],['#/month]]*0.230769230769231 -> 0 | F54: =IFERROR(Q2Analysis[[#This Row],['#/month]]*Q2Analysis[[#This Row],[Revenue/Service]],0) -> 0 | G54: =+Q2Analysis[[#This Row],['#/week]]*Q2Analysis[[#This Row],[Service Time (Min)]] -> 0 | H54: =+'Clinic Budget'!A69 -> Not Funded Eligible
A55: =+'Clinic Budget'!C70 -> Hypertension Project Follow-ups | B55: =+'Service Listing'!J51 -> 20 | C55: =+'Clinic Budget'!N70 -> 0 | D55: =IFERROR(INDEX(ServListing[Time (min)],MATCH(A55,ServListing[Service],0),0),0) -> 15 | E55: =+Q2Analysis[[#This Row],['#/month]]*0.230769230769231 -> 0 | F55: =IFERROR(Q2Analysis[[#This Row],['#/month]]*Q2Analysis[[#This Row],[Revenue/Service]],0) -> 0 | G55: =+Q2Analysis[[#This Row],['#/week]]*Q2Analysis[[#This Row],[Service Time (Min)]] -> 0 | H55: =+'Clinic Budget'!A70 -> Not Funded Eligible
A56: =+'Clinic Budget'!C71 -> Prescribing with a diagnosis as per NSCP standard in collaboration with another provider | B56: =+'Service Listing'!J52 -> 25 | C56: =+'Clinic Budget'!N71 -> 0 | D56: =IFERROR(INDEX(ServListing[Time (min)],MATCH(A56,ServListing[Service],0),0),0) -> 15 | E56: =+Q2Analysis[[#This Row],['#/month]]*0.230769230769231 -> 0 | F56: =IFERROR(Q2Analysis[[#This Row],['#/month]]*Q2Analysis[[#This Row],[Revenue/Service]],0) -> 0 | G56: =+Q2Analysis[[#This Row],['#/week]]*Q2Analysis[[#This Row],[Service Time (Min)]] -> 0 | H56: =+'Clinic Budget'!A71 -> Not Funded Eligible
A57: =+'Clinic Budget'!C72 -> Chronic Disease Management – Diabetes – Initial/Annual assessment | B57: =+'Service Listing'!J53 -> 125 | C57: =+'Clinic Budget'!N72 -> 0 | D57: =IFERROR(INDEX(ServListing[Time (min)],MATCH(A57,ServListing[Service],0),0),0) -> 60 | E57: =+Q2Analysis[[#This Row],['#/month]]*0.230769230769231 -> 0 | F57: =IFERROR(Q2Analysis[[#This Row],['#/month]]*Q2Analysis[[#This Row],[Revenue/Service]],0) -> 0 | G57: =+Q2Analysis[[#This Row],['#/week]]*Q2Analysis[[#This Row],[Service Time (Min)]] -> 0 | H57: =+'Clinic Budget'!A72 -> Not Funded Eligible
A58: =+'Clinic Budget'!C73 -> Chronic Disease Diabetes Management - Follow-up (up to 5 per year) | B58: =+'Service Listing'!J54 -> 20 | C58: =+'Clinic Budget'!N73 -> 0 | D58: =IFERROR(INDEX(ServListing[Time (min)],MATCH(A58,ServListing[Service],0),0),0) -> 15 | E58: =+Q2Analysis[[#This Row],['#/month]]*0.230769230769231 -> 0 | F58: =IFERROR(Q2Analysis[[#This Row],['#/month]]*Q2Analysis[[#This Row],[Revenue/Service]],0) -> 0 | G58: =+Q2Analysis[[#This Row],['#/week]]*Q2Analysis[[#This Row],[Service Time (Min)]] -> 0 | H58: =+'Clinic Budget'!A73 -> Not Funded Eligible
A59: =+'Clinic Budget'!C74 -> Chronic Disease Management – Lung Disease Asthma/COPD) Initial/Annual Assessment | B59: =+'Service Listing'!J55 -> 125 | C59: =+'Clinic Budget'!N74 -> 0 | D59: =IFERROR(INDEX(ServListing[Time (min)],MATCH(A59,ServListing[Service],0),0),0) -> 60 | E59: =+Q2Analysis[[#This Row],['#/month]]*0.230769230769231 -> 0 | F59: =IFERROR(Q2Analysis[[#This Row],['#/month]]*Q2Analysis[[#This Row],[Revenue/Service]],0) -> 0 | G59: =+Q2Analysis[[#This Row],['#/week]]*Q2Analysis[[#This Row],[Service Time (Min)]] -> 0 | H59: =+'Clinic Budget'!A74 -> Not Funded Eligible
A60: =+'Clinic Budget'!C75 -> Chronic Disease Management – Lung Disease Follow-up (up to 5 per year | B60: =+'Service Listing'!J56 -> 20 | C60: =+'Clinic Budget'!N75 -> 0 | D60: =IFERROR(INDEX(ServListing[Time (min)],MATCH(A60,ServListing[Service],0),0),0) -> 15 | E60: =+Q2Analysis[[#This Row],['#/month]]*0.230769230769231 -> 0 | F60: =IFERROR(Q2Analysis[[#This Row],['#/month]]*Q2Analysis[[#This Row],[Revenue/Service]],0) -> 0 | G60: =+Q2Analysis[[#This Row],['#/week]]*Q2Analysis[[#This Row],[Service Time (Min)]] -> 0 | H60: =+'Clinic Budget'!A75 -> Not Funded Eligible
A61: =+'Clinic Budget'!C76 -> Chronic Disease Management -Cardiovascular Disease Initial/Annual Assessment | B61: =+'Service Listing'!J57 -> 125 | C61: =+'Clinic Budget'!N76 -> 0 | D61: =IFERROR(INDEX(ServListing[Time (min)],MATCH(A61,ServListing[Service],0),0),0) -> 60 | E61: =+Q2Analysis[[#This Row],['#/month]]*0.230769230769231 -> 0 | F61: =IFERROR(Q2Analysis[[#This Row],['#/month]]*Q2Analysis[[#This Row],[Revenue/Service]],0) -> 0 | G61: =+Q2Analysis[[#This Row],['#/week]]*Q2Analysis[[#This Row],[Service Time (Min)]] -> 0 | H61: =+'Clinic Budget'!A76 -> Not Funded Eligible
A62: =+'Clinic Budget'!C77 -> Chronic Disease Management Cardiovascular Disease Follow-up (up to 5 per year) | B62: =+'Service Listing'!J58 -> 20 | C62: =+'Clinic Budget'!N77 -> 0 | D62: =IFERROR(INDEX(ServListing[Time (min)],MATCH(A62,ServListing[Service],0),0),0) -> 15 | E62: =+Q2Analysis[[#This Row],['#/month]]*0.230769230769231 -> 0 | F62: =IFERROR(Q2Analysis[[#This Row],['#/month]]*Q2Analysis[[#This Row],[Revenue/Service]],0) -> 0 | G62: =+Q2Analysis[[#This Row],['#/week]]*Q2Analysis[[#This Row],[Service Time (Min)]] -> 0 | H62: =+'Clinic Budget'!A77 -> Not Funded Eligible
A63: =+'Clinic Budget'!C78 -> Tobacco Use Reduction Program – Initial Assessment and Discussion | B63: =+'Service Listing'!J59 -> 40 | C63: =+'Clinic Budget'!N78 -> 0 | D63: =IFERROR(INDEX(ServListing[Time (min)],MATCH(A63,ServListing[Service],0),0),0) -> 60 | E63: =+Q2Analysis[[#This Row],['#/month]]*0.230769230769231 -> 0 | F63: =IFERROR(Q2Analysis[[#This Row],['#/month]]*Q2Analysis[[#This Row],[Revenue/Service]],0) -> 0 | G63: =+Q2Analysis[[#This Row],['#/week]]*Q2Analysis[[#This Row],[Service Time (Min)]] -> 0 | H63: =+'Clinic Budget'!A78 -> Not Funded Eligible
A64: =+'Clinic Budget'!C79 -> Tobacco Use Reduction Program – Follow-up 1-3 | B64: =+'Service Listing'!J60 -> 15 | C64: =+'Clinic Budget'!N79 -> 0 | D64: =IFERROR(INDEX(ServListing[Time (min)],MATCH(A64,ServListing[Service],0),0),0) -> 15 | E64: =+Q2Analysis[[#This Row],['#/month]]*0.230769230769231 -> 0 | F64: =IFERROR(Q2Analysis[[#This Row],['#/month]]*Q2Analysis[[#This Row],[Revenue/Service]],0) -> 0 | G64: =+Q2Analysis[[#This Row],['#/week]]*Q2Analysis[[#This Row],[Service Time (Min)]] -> 0 | H64: =+'Clinic Budget'!A79 -> Not Funded Eligible
A65: =+'Clinic Budget'!C80 -> Tobacco Use Reduction Program –Follow-up 4-7 | B65: =+'Service Listing'!J61 -> 10 | C65: =+'Clinic Budget'!N80 -> 0 | D65: =IFERROR(INDEX(ServListing[Time (min)],MATCH(A65,ServListing[Service],0),0),0) -> 15 | E65: =+Q2Analysis[[#This Row],['#/month]]*0.230769230769231 -> 0 | F65: =IFERROR(Q2Analysis[[#This Row],['#/month]]*Q2Analysis[[#This Row],[Revenue/Service]],0) -> 0 | G65: =+Q2Analysis[[#This Row],['#/week]]*Q2Analysis[[#This Row],[Service Time (Min)]] -> 0 | H65: =+'Clinic Budget'!A80 -> Not Funded Eligible
A66: =+'Clinic Budget'!C81 -> Renewal Assessment that does not result in a prescription | B66: =+'Service Listing'!J62 -> 12 | C66: =+'Clinic Budget'!N81 -> 0 | D66: =IFERROR(INDEX(ServListing[Time (min)],MATCH(A66,ServListing[Service],0),0),0) -> 15 | E66: =+Q2Analysis[[#This Row],['#/month]]*0.230769230769231 -> 0 | F66: =IFERROR(Q2Analysis[[#This Row],['#/month]]*Q2Analysis[[#This Row],[Revenue/Service]],0) -> 0 | G66: =+Q2Analysis[[#This Row],['#/week]]*Q2Analysis[[#This Row],[Service Time (Min)]] -> 0 | H66: =+'Clinic Budget'!A81 -> Not Funded Eligible
A67: =+'Clinic Budget'!C82 -> Prescription Adaptation Refusal to Fill | B67: =+'Service Listing'!J63 -> 14 | C67: =+'Clinic Budget'!N82 -> 0 | D67: =IFERROR(INDEX(ServListing[Time (min)],MATCH(A67,ServListing[Service],0),0),0) -> 15 | E67: =+Q2Analysis[[#This Row],['#/month]]*0.230769230769231 -> 0 | F67: =IFERROR(Q2Analysis[[#This Row],['#/month]]*Q2Analysis[[#This Row],[Revenue/Service]],0) -> 0 | G67: =+Q2Analysis[[#This Row],['#/week]]*Q2Analysis[[#This Row],[Service Time (Min)]] -> 0 | H67: =+'Clinic Budget'!A82 -> Not Funded Eligible
A68: =+'Clinic Budget'!C83 -> Prescription Adaptation -Other | B68: =+'Service Listing'!J64 -> 14 | C68: =+'Clinic Budget'!N83 -> 0 | D68: =IFERROR(INDEX(ServListing[Time (min)],MATCH(A68,ServListing[Service],0),0),0) -> 15 | E68: =+Q2Analysis[[#This Row],['#/month]]*0.230769230769231 -> 0 | F68: =IFERROR(Q2Analysis[[#This Row],['#/month]]*Q2Analysis[[#This Row],[Revenue/Service]],0) -> 0 | G68: =+Q2Analysis[[#This Row],['#/week]]*Q2Analysis[[#This Row],[Service Time (Min)]] -> 0 | H68: =+'Clinic Budget'!A83 -> Not Funded Eligible
A69: =+'Clinic Budget'!C84 -> Therapeutic Substitution – PPI | B69: =+'Service Listing'!J65 -> 26.5 | C69: =+'Clinic Budget'!N84 -> 0 | D69: =IFERROR(INDEX(ServListing[Time (min)],MATCH(A69,ServListing[Service],0),0),0) -> 15 | E69: =+Q2Analysis[[#This Row],['#/month]]*0.230769230769231 -> 0 | F69: =IFERROR(Q2Analysis[[#This Row],['#/month]]*Q2Analysis[[#This Row],[Revenue/Service]],0) -> 0 | G69: =+Q2Analysis[[#This Row],['#/week]]*Q2Analysis[[#This Row],[Service Time (Min)]] -> 0 | H69: =+'Clinic Budget'!A84 -> Not Funded Eligible
A70: =+'Clinic Budget'!C85 -> Therapeutic Sub- Other Circumstances | B70: =+'Service Listing'!J66 -> 26.5 | C70: =+'Clinic Budget'!N85 -> 0 | D70: =IFERROR(INDEX(ServListing[Time (min)],MATCH(A70,ServListing[Service],0),0),0) -> 15 | E70: =+Q2Analysis[[#This Row],['#/month]]*0.230769230769231 -> 0 | F70: =IFERROR(Q2Analysis[[#This Row],['#/month]]*Q2Analysis[[#This Row],[Revenue/Service]],0) -> 0 | G70: =+Q2Analysis[[#This Row],['#/week]]*Q2Analysis[[#This Row],[Service Time (Min)]] -> 0 | H70: =+'Clinic Budget'!A85 -> Not Funded Eligible
A71: =+'Clinic Budget'!C86 -> Prescribing in an Emergency | B71: =+'Service Listing'!J67 -> 28 | C71: =+'Clinic Budget'!N86 -> 0 | D71: =IFERROR(INDEX(ServListing[Time (min)],MATCH(A71,ServListing[Service],0),0),0) -> 15 | E71: =+Q2Analysis[[#This Row],['#/month]]*0.230769230769231 -> 0 | F71: =IFERROR(Q2Analysis[[#This Row],['#/month]]*Q2Analysis[[#This Row],[Revenue/Service]],0) -> 0 | G71: =+Q2Analysis[[#This Row],['#/week]]*Q2Analysis[[#This Row],[Service Time (Min)]] -> 0 | H71: =+'Clinic Budget'!A86 -> Not Funded Eligible
A72: =+'Clinic Budget'!C87 -> Pharmacist independent prescribing with diagnosis confirmed by pharmacist (Diabetes, Lung, CVD only). NSCP Study | B72: =+'Service Listing'!J68 -> 25 | C72: =+'Clinic Budget'!N87 -> 0 | D72: =IFERROR(INDEX(ServListing[Time (min)],MATCH(A72,ServListing[Service],0),0),0) -> 15 | E72: =+Q2Analysis[[#This Row],['#/month]]*0.230769230769231 -> 0 | F72: =IFERROR(Q2Analysis[[#This Row],['#/month]]*Q2Analysis[[#This Row],[Revenue/Service]],0) -> 0 | G72: =+Q2Analysis[[#This Row],['#/week]]*Q2Analysis[[#This Row],[Service Time (Min)]] -> 0 | H72: =+'Clinic Budget'!A87 -> Not Funded Eligible
A73: =+'Clinic Budget'!C88 -> Prescribing for a Minor Ailment (as per Appendix 6) | B73: =+'Service Listing'!J69 -> 25 | C73: =+'Clinic Budget'!N88 -> 0 | D73: =IFERROR(INDEX(ServListing[Time (min)],MATCH(A73,ServListing[Service],0),0),0) -> 15 | E73: =+Q2Analysis[[#This Row],['#/month]]*0.230769230769231 -> 0 | F73: =IFERROR(Q2Analysis[[#This Row],['#/month]]*Q2Analysis[[#This Row],[Revenue/Service]],0) -> 0 | G73: =+Q2Analysis[[#This Row],['#/week]]*Q2Analysis[[#This Row],[Service Time (Min)]] -> 0 | H73: =+'Clinic Budget'!A88 -> Not Funded Eligible
A74: =+'Clinic Budget'!C89 -> Assessment, Point of Care Testing For Group A Strep that results in a prescription | B74: =+'Service Listing'!J70 -> 35 | C74: =+'Clinic Budget'!N89 -> 0 | D74: =IFERROR(INDEX(ServListing[Time (min)],MATCH(A74,ServListing[Service],0),0),0) -> 15 | E74: =+Q2Analysis[[#This Row],['#/month]]*0.230769230769231 -> 0 | F74: =IFERROR(Q2Analysis[[#This Row],['#/month]]*Q2Analysis[[#This Row],[Revenue/Service]],0) -> 0 | G74: =+Q2Analysis[[#This Row],['#/week]]*Q2Analysis[[#This Row],[Service Time (Min)]] -> 0 | H74: =+'Clinic Budget'!A89 -> Not Funded Eligible
A75: =+'Clinic Budget'!C90 -> Assessment Group A Strep that does not result in an RX | B75: =+'Service Listing'!J71 -> 20 | C75: =+'Clinic Budget'!N90 -> 0 | D75: =IFERROR(INDEX(ServListing[Time (min)],MATCH(A75,ServListing[Service],0),0),0) -> 15 | E75: =+Q2Analysis[[#This Row],['#/month]]*0.230769230769231 -> 0 | F75: =IFERROR(Q2Analysis[[#This Row],['#/month]]*Q2Analysis[[#This Row],[Revenue/Service]],0) -> 0 | G75: =+Q2Analysis[[#This Row],['#/week]]*Q2Analysis[[#This Row],[Service Time (Min)]] -> 0 | H75: =+'Clinic Budget'!A90 -> Not Funded Eligible
A76: =+'Clinic Budget'!C91 -> Point of Care Test A1C | B76: =+'Service Listing'!J72 -> 25 | C76: =+'Clinic Budget'!N91 -> 0 | D76: =IFERROR(INDEX(ServListing[Time (min)],MATCH(A76,ServListing[Service],0),0),0) -> 15 | E76: =+Q2Analysis[[#This Row],['#/month]]*0.230769230769231 -> 0 | F76: =IFERROR(Q2Analysis[[#This Row],['#/month]]*Q2Analysis[[#This Row],[Revenue/Service]],0) -> 0 | G76: =+Q2Analysis[[#This Row],['#/week]]*Q2Analysis[[#This Row],[Service Time (Min)]] -> 0 | H76: =+'Clinic Budget'!A91 -> Not Funded Eligible
A77: =+'Clinic Budget'!C92 -> Point of Care Test Cholesterol | B77: =+'Service Listing'!J73 -> 25 | C77: =+'Clinic Budget'!N92 -> 0 | D77: =IFERROR(INDEX(ServListing[Time (min)],MATCH(A77,ServListing[Service],0),0),0) -> 15 | E77: =+Q2Analysis[[#This Row],['#/month]]*0.230769230769231 -> 0 | F77: =IFERROR(Q2Analysis[[#This Row],['#/month]]*Q2Analysis[[#This Row],[Revenue/Service]],0) -> 0 | G77: =+Q2Analysis[[#This Row],['#/week]]*Q2Analysis[[#This Row],[Service Time (Min)]] -> 0 | H77: =+'Clinic Budget'!A92 -> Not Funded Eligible
A78: =+'Clinic Budget'!C93 -> Administration of non-publicly funded vaccines | B78: =+'Service Listing'!J74 -> 20 | C78: =+'Clinic Budget'!N93 -> 0 | D78: =IFERROR(INDEX(ServListing[Time (min)],MATCH(A78,ServListing[Service],0),0),0) -> 7.5 | E78: =+Q2Analysis[[#This Row],['#/month]]*0.230769230769231 -> 0 | F78: =IFERROR(Q2Analysis[[#This Row],['#/month]]*Q2Analysis[[#This Row],[Revenue/Service]],0) -> 0 | G78: =+Q2Analysis[[#This Row],['#/week]]*Q2Analysis[[#This Row],[Service Time (Min)]] -> 0 | H78: =+'Clinic Budget'!A93 -> Not Funded Not Eligible
A79: =+'Clinic Budget'!C94 -> Comprehensive Travel Health Consultation | B79: =+'Service Listing'!J75 -> Fee Set by Site | C79: =+'Clinic Budget'!N94 -> 0 | D79: =IFERROR(INDEX(ServListing[Time (min)],MATCH(A79,ServListing[Service],0),0),0) -> 30 | E79: =+Q2Analysis[[#This Row],['#/month]]*0.230769230769231 -> 0 | F79: =IFERROR(Q2Analysis[[#This Row],['#/month]]*Q2Analysis[[#This Row],[Revenue/Service]],0) -> 0 | G79: =+Q2Analysis[[#This Row],['#/week]]*Q2Analysis[[#This Row],[Service Time (Min)]] -> 0 | H79: =+'Clinic Budget'!A94 -> Not Funded Not Eligible
A80: =+'Clinic Budget'!C95 -> Pharmacogenomic Consultation Service | B80: =+'Service Listing'!J76 -> Fee Set by Site | C80: =+'Clinic Budget'!N95 -> 0 | D80: =IFERROR(INDEX(ServListing[Time (min)],MATCH(A80,ServListing[Service],0),0),0) -> 30 | E80: =+Q2Analysis[[#This Row],['#/month]]*0.230769230769231 -> 0 | F80: =IFERROR(Q2Analysis[[#This Row],['#/month]]*Q2Analysis[[#This Row],[Revenue/Service]],0) -> 0 | G80: =+Q2Analysis[[#This Row],['#/week]]*Q2Analysis[[#This Row],[Service Time (Min)]] -> 0 | H80: =+'Clinic Budget'!A95 -> Not Funded Not Eligible
A81: =+'Clinic Budget'!C96 -> Malaria Chemoprophylaxis Assessment and Prescribing | B81: =+'Service Listing'!J77 -> Fee Set by Site | C81: =+'Clinic Budget'!N96 -> 0 | D81: =IFERROR(INDEX(ServListing[Time (min)],MATCH(A81,ServListing[Service],0),0),0) -> 30 | E81: =+Q2Analysis[[#This Row],['#/month]]*0.230769230769231 -> 0 | F81: =IFERROR(Q2Analysis[[#This Row],['#/month]]*Q2Analysis[[#This Row],[Revenue/Service]],0) -> 0 | G81: =+Q2Analysis[[#This Row],['#/week]]*Q2Analysis[[#This Row],[Service Time (Min)]] -> 0 | H81: =+'Clinic Budget'!A96 -> Not Funded Not Eligible
A82: =+'Clinic Budget'!C97 -> Any Service for a Patient without an NS Health card that is not covered for out of province patients | B82: =+'Service Listing'!J78 -> Fee Set by Site | C82: =+'Clinic Budget'!N97 -> 0 | D82: =IFERROR(INDEX(ServListing[Time (min)],MATCH(A82,ServListing[Service],0),0),0) -> 15 | E82: =+Q2Analysis[[#This Row],['#/month]]*0.230769230769231 -> 0 | F82: =IFERROR(Q2Analysis[[#This Row],['#/month]]*Q2Analysis[[#This Row],[Revenue/Service]],0) -> 0 | G82: =+Q2Analysis[[#This Row],['#/week]]*Q2Analysis[[#This Row],[Service Time (Min)]] -> 0 | H82: =+'Clinic Budget'!A97 -> Not Funded Not Eligible
A83: =+'Service Listing'!$C$79 -> Rapid Antigen Testing Travel Test | B83: =+'Service Listing'!J79 -> 40 | C83: =+'Clinic Budget'!N98 -> 0 | D83: =IFERROR(INDEX(ServListing[Time (min)],MATCH(A83,ServListing[Service],0),0),0) -> 15 | E83: =+Q2Analysis[[#This Row],['#/month]]*0.230769230769231 -> 0 | F83: =IFERROR(Q2Analysis[[#This Row],['#/month]]*Q2Analysis[[#This Row],[Revenue/Service]],0) -> 0 | G83: =+Q2Analysis[[#This Row],['#/week]]*Q2Analysis[[#This Row],[Service Time (Min)]] -> 0 | H83: =+'Clinic Budget'!A98 -> Not Funded Not Eligible
A84: =+'Service Listing'!$C$80 -> Other: | B84: =+'Service Listing'!J80 -> Fee Set by Site | C84: =+'Clinic Budget'!N99 -> 0 | D84: =IFERROR(INDEX(ServListing[Time (min)],MATCH(A84,ServListing[Service],0),0),0) -> 15 | E84: =+Q2Analysis[[#This Row],['#/month]]*0.230769230769231 -> 0 | F84: =IFERROR(Q2Analysis[[#This Row],['#/month]]*Q2Analysis[[#This Row],[Revenue/Service]],0) -> 0 | G84: =+Q2Analysis[[#This Row],['#/week]]*Q2Analysis[[#This Row],[Service Time (Min)]] -> 0 | H84: =+'Clinic Budget'!A99 -> Not Funded Not Eligible
A85: =+'Service Listing'!$C$81 -> Other: | B85: =+'Service Listing'!J81 -> Fee Set by Site | C85: =+'Clinic Budget'!N100 -> 0 | D85: =IFERROR(INDEX(ServListing[Time (min)],MATCH(A85,ServListing[Service],0),0),0) -> 15 | E85: =+Q2Analysis[[#This Row],['#/month]]*0.230769230769231 -> 0 | F85: =IFERROR(Q2Analysis[[#This Row],['#/month]]*Q2Analysis[[#This Row],[Revenue/Service]],0) -> 0 | G85: =+Q2Analysis[[#This Row],['#/week]]*Q2Analysis[[#This Row],[Service Time (Min)]] -> 0 | H85: =+'Clinic Budget'!A100 -> Not Funded Not Eligible
A86: *CPAMS Initial Appointments | B86: N/A | C86: 0 | D86: =+D87*2 -> 30 | E86: =+Q2Analysis[[#This Row],['#/month]]*0.230769230769231 -> 0 | F86: =IFERROR(Q2Analysis[[#This Row],['#/month]]*Q2Analysis[[#This Row],[Revenue/Service]],0) -> 0 | G86: =+Q2Analysis[[#This Row],['#/week]]*Q2Analysis[[#This Row],[Service Time (Min)]] -> 0 | H86: N/A
A87: *CPAMS Surplus Appointments | B87: N/A | C87: 0 | D87: =+'Service Listing'!$F$3 -> 15 | E87: =+Q2Analysis[[#This Row],['#/month]]*0.230769230769231 -> 0 | F87: =IFERROR(Q2Analysis[[#This Row],['#/month]]*Q2Analysis[[#This Row],[Revenue/Service]],0) -> 0 | G87: =+Q2Analysis[[#This Row],['#/week]]*Q2Analysis[[#This Row],[Service Time (Min)]] -> 0 | H87: N/A
A88: *Bloom Initial Assessments Appoint | B88: N/A | C88: 0 | D88: =+D89*4 -> 60 | E88: =+Q2Analysis[[#This Row],['#/month]]*0.230769230769231 -> 0 | F88: =IFERROR(Q2Analysis[[#This Row],['#/month]]*Q2Analysis[[#This Row],[Revenue/Service]],0) -> 0 | G88: =+Q2Analysis[[#This Row],['#/week]]*Q2Analysis[[#This Row],[Service Time (Min)]] -> 0 | H88: N/A
A89: *Bloom Surplus Appointments | B89: N/A | C89: 0 | D89: =+'Service Listing'!$F$3 -> 15 | E89: =+Q2Analysis[[#This Row],['#/month]]*0.230769230769231 -> 0 | F89: =IFERROR(Q2Analysis[[#This Row],['#/month]]*Q2Analysis[[#This Row],[Revenue/Service]],0) -> 0 | G89: =+Q2Analysis[[#This Row],['#/week]]*Q2Analysis[[#This Row],[Service Time (Min)]] -> 0 | H89: N/A
A90: Total | F90: =SUBTOTAL(109,Q2Analysis[Monthly Revenue per Service]) -> 0 | G90: =SUBTOTAL(109,Q2Analysis[Weekly Time Needed (min)]) -> 0

Sheet Q3 Monthly Analysis
A1: Community Pharmacy Primary Care Clinic - Q3 Average Monthly Service
A3: Clinic Revenue PER MONTH ON PAPER | C3: =+Q3Analysis[[#Totals],[Monthly Revenue per Service]] -> 0 | E3: Funded Revenue | H3: =+GETPIVOTDATA("Monthly Revenue per Service",Q3PVTTable!$A$3,"Funding Category","Funded") -> 7327.25
A4: Minutes Available Per Week (7.5 hours/day) | C4: =60*'Service Listing'!$F$2*5 -> 2250 | E4: Actual Not Funded Eligible | H4: =+GETPIVOTDATA("Monthly Revenue per Service",Q3PVTTable!$A$3,"Funding Category","Not Funded Eligible") -> 7384.895
A5: Time/Week Needed for Services*** | C5: =+Q3Analysis[[#Totals],[Weekly Time Needed (min)]] -> 0 | E5: Not Funded Eligible Payment | H5: 7000
A6: Time Gap | C6: =+C4-C5 -> 2250 | E6: Not Funded Not Eligible | H6: =+GETPIVOTDATA("Monthly Revenue per Service",Q3PVTTable!$A$3,"Funding Category","Not Funded Not Eligible") -> 300
A7: *** Review bottom rows of table to add non-funded appointments | E7: Total Actual Revenue | H7: =+H6+H5+H3 -> 14627.25
A9: Service | B9: Revenue/Service | C9: #/month | D9: Service Time (Min) | E9: #/week | F9: Monthly Revenue per Service | G9: Weekly Time Needed (min) | H9: Funding Category
A10: =+'Clinic Budget'!C25 -> Covid-19 Vaccine Administration Fee | B10: =+'Service Listing'!J6 -> 18 | C10: =+'Clinic Budget'!Q25 -> 0 | D10: =IFERROR(INDEX(ServListing[Time (min)],MATCH(A10,ServListing[Service],0),0),0) -> 7.5 | E10: =+Q3Analysis[[#This Row],['#/month]]*0.230769230769231 -> 0 | F10: =IFERROR(Q3Analysis[[#This Row],['#/month]]*Q3Analysis[[#This Row],[Revenue/Service]],0) -> 0 | G10: =+Q3Analysis[[#This Row],['#/week]]*Q3Analysis[[#This Row],[Service Time (Min)]] -> 0 | H10: =+'Clinic Budget'!A25 -> Funded
A11: =+'Clinic Budget'!C26 -> Influenza Vaccine Admin Fee* | B11: =+'Service Listing'!J7 -> 12.8 | C11: =+'Clinic Budget'!Q26 -> 0 | D11: =IFERROR(INDEX(ServListing[Time (min)],MATCH(A11,ServListing[Service],0),0),0) -> 7.5 | E11: =+Q3Analysis[[#This Row],['#/month]]*0.230769230769231 -> 0 | F11: =IFERROR(Q3Analysis[[#This Row],['#/month]]*Q3Analysis[[#This Row],[Revenue/Service]],0) -> 0 | G11: =+Q3Analysis[[#This Row],['#/week]]*Q3Analysis[[#This Row],[Service Time (Min)]] -> 0 | H11: =+'Clinic Budget'!A26 -> Funded
A12: =+'Clinic Budget'!C27 -> Prescribing Contraception Initial Assessment that results in a prescription | B12: =+'Service Listing'!J8 -> 20 | C12: =+'Clinic Budget'!Q27 -> 0 | D12: =IFERROR(INDEX(ServListing[Time (min)],MATCH(A12,ServListing[Service],0),0),0) -> 30 | E12: =+Q3Analysis[[#This Row],['#/month]]*0.230769230769231 -> 0 | F12: =IFERROR(Q3Analysis[[#This Row],['#/month]]*Q3Analysis[[#This Row],[Revenue/Service]],0) -> 0 | G12: =+Q3Analysis[[#This Row],['#/week]]*Q3Analysis[[#This Row],[Service Time (Min)]] -> 0 | H12: =+'Clinic Budget'!A27 -> Funded
A13: =+'Clinic Budget'!C28 -> Prescribing Contraception Initial Assessment that does not result in a prescription | B13: =+'Service Listing'!J9 -> 20 | C13: =+'Clinic Budget'!Q28 -> 0 | D13: =IFERROR(INDEX(ServListing[Time (min)],MATCH(A13,ServListing[Service],0),0),0) -> 30 | E13: =+Q3Analysis[[#This Row],['#/month]]*0.230769230769231 -> 0 | F13: =IFERROR(Q3Analysis[[#This Row],['#/month]]*Q3Analysis[[#This Row],[Revenue/Service]],0) -> 0 | G13: =+Q3Analysis[[#This Row],['#/week]]*Q3Analysis[[#This Row],[Service Time (Min)]] -> 0 | H13: =+'Clinic Budget'!A28 -> Funded
A14: =+'Clinic Budget'!C29 -> Prescribing Contraception subsequent assessment that results in a change | B14: =+'Service Listing'!J10 -> 20 | C14: =+'Clinic Budget'!Q29 -> 0 | D14: =IFERROR(INDEX(ServListing[Time (min)],MATCH(A14,ServListing[Service],0),0),0) -> 15 | E14: =+Q3Analysis[[#This Row],['#/month]]*0.230769230769231 -> 0 | F14: =IFERROR(Q3Analysis[[#This Row],['#/month]]*Q3Analysis[[#This Row],[Revenue/Service]],0) -> 0 | G14: =+Q3Analysis[[#This Row],['#/week]]*Q3Analysis[[#This Row],[Service Time (Min)]] -> 0 | H14: =+'Clinic Budget'!A29 -> Funded
A15: =+'Clinic Budget'!C30 -> Prescribing Contraception Subsequent assessment that does not result in a change | B15: =+'Service Listing'!J11 -> 12 | C15: =+'Clinic Budget'!Q30 -> 0 | D15: =IFERROR(INDEX(ServListing[Time (min)],MATCH(A15,ServListing[Service],0),0),0) -> 15 | E15: =+Q3Analysis[[#This Row],['#/month]]*0.230769230769231 -> 0 | F15: =IFERROR(Q3Analysis[[#This Row],['#/month]]*Q3Analysis[[#This Row],[Revenue/Service]],0) -> 0 | G15: =+Q3Analysis[[#This Row],['#/week]]*Q3Analysis[[#This Row],[Service Time (Min)]] -> 0 | H15: =+'Clinic Budget'!A30 -> Funded
A16: =+'Clinic Budget'!C31 -> Deprescribing -PPI Project Participants Initial Assessment | B16: =+'Service Listing'!J12 -> 52.5 | C16: =+'Clinic Budget'!Q31 -> 0 | D16: =IFERROR(INDEX(ServListing[Time (min)],MATCH(A16,ServListing[Service],0),0),0) -> 30 | E16: =+Q3Analysis[[#This Row],['#/month]]*0.230769230769231 -> 0 | F16: =IFERROR(Q3Analysis[[#This Row],['#/month]]*Q3Analysis[[#This Row],[Revenue/Service]],0) -> 0 | G16: =+Q3Analysis[[#This Row],['#/week]]*Q3Analysis[[#This Row],[Service Time (Min)]] -> 0 | H16: =+'Clinic Budget'!A31 -> Funded
A17: =+'Clinic Budget'!C32 -> Deprescribing PPI Follow-ups- Early (limit of 2) Project participants | B17: =+'Service Listing'!J13 -> 20 | C17: =+'Clinic Budget'!Q32 -> 0 | D17: =IFERROR(INDEX(ServListing[Time (min)],MATCH(A17,ServListing[Service],0),0),0) -> 15 | E17: =+Q3Analysis[[#This Row],['#/month]]*0.230769230769231 -> 0 | F17: =IFERROR(Q3Analysis[[#This Row],['#/month]]*Q3Analysis[[#This Row],[Revenue/Service]],0) -> 0 | G17: =+Q3Analysis[[#This Row],['#/week]]*Q3Analysis[[#This Row],[Service Time (Min)]] -> 0 | H17: =+'Clinic Budget'!A32 -> Funded
A18: =+'Clinic Budget'!C33 -> Deprescribing BZRA Participants Initial Assessment | B18: =+'Service Listing'!J14 -> 150 | C18: =+'Clinic Budget'!Q33 -> 0 | D18: =IFERROR(INDEX(ServListing[Time (min)],MATCH(A18,ServListing[Service],0),0),0) -> 60 | E18: =+Q3Analysis[[#This Row],['#/month]]*0.230769230769231 -> 0 | F18: =IFERROR(Q3Analysis[[#This Row],['#/month]]*Q3Analysis[[#This Row],[Revenue/Service]],0) -> 0 | G18: =+Q3Analysis[[#This Row],['#/week]]*Q3Analysis[[#This Row],[Service Time (Min)]] -> 0 | H18: =+'Clinic Budget'!A33 -> Funded
A19: =+'Clinic Budget'!C34 -> Deprescribing BZRA Follow-ups- Early (limit of 2) Project participants | B19: =+'Service Listing'!J15 -> 20 | C19: =+'Clinic Budget'!Q34 -> 0 | D19: =IFERROR(INDEX(ServListing[Time (min)],MATCH(A19,ServListing[Service],0),0),0) -> 15 | E19: =+Q3Analysis[[#This Row],['#/month]]*0.230769230769231 -> 0 | F19: =IFERROR(Q3Analysis[[#This Row],['#/month]]*Q3Analysis[[#This Row],[Revenue/Service]],0) -> 0 | G19: =+Q3Analysis[[#This Row],['#/week]]*Q3Analysis[[#This Row],[Service Time (Min)]] -> 0 | H19: =+'Clinic Budget'!A34 -> Funded
A20: =+'Clinic Budget'!C35 -> Deprescribing BZRA Follow-ups Later (limit of 5 for BZRA only)Project Participants | B20: =+'Service Listing'!J16 -> 12 | C20: =+'Clinic Budget'!Q35 -> 0 | D20: =IFERROR(INDEX(ServListing[Time (min)],MATCH(A20,ServListing[Service],0),0),0) -> 15 | E20: =+Q3Analysis[[#This Row],['#/month]]*0.230769230769231 -> 0 | F20: =IFERROR(Q3Analysis[[#This Row],['#/month]]*Q3Analysis[[#This Row],[Revenue/Service]],0) -> 0 | G20: =+Q3Analysis[[#This Row],['#/week]]*Q3Analysis[[#This Row],[Service Time (Min)]] -> 0 | H20: =+'Clinic Budget'!A35 -> Funded
A21: =+'Clinic Budget'!C36 -> Community Pharmacy Led Anticoagulation Management Service (monthly service fee) | B21: =+'Service Listing'!J17 -> 50 | C21: =+'Clinic Budget'!Q36 -> 0 | D21: =IFERROR(INDEX(ServListing[Time (min)],MATCH(A21,ServListing[Service],0),0),0) -> 15 | E21: =+Q3Analysis[[#This Row],['#/month]]*0.230769230769231 -> 0 | F21: =IFERROR(Q3Analysis[[#This Row],['#/month]]*Q3Analysis[[#This Row],[Revenue/Service]],0) -> 0 | G21: =+Q3Analysis[[#This Row],['#/week]]*Q3Analysis[[#This Row],[Service Time (Min)]] -> 0 | H21: =+'Clinic Budget'!A36 -> Funded
A22: =+'Clinic Budget'!C37 -> Hypertension Project Initial Assessment | B22: =+'Service Listing'!J18 -> 125 | C22: =+'Clinic Budget'!Q37 -> 0 | D22: =IFERROR(INDEX(ServListing[Time (min)],MATCH(A22,ServListing[Service],0),0),0) -> 60 | E22: =+Q3Analysis[[#This Row],['#/month]]*0.230769230769231 -> 0 | F22: =IFERROR(Q3Analysis[[#This Row],['#/month]]*Q3Analysis[[#This Row],[Revenue/Service]],0) -> 0 | G22: =+Q3Analysis[[#This Row],['#/week]]*Q3Analysis[[#This Row],[Service Time (Min)]] -> 0 | H22: =+'Clinic Budget'!A37 -> Funded
A23: =+'Clinic Budget'!C38 -> Hypertension Project Follow-ups | B23: =+'Service Listing'!J19 -> 20 | C23: =+'Clinic Budget'!Q38 -> 0 | D23: =IFERROR(INDEX(ServListing[Time (min)],MATCH(A23,ServListing[Service],0),0),0) -> 15 | E23: =+Q3Analysis[[#This Row],['#/month]]*0.230769230769231 -> 0 | F23: =IFERROR(Q3Analysis[[#This Row],['#/month]]*Q3Analysis[[#This Row],[Revenue/Service]],0) -> 0 | G23: =+Q3Analysis[[#This Row],['#/week]]*Q3Analysis[[#This Row],[Service Time (Min)]] -> 0 | H23: =+'Clinic Budget'!A38 -> Funded
A24: =+'Clinic Budget'!C39 -> Bloom Monthly fee (first 6 months) | B24: =+'Service Listing'!J20 -> 75 | C24: =+'Clinic Budget'!Q39 -> 0 | D24: =IFERROR(INDEX(ServListing[Time (min)],MATCH(A24,ServListing[Service],0),0),0) -> 15 | E24: =+Q3Analysis[[#This Row],['#/month]]*0.230769230769231 -> 0 | F24: =IFERROR(Q3Analysis[[#This Row],['#/month]]*Q3Analysis[[#This Row],[Revenue/Service]],0) -> 0 | G24: =+Q3Analysis[[#This Row],['#/week]]*Q3Analysis[[#This Row],[Service Time (Min)]] -> 0 | H24: =+'Clinic Budget'!A39 -> Funded
A25: =+'Clinic Budget'!C40 -> Bloom Monthly fee (7+ months) | B25: =+'Service Listing'!J21 -> 30 | C25: =+'Clinic Budget'!Q40 -> 0 | D25: =IFERROR(INDEX(ServListing[Time (min)],MATCH(A25,ServListing[Service],0),0),0) -> 15 | E25: =+Q3Analysis[[#This Row],['#/month]]*0.230769230769231 -> 0 | F25: =IFERROR(Q3Analysis[[#This Row],['#/month]]*Q3Analysis[[#This Row],[Revenue/Service]],0) -> 0 | G25: =+Q3Analysis[[#This Row],['#/week]]*Q3Analysis[[#This Row],[Service Time (Min)]] -> 0 | H25: =+'Clinic Budget'!A40 -> Funded
A26: =+'Clinic Budget'!C41 -> Basic Medication Review | B26: =+'Service Listing'!J22 -> 52.5 | C26: =+'Clinic Budget'!Q41 -> 0 | D26: =IFERROR(INDEX(ServListing[Time (min)],MATCH(A26,ServListing[Service],0),0),0) -> 30 | E26: =+Q3Analysis[[#This Row],['#/month]]*0.230769230769231 -> 0 | F26: =IFERROR(Q3Analysis[[#This Row],['#/month]]*Q3Analysis[[#This Row],[Revenue/Service]],0) -> 0 | G26: =+Q3Analysis[[#This Row],['#/week]]*Q3Analysis[[#This Row],[Service Time (Min)]] -> 0 | H26: =+'Clinic Budget'!A41 -> Funded
A27: =+'Clinic Budget'!C42 -> Basic Medication Review Follow-ups | B27: =+'Service Listing'!J23 -> 20 | C27: =+'Clinic Budget'!Q42 -> 0 | D27: =IFERROR(INDEX(ServListing[Time (min)],MATCH(A27,ServListing[Service],0),0),0) -> 15 | E27: =+Q3Analysis[[#This Row],['#/month]]*0.230769230769231 -> 0 | F27: =IFERROR(Q3Analysis[[#This Row],['#/month]]*Q3Analysis[[#This Row],[Revenue/Service]],0) -> 0 | G27: =+Q3Analysis[[#This Row],['#/week]]*Q3Analysis[[#This Row],[Service Time (Min)]] -> 0 | H27: =+'Clinic Budget'!A42 -> Funded
A28: =+'Clinic Budget'!C43 -> Advanced Medication Review | B28: =+'Service Listing'!J24 -> 150 | C28: =+'Clinic Budget'!Q43 -> 0 | D28: =IFERROR(INDEX(ServListing[Time (min)],MATCH(A28,ServListing[Service],0),0),0) -> 90 | E28: =+Q3Analysis[[#This Row],['#/month]]*0.230769230769231 -> 0 | F28: =IFERROR(Q3Analysis[[#This Row],['#/month]]*Q3Analysis[[#This Row],[Revenue/Service]],0) -> 0 | G28: =+Q3Analysis[[#This Row],['#/week]]*Q3Analysis[[#This Row],[Service Time (Min)]] -> 0 | H28: =+'Clinic Budget'!A43 -> Funded
A29: =+'Clinic Budget'!C44 -> Advanced Medication Review Follow-ups | B29: =+'Service Listing'!J25 -> 20 | C29: =+'Clinic Budget'!Q44 -> 0 | D29: =IFERROR(INDEX(ServListing[Time (min)],MATCH(A29,ServListing[Service],0),0),0) -> 15 | E29: =+Q3Analysis[[#This Row],['#/month]]*0.230769230769231 -> 0 | F29: =IFERROR(Q3Analysis[[#This Row],['#/month]]*Q3Analysis[[#This Row],[Revenue/Service]],0) -> 0 | G29: =+Q3Analysis[[#This Row],['#/week]]*Q3Analysis[[#This Row],[Service Time (Min)]] -> 0 | H29: =+'Clinic Budget'!A44 -> Funded
A30: =+'Clinic Budget'!C45 -> Take Home Naloxone Kit Training | B30: =+'Service Listing'!J26 -> 25 | C30: =+'Clinic Budget'!Q45 -> 0 | D30: =IFERROR(INDEX(ServListing[Time (min)],MATCH(A30,ServListing[Service],0),0),0) -> 15 | E30: =+Q3Analysis[[#This Row],['#/month]]*0.230769230769231 -> 0 | F30: =IFERROR(Q3Analysis[[#This Row],['#/month]]*Q3Analysis[[#This Row],[Revenue/Service]],0) -> 0 | G30: =+Q3Analysis[[#This Row],['#/week]]*Q3Analysis[[#This Row],[Service Time (Min)]] -> 0 | H30: =+'Clinic Budget'!A45 -> Funded
A31: =+'Clinic Budget'!C46 -> PPCC Prescription Renewal (1-3 meds) | B31: =+'Service Listing'!J27 -> 12 | C31: =+'Clinic Budget'!Q46 -> 0 | D31: =IFERROR(INDEX(ServListing[Time (min)],MATCH(A31,ServListing[Service],0),0),0) -> 15 | E31: =+Q3Analysis[[#This Row],['#/month]]*0.230769230769231 -> 0 | F31: =IFERROR(Q3Analysis[[#This Row],['#/month]]*Q3Analysis[[#This Row],[Revenue/Service]],0) -> 0 | G31: =+Q3Analysis[[#This Row],['#/week]]*Q3Analysis[[#This Row],[Service Time (Min)]] -> 0 | H31: =+'Clinic Budget'!A46 -> Funded
A32: =+'Clinic Budget'!C47 -> Prescription Renewal (4+ meds) | B32: =+'Service Listing'!J28 -> 20 | C32: =+'Clinic Budget'!Q47 -> 0 | D32: =IFERROR(INDEX(ServListing[Time (min)],MATCH(A32,ServListing[Service],0),0),0) -> 30 | E32: =+Q3Analysis[[#This Row],['#/month]]*0.230769230769231 -> 0 | F32: =IFERROR(Q3Analysis[[#This Row],['#/month]]*Q3Analysis[[#This Row],[Revenue/Service]],0) -> 0 | G32: =+Q3Analysis[[#This Row],['#/week]]*Q3Analysis[[#This Row],[Service Time (Min)]] -> 0 | H32: =+'Clinic Budget'!A47 -> Funded
A33: =+'Clinic Budget'!C48 -> Prescription Adaptation Refusal to Fill | B33: =+'Service Listing'!J29 -> 14 | C33: =+'Clinic Budget'!Q48 -> 0 | D33: =IFERROR(INDEX(ServListing[Time (min)],MATCH(A33,ServListing[Service],0),0),0) -> 15 | E33: =+Q3Analysis[[#This Row],['#/month]]*0.230769230769231 -> 0 | F33: =IFERROR(Q3Analysis[[#This Row],['#/month]]*Q3Analysis[[#This Row],[Revenue/Service]],0) -> 0 | G33: =+Q3Analysis[[#This Row],['#/week]]*Q3Analysis[[#This Row],[Service Time (Min)]] -> 0 | H33: =+'Clinic Budget'!A48 -> Funded
A34: =+'Clinic Budget'!C49 -> Prescription Adaptation -Other | B34: =+'Service Listing'!J30 -> 14 | C34: =+'Clinic Budget'!Q49 -> 0 | D34: =IFERROR(INDEX(ServListing[Time (min)],MATCH(A34,ServListing[Service],0),0),0) -> 15 | E34: =+Q3Analysis[[#This Row],['#/month]]*0.230769230769231 -> 0 | F34: =IFERROR(Q3Analysis[[#This Row],['#/month]]*Q3Analysis[[#This Row],[Revenue/Service]],0) -> 0 | G34: =+Q3Analysis[[#This Row],['#/week]]*Q3Analysis[[#This Row],[Service Time (Min)]] -> 0 | H34: =+'Clinic Budget'!A49 -> Funded
A35: =+'Clinic Budget'!C50 -> Therapeutic Substitution – PPI | B35: =+'Service Listing'!J31 -> 26.5 | C35: =+'Clinic Budget'!Q50 -> 0 | D35: =IFERROR(INDEX(ServListing[Time (min)],MATCH(A35,ServListing[Service],0),0),0) -> 15 | E35: =+Q3Analysis[[#This Row],['#/month]]*0.230769230769231 -> 0 | F35: =IFERROR(Q3Analysis[[#This Row],['#/month]]*Q3Analysis[[#This Row],[Revenue/Service]],0) -> 0 | G35: =+Q3Analysis[[#This Row],['#/week]]*Q3Analysis[[#This Row],[Service Time (Min)]] -> 0 | H35: =+'Clinic Budget'!A50 -> Funded
A36: =+'Clinic Budget'!C51 -> Therapeutic Sub- Other Circumstances | B36: =+'Service Listing'!J32 -> 26.5 | C36: =+'Clinic Budget'!Q51 -> 0 | D36: =IFERROR(INDEX(ServListing[Time (min)],MATCH(A36,ServListing[Service],0),0),0) -> 15 | E36: =+Q3Analysis[[#This Row],['#/month]]*0.230769230769231 -> 0 | F36: =IFERROR(Q3Analysis[[#This Row],['#/month]]*Q3Analysis[[#This Row],[Revenue/Service]],0) -> 0 | G36: =+Q3Analysis[[#This Row],['#/week]]*Q3Analysis[[#This Row],[Service Time (Min)]] -> 0 | H36: =+'Clinic Budget'!A51 -> Funded
A37: =+'Clinic Budget'!C52 -> Assessment – Uncomplicated UTI that results in a prescription | B37: =+'Service Listing'!J33 -> 20 | C37: =+'Clinic Budget'!Q52 -> 0 | D37: =IFERROR(INDEX(ServListing[Time (min)],MATCH(A37,ServListing[Service],0),0),0) -> 15 | E37: =+Q3Analysis[[#This Row],['#/month]]*0.230769230769231 -> 0 | F37: =IFERROR(Q3Analysis[[#This Row],['#/month]]*Q3Analysis[[#This Row],[Revenue/Service]],0) -> 0 | G37: =+Q3Analysis[[#This Row],['#/week]]*Q3Analysis[[#This Row],[Service Time (Min)]] -> 0 | H37: =+'Clinic Budget'!A52 -> Funded
A38: =+'Clinic Budget'!C53 -> Assessment Uncomplicated UTI that does not result in a prescription | B38: =+'Service Listing'!J34 -> 20 | C38: =+'Clinic Budget'!Q53 -> 0 | D38: =IFERROR(INDEX(ServListing[Time (min)],MATCH(A38,ServListing[Service],0),0),0) -> 15 | E38: =+Q3Analysis[[#This Row],['#/month]]*0.230769230769231 -> 0 | F38: =IFERROR(Q3Analysis[[#This Row],['#/month]]*Q3Analysis[[#This Row],[Revenue/Service]],0) -> 0 | G38: =+Q3Analysis[[#This Row],['#/week]]*Q3Analysis[[#This Row],[Service Time (Min)]] -> 0 | H38: =+'Clinic Budget'!A53 -> Funded
A39: =+'Clinic Budget'!C54 -> Prescribing- Lyme Chemoprophylaxis | B39: =+'Service Listing'!J35 -> 20 | C39: =+'Clinic Budget'!Q54 -> 0 | D39: =IFERROR(INDEX(ServListing[Time (min)],MATCH(A39,ServListing[Service],0),0),0) -> 15 | E39: =+Q3Analysis[[#This Row],['#/month]]*0.230769230769231 -> 0 | F39: =IFERROR(Q3Analysis[[#This Row],['#/month]]*Q3Analysis[[#This Row],[Revenue/Service]],0) -> 0 | G39: =+Q3Analysis[[#This Row],['#/week]]*Q3Analysis[[#This Row],[Service Time (Min)]] -> 0 | H39: =+'Clinic Budget'!A54 -> Funded
A40: =+'Clinic Budget'!C55 -> Assessment Lyme Chemoprophylaxis that does not result in a prescription | B40: =+'Service Listing'!J36 -> 20 | C40: =+'Clinic Budget'!Q55 -> 0 | D40: =IFERROR(INDEX(ServListing[Time (min)],MATCH(A40,ServListing[Service],0),0),0) -> 15 | E40: =+Q3Analysis[[#This Row],['#/month]]*0.230769230769231 -> 0 | F40: =IFERROR(Q3Analysis[[#This Row],['#/month]]*Q3Analysis[[#This Row],[Revenue/Service]],0) -> 0 | G40: =+Q3Analysis[[#This Row],['#/week]]*Q3Analysis[[#This Row],[Service Time (Min)]] -> 0 | H40: =+'Clinic Budget'!A55 -> Funded
A41: =+'Clinic Budget'!C56 -> Prescribing Herpes Zoster Tx | B41: =+'Service Listing'!J37 -> 20 | C41: =+'Clinic Budget'!Q56 -> 0 | D41: =IFERROR(INDEX(ServListing[Time (min)],MATCH(A41,ServListing[Service],0),0),0) -> 15 | E41: =+Q3Analysis[[#This Row],['#/month]]*0.230769230769231 -> 0 | F41: =IFERROR(Q3Analysis[[#This Row],['#/month]]*Q3Analysis[[#This Row],[Revenue/Service]],0) -> 0 | G41: =+Q3Analysis[[#This Row],['#/week]]*Q3Analysis[[#This Row],[Service Time (Min)]] -> 0 | H41: =+'Clinic Budget'!A56 -> Funded
A42: =+'Clinic Budget'!C57 -> Assessment Herpes Zoster Tx that does not result in a prescription | B42: =+'Service Listing'!J38 -> 20 | C42: =+'Clinic Budget'!Q57 -> 0 | D42: =IFERROR(INDEX(ServListing[Time (min)],MATCH(A42,ServListing[Service],0),0),0) -> 15 | E42: =+Q3Analysis[[#This Row],['#/month]]*0.230769230769231 -> 0 | F42: =IFERROR(Q3Analysis[[#This Row],['#/month]]*Q3Analysis[[#This Row],[Revenue/Service]],0) -> 0 | G42: =+Q3Analysis[[#This Row],['#/week]]*Q3Analysis[[#This Row],[Service Time (Min)]] -> 0 | H42: =+'Clinic Budget'!A57 -> Funded
A43: =+'Clinic Budget'!C58 -> Prescribing Budesonide for Covid-19 | B43: =+'Service Listing'!J39 -> 20 | C43: =+'Clinic Budget'!Q58 -> 0 | D43: =IFERROR(INDEX(ServListing[Time (min)],MATCH(A43,ServListing[Service],0),0),0) -> 15 | E43: =+Q3Analysis[[#This Row],['#/month]]*0.230769230769231 -> 0 | F43: =IFERROR(Q3Analysis[[#This Row],['#/month]]*Q3Analysis[[#This Row],[Revenue/Service]],0) -> 0 | G43: =+Q3Analysis[[#This Row],['#/week]]*Q3Analysis[[#This Row],[Service Time (Min)]] -> 0 | H43: =+'Clinic Budget'!A58 -> Funded
A44: =+'Clinic Budget'!C59 -> Administration of publicly funded vaccine other than covid-19 or flu | B44: =+'Service Listing'!J40 -> 18 | C44: =+'Clinic Budget'!Q59 -> 0 | D44: =IFERROR(INDEX(ServListing[Time (min)],MATCH(A44,ServListing[Service],0),0),0) -> 15 | E44: =+Q3Analysis[[#This Row],['#/month]]*0.230769230769231 -> 0 | F44: =IFERROR(Q3Analysis[[#This Row],['#/month]]*Q3Analysis[[#This Row],[Revenue/Service]],0) -> 0 | G44: =+Q3Analysis[[#This Row],['#/week]]*Q3Analysis[[#This Row],[Service Time (Min)]] -> 0 | H44: =+'Clinic Budget'!A59 -> Not Funded Eligible
A45: =+'Clinic Budget'!C60 -> Assessment and Administration of IM or SC injectable medication | B45: =+'Service Listing'!J41 -> 20 | C45: =+'Clinic Budget'!Q60 -> 0 | D45: =IFERROR(INDEX(ServListing[Time (min)],MATCH(A45,ServListing[Service],0),0),0) -> 15 | E45: =+Q3Analysis[[#This Row],['#/month]]*0.230769230769231 -> 0 | F45: =IFERROR(Q3Analysis[[#This Row],['#/month]]*Q3Analysis[[#This Row],[Revenue/Service]],0) -> 0 | G45: =+Q3Analysis[[#This Row],['#/week]]*Q3Analysis[[#This Row],[Service Time (Min)]] -> 0 | H45: =+'Clinic Budget'!A60 -> Not Funded Eligible
A46: =+'Clinic Budget'!C61 -> Assessment and Administration of Anti-psychotic medications | B46: =+'Service Listing'!J42 -> 40 | C46: =+'Clinic Budget'!Q61 -> 0 | D46: =IFERROR(INDEX(ServListing[Time (min)],MATCH(A46,ServListing[Service],0),0),0) -> 15 | E46: =+Q3Analysis[[#This Row],['#/month]]*0.230769230769231 -> 0 | F46: =IFERROR(Q3Analysis[[#This Row],['#/month]]*Q3Analysis[[#This Row],[Revenue/Service]],0) -> 0 | G46: =+Q3Analysis[[#This Row],['#/week]]*Q3Analysis[[#This Row],[Service Time (Min)]] -> 0 | H46: =+'Clinic Budget'!A61 -> Not Funded Eligible
A47: =+'Clinic Budget'!C62 -> Assessment and Administration of Sublocade | B47: =+'Service Listing'!J43 -> 40 | C47: =+'Clinic Budget'!Q62 -> 0 | D47: =IFERROR(INDEX(ServListing[Time (min)],MATCH(A47,ServListing[Service],0),0),0) -> 15 | E47: =+Q3Analysis[[#This Row],['#/month]]*0.230769230769231 -> 0 | F47: =IFERROR(Q3Analysis[[#This Row],['#/month]]*Q3Analysis[[#This Row],[Revenue/Service]],0) -> 0 | G47: =+Q3Analysis[[#This Row],['#/week]]*Q3Analysis[[#This Row],[Service Time (Min)]] -> 0 | H47: =+'Clinic Budget'!A62 -> Not Funded Eligible
A48: =+'Clinic Budget'!C63 -> Deprescribing -PPI Non Project Participants Initial Assessment | B48: =+'Service Listing'!J44 -> 52.5 | C48: =+'Clinic Budget'!Q63 -> 0 | D48: =IFERROR(INDEX(ServListing[Time (min)],MATCH(A48,ServListing[Service],0),0),0) -> 30 | E48: =+Q3Analysis[[#This Row],['#/month]]*0.230769230769231 -> 0 | F48: =IFERROR(Q3Analysis[[#This Row],['#/month]]*Q3Analysis[[#This Row],[Revenue/Service]],0) -> 0 | G48: =+Q3Analysis[[#This Row],['#/week]]*Q3Analysis[[#This Row],[Service Time (Min)]] -> 0 | H48: =+'Clinic Budget'!A63 -> Not Funded Eligible
A49: =+'Clinic Budget'!C64 -> Deprescribing PPI Follow-ups- Early (limit of 2) Non Project participants | B49: =+'Service Listing'!J45 -> 20 | C49: =+'Clinic Budget'!Q64 -> 0 | D49: =IFERROR(INDEX(ServListing[Time (min)],MATCH(A49,ServListing[Service],0),0),0) -> 15 | E49: =+Q3Analysis[[#This Row],['#/month]]*0.230769230769231 -> 0 | F49: =IFERROR(Q3Analysis[[#This Row],['#/month]]*Q3Analysis[[#This Row],[Revenue/Service]],0) -> 0 | G49: =+Q3Analysis[[#This Row],['#/week]]*Q3Analysis[[#This Row],[Service Time (Min)]] -> 0 | H49: =+'Clinic Budget'!A64 -> Not Funded Eligible
A50: =+'Clinic Budget'!C65 -> Deprescribing BZRA Non Project Participants Initial Assessment | B50: =+'Service Listing'!J46 -> 150 | C50: =+'Clinic Budget'!Q65 -> 0 | D50: =IFERROR(INDEX(ServListing[Time (min)],MATCH(A50,ServListing[Service],0),0),0) -> 60 | E50: =+Q3Analysis[[#This Row],['#/month]]*0.230769230769231 -> 0 | F50: =IFERROR(Q3Analysis[[#This Row],['#/month]]*Q3Analysis[[#This Row],[Revenue/Service]],0) -> 0 | G50: =+Q3Analysis[[#This Row],['#/week]]*Q3Analysis[[#This Row],[Service Time (Min)]] -> 0 | H50: =+'Clinic Budget'!A65 -> Not Funded Eligible
A51: =+'Clinic Budget'!C66 -> Deprescribing BZRA Follow-ups- Early (limit of 2) Non Project participants | B51: =+'Service Listing'!J47 -> 20 | C51: =+'Clinic Budget'!Q66 -> 0 | D51: =IFERROR(INDEX(ServListing[Time (min)],MATCH(A51,ServListing[Service],0),0),0) -> 15 | E51: =+Q3Analysis[[#This Row],['#/month]]*0.230769230769231 -> 0 | F51: =IFERROR(Q3Analysis[[#This Row],['#/month]]*Q3Analysis[[#This Row],[Revenue/Service]],0) -> 0 | G51: =+Q3Analysis[[#This Row],['#/week]]*Q3Analysis[[#This Row],[Service Time (Min)]] -> 0 | H51: =+'Clinic Budget'!A66 -> Not Funded Eligible
A52: =+'Clinic Budget'!C67 -> Deprescribing BZRA Follow-ups Later (limit of 5 for BZRA only) Non-Project Participants | B52: =+'Service Listing'!J48 -> 12 | C52: =+'Clinic Budget'!Q67 -> 0 | D52: =IFERROR(INDEX(ServListing[Time (min)],MATCH(A52,ServListing[Service],0),0),0) -> 15 | E52: =+Q3Analysis[[#This Row],['#/month]]*0.230769230769231 -> 0 | F52: =IFERROR(Q3Analysis[[#This Row],['#/month]]*Q3Analysis[[#This Row],[Revenue/Service]],0) -> 0 | G52: =+Q3Analysis[[#This Row],['#/week]]*Q3Analysis[[#This Row],[Service Time (Min)]] -> 0 | H52: =+'Clinic Budget'!A67 -> Not Funded Eligible
A53: =+'Clinic Budget'!C68 -> Complex Medication Therapy Assessment | B53: =+'Service Listing'!J49 -> 37.5 | C53: =+'Clinic Budget'!Q68 -> 0 | D53: =IFERROR(INDEX(ServListing[Time (min)],MATCH(A53,ServListing[Service],0),0),0) -> 15 | E53: =+Q3Analysis[[#This Row],['#/month]]*0.230769230769231 -> 0 | F53: =IFERROR(Q3Analysis[[#This Row],['#/month]]*Q3Analysis[[#This Row],[Revenue/Service]],0) -> 0 | G53: =+Q3Analysis[[#This Row],['#/week]]*Q3Analysis[[#This Row],[Service Time (Min)]] -> 0 | H53: =+'Clinic Budget'!A68 -> Not Funded Eligible
A54: =+'Clinic Budget'!C69 -> Hypertension Project Initial Assessment | B54: =+'Service Listing'!J50 -> 125 | C54: =+'Clinic Budget'!Q69 -> 0 | D54: =IFERROR(INDEX(ServListing[Time (min)],MATCH(A54,ServListing[Service],0),0),0) -> 60 | E54: =+Q3Analysis[[#This Row],['#/month]]*0.230769230769231 -> 0 | F54: =IFERROR(Q3Analysis[[#This Row],['#/month]]*Q3Analysis[[#This Row],[Revenue/Service]],0) -> 0 | G54: =+Q3Analysis[[#This Row],['#/week]]*Q3Analysis[[#This Row],[Service Time (Min)]] -> 0 | H54: =+'Clinic Budget'!A69 -> Not Funded Eligible
A55: =+'Clinic Budget'!C70 -> Hypertension Project Follow-ups | B55: =+'Service Listing'!J51 -> 20 | C55: =+'Clinic Budget'!Q70 -> 0 | D55: =IFERROR(INDEX(ServListing[Time (min)],MATCH(A55,ServListing[Service],0),0),0) -> 15 | E55: =+Q3Analysis[[#This Row],['#/month]]*0.230769230769231 -> 0 | F55: =IFERROR(Q3Analysis[[#This Row],['#/month]]*Q3Analysis[[#This Row],[Revenue/Service]],0) -> 0 | G55: =+Q3Analysis[[#This Row],['#/week]]*Q3Analysis[[#This Row],[Service Time (Min)]] -> 0 | H55: =+'Clinic Budget'!A70 -> Not Funded Eligible
A56: =+'Clinic Budget'!C71 -> Prescribing with a diagnosis as per NSCP standard in collaboration with another provider | B56: =+'Service Listing'!J52 -> 25 | C56: =+'Clinic Budget'!Q71 -> 0 | D56: =IFERROR(INDEX(ServListing[Time (min)],MATCH(A56,ServListing[Service],0),0),0) -> 15 | E56: =+Q3Analysis[[#This Row],['#/month]]*0.230769230769231 -> 0 | F56: =IFERROR(Q3Analysis[[#This Row],['#/month]]*Q3Analysis[[#This Row],[Revenue/Service]],0) -> 0 | G56: =+Q3Analysis[[#This Row],['#/week]]*Q3Analysis[[#This Row],[Service Time (Min)]] -> 0 | H56: =+'Clinic Budget'!A71 -> Not Funded Eligible
A57: =+'Clinic Budget'!C72 -> Chronic Disease Management – Diabetes – Initial/Annual assessment | B57: =+'Service Listing'!J53 -> 125 | C57: =+'Clinic Budget'!Q72 -> 0 | D57: =IFERROR(INDEX(ServListing[Time (min)],MATCH(A57,ServListing[Service],0),0),0) -> 60 | E57: =+Q3Analysis[[#This Row],['#/month]]*0.230769230769231 -> 0 | F57: =IFERROR(Q3Analysis[[#This Row],['#/month]]*Q3Analysis[[#This Row],[Revenue/Service]],0) -> 0 | G57: =+Q3Analysis[[#This Row],['#/week]]*Q3Analysis[[#This Row],[Service Time (Min)]] -> 0 | H57: =+'Clinic Budget'!A72 -> Not Funded Eligible
A58: =+'Clinic Budget'!C73 -> Chronic Disease Diabetes Management - Follow-up (up to 5 per year) | B58: =+'Service Listing'!J54 -> 20 | C58: =+'Clinic Budget'!Q73 -> 0 | D58: =IFERROR(INDEX(ServListing[Time (min)],MATCH(A58,ServListing[Service],0),0),0) -> 15 | E58: =+Q3Analysis[[#This Row],['#/month]]*0.230769230769231 -> 0 | F58: =IFERROR(Q3Analysis[[#This Row],['#/month]]*Q3Analysis[[#This Row],[Revenue/Service]],0) -> 0 | G58: =+Q3Analysis[[#This Row],['#/week]]*Q3Analysis[[#This Row],[Service Time (Min)]] -> 0 | H58: =+'Clinic Budget'!A73 -> Not Funded Eligible
A59: =+'Clinic Budget'!C74 -> Chronic Disease Management – Lung Disease Asthma/COPD) Initial/Annual Assessment | B59: =+'Service Listing'!J55 -> 125 | C59: =+'Clinic Budget'!Q74 -> 0 | D59: =IFERROR(INDEX(ServListing[Time (min)],MATCH(A59,ServListing[Service],0),0),0) -> 60 | E59: =+Q3Analysis[[#This Row],['#/month]]*0.230769230769231 -> 0 | F59: =IFERROR(Q3Analysis[[#This Row],['#/month]]*Q3Analysis[[#This Row],[Revenue/Service]],0) -> 0 | G59: =+Q3Analysis[[#This Row],['#/week]]*Q3Analysis[[#This Row],[Service Time (Min)]] -> 0 | H59: =+'Clinic Budget'!A74 -> Not Funded Eligible
A60: =+'Clinic Budget'!C75 -> Chronic Disease Management – Lung Disease Follow-up (up to 5 per year | B60: =+'Service Listing'!J56 -> 20 | C60: =+'Clinic Budget'!Q75 -> 0 | D60: =IFERROR(INDEX(ServListing[Time (min)],MATCH(A60,ServListing[Service],0),0),0) -> 15 | E60: =+Q3Analysis[[#This Row],['#/month]]*0.230769230769231 -> 0 | F60: =IFERROR(Q3Analysis[[#This Row],['#/month]]*Q3Analysis[[#This Row],[Revenue/Service]],0) -> 0 | G60: =+Q3Analysis[[#This Row],['#/week]]*Q3Analysis[[#This Row],[Service Time (Min)]] -> 0 | H60: =+'Clinic Budget'!A75 -> Not Funded Eligible
A61: =+'Clinic Budget'!C76 -> Chronic Disease Management -Cardiovascular Disease Initial/Annual Assessment | B61: =+'Service Listing'!J57 -> 125 | C61: =+'Clinic Budget'!Q76 -> 0 | D61: =IFERROR(INDEX(ServListing[Time (min)],MATCH(A61,ServListing[Service],0),0),0) -> 60 | E61: =+Q3Analysis[[#This Row],['#/month]]*0.230769230769231 -> 0 | F61: =IFERROR(Q3Analysis[[#This Row],['#/month]]*Q3Analysis[[#This Row],[Revenue/Service]],0) -> 0 | G61: =+Q3Analysis[[#This Row],['#/week]]*Q3Analysis[[#This Row],[Service Time (Min)]] -> 0 | H61: =+'Clinic Budget'!A76 -> Not Funded Eligible
A62: =+'Clinic Budget'!C77 -> Chronic Disease Management Cardiovascular Disease Follow-up (up to 5 per year) | B62: =+'Service Listing'!J58 -> 20 | C62: =+'Clinic Budget'!Q77 -> 0 | D62: =IFERROR(INDEX(ServListing[Time (min)],MATCH(A62,ServListing[Service],0),0),0) -> 15 | E62: =+Q3Analysis[[#This Row],['#/month]]*0.230769230769231 -> 0 | F62: =IFERROR(Q3Analysis[[#This Row],['#/month]]*Q3Analysis[[#This Row],[Revenue/Service]],0) -> 0 | G62: =+Q3Analysis[[#This Row],['#/week]]*Q3Analysis[[#This Row],[Service Time (Min)]] -> 0 | H62: =+'Clinic Budget'!A77 -> Not Funded Eligible
A63: =+'Clinic Budget'!C78 -> Tobacco Use Reduction Program – Initial Assessment and Discussion | B63: =+'Service Listing'!J59 -> 40 | C63: =+'Clinic Budget'!Q78 -> 0 | D63: =IFERROR(INDEX(ServListing[Time (min)],MATCH(A63,ServListing[Service],0),0),0) -> 60 | E63: =+Q3Analysis[[#This Row],['#/month]]*0.230769230769231 -> 0 | F63: =IFERROR(Q3Analysis[[#This Row],['#/month]]*Q3Analysis[[#This Row],[Revenue/Service]],0) -> 0 | G63: =+Q3Analysis[[#This Row],['#/week]]*Q3Analysis[[#This Row],[Service Time (Min)]] -> 0 | H63: =+'Clinic Budget'!A78 -> Not Funded Eligible
A64: =+'Clinic Budget'!C79 -> Tobacco Use Reduction Program – Follow-up 1-3 | B64: =+'Service Listing'!J60 -> 15 | C64: =+'Clinic Budget'!Q79 -> 0 | D64: =IFERROR(INDEX(ServListing[Time (min)],MATCH(A64,ServListing[Service],0),0),0) -> 15 | E64: =+Q3Analysis[[#This Row],['#/month]]*0.230769230769231 -> 0 | F64: =IFERROR(Q3Analysis[[#This Row],['#/month]]*Q3Analysis[[#This Row],[Revenue/Service]],0) -> 0 | G64: =+Q3Analysis[[#This Row],['#/week]]*Q3Analysis[[#This Row],[Service Time (Min)]] -> 0 | H64: =+'Clinic Budget'!A79 -> Not Funded Eligible
A65: =+'Clinic Budget'!C80 -> Tobacco Use Reduction Program –Follow-up 4-7 | B65: =+'Service Listing'!J61 -> 10 | C65: =+'Clinic Budget'!Q80 -> 0 | D65: =IFERROR(INDEX(ServListing[Time (min)],MATCH(A65,ServListing[Service],0),0),0) -> 15 | E65: =+Q3Analysis[[#This Row],['#/month]]*0.230769230769231 -> 0 | F65: =IFERROR(Q3Analysis[[#This Row],['#/month]]*Q3Analysis[[#This Row],[Revenue/Service]],0) -> 0 | G65: =+Q3Analysis[[#This Row],['#/week]]*Q3Analysis[[#This Row],[Service Time (Min)]] -> 0 | H65: =+'Clinic Budget'!A80 -> Not Funded Eligible
A66: =+'Clinic Budget'!C81 -> Renewal Assessment that does not result in a prescription | B66: =+'Service Listing'!J62 -> 12 | C66: =+'Clinic Budget'!Q81 -> 0 | D66: =IFERROR(INDEX(ServListing[Time (min)],MATCH(A66,ServListing[Service],0),0),0) -> 15 | E66: =+Q3Analysis[[#This Row],['#/month]]*0.230769230769231 -> 0 | F66: =IFERROR(Q3Analysis[[#This Row],['#/month]]*Q3Analysis[[#This Row],[Revenue/Service]],0) -> 0 | G66: =+Q3Analysis[[#This Row],['#/week]]*Q3Analysis[[#This Row],[Service Time (Min)]] -> 0 | H66: =+'Clinic Budget'!A81 -> Not Funded Eligible
A67: =+'Clinic Budget'!C82 -> Prescription Adaptation Refusal to Fill | B67: =+'Service Listing'!J63 -> 14 | C67: =+'Clinic Budget'!Q82 -> 0 | D67: =IFERROR(INDEX(ServListing[Time (min)],MATCH(A67,ServListing[Service],0),0),0) -> 15 | E67: =+Q3Analysis[[#This Row],['#/month]]*0.230769230769231 -> 0 | F67: =IFERROR(Q3Analysis[[#This Row],['#/month]]*Q3Analysis[[#This Row],[Revenue/Service]],0) -> 0 | G67: =+Q3Analysis[[#This Row],['#/week]]*Q3Analysis[[#This Row],[Service Time (Min)]] -> 0 | H67: =+'Clinic Budget'!A82 -> Not Funded Eligible
A68: =+'Clinic Budget'!C83 -> Prescription Adaptation -Other | B68: =+'Service Listing'!J64 -> 14 | C68: =+'Clinic Budget'!Q83 -> 0 | D68: =IFERROR(INDEX(ServListing[Time (min)],MATCH(A68,ServListing[Service],0),0),0) -> 15 | E68: =+Q3Analysis[[#This Row],['#/month]]*0.230769230769231 -> 0 | F68: =IFERROR(Q3Analysis[[#This Row],['#/month]]*Q3Analysis[[#This Row],[Revenue/Service]],0) -> 0 | G68: =+Q3Analysis[[#This Row],['#/week]]*Q3Analysis[[#This Row],[Service Time (Min)]] -> 0 | H68: =+'Clinic Budget'!A83 -> Not Funded Eligible
A69: =+'Clinic Budget'!C84 -> Therapeutic Substitution – PPI | B69: =+'Service Listing'!J65 -> 26.5 | C69: =+'Clinic Budget'!Q84 -> 0 | D69: =IFERROR(INDEX(ServListing[Time (min)],MATCH(A69,ServListing[Service],0),0),0) -> 15 | E69: =+Q3Analysis[[#This Row],['#/month]]*0.230769230769231 -> 0 | F69: =IFERROR(Q3Analysis[[#This Row],['#/month]]*Q3Analysis[[#This Row],[Revenue/Service]],0) -> 0 | G69: =+Q3Analysis[[#This Row],['#/week]]*Q3Analysis[[#This Row],[Service Time (Min)]] -> 0 | H69: =+'Clinic Budget'!A84 -> Not Funded Eligible
A70: =+'Clinic Budget'!C85 -> Therapeutic Sub- Other Circumstances | B70: =+'Service Listing'!J66 -> 26.5 | C70: =+'Clinic Budget'!Q85 -> 0 | D70: =IFERROR(INDEX(ServListing[Time (min)],MATCH(A70,ServListing[Service],0),0),0) -> 15 | E70: =+Q3Analysis[[#This Row],['#/month]]*0.230769230769231 -> 0 | F70: =IFERROR(Q3Analysis[[#This Row],['#/month]]*Q3Analysis[[#This Row],[Revenue/Service]],0) -> 0 | G70: =+Q3Analysis[[#This Row],['#/week]]*Q3Analysis[[#This Row],[Service Time (Min)]] -> 0 | H70: =+'Clinic Budget'!A85 -> Not Funded Eligible
A71: =+'Clinic Budget'!C86 -> Prescribing in an Emergency | B71: =+'Service Listing'!J67 -> 28 | C71: =+'Clinic Budget'!Q86 -> 0 | D71: =IFERROR(INDEX(ServListing[Time (min)],MATCH(A71,ServListing[Service],0),0),0) -> 15 | E71: =+Q3Analysis[[#This Row],['#/month]]*0.230769230769231 -> 0 | F71: =IFERROR(Q3Analysis[[#This Row],['#/month]]*Q3Analysis[[#This Row],[Revenue/Service]],0) -> 0 | G71: =+Q3Analysis[[#This Row],['#/week]]*Q3Analysis[[#This Row],[Service Time (Min)]] -> 0 | H71: =+'Clinic Budget'!A86 -> Not Funded Eligible
A72: =+'Clinic Budget'!C87 -> Pharmacist independent prescribing with diagnosis confirmed by pharmacist (Diabetes, Lung, CVD only). NSCP Study | B72: =+'Service Listing'!J68 -> 25 | C72: =+'Clinic Budget'!Q87 -> 0 | D72: =IFERROR(INDEX(ServListing[Time (min)],MATCH(A72,ServListing[Service],0),0),0) -> 15 | E72: =+Q3Analysis[[#This Row],['#/month]]*0.230769230769231 -> 0 | F72: =IFERROR(Q3Analysis[[#This Row],['#/month]]*Q3Analysis[[#This Row],[Revenue/Service]],0) -> 0 | G72: =+Q3Analysis[[#This Row],['#/week]]*Q3Analysis[[#This Row],[Service Time (Min)]] -> 0 | H72: =+'Clinic Budget'!A87 -> Not Funded Eligible
A73: =+'Clinic Budget'!C88 -> Prescribing for a Minor Ailment (as per Appendix 6) | B73: =+'Service Listing'!J69 -> 25 | C73: =+'Clinic Budget'!Q88 -> 0 | D73: =IFERROR(INDEX(ServListing[Time (min)],MATCH(A73,ServListing[Service],0),0),0) -> 15 | E73: =+Q3Analysis[[#This Row],['#/month]]*0.230769230769231 -> 0 | F73: =IFERROR(Q3Analysis[[#This Row],['#/month]]*Q3Analysis[[#This Row],[Revenue/Service]],0) -> 0 | G73: =+Q3Analysis[[#This Row],['#/week]]*Q3Analysis[[#This Row],[Service Time (Min)]] -> 0 | H73: =+'Clinic Budget'!A88 -> Not Funded Eligible
A74: =+'Clinic Budget'!C89 -> Assessment, Point of Care Testing For Group A Strep that results in a prescription | B74: =+'Service Listing'!J70 -> 35 | C74: =+'Clinic Budget'!Q89 -> 0 | D74: =IFERROR(INDEX(ServListing[Time (min)],MATCH(A74,ServListing[Service],0),0),0) -> 15 | E74: =+Q3Analysis[[#This Row],['#/month]]*0.230769230769231 -> 0 | F74: =IFERROR(Q3Analysis[[#This Row],['#/month]]*Q3Analysis[[#This Row],[Revenue/Service]],0) -> 0 | G74: =+Q3Analysis[[#This Row],['#/week]]*Q3Analysis[[#This Row],[Service Time (Min)]] -> 0 | H74: =+'Clinic Budget'!A89 -> Not Funded Eligible
A75: =+'Clinic Budget'!C90 -> Assessment Group A Strep that does not result in an RX | B75: =+'Service Listing'!J71 -> 20 | C75: =+'Clinic Budget'!Q90 -> 0 | D75: =IFERROR(INDEX(ServListing[Time (min)],MATCH(A75,ServListing[Service],0),0),0) -> 15 | E75: =+Q3Analysis[[#This Row],['#/month]]*0.230769230769231 -> 0 | F75: =IFERROR(Q3Analysis[[#This Row],['#/month]]*Q3Analysis[[#This Row],[Revenue/Service]],0) -> 0 | G75: =+Q3Analysis[[#This Row],['#/week]]*Q3Analysis[[#This Row],[Service Time (Min)]] -> 0 | H75: =+'Clinic Budget'!A90 -> Not Funded Eligible
A76: =+'Clinic Budget'!C91 -> Point of Care Test A1C | B76: =+'Service Listing'!J72 -> 25 | C76: =+'Clinic Budget'!Q91 -> 0 | D76: =IFERROR(INDEX(ServListing[Time (min)],MATCH(A76,ServListing[Service],0),0),0) -> 15 | E76: =+Q3Analysis[[#This Row],['#/month]]*0.230769230769231 -> 0 | F76: =IFERROR(Q3Analysis[[#This Row],['#/month]]*Q3Analysis[[#This Row],[Revenue/Service]],0) -> 0 | G76: =+Q3Analysis[[#This Row],['#/week]]*Q3Analysis[[#This Row],[Service Time (Min)]] -> 0 | H76: =+'Clinic Budget'!A91 -> Not Funded Eligible
A77: =+'Clinic Budget'!C92 -> Point of Care Test Cholesterol | B77: =+'Service Listing'!J73 -> 25 | C77: =+'Clinic Budget'!Q92 -> 0 | D77: =IFERROR(INDEX(ServListing[Time (min)],MATCH(A77,ServListing[Service],0),0),0) -> 15 | E77: =+Q3Analysis[[#This Row],['#/month]]*0.230769230769231 -> 0 | F77: =IFERROR(Q3Analysis[[#This Row],['#/month]]*Q3Analysis[[#This Row],[Revenue/Service]],0) -> 0 | G77: =+Q3Analysis[[#This Row],['#/week]]*Q3Analysis[[#This Row],[Service Time (Min)]] -> 0 | H77: =+'Clinic Budget'!A92 -> Not Funded Eligible
A78: =+'Clinic Budget'!C93 -> Administration of non-publicly funded vaccines | B78: =+'Service Listing'!J74 -> 20 | C78: =+'Clinic Budget'!Q93 -> 0 | D78: =IFERROR(INDEX(ServListing[Time (min)],MATCH(A78,ServListing[Service],0),0),0) -> 7.5 | E78: =+Q3Analysis[[#This Row],['#/month]]*0.230769230769231 -> 0 | F78: =IFERROR(Q3Analysis[[#This Row],['#/month]]*Q3Analysis[[#This Row],[Revenue/Service]],0) -> 0 | G78: =+Q3Analysis[[#This Row],['#/week]]*Q3Analysis[[#This Row],[Service Time (Min)]] -> 0 | H78: =+'Clinic Budget'!A93 -> Not Funded Not Eligible
A79: =+'Clinic Budget'!C94 -> Comprehensive Travel Health Consultation | B79: =+'Service Listing'!J75 -> Fee Set by Site | C79: =+'Clinic Budget'!Q94 -> 0 | D79: =IFERROR(INDEX(ServListing[Time (min)],MATCH(A79,ServListing[Service],0),0),0) -> 30 | E79: =+Q3Analysis[[#This Row],['#/month]]*0.230769230769231 -> 0 | F79: =IFERROR(Q3Analysis[[#This Row],['#/month]]*Q3Analysis[[#This Row],[Revenue/Service]],0) -> 0 | G79: =+Q3Analysis[[#This Row],['#/week]]*Q3Analysis[[#This Row],[Service Time (Min)]] -> 0 | H79: =+'Clinic Budget'!A94 -> Not Funded Not Eligible
A80: =+'Clinic Budget'!C95 -> Pharmacogenomic Consultation Service | B80: =+'Service Listing'!J76 -> Fee Set by Site | C80: =+'Clinic Budget'!Q95 -> 0 | D80: =IFERROR(INDEX(ServListing[Time (min)],MATCH(A80,ServListing[Service],0),0),0) -> 30 | E80: =+Q3Analysis[[#This Row],['#/month]]*0.230769230769231 -> 0 | F80: =IFERROR(Q3Analysis[[#This Row],['#/month]]*Q3Analysis[[#This Row],[Revenue/Service]],0) -> 0 | G80: =+Q3Analysis[[#This Row],['#/week]]*Q3Analysis[[#This Row],[Service Time (Min)]] -> 0 | H80: =+'Clinic Budget'!A95 -> Not Funded Not Eligible
A81: =+'Clinic Budget'!C96 -> Malaria Chemoprophylaxis Assessment and Prescribing | B81: =+'Service Listing'!J77 -> Fee Set by Site | C81: =+'Clinic Budget'!Q96 -> 0 | D81: =IFERROR(INDEX(ServListing[Time (min)],MATCH(A81,ServListing[Service],0),0),0) -> 30 | E81: =+Q3Analysis[[#This Row],['#/month]]*0.230769230769231 -> 0 | F81: =IFERROR(Q3Analysis[[#This Row],['#/month]]*Q3Analysis[[#This Row],[Revenue/Service]],0) -> 0 | G81: =+Q3Analysis[[#This Row],['#/week]]*Q3Analysis[[#This Row],[Service Time (Min)]] -> 0 | H81: =+'Clinic Budget'!A96 -> Not Funded Not Eligible
A82: =+'Clinic Budget'!C97 -> Any Service for a Patient without an NS Health card that is not covered for out of province patients | B82: =+'Service Listing'!J78 -> Fee Set by Site | C82: =+'Clinic Budget'!Q97 -> 0 | D82: =IFERROR(INDEX(ServListing[Time (min)],MATCH(A82,ServListing[Service],0),0),0) -> 15 | E82: =+Q3Analysis[[#This Row],['#/month]]*0.230769230769231 -> 0 | F82: =IFERROR(Q3Analysis[[#This Row],['#/month]]*Q3Analysis[[#This Row],[Revenue/Service]],0) -> 0 | G82: =+Q3Analysis[[#This Row],['#/week]]*Q3Analysis[[#This Row],[Service Time (Min)]] -> 0 | H82: =+'Clinic Budget'!A97 -> Not Funded Not Eligible
A83: =+'Service Listing'!$C$79 -> Rapid Antigen Testing Travel Test | B83: =+'Service Listing'!J79 -> 40 | C83: =+'Clinic Budget'!Q98 -> 0 | D83: =IFERROR(INDEX(ServListing[Time (min)],MATCH(A83,ServListing[Service],0),0),0) -> 15 | E83: =+Q3Analysis[[#This Row],['#/month]]*0.230769230769231 -> 0 | F83: =IFERROR(Q3Analysis[[#This Row],['#/month]]*Q3Analysis[[#This Row],[Revenue/Service]],0) -> 0 | G83: =+Q3Analysis[[#This Row],['#/week]]*Q3Analysis[[#This Row],[Service Time (Min)]] -> 0 | H83: =+'Clinic Budget'!A98 -> Not Funded Not Eligible
A84: =+'Service Listing'!$C$80 -> Other: | B84: =+'Service Listing'!J80 -> Fee Set by Site | C84: =+'Clinic Budget'!Q99 -> 0 | D84: =IFERROR(INDEX(ServListing[Time (min)],MATCH(A84,ServListing[Service],0),0),0) -> 15 | E84: =+Q3Analysis[[#This Row],['#/month]]*0.230769230769231 -> 0 | F84: =IFERROR(Q3Analysis[[#This Row],['#/month]]*Q3Analysis[[#This Row],[Revenue/Service]],0) -> 0 | G84: =+Q3Analysis[[#This Row],['#/week]]*Q3Analysis[[#This Row],[Service Time (Min)]] -> 0 | H84: =+'Clinic Budget'!A99 -> Not Funded Not Eligible
A85: =+'Service Listing'!$C$81 -> Other: | B85: =+'Service Listing'!J81 -> Fee Set by Site | C85: =+'Clinic Budget'!Q100 -> 0 | D85: =IFERROR(INDEX(ServListing[Time (min)],MATCH(A85,ServListing[Service],0),0),0) -> 15 | E85: =+Q3Analysis[[#This Row],['#/month]]*0.230769230769231 -> 0 | F85: =IFERROR(Q3Analysis[[#This Row],['#/month]]*Q3Analysis[[#This Row],[Revenue/Service]],0) -> 0 | G85: =+Q3Analysis[[#This Row],['#/week]]*Q3Analysis[[#This Row],[Service Time (Min)]] -> 0 | H85: =+'Clinic Budget'!A100 -> Not Funded Not Eligible
A86: *CPAMS Initial Appointments | B86: N/A | C86: 0 | D86: =+D87*2 -> 30 | E86: =+Q3Analysis[[#This Row],['#/month]]*0.230769230769231 -> 0 | F86: =IFERROR(Q3Analysis[[#This Row],['#/month]]*Q3Analysis[[#This Row],[Revenue/Service]],0) -> 0 | G86: =+Q3Analysis[[#This Row],['#/week]]*Q3Analysis[[#This Row],[Service Time (Min)]] -> 0 | H86: N/A
A87: *CPAMS Surplus Appointments | B87: N/A | C87: 0 | D87: =+'Service Listing'!$F$3 -> 15 | E87: =+Q3Analysis[[#This Row],['#/month]]*0.230769230769231 -> 0 | F87: =IFERROR(Q3Analysis[[#This Row],['#/month]]*Q3Analysis[[#This Row],[Revenue/Service]],0) -> 0 | G87: =+Q3Analysis[[#This Row],['#/week]]*Q3Analysis[[#This Row],[Service Time (Min)]] -> 0 | H87: N/A
A88: *Bloom Initial Assessments Appoint | B88: N/A | C88: 0 | D88: =+D89*4 -> 60 | E88: =+Q3Analysis[[#This Row],['#/month]]*0.230769230769231 -> 0 | F88: =IFERROR(Q3Analysis[[#This Row],['#/month]]*Q3Analysis[[#This Row],[Revenue/Service]],0) -> 0 | G88: =+Q3Analysis[[#This Row],['#/week]]*Q3Analysis[[#This Row],[Service Time (Min)]] -> 0 | H88: N/A
A89: *Bloom Surplus Appointments | B89: N/A | C89: 0 | D89: =+'Service Listing'!$F$3 -> 15 | E89: =+Q3Analysis[[#This Row],['#/month]]*0.230769230769231 -> 0 | F89: =IFERROR(Q3Analysis[[#This Row],['#/month]]*Q3Analysis[[#This Row],[Revenue/Service]],0) -> 0 | G89: =+Q3Analysis[[#This Row],['#/week]]*Q3Analysis[[#This Row],[Service Time (Min)]] -> 0 | H89: N/A
A90: Total | F90: =SUBTOTAL(109,Q3Analysis[Monthly Revenue per Service]) -> 0 | G90: =SUBTOTAL(109,Q3Analysis[Weekly Time Needed (min)]) -> 0

Sheet Q4 Monthly Analysis
A1: Community Pharmacy Primary Care Clinic - Q4 Average Monthly Service
A3: Clinic Revenue PER MONTH ON PAPER | C3: =+Q4Analysis[[#Totals],[Monthly Revenue per Service]] -> 0 | E3: Funded Revenue | H3: =+GETPIVOTDATA("Monthly Revenue per Service",Q4PVTTable!$A$3,"Funding Category","Funded") -> 10427.25
A4: Minutes Available Per Week (7.5 hours/day) | C4: =60*'Service Listing'!$F$2*5 -> 2250 | E4: Actual Not Funded Eligible | H4: =+GETPIVOTDATA("Monthly Revenue per Service",Q4PVTTable!$A$3,"Funding Category","Not Funded Eligible") -> 7872.395
A5: Time/Week Needed for Services*** | C5: =+Q4Analysis[[#Totals],[Weekly Time Needed (min)]] -> 0 | E5: Not Funded Eligible Payment | H5: 7000
A6: Time Gap | C6: =+C4-C5 -> 2250 | E6: Not Funded Not Eligible | H6: =+GETPIVOTDATA("Monthly Revenue per Service",Q4PVTTable!$A$3,"Funding Category","Not Funded Not Eligible") -> 300
A7: *** Review bottom rows of table to add non-funded appointments | E7: Total Actual Revenue | H7: =+H6+H5+H3 -> 17727.25
A9: Service | B9: Revenue/Service | C9: #/month | D9: Service Time (Min) | E9: #/week | F9: Monthly Revenue per Service | G9: Weekly Time Needed (min) | H9: Funding Category
A10: =+'Clinic Budget'!C25 -> Covid-19 Vaccine Administration Fee | B10: =+'Service Listing'!J6 -> 18 | C10: =+'Clinic Budget'!T25 -> 0 | D10: =IFERROR(INDEX(ServListing[Time (min)],MATCH(A10,ServListing[Service],0),0),0) -> 7.5 | E10: =+Q4Analysis[[#This Row],['#/month]]*3/13 -> 0 | F10: =IFERROR(Q4Analysis[[#This Row],['#/month]]*Q4Analysis[[#This Row],[Revenue/Service]],0) -> 0 | G10: =+Q4Analysis[[#This Row],['#/week]]*Q4Analysis[[#This Row],[Service Time (Min)]] -> 0 | H10: =+'Clinic Budget'!A25 -> Funded
A11: =+'Clinic Budget'!C26 -> Influenza Vaccine Admin Fee* | B11: =+'Service Listing'!J7 -> 12.8 | C11: =+'Clinic Budget'!T26 -> 0 | D11: =IFERROR(INDEX(ServListing[Time (min)],MATCH(A11,ServListing[Service],0),0),0) -> 7.5 | E11: =+Q4Analysis[[#This Row],['#/month]]*3/13 -> 0 | F11: =IFERROR(Q4Analysis[[#This Row],['#/month]]*Q4Analysis[[#This Row],[Revenue/Service]],0) -> 0 | G11: =+Q4Analysis[[#This Row],['#/week]]*Q4Analysis[[#This Row],[Service Time (Min)]] -> 0 | H11: =+'Clinic Budget'!A26 -> Funded
A12: =+'Clinic Budget'!C27 -> Prescribing Contraception Initial Assessment that results in a prescription | B12: =+'Service Listing'!J8 -> 20 | C12: =+'Clinic Budget'!T27 -> 0 | D12: =IFERROR(INDEX(ServListing[Time (min)],MATCH(A12,ServListing[Service],0),0),0) -> 30 | E12: =+Q4Analysis[[#This Row],['#/month]]*3/13 -> 0 | F12: =IFERROR(Q4Analysis[[#This Row],['#/month]]*Q4Analysis[[#This Row],[Revenue/Service]],0) -> 0 | G12: =+Q4Analysis[[#This Row],['#/week]]*Q4Analysis[[#This Row],[Service Time (Min)]] -> 0 | H12: =+'Clinic Budget'!A27 -> Funded
A13: =+'Clinic Budget'!C28 -> Prescribing Contraception Initial Assessment that does not result in a prescription | B13: =+'Service Listing'!J9 -> 20 | C13: =+'Clinic Budget'!T28 -> 0 | D13: =IFERROR(INDEX(ServListing[Time (min)],MATCH(A13,ServListing[Service],0),0),0) -> 30 | E13: =+Q4Analysis[[#This Row],['#/month]]*3/13 -> 0 | F13: =IFERROR(Q4Analysis[[#This Row],['#/month]]*Q4Analysis[[#This Row],[Revenue/Service]],0) -> 0 | G13: =+Q4Analysis[[#This Row],['#/week]]*Q4Analysis[[#This Row],[Service Time (Min)]] -> 0 | H13: =+'Clinic Budget'!A28 -> Funded
A14: =+'Clinic Budget'!C29 -> Prescribing Contraception subsequent assessment that results in a change | B14: =+'Service Listing'!J10 -> 20 | C14: =+'Clinic Budget'!T29 -> 0 | D14: =IFERROR(INDEX(ServListing[Time (min)],MATCH(A14,ServListing[Service],0),0),0) -> 15 | E14: =+Q4Analysis[[#This Row],['#/month]]*3/13 -> 0 | F14: =IFERROR(Q4Analysis[[#This Row],['#/month]]*Q4Analysis[[#This Row],[Revenue/Service]],0) -> 0 | G14: =+Q4Analysis[[#This Row],['#/week]]*Q4Analysis[[#This Row],[Service Time (Min)]] -> 0 | H14: =+'Clinic Budget'!A29 -> Funded
A15: =+'Clinic Budget'!C30 -> Prescribing Contraception Subsequent assessment that does not result in a change | B15: =+'Service Listing'!J11 -> 12 | C15: =+'Clinic Budget'!T30 -> 0 | D15: =IFERROR(INDEX(ServListing[Time (min)],MATCH(A15,ServListing[Service],0),0),0) -> 15 | E15: =+Q4Analysis[[#This Row],['#/month]]*3/13 -> 0 | F15: =IFERROR(Q4Analysis[[#This Row],['#/month]]*Q4Analysis[[#This Row],[Revenue/Service]],0) -> 0 | G15: =+Q4Analysis[[#This Row],['#/week]]*Q4Analysis[[#This Row],[Service Time (Min)]] -> 0 | H15: =+'Clinic Budget'!A30 -> Funded
A16: =+'Clinic Budget'!C31 -> Deprescribing -PPI Project Participants Initial Assessment | B16: =+'Service Listing'!J12 -> 52.5 | C16: =+'Clinic Budget'!T31 -> 0 | D16: =IFERROR(INDEX(ServListing[Time (min)],MATCH(A16,ServListing[Service],0),0),0) -> 30 | E16: =+Q4Analysis[[#This Row],['#/month]]*3/13 -> 0 | F16: =IFERROR(Q4Analysis[[#This Row],['#/month]]*Q4Analysis[[#This Row],[Revenue/Service]],0) -> 0 | G16: =+Q4Analysis[[#This Row],['#/week]]*Q4Analysis[[#This Row],[Service Time (Min)]] -> 0 | H16: =+'Clinic Budget'!A31 -> Funded
A17: =+'Clinic Budget'!C32 -> Deprescribing PPI Follow-ups- Early (limit of 2) Project participants | B17: =+'Service Listing'!J13 -> 20 | C17: =+'Clinic Budget'!T32 -> 0 | D17: =IFERROR(INDEX(ServListing[Time (min)],MATCH(A17,ServListing[Service],0),0),0) -> 15 | E17: =+Q4Analysis[[#This Row],['#/month]]*3/13 -> 0 | F17: =IFERROR(Q4Analysis[[#This Row],['#/month]]*Q4Analysis[[#This Row],[Revenue/Service]],0) -> 0 | G17: =+Q4Analysis[[#This Row],['#/week]]*Q4Analysis[[#This Row],[Service Time (Min)]] -> 0 | H17: =+'Clinic Budget'!A32 -> Funded
A18: =+'Clinic Budget'!C33 -> Deprescribing BZRA Participants Initial Assessment | B18: =+'Service Listing'!J14 -> 150 | C18: =+'Clinic Budget'!T33 -> 0 | D18: =IFERROR(INDEX(ServListing[Time (min)],MATCH(A18,ServListing[Service],0),0),0) -> 60 | E18: =+Q4Analysis[[#This Row],['#/month]]*3/13 -> 0 | F18: =IFERROR(Q4Analysis[[#This Row],['#/month]]*Q4Analysis[[#This Row],[Revenue/Service]],0) -> 0 | G18: =+Q4Analysis[[#This Row],['#/week]]*Q4Analysis[[#This Row],[Service Time (Min)]] -> 0 | H18: =+'Clinic Budget'!A33 -> Funded
A19: =+'Clinic Budget'!C34 -> Deprescribing BZRA Follow-ups- Early (limit of 2) Project participants | B19: =+'Service Listing'!J15 -> 20 | C19: =+'Clinic Budget'!T34 -> 0 | D19: =IFERROR(INDEX(ServListing[Time (min)],MATCH(A19,ServListing[Service],0),0),0) -> 15 | E19: =+Q4Analysis[[#This Row],['#/month]]*3/13 -> 0 | F19: =IFERROR(Q4Analysis[[#This Row],['#/month]]*Q4Analysis[[#This Row],[Revenue/Service]],0) -> 0 | G19: =+Q4Analysis[[#This Row],['#/week]]*Q4Analysis[[#This Row],[Service Time (Min)]] -> 0 | H19: =+'Clinic Budget'!A34 -> Funded
A20: =+'Clinic Budget'!C35 -> Deprescribing BZRA Follow-ups Later (limit of 5 for BZRA only)Project Participants | B20: =+'Service Listing'!J16 -> 12 | C20: =+'Clinic Budget'!T35 -> 0 | D20: =IFERROR(INDEX(ServListing[Time (min)],MATCH(A20,ServListing[Service],0),0),0) -> 15 | E20: =+Q4Analysis[[#This Row],['#/month]]*3/13 -> 0 | F20: =IFERROR(Q4Analysis[[#This Row],['#/month]]*Q4Analysis[[#This Row],[Revenue/Service]],0) -> 0 | G20: =+Q4Analysis[[#This Row],['#/week]]*Q4Analysis[[#This Row],[Service Time (Min)]] -> 0 | H20: =+'Clinic Budget'!A35 -> Funded
A21: =+'Clinic Budget'!C36 -> Community Pharmacy Led Anticoagulation Management Service (monthly service fee) | B21: =+'Service Listing'!J17 -> 50 | C21: =+'Clinic Budget'!T36 -> 0 | D21: =IFERROR(INDEX(ServListing[Time (min)],MATCH(A21,ServListing[Service],0),0),0) -> 15 | E21: =+Q4Analysis[[#This Row],['#/month]]*3/13 -> 0 | F21: =IFERROR(Q4Analysis[[#This Row],['#/month]]*Q4Analysis[[#This Row],[Revenue/Service]],0) -> 0 | G21: =+Q4Analysis[[#This Row],['#/week]]*Q4Analysis[[#This Row],[Service Time (Min)]] -> 0 | H21: =+'Clinic Budget'!A36 -> Funded
A22: =+'Clinic Budget'!C37 -> Hypertension Project Initial Assessment | B22: =+'Service Listing'!J18 -> 125 | C22: =+'Clinic Budget'!T37 -> 0 | D22: =IFERROR(INDEX(ServListing[Time (min)],MATCH(A22,ServListing[Service],0),0),0) -> 60 | E22: =+Q4Analysis[[#This Row],['#/month]]*3/13 -> 0 | F22: =IFERROR(Q4Analysis[[#This Row],['#/month]]*Q4Analysis[[#This Row],[Revenue/Service]],0) -> 0 | G22: =+Q4Analysis[[#This Row],['#/week]]*Q4Analysis[[#This Row],[Service Time (Min)]] -> 0 | H22: =+'Clinic Budget'!A37 -> Funded
A23: =+'Clinic Budget'!C38 -> Hypertension Project Follow-ups | B23: =+'Service Listing'!J19 -> 20 | C23: =+'Clinic Budget'!T38 -> 0 | D23: =IFERROR(INDEX(ServListing[Time (min)],MATCH(A23,ServListing[Service],0),0),0) -> 15 | E23: =+Q4Analysis[[#This Row],['#/month]]*3/13 -> 0 | F23: =IFERROR(Q4Analysis[[#This Row],['#/month]]*Q4Analysis[[#This Row],[Revenue/Service]],0) -> 0 | G23: =+Q4Analysis[[#This Row],['#/week]]*Q4Analysis[[#This Row],[Service Time (Min)]] -> 0 | H23: =+'Clinic Budget'!A38 -> Funded
A24: =+'Clinic Budget'!C39 -> Bloom Monthly fee (first 6 months) | B24: =+'Service Listing'!J20 -> 75 | C24: =+'Clinic Budget'!T39 -> 0 | D24: =IFERROR(INDEX(ServListing[Time (min)],MATCH(A24,ServListing[Service],0),0),0) -> 15 | E24: =+Q4Analysis[[#This Row],['#/month]]*3/13 -> 0 | F24: =IFERROR(Q4Analysis[[#This Row],['#/month]]*Q4Analysis[[#This Row],[Revenue/Service]],0) -> 0 | G24: =+Q4Analysis[[#This Row],['#/week]]*Q4Analysis[[#This Row],[Service Time (Min)]] -> 0 | H24: =+'Clinic Budget'!A39 -> Funded
A25: =+'Clinic Budget'!C40 -> Bloom Monthly fee (7+ months) | B25: =+'Service Listing'!J21 -> 30 | C25: =+'Clinic Budget'!T40 -> 0 | D25: =IFERROR(INDEX(ServListing[Time (min)],MATCH(A25,ServListing[Service],0),0),0) -> 15 | E25: =+Q4Analysis[[#This Row],['#/month]]*3/13 -> 0 | F25: =IFERROR(Q4Analysis[[#This Row],['#/month]]*Q4Analysis[[#This Row],[Revenue/Service]],0) -> 0 | G25: =+Q4Analysis[[#This Row],['#/week]]*Q4Analysis[[#This Row],[Service Time (Min)]] -> 0 | H25: =+'Clinic Budget'!A40 -> Funded
A26: =+'Clinic Budget'!C41 -> Basic Medication Review | B26: =+'Service Listing'!J22 -> 52.5 | C26: =+'Clinic Budget'!T41 -> 0 | D26: =IFERROR(INDEX(ServListing[Time (min)],MATCH(A26,ServListing[Service],0),0),0) -> 30 | E26: =+Q4Analysis[[#This Row],['#/month]]*3/13 -> 0 | F26: =IFERROR(Q4Analysis[[#This Row],['#/month]]*Q4Analysis[[#This Row],[Revenue/Service]],0) -> 0 | G26: =+Q4Analysis[[#This Row],['#/week]]*Q4Analysis[[#This Row],[Service Time (Min)]] -> 0 | H26: =+'Clinic Budget'!A41 -> Funded
A27: =+'Clinic Budget'!C42 -> Basic Medication Review Follow-ups | B27: =+'Service Listing'!J23 -> 20 | C27: =+'Clinic Budget'!T42 -> 0 | D27: =IFERROR(INDEX(ServListing[Time (min)],MATCH(A27,ServListing[Service],0),0),0) -> 15 | E27: =+Q4Analysis[[#This Row],['#/month]]*3/13 -> 0 | F27: =IFERROR(Q4Analysis[[#This Row],['#/month]]*Q4Analysis[[#This Row],[Revenue/Service]],0) -> 0 | G27: =+Q4Analysis[[#This Row],['#/week]]*Q4Analysis[[#This Row],[Service Time (Min)]] -> 0 | H27: =+'Clinic Budget'!A42 -> Funded
A28: =+'Clinic Budget'!C43 -> Advanced Medication Review | B28: =+'Service Listing'!J24 -> 150 | C28: =+'Clinic Budget'!T43 -> 0 | D28: =IFERROR(INDEX(ServListing[Time (min)],MATCH(A28,ServListing[Service],0),0),0) -> 90 | E28: =+Q4Analysis[[#This Row],['#/month]]*3/13 -> 0 | F28: =IFERROR(Q4Analysis[[#This Row],['#/month]]*Q4Analysis[[#This Row],[Revenue/Service]],0) -> 0 | G28: =+Q4Analysis[[#This Row],['#/week]]*Q4Analysis[[#This Row],[Service Time (Min)]] -> 0 | H28: =+'Clinic Budget'!A43 -> Funded
A29: =+'Clinic Budget'!C44 -> Advanced Medication Review Follow-ups | B29: =+'Service Listing'!J25 -> 20 | C29: =+'Clinic Budget'!T44 -> 0 | D29: =IFERROR(INDEX(ServListing[Time (min)],MATCH(A29,ServListing[Service],0),0),0) -> 15 | E29: =+Q4Analysis[[#This Row],['#/month]]*3/13 -> 0 | F29: =IFERROR(Q4Analysis[[#This Row],['#/month]]*Q4Analysis[[#This Row],[Revenue/Service]],0) -> 0 | G29: =+Q4Analysis[[#This Row],['#/week]]*Q4Analysis[[#This Row],[Service Time (Min)]] -> 0 | H29: =+'Clinic Budget'!A44 -> Funded
A30: =+'Clinic Budget'!C45 -> Take Home Naloxone Kit Training | B30: =+'Service Listing'!J26 -> 25 | C30: =+'Clinic Budget'!T45 -> 0 | D30: =IFERROR(INDEX(ServListing[Time (min)],MATCH(A30,ServListing[Service],0),0),0) -> 15 | E30: =+Q4Analysis[[#This Row],['#/month]]*3/13 -> 0 | F30: =IFERROR(Q4Analysis[[#This Row],['#/month]]*Q4Analysis[[#This Row],[Revenue/Service]],0) -> 0 | G30: =+Q4Analysis[[#This Row],['#/week]]*Q4Analysis[[#This Row],[Service Time (Min)]] -> 0 | H30: =+'Clinic Budget'!A45 -> Funded
A31: =+'Clinic Budget'!C46 -> PPCC Prescription Renewal (1-3 meds) | B31: =+'Service Listing'!J27 -> 12 | C31: =+'Clinic Budget'!T46 -> 0 | D31: =IFERROR(INDEX(ServListing[Time (min)],MATCH(A31,ServListing[Service],0),0),0) -> 15 | E31: =+Q4Analysis[[#This Row],['#/month]]*3/13 -> 0 | F31: =IFERROR(Q4Analysis[[#This Row],['#/month]]*Q4Analysis[[#This Row],[Revenue/Service]],0) -> 0 | G31: =+Q4Analysis[[#This Row],['#/week]]*Q4Analysis[[#This Row],[Service Time (Min)]] -> 0 | H31: =+'Clinic Budget'!A46 -> Funded
A32: =+'Clinic Budget'!C47 -> Prescription Renewal (4+ meds) | B32: =+'Service Listing'!J28 -> 20 | C32: =+'Clinic Budget'!T47 -> 0 | D32: =IFERROR(INDEX(ServListing[Time (min)],MATCH(A32,ServListing[Service],0),0),0) -> 30 | E32: =+Q4Analysis[[#This Row],['#/month]]*3/13 -> 0 | F32: =IFERROR(Q4Analysis[[#This Row],['#/month]]*Q4Analysis[[#This Row],[Revenue/Service]],0) -> 0 | G32: =+Q4Analysis[[#This Row],['#/week]]*Q4Analysis[[#This Row],[Service Time (Min)]] -> 0 | H32: =+'Clinic Budget'!A47 -> Funded
A33: =+'Clinic Budget'!C48 -> Prescription Adaptation Refusal to Fill | B33: =+'Service Listing'!J29 -> 14 | C33: =+'Clinic Budget'!T48 -> 0 | D33: =IFERROR(INDEX(ServListing[Time (min)],MATCH(A33,ServListing[Service],0),0),0) -> 15 | E33: =+Q4Analysis[[#This Row],['#/month]]*3/13 -> 0 | F33: =IFERROR(Q4Analysis[[#This Row],['#/month]]*Q4Analysis[[#This Row],[Revenue/Service]],0) -> 0 | G33: =+Q4Analysis[[#This Row],['#/week]]*Q4Analysis[[#This Row],[Service Time (Min)]] -> 0 | H33: =+'Clinic Budget'!A48 -> Funded
A34: =+'Clinic Budget'!C49 -> Prescription Adaptation -Other | B34: =+'Service Listing'!J30 -> 14 | C34: =+'Clinic Budget'!T49 -> 0 | D34: =IFERROR(INDEX(ServListing[Time (min)],MATCH(A34,ServListing[Service],0),0),0) -> 15 | E34: =+Q4Analysis[[#This Row],['#/month]]*3/13 -> 0 | F34: =IFERROR(Q4Analysis[[#This Row],['#/month]]*Q4Analysis[[#This Row],[Revenue/Service]],0) -> 0 | G34: =+Q4Analysis[[#This Row],['#/week]]*Q4Analysis[[#This Row],[Service Time (Min)]] -> 0 | H34: =+'Clinic Budget'!A49 -> Funded
A35: =+'Clinic Budget'!C50 -> Therapeutic Substitution – PPI | B35: =+'Service Listing'!J31 -> 26.5 | C35: =+'Clinic Budget'!T50 -> 0 | D35: =IFERROR(INDEX(ServListing[Time (min)],MATCH(A35,ServListing[Service],0),0),0) -> 15 | E35: =+Q4Analysis[[#This Row],['#/month]]*3/13 -> 0 | F35: =IFERROR(Q4Analysis[[#This Row],['#/month]]*Q4Analysis[[#This Row],[Revenue/Service]],0) -> 0 | G35: =+Q4Analysis[[#This Row],['#/week]]*Q4Analysis[[#This Row],[Service Time (Min)]] -> 0 | H35: =+'Clinic Budget'!A50 -> Funded
A36: =+'Clinic Budget'!C51 -> Therapeutic Sub- Other Circumstances | B36: =+'Service Listing'!J32 -> 26.5 | C36: =+'Clinic Budget'!T51 -> 0 | D36: =IFERROR(INDEX(ServListing[Time (min)],MATCH(A36,ServListing[Service],0),0),0) -> 15 | E36: =+Q4Analysis[[#This Row],['#/month]]*3/13 -> 0 | F36: =IFERROR(Q4Analysis[[#This Row],['#/month]]*Q4Analysis[[#This Row],[Revenue/Service]],0) -> 0 | G36: =+Q4Analysis[[#This Row],['#/week]]*Q4Analysis[[#This Row],[Service Time (Min)]] -> 0 | H36: =+'Clinic Budget'!A51 -> Funded
A37: =+'Clinic Budget'!C52 -> Assessment – Uncomplicated UTI that results in a prescription | B37: =+'Service Listing'!J33 -> 20 | C37: =+'Clinic Budget'!T52 -> 0 | D37: =IFERROR(INDEX(ServListing[Time (min)],MATCH(A37,ServListing[Service],0),0),0) -> 15 | E37: =+Q4Analysis[[#This Row],['#/month]]*3/13 -> 0 | F37: =IFERROR(Q4Analysis[[#This Row],['#/month]]*Q4Analysis[[#This Row],[Revenue/Service]],0) -> 0 | G37: =+Q4Analysis[[#This Row],['#/week]]*Q4Analysis[[#This Row],[Service Time (Min)]] -> 0 | H37: =+'Clinic Budget'!A52 -> Funded
A38: =+'Clinic Budget'!C53 -> Assessment Uncomplicated UTI that does not result in a prescription | B38: =+'Service Listing'!J34 -> 20 | C38: =+'Clinic Budget'!T53 -> 0 | D38: =IFERROR(INDEX(ServListing[Time (min)],MATCH(A38,ServListing[Service],0),0),0) -> 15 | E38: =+Q4Analysis[[#This Row],['#/month]]*3/13 -> 0 | F38: =IFERROR(Q4Analysis[[#This Row],['#/month]]*Q4Analysis[[#This Row],[Revenue/Service]],0) -> 0 | G38: =+Q4Analysis[[#This Row],['#/week]]*Q4Analysis[[#This Row],[Service Time (Min)]] -> 0 | H38: =+'Clinic Budget'!A53 -> Funded
A39: =+'Clinic Budget'!C54 -> Prescribing- Lyme Chemoprophylaxis | B39: =+'Service Listing'!J35 -> 20 | C39: =+'Clinic Budget'!T54 -> 0 | D39: =IFERROR(INDEX(ServListing[Time (min)],MATCH(A39,ServListing[Service],0),0),0) -> 15 | E39: =+Q4Analysis[[#This Row],['#/month]]*3/13 -> 0 | F39: =IFERROR(Q4Analysis[[#This Row],['#/month]]*Q4Analysis[[#This Row],[Revenue/Service]],0) -> 0 | G39: =+Q4Analysis[[#This Row],['#/week]]*Q4Analysis[[#This Row],[Service Time (Min)]] -> 0 | H39: =+'Clinic Budget'!A54 -> Funded
A40: =+'Clinic Budget'!C55 -> Assessment Lyme Chemoprophylaxis that does not result in a prescription | B40: =+'Service Listing'!J36 -> 20 | C40: =+'Clinic Budget'!T55 -> 0 | D40: =IFERROR(INDEX(ServListing[Time (min)],MATCH(A40,ServListing[Service],0),0),0) -> 15 | E40: =+Q4Analysis[[#This Row],['#/month]]*3/13 -> 0 | F40: =IFERROR(Q4Analysis[[#This Row],['#/month]]*Q4Analysis[[#This Row],[Revenue/Service]],0) -> 0 | G40: =+Q4Analysis[[#This Row],['#/week]]*Q4Analysis[[#This Row],[Service Time (Min)]] -> 0 | H40: =+'Clinic Budget'!A55 -> Funded
A41: =+'Clinic Budget'!C56 -> Prescribing Herpes Zoster Tx | B41: =+'Service Listing'!J37 -> 20 | C41: =+'Clinic Budget'!T56 -> 0 | D41: =IFERROR(INDEX(ServListing[Time (min)],MATCH(A41,ServListing[Service],0),0),0) -> 15 | E41: =+Q4Analysis[[#This Row],['#/month]]*3/13 -> 0 | F41: =IFERROR(Q4Analysis[[#This Row],['#/month]]*Q4Analysis[[#This Row],[Revenue/Service]],0) -> 0 | G41: =+Q4Analysis[[#This Row],['#/week]]*Q4Analysis[[#This Row],[Service Time (Min)]] -> 0 | H41: =+'Clinic Budget'!A56 -> Funded
A42: =+'Clinic Budget'!C57 -> Assessment Herpes Zoster Tx that does not result in a prescription | B42: =+'Service Listing'!J38 -> 20 | C42: =+'Clinic Budget'!T57 -> 0 | D42: =IFERROR(INDEX(ServListing[Time (min)],MATCH(A42,ServListing[Service],0),0),0) -> 15 | E42: =+Q4Analysis[[#This Row],['#/month]]*3/13 -> 0 | F42: =IFERROR(Q4Analysis[[#This Row],['#/month]]*Q4Analysis[[#This Row],[Revenue/Service]],0) -> 0 | G42: =+Q4Analysis[[#This Row],['#/week]]*Q4Analysis[[#This Row],[Service Time (Min)]] -> 0 | H42: =+'Clinic Budget'!A57 -> Funded
A43: =+'Clinic Budget'!C58 -> Prescribing Budesonide for Covid-19 | B43: =+'Service Listing'!J39 -> 20 | C43: =+'Clinic Budget'!T58 -> 0 | D43: =IFERROR(INDEX(ServListing[Time (min)],MATCH(A43,ServListing[Service],0),0),0) -> 15 | E43: =+Q4Analysis[[#This Row],['#/month]]*3/13 -> 0 | F43: =IFERROR(Q4Analysis[[#This Row],['#/month]]*Q4Analysis[[#This Row],[Revenue/Service]],0) -> 0 | G43: =+Q4Analysis[[#This Row],['#/week]]*Q4Analysis[[#This Row],[Service Time (Min)]] -> 0 | H43: =+'Clinic Budget'!A58 -> Funded
A44: =+'Clinic Budget'!C59 -> Administration of publicly funded vaccine other than covid-19 or flu | B44: =+'Service Listing'!J40 -> 18 | C44: =+'Clinic Budget'!T59 -> 0 | D44: =IFERROR(INDEX(ServListing[Time (min)],MATCH(A44,ServListing[Service],0),0),0) -> 15 | E44: =+Q4Analysis[[#This Row],['#/month]]*3/13 -> 0 | F44: =IFERROR(Q4Analysis[[#This Row],['#/month]]*Q4Analysis[[#This Row],[Revenue/Service]],0) -> 0 | G44: =+Q4Analysis[[#This Row],['#/week]]*Q4Analysis[[#This Row],[Service Time (Min)]] -> 0 | H44: =+'Clinic Budget'!A59 -> Not Funded Eligible
A45: =+'Clinic Budget'!C60 -> Assessment and Administration of IM or SC injectable medication | B45: =+'Service Listing'!J41 -> 20 | C45: =+'Clinic Budget'!T60 -> 0 | D45: =IFERROR(INDEX(ServListing[Time (min)],MATCH(A45,ServListing[Service],0),0),0) -> 15 | E45: =+Q4Analysis[[#This Row],['#/month]]*3/13 -> 0 | F45: =IFERROR(Q4Analysis[[#This Row],['#/month]]*Q4Analysis[[#This Row],[Revenue/Service]],0) -> 0 | G45: =+Q4Analysis[[#This Row],['#/week]]*Q4Analysis[[#This Row],[Service Time (Min)]] -> 0 | H45: =+'Clinic Budget'!A60 -> Not Funded Eligible
A46: =+'Clinic Budget'!C61 -> Assessment and Administration of Anti-psychotic medications | B46: =+'Service Listing'!J42 -> 40 | C46: =+'Clinic Budget'!T61 -> 0 | D46: =IFERROR(INDEX(ServListing[Time (min)],MATCH(A46,ServListing[Service],0),0),0) -> 15 | E46: =+Q4Analysis[[#This Row],['#/month]]*3/13 -> 0 | F46: =IFERROR(Q4Analysis[[#This Row],['#/month]]*Q4Analysis[[#This Row],[Revenue/Service]],0) -> 0 | G46: =+Q4Analysis[[#This Row],['#/week]]*Q4Analysis[[#This Row],[Service Time (Min)]] -> 0 | H46: =+'Clinic Budget'!A61 -> Not Funded Eligible
A47: =+'Clinic Budget'!C62 -> Assessment and Administration of Sublocade | B47: =+'Service Listing'!J43 -> 40 | C47: =+'Clinic Budget'!T62 -> 0 | D47: =IFERROR(INDEX(ServListing[Time (min)],MATCH(A47,ServListing[Service],0),0),0) -> 15 | E47: =+Q4Analysis[[#This Row],['#/month]]*3/13 -> 0 | F47: =IFERROR(Q4Analysis[[#This Row],['#/month]]*Q4Analysis[[#This Row],[Revenue/Service]],0) -> 0 | G47: =+Q4Analysis[[#This Row],['#/week]]*Q4Analysis[[#This Row],[Service Time (Min)]] -> 0 | H47: =+'Clinic Budget'!A62 -> Not Funded Eligible
A48: =+'Clinic Budget'!C63 -> Deprescribing -PPI Non Project Participants Initial Assessment | B48: =+'Service Listing'!J44 -> 52.5 | C48: =+'Clinic Budget'!T63 -> 0 | D48: =IFERROR(INDEX(ServListing[Time (min)],MATCH(A48,ServListing[Service],0),0),0) -> 30 | E48: =+Q4Analysis[[#This Row],['#/month]]*3/13 -> 0 | F48: =IFERROR(Q4Analysis[[#This Row],['#/month]]*Q4Analysis[[#This Row],[Revenue/Service]],0) -> 0 | G48: =+Q4Analysis[[#This Row],['#/week]]*Q4Analysis[[#This Row],[Service Time (Min)]] -> 0 | H48: =+'Clinic Budget'!A63 -> Not Funded Eligible
A49: =+'Clinic Budget'!C64 -> Deprescribing PPI Follow-ups- Early (limit of 2) Non Project participants | B49: =+'Service Listing'!J45 -> 20 | C49: =+'Clinic Budget'!T64 -> 0 | D49: =IFERROR(INDEX(ServListing[Time (min)],MATCH(A49,ServListing[Service],0),0),0) -> 15 | E49: =+Q4Analysis[[#This Row],['#/month]]*3/13 -> 0 | F49: =IFERROR(Q4Analysis[[#This Row],['#/month]]*Q4Analysis[[#This Row],[Revenue/Service]],0) -> 0 | G49: =+Q4Analysis[[#This Row],['#/week]]*Q4Analysis[[#This Row],[Service Time (Min)]] -> 0 | H49: =+'Clinic Budget'!A64 -> Not Funded Eligible
A50: =+'Clinic Budget'!C65 -> Deprescribing BZRA Non Project Participants Initial Assessment | B50: =+'Service Listing'!J46 -> 150 | C50: =+'Clinic Budget'!T65 -> 0 | D50: =IFERROR(INDEX(ServListing[Time (min)],MATCH(A50,ServListing[Service],0),0),0) -> 60 | E50: =+Q4Analysis[[#This Row],['#/month]]*3/13 -> 0 | F50: =IFERROR(Q4Analysis[[#This Row],['#/month]]*Q4Analysis[[#This Row],[Revenue/Service]],0) -> 0 | G50: =+Q4Analysis[[#This Row],['#/week]]*Q4Analysis[[#This Row],[Service Time (Min)]] -> 0 | H50: =+'Clinic Budget'!A65 -> Not Funded Eligible
A51: =+'Clinic Budget'!C66 -> Deprescribing BZRA Follow-ups- Early (limit of 2) Non Project participants | B51: =+'Service Listing'!J47 -> 20 | C51: =+'Clinic Budget'!T66 -> 0 | D51: =IFERROR(INDEX(ServListing[Time (min)],MATCH(A51,ServListing[Service],0),0),0) -> 15 | E51: =+Q4Analysis[[#This Row],['#/month]]*3/13 -> 0 | F51: =IFERROR(Q4Analysis[[#This Row],['#/month]]*Q4Analysis[[#This Row],[Revenue/Service]],0) -> 0 | G51: =+Q4Analysis[[#This Row],['#/week]]*Q4Analysis[[#This Row],[Service Time (Min)]] -> 0 | H51: =+'Clinic Budget'!A66 -> Not Funded Eligible
A52: =+'Clinic Budget'!C67 -> Deprescribing BZRA Follow-ups Later (limit of 5 for BZRA only) Non-Project Participants | B52: =+'Service Listing'!J48 -> 12 | C52: =+'Clinic Budget'!T67 -> 0 | D52: =IFERROR(INDEX(ServListing[Time (min)],MATCH(A52,ServListing[Service],0),0),0) -> 15 | E52: =+Q4Analysis[[#This Row],['#/month]]*3/13 -> 0 | F52: =IFERROR(Q4Analysis[[#This Row],['#/month]]*Q4Analysis[[#This Row],[Revenue/Service]],0) -> 0 | G52: =+Q4Analysis[[#This Row],['#/week]]*Q4Analysis[[#This Row],[Service Time (Min)]] -> 0 | H52: =+'Clinic Budget'!A67 -> Not Funded Eligible
A53: =+'Clinic Budget'!C68 -> Complex Medication Therapy Assessment | B53: =+'Service Listing'!J49 -> 37.5 | C53: =+'Clinic Budget'!T68 -> 0 | D53: =IFERROR(INDEX(ServListing[Time (min)],MATCH(A53,ServListing[Service],0),0),0) -> 15 | E53: =+Q4Analysis[[#This Row],['#/month]]*3/13 -> 0 | F53: =IFERROR(Q4Analysis[[#This Row],['#/month]]*Q4Analysis[[#This Row],[Revenue/Service]],0) -> 0 | G53: =+Q4Analysis[[#This Row],['#/week]]*Q4Analysis[[#This Row],[Service Time (Min)]] -> 0 | H53: =+'Clinic Budget'!A68 -> Not Funded Eligible
A54: =+'Clinic Budget'!C69 -> Hypertension Project Initial Assessment | B54: =+'Service Listing'!J50 -> 125 | C54: =+'Clinic Budget'!T69 -> 0 | D54: =IFERROR(INDEX(ServListing[Time (min)],MATCH(A54,ServListing[Service],0),0),0) -> 60 | E54: =+Q4Analysis[[#This Row],['#/month]]*3/13 -> 0 | F54: =IFERROR(Q4Analysis[[#This Row],['#/month]]*Q4Analysis[[#This Row],[Revenue/Service]],0) -> 0 | G54: =+Q4Analysis[[#This Row],['#/week]]*Q4Analysis[[#This Row],[Service Time (Min)]] -> 0 | H54: =+'Clinic Budget'!A69 -> Not Funded Eligible
A55: =+'Clinic Budget'!C70 -> Hypertension Project Follow-ups | B55: =+'Service Listing'!J51 -> 20 | C55: =+'Clinic Budget'!T70 -> 0 | D55: =IFERROR(INDEX(ServListing[Time (min)],MATCH(A55,ServListing[Service],0),0),0) -> 15 | E55: =+Q4Analysis[[#This Row],['#/month]]*3/13 -> 0 | F55: =IFERROR(Q4Analysis[[#This Row],['#/month]]*Q4Analysis[[#This Row],[Revenue/Service]],0) -> 0 | G55: =+Q4Analysis[[#This Row],['#/week]]*Q4Analysis[[#This Row],[Service Time (Min)]] -> 0 | H55: =+'Clinic Budget'!A70 -> Not Funded Eligible
A56: =+'Clinic Budget'!C71 -> Prescribing with a diagnosis as per NSCP standard in collaboration with another provider | B56: =+'Service Listing'!J52 -> 25 | C56: =+'Clinic Budget'!T71 -> 0 | D56: =IFERROR(INDEX(ServListing[Time (min)],MATCH(A56,ServListing[Service],0),0),0) -> 15 | E56: =+Q4Analysis[[#This Row],['#/month]]*3/13 -> 0 | F56: =IFERROR(Q4Analysis[[#This Row],['#/month]]*Q4Analysis[[#This Row],[Revenue/Service]],0) -> 0 | G56: =+Q4Analysis[[#This Row],['#/week]]*Q4Analysis[[#This Row],[Service Time (Min)]] -> 0 | H56: =+'Clinic Budget'!A71 -> Not Funded Eligible
A57: =+'Clinic Budget'!C72 -> Chronic Disease Management – Diabetes – Initial/Annual assessment | B57: =+'Service Listing'!J53 -> 125 | C57: =+'Clinic Budget'!T72 -> 0 | D57: =IFERROR(INDEX(ServListing[Time (min)],MATCH(A57,ServListing[Service],0),0),0) -> 60 | E57: =+Q4Analysis[[#This Row],['#/month]]*3/13 -> 0 | F57: =IFERROR(Q4Analysis[[#This Row],['#/month]]*Q4Analysis[[#This Row],[Revenue/Service]],0) -> 0 | G57: =+Q4Analysis[[#This Row],['#/week]]*Q4Analysis[[#This Row],[Service Time (Min)]] -> 0 | H57: =+'Clinic Budget'!A72 -> Not Funded Eligible
A58: =+'Clinic Budget'!C73 -> Chronic Disease Diabetes Management - Follow-up (up to 5 per year) | B58: =+'Service Listing'!J54 -> 20 | C58: =+'Clinic Budget'!T73 -> 0 | D58: =IFERROR(INDEX(ServListing[Time (min)],MATCH(A58,ServListing[Service],0),0),0) -> 15 | E58: =+Q4Analysis[[#This Row],['#/month]]*3/13 -> 0 | F58: =IFERROR(Q4Analysis[[#This Row],['#/month]]*Q4Analysis[[#This Row],[Revenue/Service]],0) -> 0 | G58: =+Q4Analysis[[#This Row],['#/week]]*Q4Analysis[[#This Row],[Service Time (Min)]] -> 0 | H58: =+'Clinic Budget'!A73 -> Not Funded Eligible
A59: =+'Clinic Budget'!C74 -> Chronic Disease Management – Lung Disease Asthma/COPD) Initial/Annual Assessment | B59: =+'Service Listing'!J55 -> 125 | C59: =+'Clinic Budget'!T74 -> 0 | D59: =IFERROR(INDEX(ServListing[Time (min)],MATCH(A59,ServListing[Service],0),0),0) -> 60 | E59: =+Q4Analysis[[#This Row],['#/month]]*3/13 -> 0 | F59: =IFERROR(Q4Analysis[[#This Row],['#/month]]*Q4Analysis[[#This Row],[Revenue/Service]],0) -> 0 | G59: =+Q4Analysis[[#This Row],['#/week]]*Q4Analysis[[#This Row],[Service Time (Min)]] -> 0 | H59: =+'Clinic Budget'!A74 -> Not Funded Eligible
A60: =+'Clinic Budget'!C75 -> Chronic Disease Management – Lung Disease Follow-up (up to 5 per year | B60: =+'Service Listing'!J56 -> 20 | C60: =+'Clinic Budget'!T75 -> 0 | D60: =IFERROR(INDEX(ServListing[Time (min)],MATCH(A60,ServListing[Service],0),0),0) -> 15 | E60: =+Q4Analysis[[#This Row],['#/month]]*3/13 -> 0 | F60: =IFERROR(Q4Analysis[[#This Row],['#/month]]*Q4Analysis[[#This Row],[Revenue/Service]],0) -> 0 | G60: =+Q4Analysis[[#This Row],['#/week]]*Q4Analysis[[#This Row],[Service Time (Min)]] -> 0 | H60: =+'Clinic Budget'!A75 -> Not Funded Eligible
A61: =+'Clinic Budget'!C76 -> Chronic Disease Management -Cardiovascular Disease Initial/Annual Assessment | B61: =+'Service Listing'!J57 -> 125 | C61: =+'Clinic Budget'!T76 -> 0 | D61: =IFERROR(INDEX(ServListing[Time (min)],MATCH(A61,ServListing[Service],0),0),0) -> 60 | E61: =+Q4Analysis[[#This Row],['#/month]]*3/13 -> 0 | F61: =IFERROR(Q4Analysis[[#This Row],['#/month]]*Q4Analysis[[#This Row],[Revenue/Service]],0) -> 0 | G61: =+Q4Analysis[[#This Row],['#/week]]*Q4Analysis[[#This Row],[Service Time (Min)]] -> 0 | H61: =+'Clinic Budget'!A76 -> Not Funded Eligible
A62: =+'Clinic Budget'!C77 -> Chronic Disease Management Cardiovascular Disease Follow-up (up to 5 per year) | B62: =+'Service Listing'!J58 -> 20 | C62: =+'Clinic Budget'!T77 -> 0 | D62: =IFERROR(INDEX(ServListing[Time (min)],MATCH(A62,ServListing[Service],0),0),0) -> 15 | E62: =+Q4Analysis[[#This Row],['#/month]]*3/13 -> 0 | F62: =IFERROR(Q4Analysis[[#This Row],['#/month]]*Q4Analysis[[#This Row],[Revenue/Service]],0) -> 0 | G62: =+Q4Analysis[[#This Row],['#/week]]*Q4Analysis[[#This Row],[Service Time (Min)]] -> 0 | H62: =+'Clinic Budget'!A77 -> Not Funded Eligible
A63: =+'Clinic Budget'!C78 -> Tobacco Use Reduction Program – Initial Assessment and Discussion | B63: =+'Service Listing'!J59 -> 40 | C63: =+'Clinic Budget'!T78 -> 0 | D63: =IFERROR(INDEX(ServListing[Time (min)],MATCH(A63,ServListing[Service],0),0),0) -> 60 | E63: =+Q4Analysis[[#This Row],['#/month]]*3/13 -> 0 | F63: =IFERROR(Q4Analysis[[#This Row],['#/month]]*Q4Analysis[[#This Row],[Revenue/Service]],0) -> 0 | G63: =+Q4Analysis[[#This Row],['#/week]]*Q4Analysis[[#This Row],[Service Time (Min)]] -> 0 | H63: =+'Clinic Budget'!A78 -> Not Funded Eligible
A64: =+'Clinic Budget'!C79 -> Tobacco Use Reduction Program – Follow-up 1-3 | B64: =+'Service Listing'!J60 -> 15 | C64: =+'Clinic Budget'!T79 -> 0 | D64: =IFERROR(INDEX(ServListing[Time (min)],MATCH(A64,ServListing[Service],0),0),0) -> 15 | E64: =+Q4Analysis[[#This Row],['#/month]]*3/13 -> 0 | F64: =IFERROR(Q4Analysis[[#This Row],['#/month]]*Q4Analysis[[#This Row],[Revenue/Service]],0) -> 0 | G64: =+Q4Analysis[[#This Row],['#/week]]*Q4Analysis[[#This Row],[Service Time (Min)]] -> 0 | H64: =+'Clinic Budget'!A79 -> Not Funded Eligible
A65: =+'Clinic Budget'!C80 -> Tobacco Use Reduction Program –Follow-up 4-7 | B65: =+'Service Listing'!J61 -> 10 | C65: =+'Clinic Budget'!T80 -> 0 | D65: =IFERROR(INDEX(ServListing[Time (min)],MATCH(A65,ServListing[Service],0),0),0) -> 15 | E65: =+Q4Analysis[[#This Row],['#/month]]*3/13 -> 0 | F65: =IFERROR(Q4Analysis[[#This Row],['#/month]]*Q4Analysis[[#This Row],[Revenue/Service]],0) -> 0 | G65: =+Q4Analysis[[#This Row],['#/week]]*Q4Analysis[[#This Row],[Service Time (Min)]] -> 0 | H65: =+'Clinic Budget'!A80 -> Not Funded Eligible
A66: =+'Clinic Budget'!C81 -> Renewal Assessment that does not result in a prescription | B66: =+'Service Listing'!J62 -> 12 | C66: =+'Clinic Budget'!T81 -> 0 | D66: =IFERROR(INDEX(ServListing[Time (min)],MATCH(A66,ServListing[Service],0),0),0) -> 15 | E66: =+Q4Analysis[[#This Row],['#/month]]*3/13 -> 0 | F66: =IFERROR(Q4Analysis[[#This Row],['#/month]]*Q4Analysis[[#This Row],[Revenue/Service]],0) -> 0 | G66: =+Q4Analysis[[#This Row],['#/week]]*Q4Analysis[[#This Row],[Service Time (Min)]] -> 0 | H66: =+'Clinic Budget'!A81 -> Not Funded Eligible
A67: =+'Clinic Budget'!C82 -> Prescription Adaptation Refusal to Fill | B67: =+'Service Listing'!J63 -> 14 | C67: =+'Clinic Budget'!T82 -> 0 | D67: =IFERROR(INDEX(ServListing[Time (min)],MATCH(A67,ServListing[Service],0),0),0) -> 15 | E67: =+Q4Analysis[[#This Row],['#/month]]*3/13 -> 0 | F67: =IFERROR(Q4Analysis[[#This Row],['#/month]]*Q4Analysis[[#This Row],[Revenue/Service]],0) -> 0 | G67: =+Q4Analysis[[#This Row],['#/week]]*Q4Analysis[[#This Row],[Service Time (Min)]] -> 0 | H67: =+'Clinic Budget'!A82 -> Not Funded Eligible
A68: =+'Clinic Budget'!C83 -> Prescription Adaptation -Other | B68: =+'Service Listing'!J64 -> 14 | C68: =+'Clinic Budget'!T83 -> 0 | D68: =IFERROR(INDEX(ServListing[Time (min)],MATCH(A68,ServListing[Service],0),0),0) -> 15 | E68: =+Q4Analysis[[#This Row],['#/month]]*3/13 -> 0 | F68: =IFERROR(Q4Analysis[[#This Row],['#/month]]*Q4Analysis[[#This Row],[Revenue/Service]],0) -> 0 | G68: =+Q4Analysis[[#This Row],['#/week]]*Q4Analysis[[#This Row],[Service Time (Min)]] -> 0 | H68: =+'Clinic Budget'!A83 -> Not Funded Eligible
A69: =+'Clinic Budget'!C84 -> Therapeutic Substitution – PPI | B69: =+'Service Listing'!J65 -> 26.5 | C69: =+'Clinic Budget'!T84 -> 0 | D69: =IFERROR(INDEX(ServListing[Time (min)],MATCH(A69,ServListing[Service],0),0),0) -> 15 | E69: =+Q4Analysis[[#This Row],['#/month]]*3/13 -> 0 | F69: =IFERROR(Q4Analysis[[#This Row],['#/month]]*Q4Analysis[[#This Row],[Revenue/Service]],0) -> 0 | G69: =+Q4Analysis[[#This Row],['#/week]]*Q4Analysis[[#This Row],[Service Time (Min)]] -> 0 | H69: =+'Clinic Budget'!A84 -> Not Funded Eligible
A70: =+'Clinic Budget'!C85 -> Therapeutic Sub- Other Circumstances | B70: =+'Service Listing'!J66 -> 26.5 | C70: =+'Clinic Budget'!T85 -> 0 | D70: =IFERROR(INDEX(ServListing[Time (min)],MATCH(A70,ServListing[Service],0),0),0) -> 15 | E70: =+Q4Analysis[[#This Row],['#/month]]*3/13 -> 0 | F70: =IFERROR(Q4Analysis[[#This Row],['#/month]]*Q4Analysis[[#This Row],[Revenue/Service]],0) -> 0 | G70: =+Q4Analysis[[#This Row],['#/week]]*Q4Analysis[[#This Row],[Service Time (Min)]] -> 0 | H70: =+'Clinic Budget'!A85 -> Not Funded Eligible
A71: =+'Clinic Budget'!C86 -> Prescribing in an Emergency | B71: =+'Service Listing'!J67 -> 28 | C71: =+'Clinic Budget'!T86 -> 0 | D71: =IFERROR(INDEX(ServListing[Time (min)],MATCH(A71,ServListing[Service],0),0),0) -> 15 | E71: =+Q4Analysis[[#This Row],['#/month]]*3/13 -> 0 | F71: =IFERROR(Q4Analysis[[#This Row],['#/month]]*Q4Analysis[[#This Row],[Revenue/Service]],0) -> 0 | G71: =+Q4Analysis[[#This Row],['#/week]]*Q4Analysis[[#This Row],[Service Time (Min)]] -> 0 | H71: =+'Clinic Budget'!A86 -> Not Funded Eligible
A72: =+'Clinic Budget'!C87 -> Pharmacist independent prescribing with diagnosis confirmed by pharmacist (Diabetes, Lung, CVD only). NSCP Study | B72: =+'Service Listing'!J68 -> 25 | C72: =+'Clinic Budget'!T87 -> 0 | D72: =IFERROR(INDEX(ServListing[Time (min)],MATCH(A72,ServListing[Service],0),0),0) -> 15 | E72: =+Q4Analysis[[#This Row],['#/month]]*3/13 -> 0 | F72: =IFERROR(Q4Analysis[[#This Row],['#/month]]*Q4Analysis[[#This Row],[Revenue/Service]],0) -> 0 | G72: =+Q4Analysis[[#This Row],['#/week]]*Q4Analysis[[#This Row],[Service Time (Min)]] -> 0 | H72: =+'Clinic Budget'!A87 -> Not Funded Eligible
A73: =+'Clinic Budget'!C88 -> Prescribing for a Minor Ailment (as per Appendix 6) | B73: =+'Service Listing'!J69 -> 25 | C73: =+'Clinic Budget'!T88 -> 0 | D73: =IFERROR(INDEX(ServListing[Time (min)],MATCH(A73,ServListing[Service],0),0),0) -> 15 | E73: =+Q4Analysis[[#This Row],['#/month]]*3/13 -> 0 | F73: =IFERROR(Q4Analysis[[#This Row],['#/month]]*Q4Analysis[[#This Row],[Revenue/Service]],0) -> 0 | G73: =+Q4Analysis[[#This Row],['#/week]]*Q4Analysis[[#This Row],[Service Time (Min)]] -> 0 | H73: =+'Clinic Budget'!A88 -> Not Funded Eligible
A74: =+'Clinic Budget'!C89 -> Assessment, Point of Care Testing For Group A Strep that results in a prescription | B74: =+'Service Listing'!J70 -> 35 | C74: =+'Clinic Budget'!T89 -> 0 | D74: =IFERROR(INDEX(ServListing[Time (min)],MATCH(A74,ServListing[Service],0),0),0) -> 15 | E74: =+Q4Analysis[[#This Row],['#/month]]*3/13 -> 0 | F74: =IFERROR(Q4Analysis[[#This Row],['#/month]]*Q4Analysis[[#This Row],[Revenue/Service]],0) -> 0 | G74: =+Q4Analysis[[#This Row],['#/week]]*Q4Analysis[[#This Row],[Service Time (Min)]] -> 0 | H74: =+'Clinic Budget'!A89 -> Not Funded Eligible
A75: =+'Clinic Budget'!C90 -> Assessment Group A Strep that does not result in an RX | B75: =+'Service Listing'!J71 -> 20 | C75: =+'Clinic Budget'!T90 -> 0 | D75: =IFERROR(INDEX(ServListing[Time (min)],MATCH(A75,ServListing[Service],0),0),0) -> 15 | E75: =+Q4Analysis[[#This Row],['#/month]]*3/13 -> 0 | F75: =IFERROR(Q4Analysis[[#This Row],['#/month]]*Q4Analysis[[#This Row],[Revenue/Service]],0) -> 0 | G75: =+Q4Analysis[[#This Row],['#/week]]*Q4Analysis[[#This Row],[Service Time (Min)]] -> 0 | H75: =+'Clinic Budget'!A90 -> Not Funded Eligible
A76: =+'Clinic Budget'!C91 -> Point of Care Test A1C | B76: =+'Service Listing'!J72 -> 25 | C76: =+'Clinic Budget'!T91 -> 0 | D76: =IFERROR(INDEX(ServListing[Time (min)],MATCH(A76,ServListing[Service],0),0),0) -> 15 | E76: =+Q4Analysis[[#This Row],['#/month]]*3/13 -> 0 | F76: =IFERROR(Q4Analysis[[#This Row],['#/month]]*Q4Analysis[[#This Row],[Revenue/Service]],0) -> 0 | G76: =+Q4Analysis[[#This Row],['#/week]]*Q4Analysis[[#This Row],[Service Time (Min)]] -> 0 | H76: =+'Clinic Budget'!A91 -> Not Funded Eligible
A77: =+'Clinic Budget'!C92 -> Point of Care Test Cholesterol | B77: =+'Service Listing'!J73 -> 25 | C77: =+'Clinic Budget'!T92 -> 0 | D77: =IFERROR(INDEX(ServListing[Time (min)],MATCH(A77,ServListing[Service],0),0),0) -> 15 | E77: =+Q4Analysis[[#This Row],['#/month]]*3/13 -> 0 | F77: =IFERROR(Q4Analysis[[#This Row],['#/month]]*Q4Analysis[[#This Row],[Revenue/Service]],0) -> 0 | G77: =+Q4Analysis[[#This Row],['#/week]]*Q4Analysis[[#This Row],[Service Time (Min)]] -> 0 | H77: =+'Clinic Budget'!A92 -> Not Funded Eligible
A78: =+'Clinic Budget'!C93 -> Administration of non-publicly funded vaccines | B78: =+'Service Listing'!J74 -> 20 | C78: =+'Clinic Budget'!T93 -> 0 | D78: =IFERROR(INDEX(ServListing[Time (min)],MATCH(A78,ServListing[Service],0),0),0) -> 7.5 | E78: =+Q4Analysis[[#This Row],['#/month]]*3/13 -> 0 | F78: =IFERROR(Q4Analysis[[#This Row],['#/month]]*Q4Analysis[[#This Row],[Revenue/Service]],0) -> 0 | G78: =+Q4Analysis[[#This Row],['#/week]]*Q4Analysis[[#This Row],[Service Time (Min)]] -> 0 | H78: =+'Clinic Budget'!A93 -> Not Funded Not Eligible
A79: =+'Clinic Budget'!C94 -> Comprehensive Travel Health Consultation | B79: =+'Service Listing'!J75 -> Fee Set by Site | C79: =+'Clinic Budget'!T94 -> 0 | D79: =IFERROR(INDEX(ServListing[Time (min)],MATCH(A79,ServListing[Service],0),0),0) -> 30 | E79: =+Q4Analysis[[#This Row],['#/month]]*3/13 -> 0 | F79: =IFERROR(Q4Analysis[[#This Row],['#/month]]*Q4Analysis[[#This Row],[Revenue/Service]],0) -> 0 | G79: =+Q4Analysis[[#This Row],['#/week]]*Q4Analysis[[#This Row],[Service Time (Min)]] -> 0 | H79: =+'Clinic Budget'!A94 -> Not Funded Not Eligible
A80: =+'Clinic Budget'!C95 -> Pharmacogenomic Consultation Service | B80: =+'Service Listing'!J76 -> Fee Set by Site | C80: =+'Clinic Budget'!T95 -> 0 | D80: =IFERROR(INDEX(ServListing[Time (min)],MATCH(A80,ServListing[Service],0),0),0) -> 30 | E80: =+Q4Analysis[[#This Row],['#/month]]*3/13 -> 0 | F80: =IFERROR(Q4Analysis[[#This Row],['#/month]]*Q4Analysis[[#This Row],[Revenue/Service]],0) -> 0 | G80: =+Q4Analysis[[#This Row],['#/week]]*Q4Analysis[[#This Row],[Service Time (Min)]] -> 0 | H80: =+'Clinic Budget'!A95 -> Not Funded Not Eligible
A81: =+'Clinic Budget'!C96 -> Malaria Chemoprophylaxis Assessment and Prescribing | B81: =+'Service Listing'!J77 -> Fee Set by Site | C81: =+'Clinic Budget'!T96 -> 0 | D81: =IFERROR(INDEX(ServListing[Time (min)],MATCH(A81,ServListing[Service],0),0),0) -> 30 | E81: =+Q4Analysis[[#This Row],['#/month]]*3/13 -> 0 | F81: =IFERROR(Q4Analysis[[#This Row],['#/month]]*Q4Analysis[[#This Row],[Revenue/Service]],0) -> 0 | G81: =+Q4Analysis[[#This Row],['#/week]]*Q4Analysis[[#This Row],[Service Time (Min)]] -> 0 | H81: =+'Clinic Budget'!A96 -> Not Funded Not Eligible
A82: =+'Clinic Budget'!C97 -> Any Service for a Patient without an NS Health card that is not covered for out of province patients | B82: =+'Service Listing'!J78 -> Fee Set by Site | C82: =+'Clinic Budget'!T97 -> 0 | D82: =IFERROR(INDEX(ServListing[Time (min)],MATCH(A82,ServListing[Service],0),0),0) -> 15 | E82: =+Q4Analysis[[#This Row],['#/month]]*3/13 -> 0 | F82: =IFERROR(Q4Analysis[[#This Row],['#/month]]*Q4Analysis[[#This Row],[Revenue/Service]],0) -> 0 | G82: =+Q4Analysis[[#This Row],['#/week]]*Q4Analysis[[#This Row],[Service Time (Min)]] -> 0 | H82: =+'Clinic Budget'!A97 -> Not Funded Not Eligible
A83: =+'Service Listing'!$C$79 -> Rapid Antigen Testing Travel Test | B83: =+'Service Listing'!J79 -> 40 | C83: =+'Clinic Budget'!T98 -> 0 | D83: =IFERROR(INDEX(ServListing[Time (min)],MATCH(A83,ServListing[Service],0),0),0) -> 15 | E83: =+Q4Analysis[[#This Row],['#/month]]*3/13 -> 0 | F83: =IFERROR(Q4Analysis[[#This Row],['#/month]]*Q4Analysis[[#This Row],[Revenue/Service]],0) -> 0 | G83: =+Q4Analysis[[#This Row],['#/week]]*Q4Analysis[[#This Row],[Service Time (Min)]] -> 0 | H83: =+'Clinic Budget'!A98 -> Not Funded Not Eligible
A84: =+'Service Listing'!$C$80 -> Other: | B84: =+'Service Listing'!J80 -> Fee Set by Site | C84: =+'Clinic Budget'!T99 -> 0 | D84: =IFERROR(INDEX(ServListing[Time (min)],MATCH(A84,ServListing[Service],0),0),0) -> 15 | E84: =+Q4Analysis[[#This Row],['#/month]]*3/13 -> 0 | F84: =IFERROR(Q4Analysis[[#This Row],['#/month]]*Q4Analysis[[#This Row],[Revenue/Service]],0) -> 0 | G84: =+Q4Analysis[[#This Row],['#/week]]*Q4Analysis[[#This Row],[Service Time (Min)]] -> 0 | H84: =+'Clinic Budget'!A99 -> Not Funded Not Eligible
A85: =+'Service Listing'!$C$81 -> Other: | B85: =+'Service Listing'!J81 -> Fee Set by Site | C85: =+'Clinic Budget'!T100 -> 0 | D85: =IFERROR(INDEX(ServListing[Time (min)],MATCH(A85,ServListing[Service],0),0),0) -> 15 | E85: =+Q4Analysis[[#This Row],['#/month]]*3/13 -> 0 | F85: =IFERROR(Q4Analysis[[#This Row],['#/month]]*Q4Analysis[[#This Row],[Revenue/Service]],0) -> 0 | G85: =+Q4Analysis[[#This Row],['#/week]]*Q4Analysis[[#This Row],[Service Time (Min)]] -> 0 | H85: =+'Clinic Budget'!A100 -> Not Funded Not Eligible
A86: *CPAMS Initial Appointments | B86: N/A | C86: 0 | D86: =+D87*2 -> 30 | E86: =+Q4Analysis[[#This Row],['#/month]]*3/13 -> 0 | F86: =IFERROR(Q4Analysis[[#This Row],['#/month]]*Q4Analysis[[#This Row],[Revenue/Service]],0) -> 0 | G86: =+Q4Analysis[[#This Row],['#/week]]*Q4Analysis[[#This Row],[Service Time (Min)]] -> 0 | H86: N/A
A87: *CPAMS Surplus Appointments | B87: N/A | C87: 0 | D87: =+'Service Listing'!$F$3 -> 15 | E87: =+Q4Analysis[[#This Row],['#/month]]*3/13 -> 0 | F87: =IFERROR(Q4Analysis[[#This Row],['#/month]]*Q4Analysis[[#This Row],[Revenue/Service]],0) -> 0 | G87: =+Q4Analysis[[#This Row],['#/week]]*Q4Analysis[[#This Row],[Service Time (Min)]] -> 0 | H87: N/A
A88: *Bloom Initial Assessments Appoint | B88: N/A | C88: 0 | D88: =+D89*4 -> 60 | E88: =+Q4Analysis[[#This Row],['#/month]]*3/13 -> 0 | F88: =IFERROR(Q4Analysis[[#This Row],['#/month]]*Q4Analysis[[#This Row],[Revenue/Service]],0) -> 0 | G88: =+Q4Analysis[[#This Row],['#/week]]*Q4Analysis[[#This Row],[Service Time (Min)]] -> 0 | H88: N/A
A89: *Bloom Surplus Appointments | B89: N/A | C89: 0 | D89: =+'Service Listing'!$F$3 -> 15 | E89: =+Q4Analysis[[#This Row],['#/month]]*3/13 -> 0 | F89: =IFERROR(Q4Analysis[[#This Row],['#/month]]*Q4Analysis[[#This Row],[Revenue/Service]],0) -> 0 | G89: =+Q4Analysis[[#This Row],['#/week]]*Q4Analysis[[#This Row],[Service Time (Min)]] -> 0 | H89: N/A
A90: Total | F90: =SUBTOTAL(109,Q4Analysis[Monthly Revenue per Service]) -> 0 | G90: =SUBTOTAL(109,Q4Analysis[Weekly Time Needed (min)]) -> 0

Sheet Q1PVTTable
A3: Row Labels | B3: Sum of Monthly Revenue per Service
A4: Funded | B4: 8972.25
A5: Advanced Medication Review | B5: 3000
A6: Advanced Medication Review Follow-ups | B6: 250
A7: Assessment – Uncomplicated UTI that results in a prescription | B7: 200
A8: Assessment Herpes Zoster Tx that does not result in a prescription | B8: 0
A9: Assessment Lyme Chemoprophylaxis that does not result in a prescription | B9: 0
A10: Assessment Uncomplicated UTI that does not result in a prescription | B10: 0
A11: Basic Medication Review | B11: 116.6666667
A12: Basic Medication Review Follow-ups | B12: 6.666666667
A13: Bloom Monthly fee (7+ months) | B13: 0
A14: Bloom Monthly fee (first 6 months) | B14: 1875
A15: Community Pharmacy Led Anticoagulation Management Service (monthly service fee) | B15: 2000
A16: Covid-19 Vaccine Administration Fee | B16: 180
A17: Deprescribing BZRA Follow-ups- Early (limit of 2) Project participants | B17: 0
A18: Deprescribing BZRA Follow-ups Later (limit of 5 for BZRA only)Project Participants | B18: 0
A19: Deprescribing BZRA Participants Initial Assessment | B19: 0
A20: Deprescribing PPI Follow-ups- Early (limit of 2) Project participants | B20: 0
A21: Deprescribing -PPI Project Participants Initial Assessment | B21: 0
A22: Hypertension Project Follow-ups | B22: 0
A23: Hypertension Project Initial Assessment | B23: 0
A24: Influenza Vaccine Admin Fee* | B24: 0
A25: PPCC Prescription Renewal (1-3 meds) | B25: 896
A26: Prescribing Budesonide for Covid-19 | B26: 20
A27: Prescribing Contraception Initial Assessment that does not result in a prescription | B27: 0
A28: Prescribing Contraception Initial Assessment that results in a prescription | B28: 100
A29: Prescribing Contraception Subsequent assessment that does not result in a change | B29: 60
A30: Prescribing Contraception subsequent assessment that results in a change | B30: 0
A31: Prescribing Herpes Zoster Tx | B31: 10
A32: Prescribing- Lyme Chemoprophylaxis | B32: 0
A33: Prescription Adaptation -Other | B33: 35
A34: Prescription Adaptation Refusal to Fill | B34: 0
A35: Prescription Renewal (4+ meds) | B35: 106.6666667
A36: Take Home Naloxone Kit Training | B36: 50
A37: Therapeutic Sub- Other Circumstances | B37: 0
A38: Therapeutic Substitution – PPI | B38: 66.25
A39: Not Funded Eligible | B39: 8872.395
A40: Administration of publicly funded vaccine other than covid-19 or flu | B40: 90
A41: Assessment and Administration of Anti-psychotic medications | B41: 160
A42: Assessment and Administration of IM or SC injectable medication | B42: 200
A43: Assessment and Administration of Sublocade | B43: 160
A44: Assessment Group A Strep that does not result in an RX | B44: 200
A45: Assessment, Point of Care Testing For Group A Strep that results in a prescription | B45: 350
A46: Chronic Disease Diabetes Management - Follow-up (up to 5 per year) | B46: 450
A47: Chronic Disease Management – Diabetes – Initial/Annual assessment | B47: 1250
A48: Chronic Disease Management – Lung Disease Asthma/COPD) Initial/Annual Assessment | B48: 500
A49: Chronic Disease Management – Lung Disease Follow-up (up to 5 per year | B49: 120
A50: Chronic Disease Management Cardiovascular Disease Follow-up (up to 5 per year) | B50: 90
A51: Chronic Disease Management -Cardiovascular Disease Initial/Annual Assessment | B51: 625
A52: Complex Medication Therapy Assessment | B52: 150
A53: Deprescribing BZRA Follow-ups- Early (limit of 2) Non Project participants | B53: 13.2
A54: Deprescribing BZRA Follow-ups Later (limit of 5 for BZRA only) Non-Project Participants | B54: 7.92
A55: Deprescribing BZRA Non Project Participants Initial Assessment | B55: 49.5
A56: Deprescribing PPI Follow-ups- Early (limit of 2) Non Project participants | B56: 13.2
A57: Deprescribing -PPI Non Project Participants Initial Assessment | B57: 17.325
A58: Hypertension Project Follow-ups | B58: 200
A59: Hypertension Project Initial Assessment | B59: 625
A60: Pharmacist independent prescribing with diagnosis confirmed by pharmacist (Diabetes, Lung, CVD only). NSCP Study | B60: 0
A61: Point of Care Test A1C | B61: 712.5
A62: Point of Care Test Cholesterol | B62: 787.5
A63: Prescribing for a Minor Ailment (as per Appendix 6) | B63: 2000
A64: Prescribing in an Emergency | B64: 0
A65: Prescribing with a diagnosis as per NSCP standard in collaboration with another provider | B65: 0
A66: Prescription Adaptation -Other | B66: 35
A67: Prescription Adaptation Refusal to Fill | B67: 0
A68: Renewal Assessment that does not result in a prescription | B68: 0
A69: Therapeutic Sub- Other Circumstances | B69: 0
A70: Therapeutic Substitution – PPI | B70: 66.25
A71: Tobacco Use Reduction Program – Follow-up 1-3 | B71: 0
A72: Tobacco Use Reduction Program – Initial Assessment and Discussion | B72: 0
A73: Tobacco Use Reduction Program –Follow-up 4-7 | B73: 0
A74: Not Funded Not Eligible | B74: 300
A75: Administration of non-publicly funded vaccines | B75: 300
A76: Any Service for a Patient without an NS Health card that is not covered for out of province patients | B76: 0
A77: Comprehensive Travel Health Consultation | B77: 0
A78: Malaria Chemoprophylaxis Assessment and Prescribing | B78: 0
A79: Other: | B79: 0
A80: Pharmacogenomic Consultation Service | B80: 0
A81: Rapid Antigen Testing Travel Test | B81: 0
A82: N/A | B82: 0
A83: *CPAMS Initial Appointments | B83: 0
A84: *CPAMS Surplus Appointments | B84: 0
A85: *Bloom Initial Assessments Appoint | B85: 0
A86: *Bloom Surplus Appointments | B86: 0
A87: Grand Total | B87: 18144.645

Sheet Q2PVTTable
A3: Row Labels | B3: Sum of Monthly Revenue per Service
A4: Funded | B4: 6738.916667
A5: Advanced Medication Review | B5: 750
A6: Advanced Medication Review Follow-ups | B6: 250
A7: Assessment – Uncomplicated UTI that results in a prescription | B7: 200
A8: Assessment Herpes Zoster Tx that does not result in a prescription | B8: 0
A9: Assessment Lyme Chemoprophylaxis that does not result in a prescription | B9: 0
A10: Assessment Uncomplicated UTI that does not result in a prescription | B10: 0
A11: Basic Medication Review | B11: 58.33333333
A12: Basic Medication Review Follow-ups | B12: 6.666666667
A13: Bloom Monthly fee (7+ months) | B13: 0
A14: Bloom Monthly fee (first 6 months) | B14: 2250
A15: Community Pharmacy Led Anticoagulation Management Service (monthly service fee) | B15: 1500
A16: Covid-19 Vaccine Administration Fee | B16: 180
A17: Deprescribing BZRA Follow-ups- Early (limit of 2) Project participants | B17: 0
A18: Deprescribing BZRA Follow-ups Later (limit of 5 for BZRA only)Project Participants | B18: 0
A19: Deprescribing BZRA Participants Initial Assessment | B19: 0
A20: Deprescribing PPI Follow-ups- Early (limit of 2) Project participants | B20: 0
A21: Deprescribing -PPI Project Participants Initial Assessment | B21: 0
A22: Hypertension Project Follow-ups | B22: 0
A23: Hypertension Project Initial Assessment | B23: 0
A24: Influenza Vaccine Admin Fee* | B24: 0
A25: PPCC Prescription Renewal (1-3 meds) | B25: 896
A26: Prescribing Budesonide for Covid-19 | B26: 20
A27: Prescribing Contraception Initial Assessment that does not result in a prescription | B27: 0
A28: Prescribing Contraception Initial Assessment that results in a prescription | B28: 100
A29: Prescribing Contraception Subsequent assessment that does not result in a change | B29: 60
A30: Prescribing Contraception subsequent assessment that results in a change | B30: 0
A31: Prescribing Herpes Zoster Tx | B31: 10
A32: Prescribing- Lyme Chemoprophylaxis | B32: 200
A33: Prescription Adaptation -Other | B33: 35
A34: Prescription Adaptation Refusal to Fill | B34: 0
A35: Prescription Renewal (4+ meds) | B35: 106.6666667
A36: Take Home Naloxone Kit Training | B36: 50
A37: Therapeutic Sub- Other Circumstances | B37: 0
A38: Therapeutic Substitution – PPI | B38: 66.25
A39: Not Funded Eligible | B39: 8384.895
A40: Administration of publicly funded vaccine other than covid-19 or flu | B40: 90
A41: Assessment and Administration of Anti-psychotic medications | B41: 160
A42: Assessment and Administration of IM or SC injectable medication | B42: 200
A43: Assessment and Administration of Sublocade | B43: 160
A44: Assessment Group A Strep that does not result in an RX | B44: 50
A45: Assessment, Point of Care Testing For Group A Strep that results in a prescription | B45: 87.5
A46: Chronic Disease Diabetes Management - Follow-up (up to 5 per year) | B46: 450
A47: Chronic Disease Management – Diabetes – Initial/Annual assessment | B47: 1250
A48: Chronic Disease Management – Lung Disease Asthma/COPD) Initial/Annual Assessment | B48: 500
A49: Chronic Disease Management – Lung Disease Follow-up (up to 5 per year | B49: 120
A50: Chronic Disease Management Cardiovascular Disease Follow-up (up to 5 per year) | B50: 90
A51: Chronic Disease Management -Cardiovascular Disease Initial/Annual Assessment | B51: 625
A52: Complex Medication Therapy Assessment | B52: 150
A53: Deprescribing BZRA Follow-ups- Early (limit of 2) Non Project participants | B53: 13.2
A54: Deprescribing BZRA Follow-ups Later (limit of 5 for BZRA only) Non-Project Participants | B54: 7.92
A55: Deprescribing BZRA Non Project Participants Initial Assessment | B55: 49.5
A56: Deprescribing PPI Follow-ups- Early (limit of 2) Non Project participants | B56: 13.2
A57: Deprescribing -PPI Non Project Participants Initial Assessment | B57: 17.325
A58: Hypertension Project Follow-ups | B58: 200
A59: Hypertension Project Initial Assessment | B59: 625
A60: Pharmacist independent prescribing with diagnosis confirmed by pharmacist (Diabetes, Lung, CVD only). NSCP Study | B60: 0
A61: Point of Care Test A1C | B61: 675
A62: Point of Care Test Cholesterol | B62: 750
A63: Prescribing for a Minor Ailment (as per Appendix 6) | B63: 2000
A64: Prescribing in an Emergency | B64: 0
A65: Prescribing with a diagnosis as per NSCP standard in collaboration with another provider | B65: 0
A66: Prescription Adaptation -Other | B66: 35
A67: Prescription Adaptation Refusal to Fill | B67: 0
A68: Renewal Assessment that does not result in a prescription | B68: 0
A69: Therapeutic Sub- Other Circumstances | B69: 0
A70: Therapeutic Substitution – PPI | B70: 66.25
A71: Tobacco Use Reduction Program – Follow-up 1-3 | B71: 0
A72: Tobacco Use Reduction Program – Initial Assessment and Discussion | B72: 0
A73: Tobacco Use Reduction Program –Follow-up 4-7 | B73: 0
A74: Not Funded Not Eligible | B74: 300
A75: Administration of non-publicly funded vaccines | B75: 300
A76: Any Service for a Patient without an NS Health card that is not covered for out of province patients | B76: 0
A77: Comprehensive Travel Health Consultation | B77: 0
A78: Malaria Chemoprophylaxis Assessment and Prescribing | B78: 0
A79: Other: | B79: 0
A80: Pharmacogenomic Consultation Service | B80: 0
A81: Rapid Antigen Testing Travel Test | B81: 0
A82: Grand Total | B82: 15423.81167

Sheet Q3PVTTable
A3: Row Labels | B3: Sum of Monthly Revenue per Service
A4: Funded | B4: 7327.25
A5: Advanced Medication Review | B5: 750
A6: Advanced Medication Review Follow-ups | B6: 250
A7: Assessment – Uncomplicated UTI that results in a prescription | B7: 200
A8: Assessment Herpes Zoster Tx that does not result in a prescription | B8: 0
A9: Assessment Lyme Chemoprophylaxis that does not result in a prescription | B9: 0
A10: Assessment Uncomplicated UTI that does not result in a prescription | B10: 0
A11: Basic Medication Review | B11: 58.33333333
A12: Basic Medication Review Follow-ups | B12: 6.666666667
A13: Bloom Monthly fee (7+ months) | B13: 0
A14: Bloom Monthly fee (first 6 months) | B14: 2625
A15: Community Pharmacy Led Anticoagulation Management Service (monthly service fee) | B15: 1500
A16: Covid-19 Vaccine Administration Fee | B16: 180
A17: Deprescribing BZRA Follow-ups- Early (limit of 2) Project participants | B17: 0
A18: Deprescribing BZRA Follow-ups Later (limit of 5 for BZRA only)Project Participants | B18: 0
A19: Deprescribing BZRA Participants Initial Assessment | B19: 0
A20: Deprescribing PPI Follow-ups- Early (limit of 2) Project participants | B20: 0
A21: Deprescribing -PPI Project Participants Initial Assessment | B21: 0
A22: Hypertension Project Follow-ups | B22: 0
A23: Hypertension Project Initial Assessment | B23: 0
A24: Influenza Vaccine Admin Fee* | B24: 213.3333333
A25: PPCC Prescription Renewal (1-3 meds) | B25: 896
A26: Prescribing Budesonide for Covid-19 | B26: 20
A27: Prescribing Contraception Initial Assessment that does not result in a prescription | B27: 0
A28: Prescribing Contraception Initial Assessment that results in a prescription | B28: 100
A29: Prescribing Contraception Subsequent assessment that does not result in a change | B29: 60
A30: Prescribing Contraception subsequent assessment that results in a change | B30: 0
A31: Prescribing Herpes Zoster Tx | B31: 10
A32: Prescribing- Lyme Chemoprophylaxis | B32: 200
A33: Prescription Adaptation -Other | B33: 35
A34: Prescription Adaptation Refusal to Fill | B34: 0
A35: Prescription Renewal (4+ meds) | B35: 106.6666667
A36: Take Home Naloxone Kit Training | B36: 50
A37: Therapeutic Sub- Other Circumstances | B37: 0
A38: Therapeutic Substitution – PPI | B38: 66.25
A39: Not Funded Eligible | B39: 7384.895
A40: Administration of publicly funded vaccine other than covid-19 or flu | B40: 90
A41: Assessment and Administration of Anti-psychotic medications | B41: 160
A42: Assessment and Administration of IM or SC injectable medication | B42: 200
A43: Assessment and Administration of Sublocade | B43: 160
A44: Assessment Group A Strep that does not result in an RX | B44: 50
A45: Assessment, Point of Care Testing For Group A Strep that results in a prescription | B45: 87.5
A46: Chronic Disease Diabetes Management - Follow-up (up to 5 per year) | B46: 450
A47: Chronic Disease Management – Diabetes – Initial/Annual assessment | B47: 625
A48: Chronic Disease Management – Lung Disease Asthma/COPD) Initial/Annual Assessment | B48: 250
A49: Chronic Disease Management – Lung Disease Follow-up (up to 5 per year | B49: 120
A50: Chronic Disease Management Cardiovascular Disease Follow-up (up to 5 per year) | B50: 90
A51: Chronic Disease Management -Cardiovascular Disease Initial/Annual Assessment | B51: 500
A52: Complex Medication Therapy Assessment | B52: 150
A53: Deprescribing BZRA Follow-ups- Early (limit of 2) Non Project participants | B53: 13.2
A54: Deprescribing BZRA Follow-ups Later (limit of 5 for BZRA only) Non-Project Participants | B54: 7.92
A55: Deprescribing BZRA Non Project Participants Initial Assessment | B55: 49.5
A56: Deprescribing PPI Follow-ups- Early (limit of 2) Non Project participants | B56: 13.2
A57: Deprescribing -PPI Non Project Participants Initial Assessment | B57: 17.325
A58: Hypertension Project Follow-ups | B58: 200
A59: Hypertension Project Initial Assessment | B59: 625
A60: Pharmacist independent prescribing with diagnosis confirmed by pharmacist (Diabetes, Lung, CVD only). NSCP Study | B60: 0
A61: Point of Care Test A1C | B61: 675
A62: Point of Care Test Cholesterol | B62: 750
A63: Prescribing for a Minor Ailment (as per Appendix 6) | B63: 2000
A64: Prescribing in an Emergency | B64: 0
A65: Prescribing with a diagnosis as per NSCP standard in collaboration with another provider | B65: 0
A66: Prescription Adaptation -Other | B66: 35
A67: Prescription Adaptation Refusal to Fill | B67: 0
A68: Renewal Assessment that does not result in a prescription | B68: 0
A69: Therapeutic Sub- Other Circumstances | B69: 0
A70: Therapeutic Substitution – PPI | B70: 66.25
A71: Tobacco Use Reduction Program – Follow-up 1-3 | B71: 0
A72: Tobacco Use Reduction Program – Initial Assessment and Discussion | B72: 0
A73: Tobacco Use Reduction Program –Follow-up 4-7 | B73: 0
A74: Not Funded Not Eligible | B74: 300
A75: Administration of non-publicly funded vaccines | B75: 300
A76: Any Service for a Patient without an NS Health card that is not covered for out of province patients | B76: 0
A77: Comprehensive Travel Health Consultation | B77: 0
A78: Malaria Chemoprophylaxis Assessment and Prescribing | B78: 0
A79: Other: | B79: 0
A80: Pharmacogenomic Consultation Service | B80: 0
A81: Rapid Antigen Testing Travel Test | B81: 0
A82: Grand Total | B82: 15012.145

Sheet Q4PVTTable
A3: Row Labels | B3: Sum of Monthly Revenue per Service
A4: Funded | B4: 10427.25
A5: Advanced Medication Review | B5: 3000
A6: Advanced Medication Review Follow-ups | B6: 250
A7: Assessment – Uncomplicated UTI that results in a prescription | B7: 200
A8: Assessment Herpes Zoster Tx that does not result in a prescription | B8: 0
A9: Assessment Lyme Chemoprophylaxis that does not result in a prescription | B9: 0
A10: Assessment Uncomplicated UTI that does not result in a prescription | B10: 0
A11: Basic Medication Review | B11: 116.6666667
A12: Basic Medication Review Follow-ups | B12: 6.666666667
A13: Bloom Monthly fee (7+ months) | B13: 300
A14: Bloom Monthly fee (first 6 months) | B14: 2250
A15: Community Pharmacy Led Anticoagulation Management Service (monthly service fee) | B15: 1500
A16: Covid-19 Vaccine Administration Fee | B16: 180
A17: Deprescribing BZRA Follow-ups- Early (limit of 2) Project participants | B17: 0
A18: Deprescribing BZRA Follow-ups Later (limit of 5 for BZRA only)Project Participants | B18: 0
A19: Deprescribing BZRA Participants Initial Assessment | B19: 0
A20: Deprescribing PPI Follow-ups- Early (limit of 2) Project participants | B20: 0
A21: Deprescribing -PPI Project Participants Initial Assessment | B21: 0
A22: Hypertension Project Follow-ups | B22: 0
A23: Hypertension Project Initial Assessment | B23: 0
A24: Influenza Vaccine Admin Fee* | B24: 1280
A25: PPCC Prescription Renewal (1-3 meds) | B25: 896
A26: Prescribing Budesonide for Covid-19 | B26: 20
A27: Prescribing Contraception Initial Assessment that does not result in a prescription | B27: 0
A28: Prescribing Contraception Initial Assessment that results in a prescription | B28: 100
A29: Prescribing Contraception Subsequent assessment that does not result in a change | B29: 60
A30: Prescribing Contraception subsequent assessment that results in a change | B30: 0
A31: Prescribing Herpes Zoster Tx | B31: 10
A32: Prescribing- Lyme Chemoprophylaxis | B32: 0
A33: Prescription Adaptation -Other | B33: 35
A34: Prescription Adaptation Refusal to Fill | B34: 0
A35: Prescription Renewal (4+ meds) | B35: 106.6666667
A36: Take Home Naloxone Kit Training | B36: 50
A37: Therapeutic Sub- Other Circumstances | B37: 0
A38: Therapeutic Substitution – PPI | B38: 66.25
A39: Not Funded Eligible | B39: 7872.395
A40: Administration of publicly funded vaccine other than covid-19 or flu | B40: 90
A41: Assessment and Administration of Anti-psychotic medications | B41: 160
A42: Assessment and Administration of IM or SC injectable medication | B42: 200
A43: Assessment and Administration of Sublocade | B43: 160
A44: Assessment Group A Strep that does not result in an RX | B44: 200
A45: Assessment, Point of Care Testing For Group A Strep that results in a prescription | B45: 350
A46: Chronic Disease Diabetes Management - Follow-up (up to 5 per year) | B46: 450
A47: Chronic Disease Management – Diabetes – Initial/Annual assessment | B47: 625
A48: Chronic Disease Management – Lung Disease Asthma/COPD) Initial/Annual Assessment | B48: 250
A49: Chronic Disease Management – Lung Disease Follow-up (up to 5 per year | B49: 120
A50: Chronic Disease Management Cardiovascular Disease Follow-up (up to 5 per year) | B50: 90
A51: Chronic Disease Management -Cardiovascular Disease Initial/Annual Assessment | B51: 500
A52: Complex Medication Therapy Assessment | B52: 150
A53: Deprescribing BZRA Follow-ups- Early (limit of 2) Non Project participants | B53: 13.2
A54: Deprescribing BZRA Follow-ups Later (limit of 5 for BZRA only) Non-Project Participants | B54: 7.92
A55: Deprescribing BZRA Non Project Participants Initial Assessment | B55: 49.5
A56: Deprescribing PPI Follow-ups- Early (limit of 2) Non Project participants | B56: 13.2
A57: Deprescribing -PPI Non Project Participants Initial Assessment | B57: 17.325
A58: Hypertension Project Follow-ups | B58: 200
A59: Hypertension Project Initial Assessment | B59: 625
A60: Pharmacist independent prescribing with diagnosis confirmed by pharmacist (Diabetes, Lung, CVD only). NSCP Study | B60: 0
A61: Point of Care Test A1C | B61: 712.5
A62: Point of Care Test Cholesterol | B62: 787.5
A63: Prescribing for a Minor Ailment (as per Appendix 6) | B63: 2000
A64: Prescribing in an Emergency | B64: 0
A65: Prescribing with a diagnosis as per NSCP standard in collaboration with another provider | B65: 0
A66: Prescription Adaptation -Other | B66: 35
A67: Prescription Adaptation Refusal to Fill | B67: 0
A68: Renewal Assessment that does not result in a prescription | B68: 0
A69: Therapeutic Sub- Other Circumstances | B69: 0
A70: Therapeutic Substitution – PPI | B70: 66.25
A71: Tobacco Use Reduction Program – Follow-up 1-3 | B71: 0
A72: Tobacco Use Reduction Program – Initial Assessment and Discussion | B72: 0
A73: Tobacco Use Reduction Program –Follow-up 4-7 | B73: 0
A74: Not Funded Not Eligible | B74: 300
A75: Administration of non-publicly funded vaccines | B75: 300
A76: Any Service for a Patient without an NS Health card that is not covered for out of province patients | B76: 0
A77: Comprehensive Travel Health Consultation | B77: 0
A78: Malaria Chemoprophylaxis Assessment and Prescribing | B78: 0
A79: Other: | B79: 0
A80: Pharmacogenomic Consultation Service | B80: 0
A81: Rapid Antigen Testing Travel Test | B81: 0
A82: Grand Total | B82: 18599.645

Sheet Sheet1
